Workbook

Sheet >
B2: =global!$B$2 -> New Industrial Template
B3: First Sheet in Workbook, '>'
B4: Sometimes it's helpful to reference a range of sheets, as with 3D arrays. This far-left worksheet helps with similar circumstances. Please don't place sheets ahead of this front sheet. Recommended Settings: - Manual Calculation: By default, use Manual Calculation by typing Windows-only shortcut ALT > M > X > M. Otherwise, click Formulas > Calculation Options > Manual) - Quick Refresh: To refresh (excluding Sensitivities), set to Automatic Except for Data Tables, ALT > M > X > E. Or, follow instructions above but click the other option. - Deep Refresh: Sensitivities refresh with the command CTRL + ALT + F9. This is a deep refresh. Also, If the workbook seems stuck, try a deep refresh. Make sure you close out of other workbooks with slow sensitivities.
B5: Cmd/Ctrl + [ to jump to front of model
B6: ='<'!$B$6 -> Cmd/Ctrl + [ to jump to back of model

Sheet README
A1: =Checks!A1 -> 0 | B1: README
B2: =global!$B$2 -> New Industrial Template
B4: How to control the 'leases' sheet
B41: Refreshing
B42: Important | C42: The model refresh will require <1 second if you refresh using: - ALT > M > X > E (set to automatic calculation mode) - wait <1 second for refresh to finish - ALT > M > X > M (set back to manual calculation mode) This will refresh everything but the sensitivity tables. To refresh the sensitvity tables, press CTRL+ALT+F9 (or just F9, though CTRL+ALT+F9 is a more extensive refresh). Kindly note, the sensitivity tables require a couple minutes to all refresh. This is not uncommon in Excel models, though it is possible to further rearchitecture the model to speed this up. As a band-aid, the ALT > M > X > E solution works for all instances except when you specifically want to refresh the sensitivity tables.
B44: Font Color | C44: Meaning
C45: The purpose of this color-coding system is to create a user-friendly financial model. This system clearly distinguishes between different types of cells—inputs, links, formulas, and special formulas—making the model easier to understand, navigate, and manipulate. This is essential for testing different scenarios, verifying results, and communicating methodology to others.
B46: Blue | C46: • Denotes an input variable—a value directly inputted into the cell. • Input variables might be starting balances, interest rates, growth percentages, etc. • These variables are the primary figures manipulated to observe how changes affect the model's outcome. • Blue helps distinguish these critical data points for easy identification and manipulation.
B47: Green | C47: • Indicates links to other sheets within the same Excel workbook. • The value in a green-font cell is pulling data from a cell in another sheet. • The green color helps trace information sources, making the model easier to navigate, especially in complex models with multiple sheets.
B48: Black | C48: • Used for cells that contain formulas. • Formulas are equations performing calculations on values in the worksheet. • They might involve operations such as addition, subtraction, multiplication, division, etc., often using values from input variables (blue cells) and/or linked cells (green cells). • Black helps identify where calculations are taking place, essential for understanding the model's logic and flow.
B49: Purple | C49: • Special convention for important or unique formulas. • These formulas may be more complex, incorporate data from multiple sources, or central to the model's main function. • Purple signals that these cells require extra attention, but should be used sparingly to prevent diluting its impact. • Helps quickly identify key parts of the model that should receive particular attention, or otherwise capture the user's attention or confirm that a pattern-breaking formula is intentional.
B51: Convention | C51: Detail
B52: Checks | C52: All checks should roll into sheet-level local checks and all sheet-level local checks should roll into global check. Sheet-level local checks summarized in A2 of each sheet, global check in A1 of each sheet.
B53: Name | C53: Model name controlled at top of summary tab
B54: Dates | C54: Dates should be input as month-end values only, never start of month or middle of month. If you're looking to model an event on 7/1, you could pick 6/30. The idea is that every date input represents the last second of time on that date. The only exception here is the in-place lease schedules in the sheet 'leases', where the start date is the first of the month (though we can alter the model to make this conform, as well).
B55: Internal Names and References | C55: Ensure no dead names bog down the worksheet (Ctrl+F3). If any do, use Macabacus' Name Scrubber or similar tool to remove them.
B56: Avoid External Workbook References | C56: Ensure no external references (Alt > A > K). Should remove all external references. If any can't be removed, try Macabacus Name Scrubber or similar tool.
B58: How to Update SOFR Forward Curve

Sheet control >
B2: =global!$B$2 -> New Industrial Template
B3: Control Section Divider
B4: This is the first tab in the control section. These are the only parts of the model you should need to interface with. The design should remain well-formatted back here, but do not need to be constrained to 8.5" x 11" output formatting. Meaning, things can get more vertical or horizontal. Just keep things user-friendly.

Sheet global
A1: =Checks!$A$1 -> 0 | B1: Global Control Panel | F1: Data Confidence
A2: =C146 -> 0 | B2: =global!$C$15 -> New Industrial Template | F2: Extensive
B3: CERTAIN INPUTS DO NOT WARRANT A FULL SHEET, SO WE AGGREGATE THEM HERE. IF THINGS EVER GET OUT
B4: OF HAND FOR ANY PARTICULAR METRIC, WE CAN ALWAYS MAKE A DEDICATED SHEET.
B6: Controls
B8: General
B10: Property Details
B11: Year Built | C11: 2021
B12: Net Leasable Area | C12: =SUM(leases!C11:CZ11) -> 86000
B13: Street Address | C13: 2222 Example
B14: City / State / Zip | C14: City, GA
B15: Workbook name | C15: New Industrial Template
B17: Parking Information
B18: Parking Spaces | C18: 30
B19: Total Spaces | C19: =SUM(C18) -> 30
B20: Total Spaces Per 1,000 SF | C20: =C19/C12*10^3 -> 0.3488372093
B22: Timing
B23: Closing Date (model will interpret as end of month) | C23: 2024-01-01
B24: Hold Period (months) | C24: 60
B25: Exit Date | C25: =EOMONTH(C23,C121) -> 2029-01-31
B26: NTM after Exit Ends | C26: =EOMONTH(C25,12) -> 2030-01-31
B28: Acquisition Information
B29: Purchase Price | C29: 8188500
B30: Up-front working capital | C30: 0
B31: Addional Equity Required | C31: =SUMIF(cf_detail!H2475:EJ2475,"<0")*-1 -> 379156.3768
B33: Closing Costs (Entry)
B34: Closing Costs | C34: 0.01
B35: Setup Fees | C35: -10500
B36: Dilgence Expenses | C36: -30000
B38: Valuation (Exit & Refi Basis)
B40: Cap Rates | C40: Input | D40: Sensi | E40: Output
B41: Exit Cap Rate | C41: 0.065 | D41: =sensi_backup!$E$10 -> 0 | E41: =C41+D41 -> 0.065
B42: Refi Cap Rate | C42: =C41 -> 0.065 | D42: =sensi_backup!$E$10 -> 0 | E42: =C42+D42 -> 0.065
B44: Calculate Valuation | C44: At Exit | D44: At Refi | E44: At Entry | F44: tag
B45: Residual Exit NTM NOI | C45: =cf_detail!EN2471 -> 935885.6655 | D45: =cf_detail!EO2471 -> 935885.6655 | E45: =cf_detail!$EL$2471 -> 661587.6248 | F45: noi
B46: ="Adj: "&_xlfn.XLOOKUP(_xlfn.ANCHORARRAY($F46),tags!$C$16:$C$134,tags!$E$16:$E$134,"None") -> Adj: Downtime | C46: =SUMIFS(_xlfn.ANCHORARRAY(cf_detail!EN2490),cf_detail!$C$2490:$C$2493,_xlfn.ANCHORARRAY(global!$F46))*-1 -> 0 | D46: =SUMIFS(_xlfn.ANCHORARRAY(cf_detail!EO2490),cf_detail!$C$2490:$C$2493,_xlfn.ANCHORARRAY(global!$F46))*-1 -> 0 | E46: =SUMIFS(_xlfn.ANCHORARRAY(cf_detail!EL2490),cf_detail!$C$2490:$C$2493,_xlfn.ANCHORARRAY(global!$F46))*-1 -> 0 | F46: =IFERROR(_xlfn._xlws.FILTER(tags!$C$16:$C$134,_xlfn.ANCHORARRAY(tags!$P$16)=1),0) -> all_downtime
B47: Adj: Free Rent | C47: 0 | D47: 0 | E47: 45000 | F47: all_free_rent
B48: NOI to Capitalize | C48: =SUM(C45:C47) -> 935885.6655 | D48: =SUM(D45:D47) -> 935885.6655 | E48: =SUM(E45:E47) -> 706587.6248
B49: Cap Rate | C49: =E41 -> 0.065 | D49: =E42 -> 0.065 | E49: =E48/E50 -> 0.08629023934
B50: Sales Price | C50: =C48/C49 -> 14398241.01 | D50: =D48/D49 -> 14398241.01 | E50: =$C$29 -> 8188500
B51: ="Buyer Credit: "&_xlfn.XLOOKUP(_xlfn.ANCHORARRAY($F51),tags!$C$16:$C$134,tags!$E$16:$E$134,"None") -> Buyer Credit: Free Rent | C51: =SUMIFS(_xlfn.ANCHORARRAY(cf_detail!EN2499),cf_detail!$C$2499:$C$2503,_xlfn.ANCHORARRAY(global!$F51)) -> 0 | D51: =SUMIFS(_xlfn.ANCHORARRAY(cf_detail!EO2499),cf_detail!$C$2499:$C$2503,_xlfn.ANCHORARRAY(global!$F51)) -> 0 | F51: =IFERROR(_xlfn._xlws.FILTER(tags!$C$16:$C$134,_xlfn.ANCHORARRAY(tags!$Q$16)=1),0) -> all_free_rent
B52: Buyer Credit: Tenant Improvements | C52: 0 | D52: 0 | F52: all_tenant_improvements
B53: Buyer Credit: Leasing Commissions | C53: 0 | D53: 0 | F53: all_leasing_commissions
B54: Gross Sales Proceeds | C54: =SUM(C50:C53) -> 14398241.01 | D54: =SUM(D50:D53) -> 14398241.01
B55: Less: Disposition Costs | C55: =C54*$C$65*-1 -> -719912.0504
B56: Net Sale Procees | C56: =C54+C55 -> 13678328.96
B58: Costs of Sale (Exit) | C58: % Input | D58: $ Value at exit
B59: Transfer Taxes | C59: 0 | D59: =C59*$C$54*-1 -> 0
B60: Title Insurance | C60: 0 | D60: =C60*$C$54*-1 -> 0
B61: Broker | C61: 0 | D61: 0
B62: Legal | C62: 0 | D62: 0
B63: Contingency Plug | C63: 0.05 | D63: -719912.0504
B64: 0 | C64: 0 | D64: 0
B65: Subtotal | C65: =SUM(C58:C64) -> 0.05 | D65: =SUM(D59:D64) -> -719912.0504
B67: Adjustments to Residual NOI | C67: On? | D67: Proper Name
B68: all_free_rent | C68: 1 | D68: =_xlfn.XLOOKUP($B68,tags!$C$16:$C$134,tags!$E$16:$E$134,0) -> Free Rent
B69: all_downtime | C69: 1 | D69: =_xlfn.XLOOKUP($B69,tags!$C$16:$C$134,tags!$E$16:$E$134,0) -> Downtime
B70: 0 | C70: 0 | D70: 0
B72: Next Buyer Credits (NTM totals) | C72: On? | D72: Proper Name
B73: all_free_rent | C73: 1 | D73: =_xlfn.XLOOKUP($B73,tags!$C$16:$C$134,tags!$E$16:$E$134,0) -> Free Rent
B74: all_tenant_improvements | C74: 1 | D74: =_xlfn.XLOOKUP($B74,tags!$C$16:$C$134,tags!$E$16:$E$134,0) -> Tenant Improvements
B75: all_leasing_commissions | C75: 1 | D75: =_xlfn.XLOOKUP($B75,tags!$C$16:$C$134,tags!$E$16:$E$134,0) -> Leasing Commissions
B76: 0 | C76: 0 | D76: 0
B78: Financing
B80: Financing Details | C80: Senior | D80: Mezz | E80: Refi
B81: Active? | C81: 1 | D81: 0 | E81: 0
B82: Loan Amount | C82: =IF(C$81=0,0,$C$29*C127) -> 4094250 | D82: =IF(D$81=0,0,$C$29*D127) -> 0 | E82: =IF(E$81=0,0,$E$127*$D$54) -> 0
B83: LTV | C83: 0.5 | D83: 0.2 | E83: 0.5
B84: Going-In DSCR | C84: =IF(C$81=0,0,IFERROR(C132/C133*-1,0)) -> 2.019868184 | D84: =IF(D$81=0,0,IFERROR(D132/D133*-1,0)) -> 0 | E84: =IF(E$81=0,0,IFERROR(E132/E133*-1,0)) -> 0
B85: Going-In Debt Yield | C85: =IF(C$81=0,0,C132/C82) -> 0.1615894547 | D85: =IF(D$81=0,0,D132/D82) -> 0 | E85: =IF(E$81=0,0,E132/E82) -> 0
B86: Fixed (FXD) or Floating (FLT)? | C86: FXD | D86: FXD | E86: FXD
B87: FXD Rate / Spread to SOFR Output | C87: 0.08 | D87: 0.1 | E87: 0.056
B88: Interest Only Period | C88: 12 | D88: =D91 -> 60 | E88: 0
B89: Loan Fee (% proceeds) | C89: 0.01 | D89: 0.01 | E89: 0.01
B90: Amortization | C90: =25*12 -> 300 | D90: =C90 -> 300 | E90: =C90 -> 300
B91: Term | C91: 60 | D91: =C91 -> 60 | E91: 60
B92: Refinance Month | C92: na | D92: na | E92: =C91 -> 60
B95: Partnership Costs
B97: Fee | C97: Rate | D97: Basis
B98: Monthly Admin Allocation | C98: 25
B99: ="Acquisition Fee (on "&D99&")" -> Acquisition Fee (on Purchase Price) | C99: 0.02 | D99: Purchase Price
B100: ="Asset Management Fee (on "&D100&")" -> Asset Management Fee (on NOI) | C100: 0 | D100: NOI
B101: ="Asset Management Fee (on "&D101&")" -> Asset Management Fee (on Peak Equity) | C101: 0.015 | D101: Peak Equity
B102: Refinance Allocation | C102: 0
B103: Disposition Allocation | C103: 0.005
B105: Waterfall
B107: Equity Split | C107: % | D107: At Close
B108: LP | C108: =1-$C$109 -> 0.9 | D108: =D$110*$C108 -> 3979212.75
B109: GP | C109: 0.1 | D109: =D$110*$C109 -> 442134.75
B110: Total | C110: =SUM(C108:C109) -> 1 | D110: =cf_detail!G2480*-1 -> 4421347.5
B112: Technical
B113: Circuit Breaker | C113: 0 | D113: If circular errors, flip to 1, refresh, then flip back to 0
B115: Backup Calculations (No Need to Edit These)
B117: General Backup
B119: Timing
B120: Hold Period Sensi | C120: =sensi_backup!$E$15 -> 0
B121: Hold Period Output | C121: =+C120+C24 -> 60
B123: Financing Backup
B125: Sensitized (Logic, Not a Control) | C125: Senior | D125: Mezz | E125: Refi
B126: LTV Sensi | C126: =sensi_backup!$E$11 -> 0 | D126: =sensi_backup!$E$11 -> 0 | E126: =sensi_backup!$E$13 -> 0
B127: LTV Output | C127: =C126+C83 -> 0.5 | D127: =D126+D83 -> 0.2 | E127: =E126+E83 -> 0.5
B128: FXD Rate / Spread to SOFR Sensi | C128: =sensi_backup!$E$12 -> 0 | D128: =sensi_backup!$E$12 -> 0 | E128: =sensi_backup!$E$14 -> 0
B129: FXD Rate / Spread to SOFR Output | C129: =+C128+C87 -> 0.08 | D129: =+D128+D87 -> 0.1 | E129: =+E128+E87 -> 0.056
B131: Reference Metrics (Logic, Not a Control)
B132: NOI | C132: =cf_detail!EL2471 -> 661587.6248 | D132: =C132 -> 661587.6248 | E132: =D45 -> 935885.6655
B133: Debt Service | C133: =cf_detail!EL1239+cf_detail!EL1244 -> -327540 | D133: =C133+(cf_detail!EL1240+cf_detail!EL1245) -> -327540 | E133: =cf_detail!EO1241+cf_detail!EO1246 -> 0
B136: checks
B138: check | C138: result
B139: 0 | C139: 0
B140: adjustment tags exist in 'tags' control tab? | C140: =SUM(1-COUNTIFS(tags!$C$16:$C$134,global!$B$67:$B$70))-2 -> 0
B141: buyer credit tags exist in 'tags' control tab? | C141: =SUM(1-COUNTIFS(tags!$C$16:$C$134,global!$B$72:$B$76))-2 -> 0
B142: =$B$148 -> monthly starts at close | C142: =$C$151 -> 0
B143: Monthly exit val foots to exit value build in global? | C143: =C165 -> 0
B144: exit value here = there? | C144: =ROUND(C155-C164,6) -> 0
B145: 0 | C145: 0
B146: local check | C146: =COUNTIFS(C139:C145,"<>0") -> 0
B148: monthly starts at close
B149: monthly start date | C149: =MIN(lease_opex_detail!F9:EI9) -> 2024-01-31
B150: close eomonth | C150: =EOMONTH(C23,0) -> 2024-01-31
B151: same? | C151: =C149-C150 -> 0
B154: Monthly exit val foots to exit value build in global?
B155: Exit Val in cf_detail | C155: =_xlfn.XLOOKUP($C$121,cf_detail!$F$4:$EJ$4,cf_detail!$F$2505:$EJ$2505,0) -> 14398241.01
B156: Gross up for adjustments | C156: =C161*-1 -> 0
B157: Grossed up | C157: =SUM(C155:C156) -> 14398241.01
B158: cap rate used there | C158: =_xlfn.XLOOKUP(global!$C$121,cf_detail!$F$4:$EJ$4,cf_detail!$F$2496:$EJ$2496,0) -> 0.065
B159: implied NOI | C159: =C157*C158 -> 935885.6655
B160: cap using terminal here | C160: =C159/$E$41 -> 14398241.01
B161: adjustments | C161: =SUM(_xlfn.ANCHORARRAY(C51)) -> 0
B162: adjusted here | C162: =C160+C161 -> 14398241.01
B164: exit val here | C164: =C54 -> 14398241.01
B165: matches when adjusting for local exit cap rate differential? | C165: =C162-C164 -> 0

Sheet leases
A1: =Checks!$A$1 -> 0 | D1: Leases | G1: Data Confidence
A2: =$DC$204 -> 0 | D2: =global!$B$2 -> New Industrial Template | G2: Preliminary
C4: > | D4: Lease Input | CZ4: <
D6: =D9&" "&G9&" - "&G10 -> Suite 1 - Example Tenant Lease | H6: x | I6: =I9&" "&L9&" - "&L10 -> Suite 2 - Shop | N6: =N9&" "&Q9&" - "&Q10 -> Suite 3 - Blank | S6: =S9&" "&V9&" - "&V10 -> Suite 4 - Blank | X6: =X9&" "&AA9&" - "&AA10 -> Suite 5 - Blank | AC6: =AC9&" "&AF9&" - "&AF10 -> Suite 6 - Blank | AH6: =AH9&" "&AK9&" - "&AK10 -> Suite 7 - Blank | AM6: =AM9&" "&AP9&" - "&AP10 -> Suite 8 - Blank | AR6: =AR9&" "&AU9&" - "&AU10 -> Suite 9 - Blank | AW6: =AW9&" "&AZ9&" - "&AZ10 -> Suite 10 - Blank | BB6: =BB9&" "&BE9&" - "&BE10 -> Suite 11 - Blank | BG6: =BG9&" "&BJ9&" - "&BJ10 -> Suite 12 - Blank | BL6: =BL9&" "&BO9&" - "&BO10 -> Suite 13 - Blank | BQ6: =BQ9&" "&BT9&" - "&BT10 -> Suite 14 - Blank | BV6: =BV9&" "&BY9&" - "&BY10 -> Suite 15 - Blank | CA6: =CA9&" "&CD9&" - "&CD10 -> Suite 16 - Blank | CF6: =CF9&" "&CI9&" - "&CI10 -> Suite 17 - Blank | CK6: =CK9&" "&CN9&" - "&CN10 -> Suite 18 - Blank | CP6: =CP9&" "&CS9&" - "&CS10 -> Suite 19 - Blank | CU6: =CU9&" "&CX9&" - "&CX10 -> Suite 20 - Blank
D8: General | I8: General | N8: General | S8: General | X8: General | AC8: General | AH8: General | AM8: General | AR8: General | AW8: General | BB8: General | BG8: General | BL8: General | BQ8: General | BV8: General | CA8: General | CF8: General | CK8: General | CP8: General | CU8: General
D9: Suite | G9: =MAX($C9:F9)+1 -> 1 | I9: Suite | L9: =G9+1 -> 2 | N9: Suite | Q9: =L9+1 -> 3 | S9: Suite | V9: =Q9+1 -> 4 | X9: Suite | AA9: =V9+1 -> 5 | AC9: Suite | AF9: =AA9+1 -> 6 | AH9: Suite | AK9: =AF9+1 -> 7 | AM9: Suite | AP9: =AK9+1 -> 8 | AR9: Suite | AU9: =AP9+1 -> 9 | AW9: Suite | AZ9: =AU9+1 -> 10 | BB9: Suite | BE9: =AZ9+1 -> 11 | BG9: Suite | BJ9: =BE9+1 -> 12 | BL9: Suite | BO9: =BJ9+1 -> 13 | BQ9: Suite | BT9: =BO9+1 -> 14 | BV9: Suite | BY9: =BT9+1 -> 15 | CA9: Suite | CD9: =BY9+1 -> 16 | CF9: Suite | CI9: =CD9+1 -> 17 | CK9: Suite | CN9: =CI9+1 -> 18 | CP9: Suite | CS9: =CN9+1 -> 19 | CU9: Suite | CX9: =CS9+1 -> 20
D10: Tenant Name | G10: Example Tenant Lease | I10: Tenant Name | L10: Shop | N10: Tenant Name | Q10: Blank | S10: Tenant Name | V10: Blank | X10: Tenant Name | AA10: Blank | AC10: Tenant Name | AF10: Blank | AH10: Tenant Name | AK10: Blank | AM10: Tenant Name | AP10: Blank | AR10: Tenant Name | AU10: Blank | AW10: Tenant Name | AZ10: Blank | BB10: Tenant Name | BE10: Blank | BG10: Tenant Name | BJ10: Blank | BL10: Tenant Name | BO10: Blank | BQ10: Tenant Name | BT10: Blank | BV10: Tenant Name | BY10: Blank | CA10: Tenant Name | CD10: Blank | CF10: Tenant Name | CI10: Blank | CK10: Tenant Name | CN10: Blank | CP10: Tenant Name | CS10: Blank | CU10: Tenant Name | CX10: Blank
D11: SF | G11: 66000 | I11: SF | L11: 20000 | N11: SF | Q11: 0 | S11: SF | V11: 0 | X11: SF | AA11: 0 | AC11: SF | AF11: 0 | AH11: SF | AK11: 0 | AM11: SF | AP11: 0 | AR11: SF | AU11: 0 | AW11: SF | AZ11: 0 | BB11: SF | BE11: 0 | BG11: SF | BJ11: 0 | BL11: SF | BO11: 0 | BQ11: SF | BT11: 0 | BV11: SF | BY11: 0 | CA11: SF | CD11: 0 | CF11: SF | CI11: 0 | CK11: SF | CN11: 0 | CP11: SF | CS11: 0 | CU11: SF | CX11: 0
D13: In-Place Lease or Post Acquisition Gen 1 Assumptions | I13: In-Place Lease or Post Acquisition Gen 1 Assumptions | N13: In-Place Lease or Post Acquisition Gen 1 Assumptions | S13: In-Place Lease or Post Acquisition Gen 1 Assumptions | X13: In-Place Lease or Post Acquisition Gen 1 Assumptions | AC13: In-Place Lease or Post Acquisition Gen 1 Assumptions | AH13: In-Place Lease or Post Acquisition Gen 1 Assumptions | AM13: In-Place Lease or Post Acquisition Gen 1 Assumptions | AR13: In-Place Lease or Post Acquisition Gen 1 Assumptions | AW13: In-Place Lease or Post Acquisition Gen 1 Assumptions | BB13: In-Place Lease or Post Acquisition Gen 1 Assumptions | BG13: In-Place Lease or Post Acquisition Gen 1 Assumptions | BL13: In-Place Lease or Post Acquisition Gen 1 Assumptions | BQ13: In-Place Lease or Post Acquisition Gen 1 Assumptions | BV13: In-Place Lease or Post Acquisition Gen 1 Assumptions | CA13: In-Place Lease or Post Acquisition Gen 1 Assumptions | CF13: In-Place Lease or Post Acquisition Gen 1 Assumptions | CK13: In-Place Lease or Post Acquisition Gen 1 Assumptions | CP13: In-Place Lease or Post Acquisition Gen 1 Assumptions | CU13: In-Place Lease or Post Acquisition Gen 1 Assumptions
D15: General | I15: =$D15 -> General | N15: =$D15 -> General | S15: =$D15 -> General | X15: =$D15 -> General | AC15: =$D15 -> General | AH15: =$D15 -> General | AM15: =$D15 -> General | AR15: =$D15 -> General | AW15: =$D15 -> General | BB15: =$D15 -> General | BG15: =$D15 -> General | BL15: =$D15 -> General | BQ15: =$D15 -> General | BV15: =$D15 -> General | CA15: =$D15 -> General | CF15: =$D15 -> General | CK15: =$D15 -> General | CP15: =$D15 -> General | CU15: =$D15 -> General
D16: Reimbursement Structure | G16: NNN | I16: =$D16 -> Reimbursement Structure | L16: NNN | N16: =$D16 -> Reimbursement Structure | Q16: NNN | S16: =$D16 -> Reimbursement Structure | V16: NNN | X16: =$D16 -> Reimbursement Structure | AA16: NNN | AC16: =$D16 -> Reimbursement Structure | AF16: NNN | AH16: =$D16 -> Reimbursement Structure | AK16: NNN | AM16: =$D16 -> Reimbursement Structure | AP16: NNN | AR16: =$D16 -> Reimbursement Structure | AU16: NNN | AW16: =$D16 -> Reimbursement Structure | AZ16: NNN | BB16: =$D16 -> Reimbursement Structure | BE16: NNN | BG16: =$D16 -> Reimbursement Structure | BJ16: NNN | BL16: =$D16 -> Reimbursement Structure | BO16: NNN | BQ16: =$D16 -> Reimbursement Structure | BT16: NNN | BV16: =$D16 -> Reimbursement Structure | BY16: NNN | CA16: =$D16 -> Reimbursement Structure | CD16: NNN | CF16: =$D16 -> Reimbursement Structure | CI16: NNN | CK16: =$D16 -> Reimbursement Structure | CN16: NNN | CP16: =$D16 -> Reimbursement Structure | CS16: NNN | CU16: =$D16 -> Reimbursement Structure | CX16: NNN
A18: tag | D18: Reimbursement | E18: Reimburse For MG | F18: Reimburse For BYS | G18: BYS Amount | I18: =$D18 -> Reimbursement | J18: =$E18 -> Reimburse For MG | K18: =$F18 -> Reimburse For BYS | L18: =$G18 -> BYS Amount | N18: =$D18 -> Reimbursement | O18: =$E18 -> Reimburse For MG | P18: =$F18 -> Reimburse For BYS | Q18: =$G18 -> BYS Amount | S18: =$D18 -> Reimbursement | T18: =$E18 -> Reimburse For MG | U18: =$F18 -> Reimburse For BYS | V18: =$G18 -> BYS Amount | X18: =$D18 -> Reimbursement | Y18: =$E18 -> Reimburse For MG | Z18: =$F18 -> Reimburse For BYS | AA18: =$G18 -> BYS Amount | AC18: =$D18 -> Reimbursement | AD18: =$E18 -> Reimburse For MG | AE18: =$F18 -> Reimburse For BYS | AF18: =$G18 -> BYS Amount | AH18: =$D18 -> Reimbursement | AI18: =$E18 -> Reimburse For MG | AJ18: =$F18 -> Reimburse For BYS | AK18: =$G18 -> BYS Amount | AM18: =$D18 -> Reimbursement | AN18: =$E18 -> Reimburse For MG | AO18: =$F18 -> Reimburse For BYS | AP18: =$G18 -> BYS Amount | AR18: =$D18 -> Reimbursement | AS18: =$E18 -> Reimburse For MG | AT18: =$F18 -> Reimburse For BYS | AU18: =$G18 -> BYS Amount | AW18: =$D18 -> Reimbursement | AX18: =$E18 -> Reimburse For MG | AY18: =$F18 -> Reimburse For BYS | AZ18: =$G18 -> BYS Amount | BB18: =$D18 -> Reimbursement | BC18: =$E18 -> Reimburse For MG | BD18: =$F18 -> Reimburse For BYS | BE18: =$G18 -> BYS Amount | BG18: =$D18 -> Reimbursement | BH18: =$E18 -> Reimburse For MG | BI18: =$F18 -> Reimburse For BYS | BJ18: =$G18 -> BYS Amount | BL18: =$D18 -> Reimbursement | BM18: =$E18 -> Reimburse For MG | BN18: =$F18 -> Reimburse For BYS | BO18: =$G18 -> BYS Amount | BQ18: =$D18 -> Reimbursement | BR18: =$E18 -> Reimburse For MG | BS18: =$F18 -> Reimburse For BYS | BT18: =$G18 -> BYS Amount | BV18: =$D18 -> Reimbursement | BW18: =$E18 -> Reimburse For MG | BX18: =$F18 -> Reimburse For BYS | BY18: =$G18 -> BYS Amount | CA18: =$D18 -> Reimbursement | CB18: =$E18 -> Reimburse For MG | CC18: =$F18 -> Reimburse For BYS | CD18: =$G18 -> BYS Amount | CF18: =$D18 -> Reimbursement | CG18: =$E18 -> Reimburse For MG | CH18: =$F18 -> Reimburse For BYS | CI18: =$G18 -> BYS Amount | CK18: =$D18 -> Reimbursement | CL18: =$E18 -> Reimburse For MG | CM18: =$F18 -> Reimburse For BYS | CN18: =$G18 -> BYS Amount | CP18: =$D18 -> Reimbursement | CQ18: =$E18 -> Reimburse For MG | CR18: =$F18 -> Reimburse For BYS | CS18: =$G18 -> BYS Amount | CU18: =$D18 -> Reimbursement | CV18: =$E18 -> Reimburse For MG | CW18: =$F18 -> Reimburse For BYS | CX18: =$G18 -> BYS Amount
D19: Expenses Begin - add rows below this line if necessary | I19: Expenses Begin - add rows below this line if necessary | N19: Expenses Begin - add rows below this line if necessary | S19: Expenses Begin - add rows below this line if necessary | X19: Expenses Begin - add rows below this line if necessary | AC19: Expenses Begin - add rows below this line if necessary | AH19: Expenses Begin - add rows below this line if necessary | AM19: Expenses Begin - add rows below this line if necessary | AR19: Expenses Begin - add rows below this line if necessary | AW19: Expenses Begin - add rows below this line if necessary | BB19: Expenses Begin - add rows below this line if necessary | BG19: Expenses Begin - add rows below this line if necessary | BL19: Expenses Begin - add rows below this line if necessary | BQ19: Expenses Begin - add rows below this line if necessary | BV19: Expenses Begin - add rows below this line if necessary | CA19: Expenses Begin - add rows below this line if necessary | CF19: Expenses Begin - add rows below this line if necessary | CK19: Expenses Begin - add rows below this line if necessary | CP19: Expenses Begin - add rows below this line if necessary | CU19: Expenses Begin - add rows below this line if necessary
A20: property_taxes | D20: =_xlfn.XLOOKUP($A20,tags!$C$16:$C$134,tags!$E$16:$E$134,0) -> Property Taxes | E20: 0 | F20: 0 | G20: 0 | I20: Property Taxes | J20: 0 | K20: 0 | L20: 0 | N20: Property Taxes | O20: 0 | P20: 0 | Q20: 0 | S20: Property Taxes | T20: 0 | U20: 0 | V20: 0 | X20: Property Taxes | Y20: 0 | Z20: 0 | AA20: 0 | AC20: Property Taxes | AD20: 0 | AE20: 0 | AF20: 0 | AH20: Property Taxes | AI20: 0 | AJ20: 0 | AK20: 0 | AM20: Property Taxes | AN20: 0 | AO20: 0 | AP20: 0 | AR20: Property Taxes | AS20: 0 | AT20: 0 | AU20: 0 | AW20: Property Taxes | AX20: 0 | AY20: 0 | AZ20: 0 | BB20: Property Taxes | BC20: 0 | BD20: 0 | BE20: 0 | BG20: Property Taxes | BH20: 0 | BI20: 0 | BJ20: 0 | BL20: Property Taxes | BM20: 0 | BN20: 0 | BO20: 0 | BQ20: Property Taxes | BR20: 0 | BS20: 0 | BT20: 0 | BV20: Property Taxes | BW20: 0 | BX20: 0 | BY20: 0 | CA20: Property Taxes | CB20: 0 | CC20: 0 | CD20: 0 | CF20: Property Taxes | CG20: 0 | CH20: 0 | CI20: 0 | CK20: Property Taxes | CL20: 0 | CM20: 0 | CN20: 0 | CP20: Property Taxes | CQ20: 0 | CR20: 0 | CS20: 0 | CU20: Property Taxes | CV20: 0 | CW20: 0 | CX20: 0
A21: insurance | D21: =_xlfn.XLOOKUP($A21,tags!$C$16:$C$134,tags!$E$16:$E$134,0) -> Insurance | E21: 0 | F21: 0 | G21: 0 | I21: Insurance | J21: 0 | K21: 0 | L21: 0 | N21: Insurance | O21: 0 | P21: 0 | Q21: 0 | S21: Insurance | T21: 0 | U21: 0 | V21: 0 | X21: Insurance | Y21: 0 | Z21: 0 | AA21: 0 | AC21: Insurance | AD21: 0 | AE21: 0 | AF21: 0 | AH21: Insurance | AI21: 0 | AJ21: 0 | AK21: 0 | AM21: Insurance | AN21: 0 | AO21: 0 | AP21: 0 | AR21: Insurance | AS21: 0 | AT21: 0 | AU21: 0 | AW21: Insurance | AX21: 0 | AY21: 0 | AZ21: 0 | BB21: Insurance | BC21: 0 | BD21: 0 | BE21: 0 | BG21: Insurance | BH21: 0 | BI21: 0 | BJ21: 0 | BL21: Insurance | BM21: 0 | BN21: 0 | BO21: 0 | BQ21: Insurance | BR21: 0 | BS21: 0 | BT21: 0 | BV21: Insurance | BW21: 0 | BX21: 0 | BY21: 0 | CA21: Insurance | CB21: 0 | CC21: 0 | CD21: 0 | CF21: Insurance | CG21: 0 | CH21: 0 | CI21: 0 | CK21: Insurance | CL21: 0 | CM21: 0 | CN21: 0 | CP21: Insurance | CQ21: 0 | CR21: 0 | CS21: 0 | CU21: Insurance | CV21: 0 | CW21: 0 | CX21: 0
A22: cam | D22: =_xlfn.XLOOKUP($A22,tags!$C$16:$C$134,tags!$E$16:$E$134,0) -> CAM | E22: 0 | F22: 0 | G22: 0 | I22: CAM | J22: 0 | K22: 0 | L22: 0 | N22: CAM | O22: 0 | P22: 0 | Q22: 0 | S22: CAM | T22: 0 | U22: 0 | V22: 0 | X22: CAM | Y22: 0 | Z22: 0 | AA22: 0 | AC22: CAM | AD22: 0 | AE22: 0 | AF22: 0 | AH22: CAM | AI22: 0 | AJ22: 0 | AK22: 0 | AM22: CAM | AN22: 0 | AO22: 0 | AP22: 0 | AR22: CAM | AS22: 0 | AT22: 0 | AU22: 0 | AW22: CAM | AX22: 0 | AY22: 0 | AZ22: 0 | BB22: CAM | BC22: 0 | BD22: 0 | BE22: 0 | BG22: CAM | BH22: 0 | BI22: 0 | BJ22: 0 | BL22: CAM | BM22: 0 | BN22: 0 | BO22: 0 | BQ22: CAM | BR22: 0 | BS22: 0 | BT22: 0 | BV22: CAM | BW22: 0 | BX22: 0 | BY22: 0 | CA22: CAM | CB22: 0 | CC22: 0 | CD22: 0 | CF22: CAM | CG22: 0 | CH22: 0 | CI22: 0 | CK22: CAM | CL22: 0 | CM22: 0 | CN22: 0 | CP22: CAM | CQ22: 0 | CR22: 0 | CS22: 0 | CU22: CAM | CV22: 0 | CW22: 0 | CX22: 0
A23: management_fee | D23: =_xlfn.XLOOKUP($A23,tags!$C$16:$C$134,tags!$E$16:$E$134,0) -> Management Fee | E23: 0 | F23: 0 | G23: 0 | I23: Management Fee | J23: 0 | K23: 0 | L23: 0 | N23: Management Fee | O23: 0 | P23: 0 | Q23: 0 | S23: Management Fee | T23: 0 | U23: 0 | V23: 0 | X23: Management Fee | Y23: 0 | Z23: 0 | AA23: 0 | AC23: Management Fee | AD23: 0 | AE23: 0 | AF23: 0 | AH23: Management Fee | AI23: 0 | AJ23: 0 | AK23: 0 | AM23: Management Fee | AN23: 0 | AO23: 0 | AP23: 0 | AR23: Management Fee | AS23: 0 | AT23: 0 | AU23: 0 | AW23: Management Fee | AX23: 0 | AY23: 0 | AZ23: 0 | BB23: Management Fee | BC23: 0 | BD23: 0 | BE23: 0 | BG23: Management Fee | BH23: 0 | BI23: 0 | BJ23: 0 | BL23: Management Fee | BM23: 0 | BN23: 0 | BO23: 0 | BQ23: Management Fee | BR23: 0 | BS23: 0 | BT23: 0 | BV23: Management Fee | BW23: 0 | BX23: 0 | BY23: 0 | CA23: Management Fee | CB23: 0 | CC23: 0 | CD23: 0 | CF23: Management Fee | CG23: 0 | CH23: 0 | CI23: 0 | CK23: Management Fee | CL23: 0 | CM23: 0 | CN23: 0 | CP23: Management Fee | CQ23: 0 | CR23: 0 | CS23: 0 | CU23: Management Fee | CV23: 0 | CW23: 0 | CX23: 0
A24: other | D24: =_xlfn.XLOOKUP($A24,tags!$C$16:$C$134,tags!$E$16:$E$134,0) -> Other | E24: 0 | F24: 0 | G24: 0 | I24: Other | J24: 0 | K24: 0 | L24: 0 | N24: Other | O24: 0 | P24: 0 | Q24: 0 | S24: Other | T24: 0 | U24: 0 | V24: 0 | X24: Other | Y24: 0 | Z24: 0 | AA24: 0 | AC24: Other | AD24: 0 | AE24: 0 | AF24: 0 | AH24: Other | AI24: 0 | AJ24: 0 | AK24: 0 | AM24: Other | AN24: 0 | AO24: 0 | AP24: 0 | AR24: Other | AS24: 0 | AT24: 0 | AU24: 0 | AW24: Other | AX24: 0 | AY24: 0 | AZ24: 0 | BB24: Other | BC24: 0 | BD24: 0 | BE24: 0 | BG24: Other | BH24: 0 | BI24: 0 | BJ24: 0 | BL24: Other | BM24: 0 | BN24: 0 | BO24: 0 | BQ24: Other | BR24: 0 | BS24: 0 | BT24: 0 | BV24: Other | BW24: 0 | BX24: 0 | BY24: 0 | CA24: Other | CB24: 0 | CC24: 0 | CD24: 0 | CF24: Other | CG24: 0 | CH24: 0 | CI24: 0 | CK24: Other | CL24: 0 | CM24: 0 | CN24: 0 | CP24: Other | CQ24: 0 | CR24: 0 | CS24: 0 | CU24: Other | CV24: 0 | CW24: 0 | CX24: 0
D25: Expenses End - add rows above this line if necessary
D27: Rent Start (>=) | E27: Rent End (<=) | F27: Annual Rent PSF | I27: =$D27 -> Rent Start (>=) | J27: =$E27 -> Rent End (<=) | K27: =$F27 -> Annual Rent PSF | N27: =$D27 -> Rent Start (>=) | O27: =$E27 -> Rent End (<=) | P27: =$F27 -> Annual Rent PSF | S27: =$D27 -> Rent Start (>=) | T27: =$E27 -> Rent End (<=) | U27: =$F27 -> Annual Rent PSF | X27: =$D27 -> Rent Start (>=) | Y27: =$E27 -> Rent End (<=) | Z27: =$F27 -> Annual Rent PSF | AC27: =$D27 -> Rent Start (>=) | AD27: =$E27 -> Rent End (<=) | AE27: =$F27 -> Annual Rent PSF | AH27: =$D27 -> Rent Start (>=) | AI27: =$E27 -> Rent End (<=) | AJ27: =$F27 -> Annual Rent PSF | AM27: =$D27 -> Rent Start (>=) | AN27: =$E27 -> Rent End (<=) | AO27: =$F27 -> Annual Rent PSF | AR27: =$D27 -> Rent Start (>=) | AS27: =$E27 -> Rent End (<=) | AT27: =$F27 -> Annual Rent PSF | AW27: =$D27 -> Rent Start (>=) | AX27: =$E27 -> Rent End (<=) | AY27: =$F27 -> Annual Rent PSF | BB27: =$D27 -> Rent Start (>=) | BC27: =$E27 -> Rent End (<=) | BD27: =$F27 -> Annual Rent PSF | BG27: =$D27 -> Rent Start (>=) | BH27: =$E27 -> Rent End (<=) | BI27: =$F27 -> Annual Rent PSF | BL27: =$D27 -> Rent Start (>=) | BM27: =$E27 -> Rent End (<=) | BN27: =$F27 -> Annual Rent PSF | BQ27: =$D27 -> Rent Start (>=) | BR27: =$E27 -> Rent End (<=) | BS27: =$F27 -> Annual Rent PSF | BV27: =$D27 -> Rent Start (>=) | BW27: =$E27 -> Rent End (<=) | BX27: =$F27 -> Annual Rent PSF | CA27: =$D27 -> Rent Start (>=) | CB27: =$E27 -> Rent End (<=) | CC27: =$F27 -> Annual Rent PSF | CF27: =$D27 -> Rent Start (>=) | CG27: =$E27 -> Rent End (<=) | CH27: =$F27 -> Annual Rent PSF | CK27: =$D27 -> Rent Start (>=) | CL27: =$E27 -> Rent End (<=) | CM27: =$F27 -> Annual Rent PSF | CP27: =$D27 -> Rent Start (>=) | CQ27: =$E27 -> Rent End (<=) | CR27: =$F27 -> Annual Rent PSF | CU27: =$D27 -> Rent Start (>=) | CV27: =$E27 -> Rent End (<=) | CW27: =$F27 -> Annual Rent PSF
D28: Rent Steps Begin - add rows below this line if necessary (If empty, re-leasing assumptions kick in)
D29: 2023-10-01 | E29: 2024-09-30 | F29: 9 | I29: 2024-10-01 | J29: 2025-09-30 | K29: 9 | S29: 2022-04-01 | T29: 2023-03-31 | U29: 8.29 | X29: 2022-04-01 | Y29: 2023-03-31 | Z29: 8.29 | AC29: 2022-04-01 | AD29: 2023-03-31 | AE29: 8.29 | AH29: 2022-04-01 | AI29: 2023-03-31 | AJ29: 8.29 | AM29: 2022-04-01 | AN29: 2023-03-31 | AO29: 8.29 | AR29: 2022-04-01 | AS29: 2023-03-31 | AT29: 8.29 | AW29: 2022-04-01 | AX29: 2023-03-31 | AY29: 8.29 | BB29: 2022-04-01 | BC29: 2023-03-31 | BD29: 8.29 | BG29: 2022-04-01 | BH29: 2023-03-31 | BI29: 8.29 | BL29: 2022-04-01 | BM29: 2023-03-31 | BN29: 8.29 | BQ29: 2022-04-01 | BR29: 2023-03-31 | BS29: 8.29 | BV29: 2022-04-01 | BW29: 2023-03-31 | BX29: 8.29 | CA29: 2022-04-01 | CB29: 2023-03-31 | CC29: 8.29 | CF29: 2022-04-01 | CG29: 2023-03-31 | CH29: 8.29 | CK29: 2022-04-01 | CL29: 2023-03-31 | CM29: 8.29 | CP29: 2022-04-01 | CQ29: 2023-03-31 | CR29: 8.29 | CU29: 2022-04-01 | CV29: 2023-03-31 | CW29: 8.29
D30: 2024-10-01 | E30: 2025-09-30 | F30: 9.225 | I30: 2025-10-01 | J30: 2026-09-30 | K30: 9.225 | S30: 2023-04-01 | T30: 2024-03-31 | U30: 8.29 | X30: 2023-04-01 | Y30: 2024-03-31 | Z30: 8.29 | AC30: 2023-04-01 | AD30: 2024-03-31 | AE30: 8.29 | AH30: 2023-04-01 | AI30: 2024-03-31 | AJ30: 8.29 | AM30: 2023-04-01 | AN30: 2024-03-31 | AO30: 8.29 | AR30: 2023-04-01 | AS30: 2024-03-31 | AT30: 8.29 | AW30: 2023-04-01 | AX30: 2024-03-31 | AY30: 8.29 | BB30: 2023-04-01 | BC30: 2024-03-31 | BD30: 8.29 | BG30: 2023-04-01 | BH30: 2024-03-31 | BI30: 8.29 | BL30: 2023-04-01 | BM30: 2024-03-31 | BN30: 8.29 | BQ30: 2023-04-01 | BR30: 2024-03-31 | BS30: 8.29 | BV30: 2023-04-01 | BW30: 2024-03-31 | BX30: 8.29 | CA30: 2023-04-01 | CB30: 2024-03-31 | CC30: 8.29 | CF30: 2023-04-01 | CG30: 2024-03-31 | CH30: 8.29 | CK30: 2023-04-01 | CL30: 2024-03-31 | CM30: 8.29 | CP30: 2023-04-01 | CQ30: 2024-03-31 | CR30: 8.29 | CU30: 2023-04-01 | CV30: 2024-03-31 | CW30: 8.29
D31: 2025-10-01 | E31: 2026-09-30 | F31: 9.455625 | I31: 2026-10-01 | J31: 2027-09-30 | K31: 9.455625
D32: 2026-10-01 | E32: 2027-09-30 | F32: 9.692015625 | I32: 2027-10-01 | J32: 2028-09-30 | K32: 9.692015625
D33: 2027-10-01 | E33: 2028-09-30 | F33: 9.934316016 | I33: 2028-10-01 | J33: 2029-09-30 | K33: 9.934316016
D34: 2028-10-01 | E34: 2029-09-30 | F34: 10.18267392 | I34: 2029-10-01 | J34: 2030-09-30 | K34: 10.18267392
D35: 2029-10-01 | E35: 2030-09-30 | F35: 10.43724076 | I35: 2030-10-01 | J35: 2031-09-30 | K35: 10.43724076
D37: Rent Steps End - add rows above this line if more rent steps
D39: Up-Front Terms (For Post-Acq Gen 1 Only) | I39: =$D39 -> Up-Front Terms (For Post-Acq Gen 1 Only) | N39: =$D39 -> Up-Front Terms (For Post-Acq Gen 1 Only) | S39: =$D39 -> Up-Front Terms (For Post-Acq Gen 1 Only) | X39: =$D39 -> Up-Front Terms (For Post-Acq Gen 1 Only) | AC39: =$D39 -> Up-Front Terms (For Post-Acq Gen 1 Only) | AH39: =$D39 -> Up-Front Terms (For Post-Acq Gen 1 Only) | AM39: =$D39 -> Up-Front Terms (For Post-Acq Gen 1 Only) | AR39: =$D39 -> Up-Front Terms (For Post-Acq Gen 1 Only) | AW39: =$D39 -> Up-Front Terms (For Post-Acq Gen 1 Only) | BB39: =$D39 -> Up-Front Terms (For Post-Acq Gen 1 Only) | BG39: =$D39 -> Up-Front Terms (For Post-Acq Gen 1 Only) | BL39: =$D39 -> Up-Front Terms (For Post-Acq Gen 1 Only) | BQ39: =$D39 -> Up-Front Terms (For Post-Acq Gen 1 Only) | BV39: =$D39 -> Up-Front Terms (For Post-Acq Gen 1 Only) | CA39: =$D39 -> Up-Front Terms (For Post-Acq Gen 1 Only) | CF39: =$D39 -> Up-Front Terms (For Post-Acq Gen 1 Only) | CK39: =$D39 -> Up-Front Terms (For Post-Acq Gen 1 Only) | CP39: =$D39 -> Up-Front Terms (For Post-Acq Gen 1 Only) | CU39: =$D39 -> Up-Front Terms (For Post-Acq Gen 1 Only)
D40: Up-Front Free Rent | G40: 3 | I40: =$D40 -> Up-Front Free Rent | L40: 3 | N40: =$D40 -> Up-Front Free Rent | Q40: 3 | S40: =$D40 -> Up-Front Free Rent | V40: 3 | X40: =$D40 -> Up-Front Free Rent | AA40: 3 | AC40: =$D40 -> Up-Front Free Rent | AF40: 3 | AH40: =$D40 -> Up-Front Free Rent | AK40: 3 | AM40: =$D40 -> Up-Front Free Rent | AP40: 3 | AR40: =$D40 -> Up-Front Free Rent | AU40: 3 | AW40: =$D40 -> Up-Front Free Rent | AZ40: 3 | BB40: =$D40 -> Up-Front Free Rent | BE40: 3 | BG40: =$D40 -> Up-Front Free Rent | BJ40: 3 | BL40: =$D40 -> Up-Front Free Rent | BO40: 3 | BQ40: =$D40 -> Up-Front Free Rent | BT40: 3 | BV40: =$D40 -> Up-Front Free Rent | BY40: 3 | CA40: =$D40 -> Up-Front Free Rent | CD40: 3 | CF40: =$D40 -> Up-Front Free Rent | CI40: 3 | CK40: =$D40 -> Up-Front Free Rent | CN40: 3 | CP40: =$D40 -> Up-Front Free Rent | CS40: 3 | CU40: =$D40 -> Up-Front Free Rent | CX40: 3
D41: Up-Front TI PSF | G41: 2 | I41: Up-Front TI PSF | L41: 2 | N41: Up-Front TI PSF | Q41: 2 | S41: Up-Front TI PSF | V41: 2 | X41: Up-Front TI PSF | AA41: 2 | AC41: Up-Front TI PSF | AF41: 2 | AH41: Up-Front TI PSF | AK41: 2 | AM41: Up-Front TI PSF | AP41: 2 | AR41: Up-Front TI PSF | AU41: 2 | AW41: Up-Front TI PSF | AZ41: 2 | BB41: Up-Front TI PSF | BE41: 2 | BG41: Up-Front TI PSF | BJ41: 2 | BL41: Up-Front TI PSF | BO41: 2 | BQ41: Up-Front TI PSF | BT41: 2 | BV41: Up-Front TI PSF | BY41: 2 | CA41: Up-Front TI PSF | CD41: 2 | CF41: Up-Front TI PSF | CI41: 2 | CK41: Up-Front TI PSF | CN41: 2 | CP41: Up-Front TI PSF | CS41: 2 | CU41: Up-Front TI PSF | CX41: 2
D42: Up-Front Leasing Commissions | G42: 0.05 | I42: Up-Front Leasing Commissions | L42: 0.05 | N42: Up-Front Leasing Commissions | Q42: 0.05 | S42: Up-Front Leasing Commissions | V42: 0.05 | X42: Up-Front Leasing Commissions | AA42: 0.05 | AC42: Up-Front Leasing Commissions | AF42: 0.05 | AH42: Up-Front Leasing Commissions | AK42: 0.05 | AM42: Up-Front Leasing Commissions | AP42: 0.05 | AR42: Up-Front Leasing Commissions | AU42: 0.05 | AW42: Up-Front Leasing Commissions | AZ42: 0.05 | BB42: Up-Front Leasing Commissions | BE42: 0.05 | BG42: Up-Front Leasing Commissions | BJ42: 0.05 | BL42: Up-Front Leasing Commissions | BO42: 0.05 | BQ42: Up-Front Leasing Commissions | BT42: 0.05 | BV42: Up-Front Leasing Commissions | BY42: 0.05 | CA42: Up-Front Leasing Commissions | CD42: 0.05 | CF42: Up-Front Leasing Commissions | CI42: 0.05 | CK42: Up-Front Leasing Commissions | CN42: 0.05 | CP42: Up-Front Leasing Commissions | CS42: 0.05 | CU42: Up-Front Leasing Commissions | CX42: 0.05
D43: TI / LC Lead Time (if before investment start, will be zero) | G43: 1 | I43: TI / LC Lead Time (if before investment start, will be zero) | L43: 1 | N43: TI / LC Lead Time (if before investment start, will be zero) | Q43: 1 | S43: TI / LC Lead Time (if before investment start, will be zero) | V43: 1 | X43: TI / LC Lead Time (if before investment start, will be zero) | AA43: 1 | AC43: TI / LC Lead Time (if before investment start, will be zero) | AF43: 1 | AH43: TI / LC Lead Time (if before investment start, will be zero) | AK43: 1 | AM43: TI / LC Lead Time (if before investment start, will be zero) | AP43: 1 | AR43: TI / LC Lead Time (if before investment start, will be zero) | AU43: 1 | AW43: TI / LC Lead Time (if before investment start, will be zero) | AZ43: 1 | BB43: TI / LC Lead Time (if before investment start, will be zero) | BE43: 1 | BG43: TI / LC Lead Time (if before investment start, will be zero) | BJ43: 1 | BL43: TI / LC Lead Time (if before investment start, will be zero) | BO43: 1 | BQ43: TI / LC Lead Time (if before investment start, will be zero) | BT43: 1 | BV43: TI / LC Lead Time (if before investment start, will be zero) | BY43: 1 | CA43: TI / LC Lead Time (if before investment start, will be zero) | CD43: 1 | CF43: TI / LC Lead Time (if before investment start, will be zero) | CI43: 1 | CK43: TI / LC Lead Time (if before investment start, will be zero) | CN43: 1 | CP43: TI / LC Lead Time (if before investment start, will be zero) | CS43: 1 | CU43: TI / LC Lead Time (if before investment start, will be zero) | CX43: 1
D45: Re-Leasing Assumptions | I45: =$D45 -> Re-Leasing Assumptions | N45: =$D45 -> Re-Leasing Assumptions | S45: =$D45 -> Re-Leasing Assumptions | X45: =$D45 -> Re-Leasing Assumptions | AC45: =$D45 -> Re-Leasing Assumptions | AH45: =$D45 -> Re-Leasing Assumptions | AM45: =$D45 -> Re-Leasing Assumptions | AR45: =$D45 -> Re-Leasing Assumptions | AW45: =$D45 -> Re-Leasing Assumptions | BB45: =$D45 -> Re-Leasing Assumptions | BG45: =$D45 -> Re-Leasing Assumptions | BL45: =$D45 -> Re-Leasing Assumptions | BQ45: =$D45 -> Re-Leasing Assumptions | BV45: =$D45 -> Re-Leasing Assumptions | CA45: =$D45 -> Re-Leasing Assumptions | CF45: =$D45 -> Re-Leasing Assumptions | CK45: =$D45 -> Re-Leasing Assumptions | CP45: =$D45 -> Re-Leasing Assumptions | CU45: =$D45 -> Re-Leasing Assumptions
D46: If In-Place leasing assumptions are blank, Re-Leasing assumptions will begin after close | I46: =$D46 -> If In-Place leasing assumptions are blank, Re-Leasing assumptions will begin after close | N46: =$D46 -> If In-Place leasing assumptions are blank, Re-Leasing assumptions will begin after close | S46: =$D46 -> If In-Place leasing assumptions are blank, Re-Leasing assumptions will begin after close | X46: =$D46 -> If In-Place leasing assumptions are blank, Re-Leasing assumptions will begin after close | AC46: =$D46 -> If In-Place leasing assumptions are blank, Re-Leasing assumptions will begin after close | AH46: =$D46 -> If In-Place leasing assumptions are blank, Re-Leasing assumptions will begin after close | AM46: =$D46 -> If In-Place leasing assumptions are blank, Re-Leasing assumptions will begin after close | AR46: =$D46 -> If In-Place leasing assumptions are blank, Re-Leasing assumptions will begin after close | AW46: =$D46 -> If In-Place leasing assumptions are blank, Re-Leasing assumptions will begin after close | BB46: =$D46 -> If In-Place leasing assumptions are blank, Re-Leasing assumptions will begin after close | BG46: =$D46 -> If In-Place leasing assumptions are blank, Re-Leasing assumptions will begin after close | BL46: =$D46 -> If In-Place leasing assumptions are blank, Re-Leasing assumptions will begin after close | BQ46: =$D46 -> If In-Place leasing assumptions are blank, Re-Leasing assumptions will begin after close | BV46: =$D46 -> If In-Place leasing assumptions are blank, Re-Leasing assumptions will begin after close | CA46: =$D46 -> If In-Place leasing assumptions are blank, Re-Leasing assumptions will begin after close | CF46: =$D46 -> If In-Place leasing assumptions are blank, Re-Leasing assumptions will begin after close | CK46: =$D46 -> If In-Place leasing assumptions are blank, Re-Leasing assumptions will begin after close | CP46: =$D46 -> If In-Place leasing assumptions are blank, Re-Leasing assumptions will begin after close | CU46: =$D46 -> If In-Place leasing assumptions are blank, Re-Leasing assumptions will begin after close
D48: General | I48: =$D48 -> General | N48: =$D48 -> General | S48: =$D48 -> General | X48: =$D48 -> General | AC48: =$D48 -> General | AH48: =$D48 -> General | AM48: =$D48 -> General | AR48: =$D48 -> General | AW48: =$D48 -> General | BB48: =$D48 -> General | BG48: =$D48 -> General | BL48: =$D48 -> General | BQ48: =$D48 -> General | BV48: =$D48 -> General | CA48: =$D48 -> General | CF48: =$D48 -> General | CK48: =$D48 -> General | CP48: =$D48 -> General | CU48: =$D48 -> General
D49: Reimbursement Structure | G49: NNN | I49: Reimbursement Structure | L49: NNN | N49: Reimbursement Structure | Q49: NNN | S49: Reimbursement Structure | V49: NNN | X49: Reimbursement Structure | AA49: NNN | AC49: Reimbursement Structure | AF49: NNN | AH49: Reimbursement Structure | AK49: NNN | AM49: Reimbursement Structure | AP49: NNN | AR49: Reimbursement Structure | AU49: NNN | AW49: Reimbursement Structure | AZ49: NNN | BB49: Reimbursement Structure | BE49: NNN | BG49: Reimbursement Structure | BJ49: NNN | BL49: Reimbursement Structure | BO49: NNN | BQ49: Reimbursement Structure | BT49: NNN | BV49: Reimbursement Structure | BY49: NNN | CA49: Reimbursement Structure | CD49: NNN | CF49: Reimbursement Structure | CI49: NNN | CK49: Reimbursement Structure | CN49: NNN | CP49: Reimbursement Structure | CS49: NNN | CU49: Reimbursement Structure | CX49: NNN
D50: Annual Market Rent Growth | G50: 0.025 | I50: Annual Market Rent Growth | L50: 0.03 | N50: Annual Market Rent Growth | Q50: 0.03 | S50: Annual Market Rent Growth | V50: 0.03 | X50: Annual Market Rent Growth | AA50: 0.03 | AC50: Annual Market Rent Growth | AF50: 0.03 | AH50: Annual Market Rent Growth | AK50: 0.03 | AM50: Annual Market Rent Growth | AP50: 0.03 | AR50: Annual Market Rent Growth | AU50: 0.03 | AW50: Annual Market Rent Growth | AZ50: 0.03 | BB50: Annual Market Rent Growth | BE50: 0.03 | BG50: Annual Market Rent Growth | BJ50: 0.03 | BL50: Annual Market Rent Growth | BO50: 0.03 | BQ50: Annual Market Rent Growth | BT50: 0.03 | BV50: Annual Market Rent Growth | BY50: 0.03 | CA50: Annual Market Rent Growth | CD50: 0.03 | CF50: Annual Market Rent Growth | CI50: 0.03 | CK50: Annual Market Rent Growth | CN50: 0.03 | CP50: Annual Market Rent Growth | CS50: 0.03 | CU50: Annual Market Rent Growth | CX50: 0.03
D51: Annual Releasing TI Growth | G51: 0 | I51: Annual Releasing TI Growth | L51: 0 | N51: Annual Releasing TI Growth | Q51: 0 | S51: Annual Releasing TI Growth | V51: 0 | X51: Annual Releasing TI Growth | AA51: 0 | AC51: Annual Releasing TI Growth | AF51: 0 | AH51: Annual Releasing TI Growth | AK51: 0 | AM51: Annual Releasing TI Growth | AP51: 0 | AR51: Annual Releasing TI Growth | AU51: 0 | AW51: Annual Releasing TI Growth | AZ51: 0 | BB51: Annual Releasing TI Growth | BE51: 0 | BG51: Annual Releasing TI Growth | BJ51: 0 | BL51: Annual Releasing TI Growth | BO51: 0 | BQ51: Annual Releasing TI Growth | BT51: 0 | BV51: Annual Releasing TI Growth | BY51: 0 | CA51: Annual Releasing TI Growth | CD51: 0 | CF51: Annual Releasing TI Growth | CI51: 0 | CK51: Annual Releasing TI Growth | CN51: 0 | CP51: Annual Releasing TI Growth | CS51: 0 | CU51: Annual Releasing TI Growth | CX51: 0
D52: TI / LC Lead Time (if before investment start, will be zero) | G52: 1 | I52: TI / LC Lead Time (if before investment start, will be zero) | L52: 1 | N52: TI / LC Lead Time (if before investment start, will be zero) | Q52: 1 | S52: TI / LC Lead Time (if before investment start, will be zero) | V52: 1 | X52: TI / LC Lead Time (if before investment start, will be zero) | AA52: 1 | AC52: TI / LC Lead Time (if before investment start, will be zero) | AF52: 1 | AH52: TI / LC Lead Time (if before investment start, will be zero) | AK52: 1 | AM52: TI / LC Lead Time (if before investment start, will be zero) | AP52: 1 | AR52: TI / LC Lead Time (if before investment start, will be zero) | AU52: 1 | AW52: TI / LC Lead Time (if before investment start, will be zero) | AZ52: 1 | BB52: TI / LC Lead Time (if before investment start, will be zero) | BE52: 1 | BG52: TI / LC Lead Time (if before investment start, will be zero) | BJ52: 1 | BL52: TI / LC Lead Time (if before investment start, will be zero) | BO52: 1 | BQ52: TI / LC Lead Time (if before investment start, will be zero) | BT52: 1 | BV52: TI / LC Lead Time (if before investment start, will be zero) | BY52: 1 | CA52: TI / LC Lead Time (if before investment start, will be zero) | CD52: 1 | CF52: TI / LC Lead Time (if before investment start, will be zero) | CI52: 1 | CK52: TI / LC Lead Time (if before investment start, will be zero) | CN52: 1 | CP52: TI / LC Lead Time (if before investment start, will be zero) | CS52: 1 | CU52: TI / LC Lead Time (if before investment start, will be zero) | CX52: 1
D54: Renewals | I54: Renewals | N54: Renewals | S54: Renewals | X54: Renewals | AC54: Renewals | AH54: Renewals | AM54: Renewals | AR54: Renewals | AW54: Renewals | BB54: Renewals | BG54: Renewals | BL54: Renewals | BQ54: Renewals | BV54: Renewals | CA54: Renewals | CF54: Renewals | CK54: Renewals | CP54: Renewals | CU54: Renewals
D55: First Renewal Probability | G55: 0.5 | I55: =$D55 -> First Renewal Probability | L55: 0.5 | N55: =$D55 -> First Renewal Probability | Q55: 1 | S55: =$D55 -> First Renewal Probability | V55: 0 | X55: =$D55 -> First Renewal Probability | AA55: 0 | AC55: =$D55 -> First Renewal Probability | AF55: 0 | AH55: =$D55 -> First Renewal Probability | AK55: 0 | AM55: =$D55 -> First Renewal Probability | AP55: 0 | AR55: =$D55 -> First Renewal Probability | AU55: 0 | AW55: =$D55 -> First Renewal Probability | AZ55: 0 | BB55: =$D55 -> First Renewal Probability | BE55: 0 | BG55: =$D55 -> First Renewal Probability | BJ55: 0 | BL55: =$D55 -> First Renewal Probability | BO55: 0 | BQ55: =$D55 -> First Renewal Probability | BT55: 0 | BV55: =$D55 -> First Renewal Probability | BY55: 0 | CA55: =$D55 -> First Renewal Probability | CD55: 0 | CF55: =$D55 -> First Renewal Probability | CI55: 0 | CK55: =$D55 -> First Renewal Probability | CN55: 0 | CP55: =$D55 -> First Renewal Probability | CS55: 0 | CU55: =$D55 -> First Renewal Probability | CX55: 0
D56: Subsequent Renewal Probability | G56: 0.5 | I56: =$D56 -> Subsequent Renewal Probability | L56: 0.5 | N56: =$D56 -> Subsequent Renewal Probability | Q56: 0 | S56: =$D56 -> Subsequent Renewal Probability | V56: 0 | X56: =$D56 -> Subsequent Renewal Probability | AA56: 0 | AC56: =$D56 -> Subsequent Renewal Probability | AF56: 0 | AH56: =$D56 -> Subsequent Renewal Probability | AK56: 0 | AM56: =$D56 -> Subsequent Renewal Probability | AP56: 0 | AR56: =$D56 -> Subsequent Renewal Probability | AU56: 0 | AW56: =$D56 -> Subsequent Renewal Probability | AZ56: 0 | BB56: =$D56 -> Subsequent Renewal Probability | BE56: 0 | BG56: =$D56 -> Subsequent Renewal Probability | BJ56: 0 | BL56: =$D56 -> Subsequent Renewal Probability | BO56: 0 | BQ56: =$D56 -> Subsequent Renewal Probability | BT56: 0 | BV56: =$D56 -> Subsequent Renewal Probability | BY56: 0 | CA56: =$D56 -> Subsequent Renewal Probability | CD56: 0 | CF56: =$D56 -> Subsequent Renewal Probability | CI56: 0 | CK56: =$D56 -> Subsequent Renewal Probability | CN56: 0 | CP56: =$D56 -> Subsequent Renewal Probability | CS56: 0 | CU56: =$D56 -> Subsequent Renewal Probability | CX56: 0
D57: Subsequent Renewal Calc. - Based on (1) First Renewal, or (0) Original Terms | G57: 0 | I57: Subsequent Renewal Calc. - Based on (1) First Renewal, or (0) Original Terms | L57: 0 | N57: Subsequent Renewal Calc. - Based on (1) First Renewal, or (0) Original Terms | Q57: 0 | S57: Subsequent Renewal Calc. - Based on (1) First Renewal, or (0) Original Terms | V57: 0 | X57: Subsequent Renewal Calc. - Based on (1) First Renewal, or (0) Original Terms | AA57: 0 | AC57: Subsequent Renewal Calc. - Based on (1) First Renewal, or (0) Original Terms | AF57: 0 | AH57: Subsequent Renewal Calc. - Based on (1) First Renewal, or (0) Original Terms | AK57: 0 | AM57: Subsequent Renewal Calc. - Based on (1) First Renewal, or (0) Original Terms | AP57: 0 | AR57: Subsequent Renewal Calc. - Based on (1) First Renewal, or (0) Original Terms | AU57: 0 | AW57: Subsequent Renewal Calc. - Based on (1) First Renewal, or (0) Original Terms | AZ57: 0 | BB57: Subsequent Renewal Calc. - Based on (1) First Renewal, or (0) Original Terms | BE57: 0 | BG57: Subsequent Renewal Calc. - Based on (1) First Renewal, or (0) Original Terms | BJ57: 0 | BL57: Subsequent Renewal Calc. - Based on (1) First Renewal, or (0) Original Terms | BO57: 0 | BQ57: Subsequent Renewal Calc. - Based on (1) First Renewal, or (0) Original Terms | BT57: 0 | BV57: Subsequent Renewal Calc. - Based on (1) First Renewal, or (0) Original Terms | BY57: 0 | CA57: Subsequent Renewal Calc. - Based on (1) First Renewal, or (0) Original Terms | CD57: 0 | CF57: Subsequent Renewal Calc. - Based on (1) First Renewal, or (0) Original Terms | CI57: 0 | CK57: Subsequent Renewal Calc. - Based on (1) First Renewal, or (0) Original Terms | CN57: 0 | CP57: Subsequent Renewal Calc. - Based on (1) First Renewal, or (0) Original Terms | CS57: 0 | CU57: Subsequent Renewal Calc. - Based on (1) First Renewal, or (0) Original Terms | CX57: 0
D58: Repeat? | G58: 1 | I58: =$D58 -> Repeat? | L58: 1 | N58: =$D58 -> Repeat? | Q58: 1 | S58: =$D58 -> Repeat? | V58: 1 | X58: =$D58 -> Repeat? | AA58: 1 | AC58: =$D58 -> Repeat? | AF58: 1 | AH58: =$D58 -> Repeat? | AK58: 1 | AM58: =$D58 -> Repeat? | AP58: 1 | AR58: =$D58 -> Repeat? | AU58: 1 | AW58: =$D58 -> Repeat? | AZ58: 1 | BB58: =$D58 -> Repeat? | BE58: 1 | BG58: =$D58 -> Repeat? | BJ58: 1 | BL58: =$D58 -> Repeat? | BO58: 1 | BQ58: =$D58 -> Repeat? | BT58: 1 | BV58: =$D58 -> Repeat? | BY58: 1 | CA58: =$D58 -> Repeat? | CD58: 1 | CF58: =$D58 -> Repeat? | CI58: 1 | CK58: =$D58 -> Repeat? | CN58: 1 | CP58: =$D58 -> Repeat? | CS58: 1 | CU58: =$D58 -> Repeat? | CX58: 1
D60: Reimbursement | E60: Reimburse For MG | F60: Reimburse For BYS | G60: BYS Amount | I60: =$D60 -> Reimbursement | J60: =$E60 -> Reimburse For MG | K60: =$F60 -> Reimburse For BYS | L60: =$G60 -> BYS Amount | N60: =$D60 -> Reimbursement | O60: =$E60 -> Reimburse For MG | P60: =$F60 -> Reimburse For BYS | Q60: =$G60 -> BYS Amount | S60: =$D60 -> Reimbursement | T60: =$E60 -> Reimburse For MG | U60: =$F60 -> Reimburse For BYS | V60: =$G60 -> BYS Amount | X60: =$D60 -> Reimbursement | Y60: =$E60 -> Reimburse For MG | Z60: =$F60 -> Reimburse For BYS | AA60: =$G60 -> BYS Amount | AC60: =$D60 -> Reimbursement | AD60: =$E60 -> Reimburse For MG | AE60: =$F60 -> Reimburse For BYS | AF60: =$G60 -> BYS Amount | AH60: =$D60 -> Reimbursement | AI60: =$E60 -> Reimburse For MG | AJ60: =$F60 -> Reimburse For BYS | AK60: =$G60 -> BYS Amount | AM60: =$D60 -> Reimbursement | AN60: =$E60 -> Reimburse For MG | AO60: =$F60 -> Reimburse For BYS | AP60: =$G60 -> BYS Amount | AR60: =$D60 -> Reimbursement | AS60: =$E60 -> Reimburse For MG | AT60: =$F60 -> Reimburse For BYS | AU60: =$G60 -> BYS Amount | AW60: =$D60 -> Reimbursement | AX60: =$E60 -> Reimburse For MG | AY60: =$F60 -> Reimburse For BYS | AZ60: =$G60 -> BYS Amount | BB60: =$D60 -> Reimbursement | BC60: =$E60 -> Reimburse For MG | BD60: =$F60 -> Reimburse For BYS | BE60: =$G60 -> BYS Amount | BG60: =$D60 -> Reimbursement | BH60: =$E60 -> Reimburse For MG | BI60: =$F60 -> Reimburse For BYS | BJ60: =$G60 -> BYS Amount | BL60: =$D60 -> Reimbursement | BM60: =$E60 -> Reimburse For MG | BN60: =$F60 -> Reimburse For BYS | BO60: =$G60 -> BYS Amount | BQ60: =$D60 -> Reimbursement | BR60: =$E60 -> Reimburse For MG | BS60: =$F60 -> Reimburse For BYS | BT60: =$G60 -> BYS Amount | BV60: =$D60 -> Reimbursement | BW60: =$E60 -> Reimburse For MG | BX60: =$F60 -> Reimburse For BYS | BY60: =$G60 -> BYS Amount | CA60: =$D60 -> Reimbursement | CB60: =$E60 -> Reimburse For MG | CC60: =$F60 -> Reimburse For BYS | CD60: =$G60 -> BYS Amount | CF60: =$D60 -> Reimbursement | CG60: =$E60 -> Reimburse For MG | CH60: =$F60 -> Reimburse For BYS | CI60: =$G60 -> BYS Amount | CK60: =$D60 -> Reimbursement | CL60: =$E60 -> Reimburse For MG | CM60: =$F60 -> Reimburse For BYS | CN60: =$G60 -> BYS Amount | CP60: =$D60 -> Reimbursement | CQ60: =$E60 -> Reimburse For MG | CR60: =$F60 -> Reimburse For BYS | CS60: =$G60 -> BYS Amount | CU60: =$D60 -> Reimbursement | CV60: =$E60 -> Reimburse For MG | CW60: =$F60 -> Reimburse For BYS | CX60: =$G60 -> BYS Amount
D61: Expenses Begin - add rows below this line if necessary | I61: Expenses Begin - add rows below this line if necessary | N61: Expenses Begin - add rows below this line if necessary | S61: Expenses Begin - add rows below this line if necessary | X61: Expenses Begin - add rows below this line if necessary | AC61: Expenses Begin - add rows below this line if necessary | AH61: Expenses Begin - add rows below this line if necessary | AM61: Expenses Begin - add rows below this line if necessary | AR61: Expenses Begin - add rows below this line if necessary | AW61: Expenses Begin - add rows below this line if necessary | BB61: Expenses Begin - add rows below this line if necessary | BG61: Expenses Begin - add rows below this line if necessary | BL61: Expenses Begin - add rows below this line if necessary | BQ61: Expenses Begin - add rows below this line if necessary | BV61: Expenses Begin - add rows below this line if necessary | CA61: Expenses Begin - add rows below this line if necessary | CF61: Expenses Begin - add rows below this line if necessary | CK61: Expenses Begin - add rows below this line if necessary | CP61: Expenses Begin - add rows below this line if necessary | CU61: Expenses Begin - add rows below this line if necessary
A62: property_taxes | D62: =_xlfn.XLOOKUP($A62,tags!$C$16:$C$134,tags!$E$16:$E$134,0) -> Property Taxes | E62: 0 | F62: 0 | G62: 0 | I62: Property Taxes | J62: 0 | K62: 0 | L62: 0 | N62: Property Taxes | O62: 0 | P62: 0 | Q62: 0 | S62: Property Taxes | T62: 0 | U62: 0 | V62: 0 | X62: Property Taxes | Y62: 0 | Z62: 0 | AA62: 0 | AC62: Property Taxes | AD62: 0 | AE62: 0 | AF62: 0 | AH62: Property Taxes | AI62: 0 | AJ62: 0 | AK62: 0 | AM62: Property Taxes | AN62: 0 | AO62: 0 | AP62: 0 | AR62: Property Taxes | AS62: 0 | AT62: 0 | AU62: 0 | AW62: Property Taxes | AX62: 0 | AY62: 0 | AZ62: 0 | BB62: Property Taxes | BC62: 0 | BD62: 0 | BE62: 0 | BG62: Property Taxes | BH62: 0 | BI62: 0 | BJ62: 0 | BL62: Property Taxes | BM62: 0 | BN62: 0 | BO62: 0 | BQ62: Property Taxes | BR62: 0 | BS62: 0 | BT62: 0 | BV62: Property Taxes | BW62: 0 | BX62: 0 | BY62: 0 | CA62: Property Taxes | CB62: 0 | CC62: 0 | CD62: 0 | CF62: Property Taxes | CG62: 0 | CH62: 0 | CI62: 0 | CK62: Property Taxes | CL62: 0 | CM62: 0 | CN62: 0 | CP62: Property Taxes | CQ62: 0 | CR62: 0 | CS62: 0 | CU62: Property Taxes | CV62: 0 | CW62: 0 | CX62: 0
A63: insurance | D63: =_xlfn.XLOOKUP($A63,tags!$C$16:$C$134,tags!$E$16:$E$134,0) -> Insurance | E63: 0 | F63: 0 | G63: 0 | I63: Insurance | J63: 0 | K63: 0 | L63: 0 | N63: Insurance | O63: 0 | P63: 0 | Q63: 0 | S63: Insurance | T63: 0 | U63: 0 | V63: 0 | X63: Insurance | Y63: 0 | Z63: 0 | AA63: 0 | AC63: Insurance | AD63: 0 | AE63: 0 | AF63: 0 | AH63: Insurance | AI63: 0 | AJ63: 0 | AK63: 0 | AM63: Insurance | AN63: 0 | AO63: 0 | AP63: 0 | AR63: Insurance | AS63: 0 | AT63: 0 | AU63: 0 | AW63: Insurance | AX63: 0 | AY63: 0 | AZ63: 0 | BB63: Insurance | BC63: 0 | BD63: 0 | BE63: 0 | BG63: Insurance | BH63: 0 | BI63: 0 | BJ63: 0 | BL63: Insurance | BM63: 0 | BN63: 0 | BO63: 0 | BQ63: Insurance | BR63: 0 | BS63: 0 | BT63: 0 | BV63: Insurance | BW63: 0 | BX63: 0 | BY63: 0 | CA63: Insurance | CB63: 0 | CC63: 0 | CD63: 0 | CF63: Insurance | CG63: 0 | CH63: 0 | CI63: 0 | CK63: Insurance | CL63: 0 | CM63: 0 | CN63: 0 | CP63: Insurance | CQ63: 0 | CR63: 0 | CS63: 0 | CU63: Insurance | CV63: 0 | CW63: 0 | CX63: 0
A64: cam | D64: =_xlfn.XLOOKUP($A64,tags!$C$16:$C$134,tags!$E$16:$E$134,0) -> CAM | E64: 0 | F64: 0 | G64: 0 | I64: CAM | J64: 0 | K64: 0 | L64: 0 | N64: CAM | O64: 0 | P64: 0 | Q64: 0 | S64: CAM | T64: 0 | U64: 0 | V64: 0 | X64: CAM | Y64: 0 | Z64: 0 | AA64: 0 | AC64: CAM | AD64: 0 | AE64: 0 | AF64: 0 | AH64: CAM | AI64: 0 | AJ64: 0 | AK64: 0 | AM64: CAM | AN64: 0 | AO64: 0 | AP64: 0 | AR64: CAM | AS64: 0 | AT64: 0 | AU64: 0 | AW64: CAM | AX64: 0 | AY64: 0 | AZ64: 0 | BB64: CAM | BC64: 0 | BD64: 0 | BE64: 0 | BG64: CAM | BH64: 0 | BI64: 0 | BJ64: 0 | BL64: CAM | BM64: 0 | BN64: 0 | BO64: 0 | BQ64: CAM | BR64: 0 | BS64: 0 | BT64: 0 | BV64: CAM | BW64: 0 | BX64: 0 | BY64: 0 | CA64: CAM | CB64: 0 | CC64: 0 | CD64: 0 | CF64: CAM | CG64: 0 | CH64: 0 | CI64: 0 | CK64: CAM | CL64: 0 | CM64: 0 | CN64: 0 | CP64: CAM | CQ64: 0 | CR64: 0 | CS64: 0 | CU64: CAM | CV64: 0 | CW64: 0 | CX64: 0
A65: management_fee | D65: =_xlfn.XLOOKUP($A65,tags!$C$16:$C$134,tags!$E$16:$E$134,0) -> Management Fee | E65: 0 | F65: 0 | G65: 0 | I65: Management Fee | J65: 0 | K65: 0 | L65: 0 | N65: Management Fee | O65: 0 | P65: 0 | Q65: 0 | S65: Management Fee | T65: 0 | U65: 0 | V65: 0 | X65: Management Fee | Y65: 0 | Z65: 0 | AA65: 0 | AC65: Management Fee | AD65: 0 | AE65: 0 | AF65: 0 | AH65: Management Fee | AI65: 0 | AJ65: 0 | AK65: 0 | AM65: Management Fee | AN65: 0 | AO65: 0 | AP65: 0 | AR65: Management Fee | AS65: 0 | AT65: 0 | AU65: 0 | AW65: Management Fee | AX65: 0 | AY65: 0 | AZ65: 0 | BB65: Management Fee | BC65: 0 | BD65: 0 | BE65: 0 | BG65: Management Fee | BH65: 0 | BI65: 0 | BJ65: 0 | BL65: Management Fee | BM65: 0 | BN65: 0 | BO65: 0 | BQ65: Management Fee | BR65: 0 | BS65: 0 | BT65: 0 | BV65: Management Fee | BW65: 0 | BX65: 0 | BY65: 0 | CA65: Management Fee | CB65: 0 | CC65: 0 | CD65: 0 | CF65: Management Fee | CG65: 0 | CH65: 0 | CI65: 0 | CK65: Management Fee | CL65: 0 | CM65: 0 | CN65: 0 | CP65: Management Fee | CQ65: 0 | CR65: 0 | CS65: 0 | CU65: Management Fee | CV65: 0 | CW65: 0 | CX65: 0
A66: other | D66: =_xlfn.XLOOKUP($A66,tags!$C$16:$C$134,tags!$E$16:$E$134,0) -> Other | E66: 0 | F66: 0 | G66: 0 | I66: Other | J66: 0 | K66: 0 | L66: 0 | N66: Other | O66: 0 | P66: 0 | Q66: 0 | S66: Other | T66: 0 | U66: 0 | V66: 0 | X66: Other | Y66: 0 | Z66: 0 | AA66: 0 | AC66: Other | AD66: 0 | AE66: 0 | AF66: 0 | AH66: Other | AI66: 0 | AJ66: 0 | AK66: 0 | AM66: Other | AN66: 0 | AO66: 0 | AP66: 0 | AR66: Other | AS66: 0 | AT66: 0 | AU66: 0 | AW66: Other | AX66: 0 | AY66: 0 | AZ66: 0 | BB66: Other | BC66: 0 | BD66: 0 | BE66: 0 | BG66: Other | BH66: 0 | BI66: 0 | BJ66: 0 | BL66: Other | BM66: 0 | BN66: 0 | BO66: 0 | BQ66: Other | BR66: 0 | BS66: 0 | BT66: 0 | BV66: Other | BW66: 0 | BX66: 0 | BY66: 0 | CA66: Other | CB66: 0 | CC66: 0 | CD66: 0 | CF66: Other | CG66: 0 | CH66: 0 | CI66: 0 | CK66: Other | CL66: 0 | CM66: 0 | CN66: 0 | CP66: Other | CQ66: 0 | CR66: 0 | CS66: 0 | CU66: Other | CV66: 0 | CW66: 0 | CX66: 0
D67: Expenses End - add rows above this line if necessary
D69: New vs. Renewal Terms | F69: New | G69: Renewal | I69: =$D69 -> New vs. Renewal Terms | K69: =$F69 -> New | L69: =$G69 -> Renewal | N69: =$D69 -> New vs. Renewal Terms | P69: =$F69 -> New | Q69: =$G69 -> Renewal | S69: =$D69 -> New vs. Renewal Terms | U69: =$F69 -> New | V69: =$G69 -> Renewal | X69: =$D69 -> New vs. Renewal Terms | Z69: =$F69 -> New | AA69: =$G69 -> Renewal | AC69: =$D69 -> New vs. Renewal Terms | AE69: =$F69 -> New | AF69: =$G69 -> Renewal | AH69: =$D69 -> New vs. Renewal Terms | AJ69: =$F69 -> New | AK69: =$G69 -> Renewal | AM69: =$D69 -> New vs. Renewal Terms | AO69: =$F69 -> New | AP69: =$G69 -> Renewal | AR69: =$D69 -> New vs. Renewal Terms | AT69: =$F69 -> New | AU69: =$G69 -> Renewal | AW69: =$D69 -> New vs. Renewal Terms | AY69: =$F69 -> New | AZ69: =$G69 -> Renewal | BB69: =$D69 -> New vs. Renewal Terms | BD69: =$F69 -> New | BE69: =$G69 -> Renewal | BG69: =$D69 -> New vs. Renewal Terms | BI69: =$F69 -> New | BJ69: =$G69 -> Renewal | BL69: =$D69 -> New vs. Renewal Terms | BN69: =$F69 -> New | BO69: =$G69 -> Renewal | BQ69: =$D69 -> New vs. Renewal Terms | BS69: =$F69 -> New | BT69: =$G69 -> Renewal | BV69: =$D69 -> New vs. Renewal Terms | BX69: =$F69 -> New | BY69: =$G69 -> Renewal | CA69: =$D69 -> New vs. Renewal Terms | CC69: =$F69 -> New | CD69: =$G69 -> Renewal | CF69: =$D69 -> New vs. Renewal Terms | CH69: =$F69 -> New | CI69: =$G69 -> Renewal | CK69: =$D69 -> New vs. Renewal Terms | CM69: =$F69 -> New | CN69: =$G69 -> Renewal | CP69: =$D69 -> New vs. Renewal Terms | CR69: =$F69 -> New | CS69: =$G69 -> Renewal | CU69: =$D69 -> New vs. Renewal Terms | CW69: =$F69 -> New | CX69: =$G69 -> Renewal
D70: Lease Term | F70: 60 | G70: 60 | I70: Lease Term | K70: 60 | L70: 60 | N70: Lease Term | P70: 60 | Q70: 24 | S70: Lease Term | U70: 60 | V70: 60 | X70: Lease Term | Z70: 60 | AA70: 60 | AC70: Lease Term | AE70: 60 | AF70: 60 | AH70: Lease Term | AJ70: 60 | AK70: 60 | AM70: Lease Term | AO70: 60 | AP70: 60 | AR70: Lease Term | AT70: 60 | AU70: 60 | AW70: Lease Term | AY70: 60 | AZ70: 60 | BB70: Lease Term | BD70: 60 | BE70: 60 | BG70: Lease Term | BI70: 60 | BJ70: 60 | BL70: Lease Term | BN70: 60 | BO70: 60 | BQ70: Lease Term | BS70: 60 | BT70: 60 | BV70: Lease Term | BX70: 60 | BY70: 60 | CA70: Lease Term | CC70: 60 | CD70: 60 | CF70: Lease Term | CH70: 60 | CI70: 60 | CK70: Lease Term | CM70: 60 | CN70: 60 | CP70: Lease Term | CR70: 60 | CS70: 60 | CU70: Lease Term | CW70: 60 | CX70: 60
D71: Downtime | F71: 9 | G71: 9 | I71: Downtime | K71: 3 | L71: 6 | N71: Downtime | P71: 12 | Q71: 0 | S71: Downtime | U71: 3 | V71: 0 | X71: Downtime | Z71: 3 | AA71: 0 | AC71: Downtime | AE71: 3 | AF71: 0 | AH71: Downtime | AJ71: 3 | AK71: 0 | AM71: Downtime | AO71: 3 | AP71: 0 | AR71: Downtime | AT71: 3 | AU71: 0 | AW71: Downtime | AY71: 3 | AZ71: 0 | BB71: Downtime | BD71: 3 | BE71: 0 | BG71: Downtime | BI71: 3 | BJ71: 0 | BL71: Downtime | BN71: 3 | BO71: 0 | BQ71: Downtime | BS71: 3 | BT71: 0 | BV71: Downtime | BX71: 3 | BY71: 0 | CA71: Downtime | CC71: 3 | CD71: 0 | CF71: Downtime | CH71: 3 | CI71: 0 | CK71: Downtime | CM71: 3 | CN71: 0 | CP71: Downtime | CR71: 3 | CS71: 0 | CU71: Downtime | CW71: 3 | CX71: 0
D72: Free Rent | F72: 0 | G72: 0 | I72: Free Rent | K72: 0 | L72: 3 | N72: Free Rent | P72: 12 | Q72: 12 | S72: Free Rent | U72: 0 | V72: 0 | X72: Free Rent | Z72: 0 | AA72: 0 | AC72: Free Rent | AE72: 0 | AF72: 0 | AH72: Free Rent | AJ72: 0 | AK72: 0 | AM72: Free Rent | AO72: 0 | AP72: 0 | AR72: Free Rent | AT72: 0 | AU72: 0 | AW72: Free Rent | AY72: 0 | AZ72: 0 | BB72: Free Rent | BD72: 0 | BE72: 0 | BG72: Free Rent | BI72: 0 | BJ72: 0 | BL72: Free Rent | BN72: 0 | BO72: 0 | BQ72: Free Rent | BS72: 0 | BT72: 0 | BV72: Free Rent | BX72: 0 | BY72: 0 | CA72: Free Rent | CC72: 0 | CD72: 0 | CF72: Free Rent | CH72: 0 | CI72: 0 | CK72: Free Rent | CM72: 0 | CN72: 0 | CP72: Free Rent | CR72: 0 | CS72: 0 | CU72: Free Rent | CW72: 0 | CX72: 0
D73: Market Rent | F73: 9 | G73: 9 | I73: Market Rent | K73: 9.5 | L73: 9 | N73: Market Rent | P73: 10 | Q73: 5 | S73: Market Rent | U73: 9 | V73: 9 | X73: Market Rent | Z73: 9 | AA73: 9 | AC73: Market Rent | AE73: 9 | AF73: 9 | AH73: Market Rent | AJ73: 9 | AK73: 9 | AM73: Market Rent | AO73: 9 | AP73: 9 | AR73: Market Rent | AT73: 9 | AU73: 9 | AW73: Market Rent | AY73: 9 | AZ73: 9 | BB73: Market Rent | BD73: 9 | BE73: 9 | BG73: Market Rent | BI73: 9 | BJ73: 9 | BL73: Market Rent | BN73: 9 | BO73: 9 | BQ73: Market Rent | BS73: 9 | BT73: 9 | BV73: Market Rent | BX73: 9 | BY73: 9 | CA73: Market Rent | CC73: 9 | CD73: 9 | CF73: Market Rent | CH73: 9 | CI73: 9 | CK73: Market Rent | CM73: 9 | CN73: 9 | CP73: Market Rent | CR73: 9 | CS73: 9 | CU73: Market Rent | CW73: 9 | CX73: 9
D74: TI PSF | F74: 2 | G74: 2 | I74: TI PSF | K74: 2 | L74: 2 | N74: TI PSF | P74: 2 | Q74: 0 | S74: TI PSF | U74: 2 | V74: 0 | X74: TI PSF | Z74: 2 | AA74: 0 | AC74: TI PSF | AE74: 2 | AF74: 0 | AH74: TI PSF | AJ74: 2 | AK74: 0 | AM74: TI PSF | AO74: 2 | AP74: 0 | AR74: TI PSF | AT74: 2 | AU74: 0 | AW74: TI PSF | AY74: 2 | AZ74: 0 | BB74: TI PSF | BD74: 2 | BE74: 0 | BG74: TI PSF | BI74: 2 | BJ74: 0 | BL74: TI PSF | BN74: 2 | BO74: 0 | BQ74: TI PSF | BS74: 2 | BT74: 0 | BV74: TI PSF | BX74: 2 | BY74: 0 | CA74: TI PSF | CC74: 2 | CD74: 0 | CF74: TI PSF | CH74: 2 | CI74: 0 | CK74: TI PSF | CM74: 2 | CN74: 0 | CP74: TI PSF | CR74: 2 | CS74: 0 | CU74: TI PSF | CW74: 2 | CX74: 0
D75: Leasing Commissions | F75: 0.05 | G75: 0.05 | I75: Leasing Commissions | K75: 0.05 | L75: 0.05 | N75: Leasing Commissions | P75: 0.05 | Q75: 0.05 | S75: Leasing Commissions | U75: 0.05 | V75: 0.05 | X75: Leasing Commissions | Z75: 0.05 | AA75: 0.05 | AC75: Leasing Commissions | AE75: 0.05 | AF75: 0.05 | AH75: Leasing Commissions | AJ75: 0.05 | AK75: 0.05 | AM75: Leasing Commissions | AO75: 0.05 | AP75: 0.05 | AR75: Leasing Commissions | AT75: 0.05 | AU75: 0.05 | AW75: Leasing Commissions | AY75: 0.05 | AZ75: 0.05 | BB75: Leasing Commissions | BD75: 0.05 | BE75: 0.05 | BG75: Leasing Commissions | BI75: 0.05 | BJ75: 0.05 | BL75: Leasing Commissions | BN75: 0.05 | BO75: 0.05 | BQ75: Leasing Commissions | BS75: 0.05 | BT75: 0.05 | BV75: Leasing Commissions | BX75: 0.05 | BY75: 0.05 | CA75: Leasing Commissions | CC75: 0.05 | CD75: 0.05 | CF75: Leasing Commissions | CH75: 0.05 | CI75: 0.05 | CK75: Leasing Commissions | CM75: 0.05 | CN75: 0.05 | CP75: Leasing Commissions | CR75: 0.05 | CS75: 0.05 | CU75: Leasing Commissions | CW75: 0.05 | CX75: 0.05
C77: > | D77: Normalized Inputs - Automated, No Need to Mess With This. Just Make Sure you Copy it Over if you add New Leases beyond the 20 that exist here | CZ77: <
D78: Normalized Begin
A80: suite_no | D80: =G9 -> 1 | I80: =L9 -> 2 | N80: =Q9 -> 3 | S80: =V9 -> 4 | X80: =AA9 -> 5 | AC80: =AF9 -> 6 | AH80: =AK9 -> 7 | AM80: =AP9 -> 8 | AR80: =AU9 -> 9 | AW80: =AZ9 -> 10 | BB80: =BE9 -> 11 | BG80: =BJ9 -> 12 | BL80: =BO9 -> 13 | BQ80: =BT9 -> 14 | BV80: =BY9 -> 15 | CA80: =CD9 -> 16 | CF80: =CI9 -> 17 | CK80: =CN9 -> 18 | CP80: =CS9 -> 19 | CU80: =CX9 -> 20
A81: suite_name | D81: =D6 -> Suite 1 - Example Tenant Lease | I81: =I6 -> Suite 2 - Shop | N81: =N6 -> Suite 3 - Blank | S81: =S6 -> Suite 4 - Blank | X81: =X6 -> Suite 5 - Blank | AC81: =AC6 -> Suite 6 - Blank | AH81: =AH6 -> Suite 7 - Blank | AM81: =AM6 -> Suite 8 - Blank | AR81: =AR6 -> Suite 9 - Blank | AW81: =AW6 -> Suite 10 - Blank | BB81: =BB6 -> Suite 11 - Blank | BG81: =BG6 -> Suite 12 - Blank | BL81: =BL6 -> Suite 13 - Blank | BQ81: =BQ6 -> Suite 14 - Blank | BV81: =BV6 -> Suite 15 - Blank | CA81: =CA6 -> Suite 16 - Blank | CF81: =CF6 -> Suite 17 - Blank | CK81: =CK6 -> Suite 18 - Blank | CP81: =CP6 -> Suite 19 - Blank | CU81: =CU6 -> Suite 20 - Blank
A82: total_sf | D82: =G11 -> 66000 | I82: =L11 -> 20000 | N82: =Q11 -> 0 | S82: =V11 -> 0 | X82: =AA11 -> 0 | AC82: =AF11 -> 0 | AH82: =AK11 -> 0 | AM82: =AP11 -> 0 | AR82: =AU11 -> 0 | AW82: =AZ11 -> 0 | BB82: =BE11 -> 0 | BG82: =BJ11 -> 0 | BL82: =BO11 -> 0 | BQ82: =BT11 -> 0 | BV82: =BY11 -> 0 | CA82: =CD11 -> 0 | CF82: =CI11 -> 0 | CK82: =CN11 -> 0 | CP82: =CS11 -> 0 | CU82: =CX11 -> 0
A83: pro_rata_share | D83: =D82/SUM($C$82:$CZ$82) -> 0.7674418605 | I83: =I82/SUM($C$82:$CZ$82) -> 0.2325581395 | N83: =N82/SUM($C$82:$CZ$82) -> 0 | S83: =S82/SUM($C$82:$CZ$82) -> 0 | X83: =X82/SUM($C$82:$CZ$82) -> 0 | AC83: =AC82/SUM($C$82:$CZ$82) -> 0 | AH83: =AH82/SUM($C$82:$CZ$82) -> 0 | AM83: =AM82/SUM($C$82:$CZ$82) -> 0 | AR83: =AR82/SUM($C$82:$CZ$82) -> 0 | AW83: =AW82/SUM($C$82:$CZ$82) -> 0 | BB83: =BB82/SUM($C$82:$CZ$82) -> 0 | BG83: =BG82/SUM($C$82:$CZ$82) -> 0 | BL83: =BL82/SUM($C$82:$CZ$82) -> 0 | BQ83: =BQ82/SUM($C$82:$CZ$82) -> 0 | BV83: =BV82/SUM($C$82:$CZ$82) -> 0 | CA83: =CA82/SUM($C$82:$CZ$82) -> 0 | CF83: =CF82/SUM($C$82:$CZ$82) -> 0 | CK83: =CK82/SUM($C$82:$CZ$82) -> 0 | CP83: =CP82/SUM($C$82:$CZ$82) -> 0 | CU83: =CU82/SUM($C$82:$CZ$82) -> 0
A85: In-Place Lease Assumptions
A87: General
A88: inplace_reimbursement_structure | D88: =G16 -> NNN | I88: =L16 -> NNN | N88: =Q16 -> NNN | S88: =V16 -> NNN | X88: =AA16 -> NNN | AC88: =AF16 -> NNN | AH88: =AK16 -> NNN | AM88: =AP16 -> NNN | AR88: =AU16 -> NNN | AW88: =AZ16 -> NNN | BB88: =BE16 -> NNN | BG88: =BJ16 -> NNN | BL88: =BO16 -> NNN | BQ88: =BT16 -> NNN | BV88: =BY16 -> NNN | CA88: =CD16 -> NNN | CF88: =CI16 -> NNN | CK88: =CN16 -> NNN | CP88: =CS16 -> NNN | CU88: =CX16 -> NNN
A90: Reimburse for MG
A91: =_xlfn._xlws.FILTER(A19:A25,A19:A25<>"")&"_mg" -> property_taxes_mg | D91: =_xlfn._xlws.FILTER(E19:E25,E19:E25<>"") -> 0 | I91: =_xlfn._xlws.FILTER(J19:J25,J19:J25<>"") -> 0 | N91: =_xlfn._xlws.FILTER(O19:O25,O19:O25<>"") -> 0 | S91: =_xlfn._xlws.FILTER(T19:T25,T19:T25<>"") -> 0 | X91: =_xlfn._xlws.FILTER(Y19:Y25,Y19:Y25<>"") -> 0 | AC91: =_xlfn._xlws.FILTER(AD19:AD25,AD19:AD25<>"") -> 0 | AH91: =_xlfn._xlws.FILTER(AI19:AI25,AI19:AI25<>"") -> 0 | AM91: =_xlfn._xlws.FILTER(AN19:AN25,AN19:AN25<>"") -> 0 | AR91: =_xlfn._xlws.FILTER(AS19:AS25,AS19:AS25<>"") -> 0 | AW91: =_xlfn._xlws.FILTER(AX19:AX25,AX19:AX25<>"") -> 0 | BB91: =_xlfn._xlws.FILTER(BC19:BC25,BC19:BC25<>"") -> 0 | BG91: =_xlfn._xlws.FILTER(BH19:BH25,BH19:BH25<>"") -> 0 | BL91: =_xlfn._xlws.FILTER(BM19:BM25,BM19:BM25<>"") -> 0 | BQ91: =_xlfn._xlws.FILTER(BR19:BR25,BR19:BR25<>"") -> 0 | BV91: =_xlfn._xlws.FILTER(BW19:BW25,BW19:BW25<>"") -> 0 | CA91: =_xlfn._xlws.FILTER(CB19:CB25,CB19:CB25<>"") -> 0 | CF91: =_xlfn._xlws.FILTER(CG19:CG25,CG19:CG25<>"") -> 0 | CK91: =_xlfn._xlws.FILTER(CL19:CL25,CL19:CL25<>"") -> 0 | CP91: =_xlfn._xlws.FILTER(CQ19:CQ25,CQ19:CQ25<>"") -> 0 | CU91: =_xlfn._xlws.FILTER(CV19:CV25,CV19:CV25<>"") -> 0
A92: insurance_mg | D92: 0 | I92: 0 | N92: 0 | S92: 0 | X92: 0 | AC92: 0 | AH92: 0 | AM92: 0 | AR92: 0 | AW92: 0 | BB92: 0 | BG92: 0 | BL92: 0 | BQ92: 0 | BV92: 0 | CA92: 0 | CF92: 0 | CK92: 0 | CP92: 0 | CU92: 0
A93: cam_mg | D93: 0 | I93: 0 | N93: 0 | S93: 0 | X93: 0 | AC93: 0 | AH93: 0 | AM93: 0 | AR93: 0 | AW93: 0 | BB93: 0 | BG93: 0 | BL93: 0 | BQ93: 0 | BV93: 0 | CA93: 0 | CF93: 0 | CK93: 0 | CP93: 0 | CU93: 0
A94: management_fee_mg | D94: 0 | I94: 0 | N94: 0 | S94: 0 | X94: 0 | AC94: 0 | AH94: 0 | AM94: 0 | AR94: 0 | AW94: 0 | BB94: 0 | BG94: 0 | BL94: 0 | BQ94: 0 | BV94: 0 | CA94: 0 | CF94: 0 | CK94: 0 | CP94: 0 | CU94: 0
A95: other_mg | D95: 0 | I95: 0 | N95: 0 | S95: 0 | X95: 0 | AC95: 0 | AH95: 0 | AM95: 0 | AR95: 0 | AW95: 0 | BB95: 0 | BG95: 0 | BL95: 0 | BQ95: 0 | BV95: 0 | CA95: 0 | CF95: 0 | CK95: 0 | CP95: 0 | CU95: 0
A97: Reimburse for BYS
A98: =_xlfn._xlws.FILTER(A19:A25,A19:A25<>"")&"_bys" -> property_taxes_bys | D98: =_xlfn._xlws.FILTER(F19:F25,F19:F25<>"") -> 0 | I98: =_xlfn._xlws.FILTER(K19:K25,K19:K25<>"") -> 0 | N98: =_xlfn._xlws.FILTER(P19:P25,P19:P25<>"") -> 0 | S98: =_xlfn._xlws.FILTER(U19:U25,U19:U25<>"") -> 0 | X98: =_xlfn._xlws.FILTER(Z19:Z25,Z19:Z25<>"") -> 0 | AC98: =_xlfn._xlws.FILTER(AE19:AE25,AE19:AE25<>"") -> 0 | AH98: =_xlfn._xlws.FILTER(AJ19:AJ25,AJ19:AJ25<>"") -> 0 | AM98: =_xlfn._xlws.FILTER(AO19:AO25,AO19:AO25<>"") -> 0 | AR98: =_xlfn._xlws.FILTER(AT19:AT25,AT19:AT25<>"") -> 0 | AW98: =_xlfn._xlws.FILTER(AY19:AY25,AY19:AY25<>"") -> 0 | BB98: =_xlfn._xlws.FILTER(BD19:BD25,BD19:BD25<>"") -> 0 | BG98: =_xlfn._xlws.FILTER(BI19:BI25,BI19:BI25<>"") -> 0 | BL98: =_xlfn._xlws.FILTER(BN19:BN25,BN19:BN25<>"") -> 0 | BQ98: =_xlfn._xlws.FILTER(BS19:BS25,BS19:BS25<>"") -> 0 | BV98: =_xlfn._xlws.FILTER(BX19:BX25,BX19:BX25<>"") -> 0 | CA98: =_xlfn._xlws.FILTER(CC19:CC25,CC19:CC25<>"") -> 0 | CF98: =_xlfn._xlws.FILTER(CH19:CH25,CH19:CH25<>"") -> 0 | CK98: =_xlfn._xlws.FILTER(CM19:CM25,CM19:CM25<>"") -> 0 | CP98: =_xlfn._xlws.FILTER(CR19:CR25,CR19:CR25<>"") -> 0 | CU98: =_xlfn._xlws.FILTER(CW19:CW25,CW19:CW25<>"") -> 0
A99: insurance_bys | D99: 0 | I99: 0 | N99: 0 | S99: 0 | X99: 0 | AC99: 0 | AH99: 0 | AM99: 0 | AR99: 0 | AW99: 0 | BB99: 0 | BG99: 0 | BL99: 0 | BQ99: 0 | BV99: 0 | CA99: 0 | CF99: 0 | CK99: 0 | CP99: 0 | CU99: 0
A100: cam_bys | D100: 0 | I100: 0 | N100: 0 | S100: 0 | X100: 0 | AC100: 0 | AH100: 0 | AM100: 0 | AR100: 0 | AW100: 0 | BB100: 0 | BG100: 0 | BL100: 0 | BQ100: 0 | BV100: 0 | CA100: 0 | CF100: 0 | CK100: 0 | CP100: 0 | CU100: 0
A101: management_fee_bys | D101: 0 | I101: 0 | N101: 0 | S101: 0 | X101: 0 | AC101: 0 | AH101: 0 | AM101: 0 | AR101: 0 | AW101: 0 | BB101: 0 | BG101: 0 | BL101: 0 | BQ101: 0 | BV101: 0 | CA101: 0 | CF101: 0 | CK101: 0 | CP101: 0 | CU101: 0
A102: other_bys | D102: 0 | I102: 0 | N102: 0 | S102: 0 | X102: 0 | AC102: 0 | AH102: 0 | AM102: 0 | AR102: 0 | AW102: 0 | BB102: 0 | BG102: 0 | BL102: 0 | BQ102: 0 | BV102: 0 | CA102: 0 | CF102: 0 | CK102: 0 | CP102: 0 | CU102: 0
A104: Reimburse for BYS Amount
A105: =_xlfn._xlws.FILTER(A19:A25,A19:A25<>"")&"_bys_amt" -> property_taxes_bys_amt | D105: =_xlfn._xlws.FILTER(G19:G25,G19:G25<>"") -> 0 | I105: =_xlfn._xlws.FILTER(L19:L25,L19:L25<>"") -> 0 | N105: =_xlfn._xlws.FILTER(Q19:Q25,Q19:Q25<>"") -> 0 | S105: =_xlfn._xlws.FILTER(V19:V25,V19:V25<>"") -> 0 | X105: =_xlfn._xlws.FILTER(AA19:AA25,AA19:AA25<>"") -> 0 | AC105: =_xlfn._xlws.FILTER(AF19:AF25,AF19:AF25<>"") -> 0 | AH105: =_xlfn._xlws.FILTER(AK19:AK25,AK19:AK25<>"") -> 0 | AM105: =_xlfn._xlws.FILTER(AP19:AP25,AP19:AP25<>"") -> 0 | AR105: =_xlfn._xlws.FILTER(AU19:AU25,AU19:AU25<>"") -> 0 | AW105: =_xlfn._xlws.FILTER(AZ19:AZ25,AZ19:AZ25<>"") -> 0 | BB105: =_xlfn._xlws.FILTER(BE19:BE25,BE19:BE25<>"") -> 0 | BG105: =_xlfn._xlws.FILTER(BJ19:BJ25,BJ19:BJ25<>"") -> 0 | BL105: =_xlfn._xlws.FILTER(BO19:BO25,BO19:BO25<>"") -> 0 | BQ105: =_xlfn._xlws.FILTER(BT19:BT25,BT19:BT25<>"") -> 0 | BV105: =_xlfn._xlws.FILTER(BY19:BY25,BY19:BY25<>"") -> 0 | CA105: =_xlfn._xlws.FILTER(CD19:CD25,CD19:CD25<>"") -> 0 | CF105: =_xlfn._xlws.FILTER(CI19:CI25,CI19:CI25<>"") -> 0 | CK105: =_xlfn._xlws.FILTER(CN19:CN25,CN19:CN25<>"") -> 0 | CP105: =_xlfn._xlws.FILTER(CS19:CS25,CS19:CS25<>"") -> 0 | CU105: =_xlfn._xlws.FILTER(CX19:CX25,CX19:CX25<>"") -> 0
A106: insurance_bys_amt | D106: 0 | I106: 0 | N106: 0 | S106: 0 | X106: 0 | AC106: 0 | AH106: 0 | AM106: 0 | AR106: 0 | AW106: 0 | BB106: 0 | BG106: 0 | BL106: 0 | BQ106: 0 | BV106: 0 | CA106: 0 | CF106: 0 | CK106: 0 | CP106: 0 | CU106: 0
A107: cam_bys_amt | D107: 0 | I107: 0 | N107: 0 | S107: 0 | X107: 0 | AC107: 0 | AH107: 0 | AM107: 0 | AR107: 0 | AW107: 0 | BB107: 0 | BG107: 0 | BL107: 0 | BQ107: 0 | BV107: 0 | CA107: 0 | CF107: 0 | CK107: 0 | CP107: 0 | CU107: 0
A108: management_fee_bys_amt | D108: 0 | I108: 0 | N108: 0 | S108: 0 | X108: 0 | AC108: 0 | AH108: 0 | AM108: 0 | AR108: 0 | AW108: 0 | BB108: 0 | BG108: 0 | BL108: 0 | BQ108: 0 | BV108: 0 | CA108: 0 | CF108: 0 | CK108: 0 | CP108: 0 | CU108: 0
A109: other_bys_amt | D109: 0 | I109: 0 | N109: 0 | S109: 0 | X109: 0 | AC109: 0 | AH109: 0 | AM109: 0 | AR109: 0 | AW109: 0 | BB109: 0 | BG109: 0 | BL109: 0 | BQ109: 0 | BV109: 0 | CA109: 0 | CF109: 0 | CK109: 0 | CP109: 0 | CU109: 0
A111: In-Place Rent Schedule
A112: in_place_rent_start_col | D112: =COLUMN(D27)-COLUMN($C27)+1 -> 2 | I112: =COLUMN(I27)-COLUMN($C27)+1 -> 7 | N112: =COLUMN(N27)-COLUMN($C27)+1 -> 12 | S112: =COLUMN(S27)-COLUMN($C27)+1 -> 17 | X112: =COLUMN(X27)-COLUMN($C27)+1 -> 22 | AC112: =COLUMN(AC27)-COLUMN($C27)+1 -> 27 | AH112: =COLUMN(AH27)-COLUMN($C27)+1 -> 32 | AM112: =COLUMN(AM27)-COLUMN($C27)+1 -> 37 | AR112: =COLUMN(AR27)-COLUMN($C27)+1 -> 42 | AW112: =COLUMN(AW27)-COLUMN($C27)+1 -> 47 | BB112: =COLUMN(BB27)-COLUMN($C27)+1 -> 52 | BG112: =COLUMN(BG27)-COLUMN($C27)+1 -> 57 | BL112: =COLUMN(BL27)-COLUMN($C27)+1 -> 62 | BQ112: =COLUMN(BQ27)-COLUMN($C27)+1 -> 67 | BV112: =COLUMN(BV27)-COLUMN($C27)+1 -> 72 | CA112: =COLUMN(CA27)-COLUMN($C27)+1 -> 77 | CF112: =COLUMN(CF27)-COLUMN($C27)+1 -> 82 | CK112: =COLUMN(CK27)-COLUMN($C27)+1 -> 87 | CP112: =COLUMN(CP27)-COLUMN($C27)+1 -> 92 | CU112: =COLUMN(CU27)-COLUMN($C27)+1 -> 97
A113: in_place_rent_end_col | D113: =COLUMN(E28)-COLUMN($C28)+1 -> 3 | I113: =COLUMN(J28)-COLUMN($C28)+1 -> 8 | N113: =COLUMN(O28)-COLUMN($C28)+1 -> 13 | S113: =COLUMN(T28)-COLUMN($C28)+1 -> 18 | X113: =COLUMN(Y28)-COLUMN($C28)+1 -> 23 | AC113: =COLUMN(AD28)-COLUMN($C28)+1 -> 28 | AH113: =COLUMN(AI28)-COLUMN($C28)+1 -> 33 | AM113: =COLUMN(AN28)-COLUMN($C28)+1 -> 38 | AR113: =COLUMN(AS28)-COLUMN($C28)+1 -> 43 | AW113: =COLUMN(AX28)-COLUMN($C28)+1 -> 48 | BB113: =COLUMN(BC28)-COLUMN($C28)+1 -> 53 | BG113: =COLUMN(BH28)-COLUMN($C28)+1 -> 58 | BL113: =COLUMN(BM28)-COLUMN($C28)+1 -> 63 | BQ113: =COLUMN(BR28)-COLUMN($C28)+1 -> 68 | BV113: =COLUMN(BW28)-COLUMN($C28)+1 -> 73 | CA113: =COLUMN(CB28)-COLUMN($C28)+1 -> 78 | CF113: =COLUMN(CG28)-COLUMN($C28)+1 -> 83 | CK113: =COLUMN(CL28)-COLUMN($C28)+1 -> 88 | CP113: =COLUMN(CQ28)-COLUMN($C28)+1 -> 93 | CU113: =COLUMN(CV28)-COLUMN($C28)+1 -> 98
A114: in_place_rent_psf_annual_col | D114: =COLUMN(F29)-COLUMN($C29)+1 -> 4 | I114: =COLUMN(K29)-COLUMN($C29)+1 -> 9 | N114: =COLUMN(P29)-COLUMN($C29)+1 -> 14 | S114: =COLUMN(U29)-COLUMN($C29)+1 -> 19 | X114: =COLUMN(Z29)-COLUMN($C29)+1 -> 24 | AC114: =COLUMN(AE29)-COLUMN($C29)+1 -> 29 | AH114: =COLUMN(AJ29)-COLUMN($C29)+1 -> 34 | AM114: =COLUMN(AO29)-COLUMN($C29)+1 -> 39 | AR114: =COLUMN(AT29)-COLUMN($C29)+1 -> 44 | AW114: =COLUMN(AY29)-COLUMN($C29)+1 -> 49 | BB114: =COLUMN(BD29)-COLUMN($C29)+1 -> 54 | BG114: =COLUMN(BI29)-COLUMN($C29)+1 -> 59 | BL114: =COLUMN(BN29)-COLUMN($C29)+1 -> 64 | BQ114: =COLUMN(BS29)-COLUMN($C29)+1 -> 69 | BV114: =COLUMN(BX29)-COLUMN($C29)+1 -> 74 | CA114: =COLUMN(CC29)-COLUMN($C29)+1 -> 79 | CF114: =COLUMN(CH29)-COLUMN($C29)+1 -> 84 | CK114: =COLUMN(CM29)-COLUMN($C29)+1 -> 89 | CP114: =COLUMN(CR29)-COLUMN($C29)+1 -> 94 | CU114: =COLUMN(CW29)-COLUMN($C29)+1 -> 99
A115: in_place_begin_date | D115: =IF(MIN(D28:E37)=0,global!$C$23,MIN(D28:E37)) -> 2023-10-01 | I115: =IF(MIN(I28:J37)=0,global!$C$23,MIN(I28:J37)) -> 2024-10-01 | N115: =IF(MIN(N28:O37)=0,global!$C$23,MIN(N28:O37)) -> 2024-01-01 | S115: =IF(MIN(S28:T37)=0,global!$C$23,MIN(S28:T37)) -> 2022-04-01 | X115: =IF(MIN(X28:Y37)=0,global!$C$23,MIN(X28:Y37)) -> 2022-04-01 | AC115: =IF(MIN(AC28:AD37)=0,global!$C$23,MIN(AC28:AD37)) -> 2022-04-01 | AH115: =IF(MIN(AH28:AI37)=0,global!$C$23,MIN(AH28:AI37)) -> 2022-04-01 | AM115: =IF(MIN(AM28:AN37)=0,global!$C$23,MIN(AM28:AN37)) -> 2022-04-01 | AR115: =IF(MIN(AR28:AS37)=0,global!$C$23,MIN(AR28:AS37)) -> 2022-04-01 | AW115: =IF(MIN(AW28:AX37)=0,global!$C$23,MIN(AW28:AX37)) -> 2022-04-01 | BB115: =IF(MIN(BB28:BC37)=0,global!$C$23,MIN(BB28:BC37)) -> 2022-04-01 | BG115: =IF(MIN(BG28:BH37)=0,global!$C$23,MIN(BG28:BH37)) -> 2022-04-01 | BL115: =IF(MIN(BL28:BM37)=0,global!$C$23,MIN(BL28:BM37)) -> 2022-04-01 | BQ115: =IF(MIN(BQ28:BR37)=0,global!$C$23,MIN(BQ28:BR37)) -> 2022-04-01 | BV115: =IF(MIN(BV28:BW37)=0,global!$C$23,MIN(BV28:BW37)) -> 2022-04-01 | CA115: =IF(MIN(CA28:CB37)=0,global!$C$23,MIN(CA28:CB37)) -> 2022-04-01 | CF115: =IF(MIN(CF28:CG37)=0,global!$C$23,MIN(CF28:CG37)) -> 2022-04-01 | CK115: =IF(MIN(CK28:CL37)=0,global!$C$23,MIN(CK28:CL37)) -> 2022-04-01 | CP115: =IF(MIN(CP28:CQ37)=0,global!$C$23,MIN(CP28:CQ37)) -> 2022-04-01 | CU115: =IF(MIN(CU28:CV37)=0,global!$C$23,MIN(CU28:CV37)) -> 2022-04-01
A116: in_place_end_date | D116: =IF(MAX(D28:E37)=0,EOMONTH(global!$C$23,0),MAX(D28:E37)) -> 2030-09-30 | I116: =IF(MAX(I28:J37)=0,EOMONTH(global!$C$23,0),MAX(I28:J37)) -> 2031-09-30 | N116: =IF(MAX(N28:O37)=0,EOMONTH(global!$C$23,0),MAX(N28:O37)) -> 2024-01-31 | S116: =IF(MAX(S28:T37)=0,EOMONTH(global!$C$23,0),MAX(S28:T37)) -> 2024-03-31 | X116: =IF(MAX(X28:Y37)=0,EOMONTH(global!$C$23,0),MAX(X28:Y37)) -> 2024-03-31 | AC116: =IF(MAX(AC28:AD37)=0,EOMONTH(global!$C$23,0),MAX(AC28:AD37)) -> 2024-03-31 | AH116: =IF(MAX(AH28:AI37)=0,EOMONTH(global!$C$23,0),MAX(AH28:AI37)) -> 2024-03-31 | AM116: =IF(MAX(AM28:AN37)=0,EOMONTH(global!$C$23,0),MAX(AM28:AN37)) -> 2024-03-31 | AR116: =IF(MAX(AR28:AS37)=0,EOMONTH(global!$C$23,0),MAX(AR28:AS37)) -> 2024-03-31 | AW116: =IF(MAX(AW28:AX37)=0,EOMONTH(global!$C$23,0),MAX(AW28:AX37)) -> 2024-03-31 | BB116: =IF(MAX(BB28:BC37)=0,EOMONTH(global!$C$23,0),MAX(BB28:BC37)) -> 2024-03-31 | BG116: =IF(MAX(BG28:BH37)=0,EOMONTH(global!$C$23,0),MAX(BG28:BH37)) -> 2024-03-31 | BL116: =IF(MAX(BL28:BM37)=0,EOMONTH(global!$C$23,0),MAX(BL28:BM37)) -> 2024-03-31 | BQ116: =IF(MAX(BQ28:BR37)=0,EOMONTH(global!$C$23,0),MAX(BQ28:BR37)) -> 2024-03-31 | BV116: =IF(MAX(BV28:BW37)=0,EOMONTH(global!$C$23,0),MAX(BV28:BW37)) -> 2024-03-31 | CA116: =IF(MAX(CA28:CB37)=0,EOMONTH(global!$C$23,0),MAX(CA28:CB37)) -> 2024-03-31 | CF116: =IF(MAX(CF28:CG37)=0,EOMONTH(global!$C$23,0),MAX(CF28:CG37)) -> 2024-03-31 | CK116: =IF(MAX(CK28:CL37)=0,EOMONTH(global!$C$23,0),MAX(CK28:CL37)) -> 2024-03-31 | CP116: =IF(MAX(CP28:CQ37)=0,EOMONTH(global!$C$23,0),MAX(CP28:CQ37)) -> 2024-03-31 | CU116: =IF(MAX(CU28:CV37)=0,EOMONTH(global!$C$23,0),MAX(CU28:CV37)) -> 2024-03-31
A118: In-Place Additional Up Front Lease Terms
A119: up_front_free_rent_begins | D119: =EOMONTH(D115,0) -> 2023-10-31 | I119: =EOMONTH(I115,0) -> 2024-10-31 | N119: =EOMONTH(N115,0) -> 2024-01-31 | S119: =EOMONTH(S115,0) -> 2022-04-30 | X119: =EOMONTH(X115,0) -> 2022-04-30 | AC119: =EOMONTH(AC115,0) -> 2022-04-30 | AH119: =EOMONTH(AH115,0) -> 2022-04-30 | AM119: =EOMONTH(AM115,0) -> 2022-04-30 | AR119: =EOMONTH(AR115,0) -> 2022-04-30 | AW119: =EOMONTH(AW115,0) -> 2022-04-30 | BB119: =EOMONTH(BB115,0) -> 2022-04-30 | BG119: =EOMONTH(BG115,0) -> 2022-04-30 | BL119: =EOMONTH(BL115,0) -> 2022-04-30 | BQ119: =EOMONTH(BQ115,0) -> 2022-04-30 | BV119: =EOMONTH(BV115,0) -> 2022-04-30 | CA119: =EOMONTH(CA115,0) -> 2022-04-30 | CF119: =EOMONTH(CF115,0) -> 2022-04-30 | CK119: =EOMONTH(CK115,0) -> 2022-04-30 | CP119: =EOMONTH(CP115,0) -> 2022-04-30 | CU119: =EOMONTH(CU115,0) -> 2022-04-30
A120: up_front_free_rent_ends | D120: =EOMONTH(D115,G40) -> 2024-01-31 | I120: =EOMONTH(I115,L40) -> 2025-01-31 | N120: =EOMONTH(N115,Q40) -> 2024-04-30 | S120: =EOMONTH(S115,V40) -> 2022-07-31 | X120: =EOMONTH(X115,AA40) -> 2022-07-31 | AC120: =EOMONTH(AC115,AF40) -> 2022-07-31 | AH120: =EOMONTH(AH115,AK40) -> 2022-07-31 | AM120: =EOMONTH(AM115,AP40) -> 2022-07-31 | AR120: =EOMONTH(AR115,AU40) -> 2022-07-31 | AW120: =EOMONTH(AW115,AZ40) -> 2022-07-31 | BB120: =EOMONTH(BB115,BE40) -> 2022-07-31 | BG120: =EOMONTH(BG115,BJ40) -> 2022-07-31 | BL120: =EOMONTH(BL115,BO40) -> 2022-07-31 | BQ120: =EOMONTH(BQ115,BT40) -> 2022-07-31 | BV120: =EOMONTH(BV115,BY40) -> 2022-07-31 | CA120: =EOMONTH(CA115,CD40) -> 2022-07-31 | CF120: =EOMONTH(CF115,CI40) -> 2022-07-31 | CK120: =EOMONTH(CK115,CN40) -> 2022-07-31 | CP120: =EOMONTH(CP115,CS40) -> 2022-07-31 | CU120: =EOMONTH(CU115,CX40) -> 2022-07-31
A121: up_front_ti_psf | D121: =G41 -> 2 | I121: =L41 -> 2 | N121: =Q41 -> 2 | S121: =V41 -> 2 | X121: =AA41 -> 2 | AC121: =AF41 -> 2 | AH121: =AK41 -> 2 | AM121: =AP41 -> 2 | AR121: =AU41 -> 2 | AW121: =AZ41 -> 2 | BB121: =BE41 -> 2 | BG121: =BJ41 -> 2 | BL121: =BO41 -> 2 | BQ121: =BT41 -> 2 | BV121: =BY41 -> 2 | CA121: =CD41 -> 2 | CF121: =CI41 -> 2 | CK121: =CN41 -> 2 | CP121: =CS41 -> 2 | CU121: =CX41 -> 2
A122: up_front_lc_percentage | D122: =G42 -> 0.05 | I122: =L42 -> 0.05 | N122: =Q42 -> 0.05 | S122: =V42 -> 0.05 | X122: =AA42 -> 0.05 | AC122: =AF42 -> 0.05 | AH122: =AK42 -> 0.05 | AM122: =AP42 -> 0.05 | AR122: =AU42 -> 0.05 | AW122: =AZ42 -> 0.05 | BB122: =BE42 -> 0.05 | BG122: =BJ42 -> 0.05 | BL122: =BO42 -> 0.05 | BQ122: =BT42 -> 0.05 | BV122: =BY42 -> 0.05 | CA122: =CD42 -> 0.05 | CF122: =CI42 -> 0.05 | CK122: =CN42 -> 0.05 | CP122: =CS42 -> 0.05 | CU122: =CX42 -> 0.05
A123: up_front_ti_lc_date | D123: =EOMONTH(D115,G43*-1) -> 2023-09-30 | I123: =EOMONTH(I115,L43*-1) -> 2024-09-30 | N123: =EOMONTH(N115,Q43*-1) -> 2023-12-31 | S123: =EOMONTH(S115,V43*-1) -> 2022-03-31 | X123: =EOMONTH(X115,AA43*-1) -> 2022-03-31 | AC123: =EOMONTH(AC115,AF43*-1) -> 2022-03-31 | AH123: =EOMONTH(AH115,AK43*-1) -> 2022-03-31 | AM123: =EOMONTH(AM115,AP43*-1) -> 2022-03-31 | AR123: =EOMONTH(AR115,AU43*-1) -> 2022-03-31 | AW123: =EOMONTH(AW115,AZ43*-1) -> 2022-03-31 | BB123: =EOMONTH(BB115,BE43*-1) -> 2022-03-31 | BG123: =EOMONTH(BG115,BJ43*-1) -> 2022-03-31 | BL123: =EOMONTH(BL115,BO43*-1) -> 2022-03-31 | BQ123: =EOMONTH(BQ115,BT43*-1) -> 2022-03-31 | BV123: =EOMONTH(BV115,BY43*-1) -> 2022-03-31 | CA123: =EOMONTH(CA115,CD43*-1) -> 2022-03-31 | CF123: =EOMONTH(CF115,CI43*-1) -> 2022-03-31 | CK123: =EOMONTH(CK115,CN43*-1) -> 2022-03-31 | CP123: =EOMONTH(CP115,CS43*-1) -> 2022-03-31 | CU123: =EOMONTH(CU115,CX43*-1) -> 2022-03-31
A125: Release Assumptions
A127: General
A128: release_reimbursement_structure | D128: =G49 -> NNN | I128: =L49 -> NNN | N128: =Q49 -> NNN | S128: =V49 -> NNN | X128: =AA49 -> NNN | AC128: =AF49 -> NNN | AH128: =AK49 -> NNN | AM128: =AP49 -> NNN | AR128: =AU49 -> NNN | AW128: =AZ49 -> NNN | BB128: =BE49 -> NNN | BG128: =BJ49 -> NNN | BL128: =BO49 -> NNN | BQ128: =BT49 -> NNN | BV128: =BY49 -> NNN | CA128: =CD49 -> NNN | CF128: =CI49 -> NNN | CK128: =CN49 -> NNN | CP128: =CS49 -> NNN | CU128: =CX49 -> NNN
A129: release_repeats | D129: =G58 -> 1 | I129: =L58 -> 1 | N129: =Q58 -> 1 | S129: =V58 -> 1 | X129: =AA58 -> 1 | AC129: =AF58 -> 1 | AH129: =AK58 -> 1 | AM129: =AP58 -> 1 | AR129: =AU58 -> 1 | AW129: =AZ58 -> 1 | BB129: =BE58 -> 1 | BG129: =BJ58 -> 1 | BL129: =BO58 -> 1 | BQ129: =BT58 -> 1 | BV129: =BY58 -> 1 | CA129: =CD58 -> 1 | CF129: =CI58 -> 1 | CK129: =CN58 -> 1 | CP129: =CS58 -> 1 | CU129: =CX58 -> 1
A130: market_rent_growth | D130: =G50+sensi_backup!$E$19 -> 0.025 | I130: =L50+sensi_backup!$E$19 -> 0.03 | N130: =Q50+sensi_backup!$E$19 -> 0.03 | S130: =V50+sensi_backup!$E$19 -> 0.03 | X130: =AA50+sensi_backup!$E$19 -> 0.03 | AC130: =AF50+sensi_backup!$E$19 -> 0.03 | AH130: =AK50+sensi_backup!$E$19 -> 0.03 | AM130: =AP50+sensi_backup!$E$19 -> 0.03 | AR130: =AU50+sensi_backup!$E$19 -> 0.03 | AW130: =AZ50+sensi_backup!$E$19 -> 0.03 | BB130: =BE50+sensi_backup!$E$19 -> 0.03 | BG130: =BJ50+sensi_backup!$E$19 -> 0.03 | BL130: =BO50+sensi_backup!$E$19 -> 0.03 | BQ130: =BT50+sensi_backup!$E$19 -> 0.03 | BV130: =BY50+sensi_backup!$E$19 -> 0.03 | CA130: =CD50+sensi_backup!$E$19 -> 0.03 | CF130: =CI50+sensi_backup!$E$19 -> 0.03 | CK130: =CN50+sensi_backup!$E$19 -> 0.03 | CP130: =CS50+sensi_backup!$E$19 -> 0.03 | CU130: =CX50+sensi_backup!$E$19 -> 0.03
A131: release_ti_lc_lead_time | D131: =G52 -> 1 | I131: =L52 -> 1 | N131: =Q52 -> 1 | S131: =V52 -> 1 | X131: =AA52 -> 1 | AC131: =AF52 -> 1 | AH131: =AK52 -> 1 | AM131: =AP52 -> 1 | AR131: =AU52 -> 1 | AW131: =AZ52 -> 1 | BB131: =BE52 -> 1 | BG131: =BJ52 -> 1 | BL131: =BO52 -> 1 | BQ131: =BT52 -> 1 | BV131: =BY52 -> 1 | CA131: =CD52 -> 1 | CF131: =CI52 -> 1 | CK131: =CN52 -> 1 | CP131: =CS52 -> 1 | CU131: =CX52 -> 1
A132: release_ti_growth | D132: =G51 -> 0 | I132: =L51 -> 0 | N132: =Q51 -> 0 | S132: =V51 -> 0 | X132: =AA51 -> 0 | AC132: =AF51 -> 0 | AH132: =AK51 -> 0 | AM132: =AP51 -> 0 | AR132: =AU51 -> 0 | AW132: =AZ51 -> 0 | BB132: =BE51 -> 0 | BG132: =BJ51 -> 0 | BL132: =BO51 -> 0 | BQ132: =BT51 -> 0 | BV132: =BY51 -> 0 | CA132: =CD51 -> 0 | CF132: =CI51 -> 0 | CK132: =CN51 -> 0 | CP132: =CS51 -> 0 | CU132: =CX51 -> 0
A134: Release Terms - First Renewal
A135: release_blended_downtime_first | D135: =(F71 * (1-G55)+G71*G55)+sensi_backup!$E$22 -> 9 | I135: =(K71 * (1-L55)+L71*L55)+sensi_backup!$E$22 -> 4.5 | N135: =(P71 * (1-Q55)+Q71*Q55)+sensi_backup!$E$22 -> 0 | S135: =(U71 * (1-V55)+V71*V55)+sensi_backup!$E$22 -> 3 | X135: =(Z71 * (1-AA55)+AA71*AA55)+sensi_backup!$E$22 -> 3 | AC135: =(AE71 * (1-AF55)+AF71*AF55)+sensi_backup!$E$22 -> 3 | AH135: =(AJ71 * (1-AK55)+AK71*AK55)+sensi_backup!$E$22 -> 3 | AM135: =(AO71 * (1-AP55)+AP71*AP55)+sensi_backup!$E$22 -> 3 | AR135: =(AT71 * (1-AU55)+AU71*AU55)+sensi_backup!$E$22 -> 3 | AW135: =(AY71 * (1-AZ55)+AZ71*AZ55)+sensi_backup!$E$22 -> 3 | BB135: =(BD71 * (1-BE55)+BE71*BE55)+sensi_backup!$E$22 -> 3 | BG135: =(BI71 * (1-BJ55)+BJ71*BJ55)+sensi_backup!$E$22 -> 3 | BL135: =(BN71 * (1-BO55)+BO71*BO55)+sensi_backup!$E$22 -> 3 | BQ135: =(BS71 * (1-BT55)+BT71*BT55)+sensi_backup!$E$22 -> 3 | BV135: =(BX71 * (1-BY55)+BY71*BY55)+sensi_backup!$E$22 -> 3 | CA135: =(CC71 * (1-CD55)+CD71*CD55)+sensi_backup!$E$22 -> 3 | CF135: =(CH71 * (1-CI55)+CI71*CI55)+sensi_backup!$E$22 -> 3 | CK135: =(CM71 * (1-CN55)+CN71*CN55)+sensi_backup!$E$22 -> 3 | CP135: =(CR71 * (1-CS55)+CS71*CS55)+sensi_backup!$E$22 -> 3 | CU135: =(CW71 * (1-CX55)+CX71*CX55)+sensi_backup!$E$22 -> 3
A136: release_blended_term_first | D136: =(F70*(1-G55) + G70*G55)+sensi_backup!$E$23 -> 60 | I136: =(K70*(1-L55) + L70*L55)+sensi_backup!$E$23 -> 60 | N136: =(P70*(1-Q55) + Q70*Q55)+sensi_backup!$E$23 -> 24 | S136: =(U70*(1-V55) + V70*V55)+sensi_backup!$E$23 -> 60 | X136: =(Z70*(1-AA55) + AA70*AA55)+sensi_backup!$E$23 -> 60 | AC136: =(AE70*(1-AF55) + AF70*AF55)+sensi_backup!$E$23 -> 60 | AH136: =(AJ70*(1-AK55) + AK70*AK55)+sensi_backup!$E$23 -> 60 | AM136: =(AO70*(1-AP55) + AP70*AP55)+sensi_backup!$E$23 -> 60 | AR136: =(AT70*(1-AU55) + AU70*AU55)+sensi_backup!$E$23 -> 60 | AW136: =(AY70*(1-AZ55) + AZ70*AZ55)+sensi_backup!$E$23 -> 60 | BB136: =(BD70*(1-BE55) + BE70*BE55)+sensi_backup!$E$23 -> 60 | BG136: =(BI70*(1-BJ55) + BJ70*BJ55)+sensi_backup!$E$23 -> 60 | BL136: =(BN70*(1-BO55) + BO70*BO55)+sensi_backup!$E$23 -> 60 | BQ136: =(BS70*(1-BT55) + BT70*BT55)+sensi_backup!$E$23 -> 60 | BV136: =(BX70*(1-BY55) + BY70*BY55)+sensi_backup!$E$23 -> 60 | CA136: =(CC70*(1-CD55) + CD70*CD55)+sensi_backup!$E$23 -> 60 | CF136: =(CH70*(1-CI55) + CI70*CI55)+sensi_backup!$E$23 -> 60 | CK136: =(CM70*(1-CN55) + CN70*CN55)+sensi_backup!$E$23 -> 60 | CP136: =(CR70*(1-CS55) + CS70*CS55)+sensi_backup!$E$23 -> 60 | CU136: =(CW70*(1-CX55) + CX70*CX55)+sensi_backup!$E$23 -> 60
A137: release_blended_market_rent_psf_first | D137: =(F73*(1-G55) + G73*G55)+sensi_backup!$E$18 -> 9 | I137: =(K73*(1-L55) + L73*L55)+sensi_backup!$E$18 -> 9.25 | N137: =(P73*(1-Q55) + Q73*Q55)+sensi_backup!$E$18 -> 5 | S137: =(U73*(1-V55) + V73*V55)+sensi_backup!$E$18 -> 9 | X137: =(Z73*(1-AA55) + AA73*AA55)+sensi_backup!$E$18 -> 9 | AC137: =(AE73*(1-AF55) + AF73*AF55)+sensi_backup!$E$18 -> 9 | AH137: =(AJ73*(1-AK55) + AK73*AK55)+sensi_backup!$E$18 -> 9 | AM137: =(AO73*(1-AP55) + AP73*AP55)+sensi_backup!$E$18 -> 9 | AR137: =(AT73*(1-AU55) + AU73*AU55)+sensi_backup!$E$18 -> 9 | AW137: =(AY73*(1-AZ55) + AZ73*AZ55)+sensi_backup!$E$18 -> 9 | BB137: =(BD73*(1-BE55) + BE73*BE55)+sensi_backup!$E$18 -> 9 | BG137: =(BI73*(1-BJ55) + BJ73*BJ55)+sensi_backup!$E$18 -> 9 | BL137: =(BN73*(1-BO55) + BO73*BO55)+sensi_backup!$E$18 -> 9 | BQ137: =(BS73*(1-BT55) + BT73*BT55)+sensi_backup!$E$18 -> 9 | BV137: =(BX73*(1-BY55) + BY73*BY55)+sensi_backup!$E$18 -> 9 | CA137: =(CC73*(1-CD55) + CD73*CD55)+sensi_backup!$E$18 -> 9 | CF137: =(CH73*(1-CI55) + CI73*CI55)+sensi_backup!$E$18 -> 9 | CK137: =(CM73*(1-CN55) + CN73*CN55)+sensi_backup!$E$18 -> 9 | CP137: =(CR73*(1-CS55) + CS73*CS55)+sensi_backup!$E$18 -> 9 | CU137: =(CW73*(1-CX55) + CX73*CX55)+sensi_backup!$E$18 -> 9
A138: release_blended_market_rent_annual_first | D138: =D137*D82 -> 594000 | I138: =I137*I82 -> 185000 | N138: =N137*N82 -> 0 | S138: =S137*S82 -> 0 | X138: =X137*X82 -> 0 | AC138: =AC137*AC82 -> 0 | AH138: =AH137*AH82 -> 0 | AM138: =AM137*AM82 -> 0 | AR138: =AR137*AR82 -> 0 | AW138: =AW137*AW82 -> 0 | BB138: =BB137*BB82 -> 0 | BG138: =BG137*BG82 -> 0 | BL138: =BL137*BL82 -> 0 | BQ138: =BQ137*BQ82 -> 0 | BV138: =BV137*BV82 -> 0 | CA138: =CA137*CA82 -> 0 | CF138: =CF137*CF82 -> 0 | CK138: =CK137*CK82 -> 0 | CP138: =CP137*CP82 -> 0 | CU138: =CU137*CU82 -> 0
A139: release_blended_market_rent_monthy_first | D139: =D138/12 -> 49500 | I139: =I138/12 -> 15416.66667 | N139: =N138/12 -> 0 | S139: =S138/12 -> 0 | X139: =X138/12 -> 0 | AC139: =AC138/12 -> 0 | AH139: =AH138/12 -> 0 | AM139: =AM138/12 -> 0 | AR139: =AR138/12 -> 0 | AW139: =AW138/12 -> 0 | BB139: =BB138/12 -> 0 | BG139: =BG138/12 -> 0 | BL139: =BL138/12 -> 0 | BQ139: =BQ138/12 -> 0 | BV139: =BV138/12 -> 0 | CA139: =CA138/12 -> 0 | CF139: =CF138/12 -> 0 | CK139: =CK138/12 -> 0 | CP139: =CP138/12 -> 0 | CU139: =CU138/12 -> 0
A140: release_blended_free_rent_term_first | D140: =F72 * (1-G55)+G72*G55 -> 0 | I140: =K72 * (1-L55)+L72*L55 -> 1.5 | N140: =P72 * (1-Q55)+Q72*Q55 -> 12 | S140: =U72 * (1-V55)+V72*V55 -> 0 | X140: =Z72 * (1-AA55)+AA72*AA55 -> 0 | AC140: =AE72 * (1-AF55)+AF72*AF55 -> 0 | AH140: =AJ72 * (1-AK55)+AK72*AK55 -> 0 | AM140: =AO72 * (1-AP55)+AP72*AP55 -> 0 | AR140: =AT72 * (1-AU55)+AU72*AU55 -> 0 | AW140: =AY72 * (1-AZ55)+AZ72*AZ55 -> 0 | BB140: =BD72 * (1-BE55)+BE72*BE55 -> 0 | BG140: =BI72 * (1-BJ55)+BJ72*BJ55 -> 0 | BL140: =BN72 * (1-BO55)+BO72*BO55 -> 0 | BQ140: =BS72 * (1-BT55)+BT72*BT55 -> 0 | BV140: =BX72 * (1-BY55)+BY72*BY55 -> 0 | CA140: =CC72 * (1-CD55)+CD72*CD55 -> 0 | CF140: =CH72 * (1-CI55)+CI72*CI55 -> 0 | CK140: =CM72 * (1-CN55)+CN72*CN55 -> 0 | CP140: =CR72 * (1-CS55)+CS72*CS55 -> 0 | CU140: =CW72 * (1-CX55)+CX72*CX55 -> 0
A142: Release Additional Lease Terms - First Renewal
A143: release_ti_psf_first | D143: =(F74 * (1-G55)+G74*G55)+sensi_backup!$E$21 -> 2 | I143: =(K74 * (1-L55)+L74*L55)+sensi_backup!$E$21 -> 2 | N143: =(P74 * (1-Q55)+Q74*Q55)+sensi_backup!$E$21 -> 0 | S143: =(U74 * (1-V55)+V74*V55)+sensi_backup!$E$21 -> 2 | X143: =(Z74 * (1-AA55)+AA74*AA55)+sensi_backup!$E$21 -> 2 | AC143: =(AE74 * (1-AF55)+AF74*AF55)+sensi_backup!$E$21 -> 2 | AH143: =(AJ74 * (1-AK55)+AK74*AK55)+sensi_backup!$E$21 -> 2 | AM143: =(AO74 * (1-AP55)+AP74*AP55)+sensi_backup!$E$21 -> 2 | AR143: =(AT74 * (1-AU55)+AU74*AU55)+sensi_backup!$E$21 -> 2 | AW143: =(AY74 * (1-AZ55)+AZ74*AZ55)+sensi_backup!$E$21 -> 2 | BB143: =(BD74 * (1-BE55)+BE74*BE55)+sensi_backup!$E$21 -> 2 | BG143: =(BI74 * (1-BJ55)+BJ74*BJ55)+sensi_backup!$E$21 -> 2 | BL143: =(BN74 * (1-BO55)+BO74*BO55)+sensi_backup!$E$21 -> 2 | BQ143: =(BS74 * (1-BT55)+BT74*BT55)+sensi_backup!$E$21 -> 2 | BV143: =(BX74 * (1-BY55)+BY74*BY55)+sensi_backup!$E$21 -> 2 | CA143: =(CC74 * (1-CD55)+CD74*CD55)+sensi_backup!$E$21 -> 2 | CF143: =(CH74 * (1-CI55)+CI74*CI55)+sensi_backup!$E$21 -> 2 | CK143: =(CM74 * (1-CN55)+CN74*CN55)+sensi_backup!$E$21 -> 2 | CP143: =(CR74 * (1-CS55)+CS74*CS55)+sensi_backup!$E$21 -> 2 | CU143: =(CW74 * (1-CX55)+CX74*CX55)+sensi_backup!$E$21 -> 2
A144: release_lc_percentage_first | D144: =(F75 * (1-G55)+G75*G55)+sensi_backup!$E$20 -> 0.05 | I144: =(K75 * (1-L55)+L75*L55)+sensi_backup!$E$20 -> 0.05 | N144: =(P75 * (1-Q55)+Q75*Q55)+sensi_backup!$E$20 -> 0.05 | S144: =(U75 * (1-V55)+V75*V55)+sensi_backup!$E$20 -> 0.05 | X144: =(Z75 * (1-AA55)+AA75*AA55)+sensi_backup!$E$20 -> 0.05 | AC144: =(AE75 * (1-AF55)+AF75*AF55)+sensi_backup!$E$20 -> 0.05 | AH144: =(AJ75 * (1-AK55)+AK75*AK55)+sensi_backup!$E$20 -> 0.05 | AM144: =(AO75 * (1-AP55)+AP75*AP55)+sensi_backup!$E$20 -> 0.05 | AR144: =(AT75 * (1-AU55)+AU75*AU55)+sensi_backup!$E$20 -> 0.05 | AW144: =(AY75 * (1-AZ55)+AZ75*AZ55)+sensi_backup!$E$20 -> 0.05 | BB144: =(BD75 * (1-BE55)+BE75*BE55)+sensi_backup!$E$20 -> 0.05 | BG144: =(BI75 * (1-BJ55)+BJ75*BJ55)+sensi_backup!$E$20 -> 0.05 | BL144: =(BN75 * (1-BO55)+BO75*BO55)+sensi_backup!$E$20 -> 0.05 | BQ144: =(BS75 * (1-BT55)+BT75*BT55)+sensi_backup!$E$20 -> 0.05 | BV144: =(BX75 * (1-BY55)+BY75*BY55)+sensi_backup!$E$20 -> 0.05 | CA144: =(CC75 * (1-CD55)+CD75*CD55)+sensi_backup!$E$20 -> 0.05 | CF144: =(CH75 * (1-CI55)+CI75*CI55)+sensi_backup!$E$20 -> 0.05 | CK144: =(CM75 * (1-CN55)+CN75*CN55)+sensi_backup!$E$20 -> 0.05 | CP144: =(CR75 * (1-CS55)+CS75*CS55)+sensi_backup!$E$20 -> 0.05 | CU144: =(CW75 * (1-CX55)+CX75*CX55)+sensi_backup!$E$20 -> 0.05
A146: Release Terms - Subsequent Renewal
A147: release_blended_downtime | D147: =(F71 * (1-G56)+IF($G$57=0,G71,D135)*G56)+sensi_backup!$E$22 -> 9 | I147: =(K71 * (1-L56)+IF($G$57=0,L71,I135)*L56)+sensi_backup!$E$22 -> 4.5 | N147: =(P71 * (1-Q56)+IF($G$57=0,Q71,N135)*Q56)+sensi_backup!$E$22 -> 12 | S147: =(U71 * (1-V56)+IF($G$57=0,V71,S135)*V56)+sensi_backup!$E$22 -> 3 | X147: =(Z71 * (1-AA56)+IF($G$57=0,AA71,X135)*AA56)+sensi_backup!$E$22 -> 3 | AC147: =(AE71 * (1-AF56)+IF($G$57=0,AF71,AC135)*AF56)+sensi_backup!$E$22 -> 3 | AH147: =(AJ71 * (1-AK56)+IF($G$57=0,AK71,AH135)*AK56)+sensi_backup!$E$22 -> 3 | AM147: =(AO71 * (1-AP56)+IF($G$57=0,AP71,AM135)*AP56)+sensi_backup!$E$22 -> 3 | AR147: =(AT71 * (1-AU56)+IF($G$57=0,AU71,AR135)*AU56)+sensi_backup!$E$22 -> 3 | AW147: =(AY71 * (1-AZ56)+IF($G$57=0,AZ71,AW135)*AZ56)+sensi_backup!$E$22 -> 3 | BB147: =(BD71 * (1-BE56)+IF($G$57=0,BE71,BB135)*BE56)+sensi_backup!$E$22 -> 3 | BG147: =(BI71 * (1-BJ56)+IF($G$57=0,BJ71,BG135)*BJ56)+sensi_backup!$E$22 -> 3 | BL147: =(BN71 * (1-BO56)+IF($G$57=0,BO71,BL135)*BO56)+sensi_backup!$E$22 -> 3 | BQ147: =(BS71 * (1-BT56)+IF($G$57=0,BT71,BQ135)*BT56)+sensi_backup!$E$22 -> 3 | BV147: =(BX71 * (1-BY56)+IF($G$57=0,BY71,BV135)*BY56)+sensi_backup!$E$22 -> 3 | CA147: =(CC71 * (1-CD56)+IF($G$57=0,CD71,CA135)*CD56)+sensi_backup!$E$22 -> 3 | CF147: =(CH71 * (1-CI56)+IF($G$57=0,CI71,CF135)*CI56)+sensi_backup!$E$22 -> 3 | CK147: =(CM71 * (1-CN56)+IF($G$57=0,CN71,CK135)*CN56)+sensi_backup!$E$22 -> 3 | CP147: =(CR71 * (1-CS56)+IF($G$57=0,CS71,CP135)*CS56)+sensi_backup!$E$22 -> 3 | CU147: =(CW71 * (1-CX56)+IF($G$57=0,CX71,CU135)*CX56)+sensi_backup!$E$22 -> 3
A148: release_blended_term | D148: =(F70*(1-G56) + IF($G$57=0,G70,D136)*G56)+sensi_backup!$E$23 -> 60 | I148: =(K70*(1-L56) + IF($G$57=0,L70,I136)*L56)+sensi_backup!$E$23 -> 60 | N148: =(P70*(1-Q56) + IF($G$57=0,Q70,N136)*Q56)+sensi_backup!$E$23 -> 60 | S148: =(U70*(1-V56) + IF($G$57=0,V70,S136)*V56)+sensi_backup!$E$23 -> 60 | X148: =(Z70*(1-AA56) + IF($G$57=0,AA70,X136)*AA56)+sensi_backup!$E$23 -> 60 | AC148: =(AE70*(1-AF56) + IF($G$57=0,AF70,AC136)*AF56)+sensi_backup!$E$23 -> 60 | AH148: =(AJ70*(1-AK56) + IF($G$57=0,AK70,AH136)*AK56)+sensi_backup!$E$23 -> 60 | AM148: =(AO70*(1-AP56) + IF($G$57=0,AP70,AM136)*AP56)+sensi_backup!$E$23 -> 60 | AR148: =(AT70*(1-AU56) + IF($G$57=0,AU70,AR136)*AU56)+sensi_backup!$E$23 -> 60 | AW148: =(AY70*(1-AZ56) + IF($G$57=0,AZ70,AW136)*AZ56)+sensi_backup!$E$23 -> 60 | BB148: =(BD70*(1-BE56) + IF($G$57=0,BE70,BB136)*BE56)+sensi_backup!$E$23 -> 60 | BG148: =(BI70*(1-BJ56) + IF($G$57=0,BJ70,BG136)*BJ56)+sensi_backup!$E$23 -> 60 | BL148: =(BN70*(1-BO56) + IF($G$57=0,BO70,BL136)*BO56)+sensi_backup!$E$23 -> 60 | BQ148: =(BS70*(1-BT56) + IF($G$57=0,BT70,BQ136)*BT56)+sensi_backup!$E$23 -> 60 | BV148: =(BX70*(1-BY56) + IF($G$57=0,BY70,BV136)*BY56)+sensi_backup!$E$23 -> 60 | CA148: =(CC70*(1-CD56) + IF($G$57=0,CD70,CA136)*CD56)+sensi_backup!$E$23 -> 60 | CF148: =(CH70*(1-CI56) + IF($G$57=0,CI70,CF136)*CI56)+sensi_backup!$E$23 -> 60 | CK148: =(CM70*(1-CN56) + IF($G$57=0,CN70,CK136)*CN56)+sensi_backup!$E$23 -> 60 | CP148: =(CR70*(1-CS56) + IF($G$57=0,CS70,CP136)*CS56)+sensi_backup!$E$23 -> 60 | CU148: =(CW70*(1-CX56) + IF($G$57=0,CX70,CU136)*CX56)+sensi_backup!$E$23 -> 60
A149: release_blended_market_rent_psf | D149: =(F73*(1-G56) + IF($G$57=0,G73,D137)*G56)+sensi_backup!$E$18 -> 9 | I149: =(K73*(1-L56) + IF($G$57=0,L73,I137)*L56)+sensi_backup!$E$18 -> 9.25 | N149: =(P73*(1-Q56) + IF($G$57=0,Q73,N137)*Q56)+sensi_backup!$E$18 -> 10 | S149: =(U73*(1-V56) + IF($G$57=0,V73,S137)*V56)+sensi_backup!$E$18 -> 9 | X149: =(Z73*(1-AA56) + IF($G$57=0,AA73,X137)*AA56)+sensi_backup!$E$18 -> 9 | AC149: =(AE73*(1-AF56) + IF($G$57=0,AF73,AC137)*AF56)+sensi_backup!$E$18 -> 9 | AH149: =(AJ73*(1-AK56) + IF($G$57=0,AK73,AH137)*AK56)+sensi_backup!$E$18 -> 9 | AM149: =(AO73*(1-AP56) + IF($G$57=0,AP73,AM137)*AP56)+sensi_backup!$E$18 -> 9 | AR149: =(AT73*(1-AU56) + IF($G$57=0,AU73,AR137)*AU56)+sensi_backup!$E$18 -> 9 | AW149: =(AY73*(1-AZ56) + IF($G$57=0,AZ73,AW137)*AZ56)+sensi_backup!$E$18 -> 9 | BB149: =(BD73*(1-BE56) + IF($G$57=0,BE73,BB137)*BE56)+sensi_backup!$E$18 -> 9 | BG149: =(BI73*(1-BJ56) + IF($G$57=0,BJ73,BG137)*BJ56)+sensi_backup!$E$18 -> 9 | BL149: =(BN73*(1-BO56) + IF($G$57=0,BO73,BL137)*BO56)+sensi_backup!$E$18 -> 9 | BQ149: =(BS73*(1-BT56) + IF($G$57=0,BT73,BQ137)*BT56)+sensi_backup!$E$18 -> 9 | BV149: =(BX73*(1-BY56) + IF($G$57=0,BY73,BV137)*BY56)+sensi_backup!$E$18 -> 9 | CA149: =(CC73*(1-CD56) + IF($G$57=0,CD73,CA137)*CD56)+sensi_backup!$E$18 -> 9 | CF149: =(CH73*(1-CI56) + IF($G$57=0,CI73,CF137)*CI56)+sensi_backup!$E$18 -> 9 | CK149: =(CM73*(1-CN56) + IF($G$57=0,CN73,CK137)*CN56)+sensi_backup!$E$18 -> 9 | CP149: =(CR73*(1-CS56) + IF($G$57=0,CS73,CP137)*CS56)+sensi_backup!$E$18 -> 9 | CU149: =(CW73*(1-CX56) + IF($G$57=0,CX73,CU137)*CX56)+sensi_backup!$E$18 -> 9
A150: release_blended_market_rent_annual | D150: =D149*D82 -> 594000 | I150: =I149*I82 -> 185000 | N150: =N149*N82 -> 0 | S150: =S149*S82 -> 0 | X150: =X149*X82 -> 0 | AC150: =AC149*AC82 -> 0 | AH150: =AH149*AH82 -> 0 | AM150: =AM149*AM82 -> 0 | AR150: =AR149*AR82 -> 0 | AW150: =AW149*AW82 -> 0 | BB150: =BB149*BB82 -> 0 | BG150: =BG149*BG82 -> 0 | BL150: =BL149*BL82 -> 0 | BQ150: =BQ149*BQ82 -> 0 | BV150: =BV149*BV82 -> 0 | CA150: =CA149*CA82 -> 0 | CF150: =CF149*CF82 -> 0 | CK150: =CK149*CK82 -> 0 | CP150: =CP149*CP82 -> 0 | CU150: =CU149*CU82 -> 0
A151: release_blended_market_rent_monthy | D151: =D150/12 -> 49500 | I151: =I150/12 -> 15416.66667 | N151: =N150/12 -> 0 | S151: =S150/12 -> 0 | X151: =X150/12 -> 0 | AC151: =AC150/12 -> 0 | AH151: =AH150/12 -> 0 | AM151: =AM150/12 -> 0 | AR151: =AR150/12 -> 0 | AW151: =AW150/12 -> 0 | BB151: =BB150/12 -> 0 | BG151: =BG150/12 -> 0 | BL151: =BL150/12 -> 0 | BQ151: =BQ150/12 -> 0 | BV151: =BV150/12 -> 0 | CA151: =CA150/12 -> 0 | CF151: =CF150/12 -> 0 | CK151: =CK150/12 -> 0 | CP151: =CP150/12 -> 0 | CU151: =CU150/12 -> 0
A152: release_blended_free_rent_term | D152: =F72 * (1-G56)+IF($G$57=0,G72,D140)*G56 -> 0 | I152: =K72 * (1-L56)+IF($G$57=0,L72,I140)*L56 -> 1.5 | N152: =P72 * (1-Q56)+IF($G$57=0,Q72,N140)*Q56 -> 12 | S152: =U72 * (1-V56)+IF($G$57=0,V72,S140)*V56 -> 0 | X152: =Z72 * (1-AA56)+IF($G$57=0,AA72,X140)*AA56 -> 0 | AC152: =AE72 * (1-AF56)+IF($G$57=0,AF72,AC140)*AF56 -> 0 | AH152: =AJ72 * (1-AK56)+IF($G$57=0,AK72,AH140)*AK56 -> 0 | AM152: =AO72 * (1-AP56)+IF($G$57=0,AP72,AM140)*AP56 -> 0 | AR152: =AT72 * (1-AU56)+IF($G$57=0,AU72,AR140)*AU56 -> 0 | AW152: =AY72 * (1-AZ56)+IF($G$57=0,AZ72,AW140)*AZ56 -> 0 | BB152: =BD72 * (1-BE56)+IF($G$57=0,BE72,BB140)*BE56 -> 0 | BG152: =BI72 * (1-BJ56)+IF($G$57=0,BJ72,BG140)*BJ56 -> 0 | BL152: =BN72 * (1-BO56)+IF($G$57=0,BO72,BL140)*BO56 -> 0 | BQ152: =BS72 * (1-BT56)+IF($G$57=0,BT72,BQ140)*BT56 -> 0 | BV152: =BX72 * (1-BY56)+IF($G$57=0,BY72,BV140)*BY56 -> 0 | CA152: =CC72 * (1-CD56)+IF($G$57=0,CD72,CA140)*CD56 -> 0 | CF152: =CH72 * (1-CI56)+IF($G$57=0,CI72,CF140)*CI56 -> 0 | CK152: =CM72 * (1-CN56)+IF($G$57=0,CN72,CK140)*CN56 -> 0 | CP152: =CR72 * (1-CS56)+IF($G$57=0,CS72,CP140)*CS56 -> 0 | CU152: =CW72 * (1-CX56)+IF($G$57=0,CX72,CU140)*CX56 -> 0
A154: Release Additional Lease Terms - Subsequent Renewal
A155: release_ti_psf | D155: =(F74 * (1-G56)+IF($G$57=0,G74,D143)*G56)+sensi_backup!$E$21 -> 2 | I155: =(K74 * (1-L56)+IF($G$57=0,L74,I143)*L56)+sensi_backup!$E$21 -> 2 | N155: =(P74 * (1-Q56)+IF($G$57=0,Q74,N143)*Q56)+sensi_backup!$E$21 -> 2 | S155: =(U74 * (1-V56)+IF($G$57=0,V74,S143)*V56)+sensi_backup!$E$21 -> 2 | X155: =(Z74 * (1-AA56)+IF($G$57=0,AA74,X143)*AA56)+sensi_backup!$E$21 -> 2 | AC155: =(AE74 * (1-AF56)+IF($G$57=0,AF74,AC143)*AF56)+sensi_backup!$E$21 -> 2 | AH155: =(AJ74 * (1-AK56)+IF($G$57=0,AK74,AH143)*AK56)+sensi_backup!$E$21 -> 2 | AM155: =(AO74 * (1-AP56)+IF($G$57=0,AP74,AM143)*AP56)+sensi_backup!$E$21 -> 2 | AR155: =(AT74 * (1-AU56)+IF($G$57=0,AU74,AR143)*AU56)+sensi_backup!$E$21 -> 2 | AW155: =(AY74 * (1-AZ56)+IF($G$57=0,AZ74,AW143)*AZ56)+sensi_backup!$E$21 -> 2 | BB155: =(BD74 * (1-BE56)+IF($G$57=0,BE74,BB143)*BE56)+sensi_backup!$E$21 -> 2 | BG155: =(BI74 * (1-BJ56)+IF($G$57=0,BJ74,BG143)*BJ56)+sensi_backup!$E$21 -> 2 | BL155: =(BN74 * (1-BO56)+IF($G$57=0,BO74,BL143)*BO56)+sensi_backup!$E$21 -> 2 | BQ155: =(BS74 * (1-BT56)+IF($G$57=0,BT74,BQ143)*BT56)+sensi_backup!$E$21 -> 2 | BV155: =(BX74 * (1-BY56)+IF($G$57=0,BY74,BV143)*BY56)+sensi_backup!$E$21 -> 2 | CA155: =(CC74 * (1-CD56)+IF($G$57=0,CD74,CA143)*CD56)+sensi_backup!$E$21 -> 2 | CF155: =(CH74 * (1-CI56)+IF($G$57=0,CI74,CF143)*CI56)+sensi_backup!$E$21 -> 2 | CK155: =(CM74 * (1-CN56)+IF($G$57=0,CN74,CK143)*CN56)+sensi_backup!$E$21 -> 2 | CP155: =(CR74 * (1-CS56)+IF($G$57=0,CS74,CP143)*CS56)+sensi_backup!$E$21 -> 2 | CU155: =(CW74 * (1-CX56)+IF($G$57=0,CX74,CU143)*CX56)+sensi_backup!$E$21 -> 2
A156: release_lc_percentage | D156: =(F75 * (1-G56)+IF($G$57=0,G75,D144)*G56)+sensi_backup!$E$20 -> 0.05 | I156: =(K75 * (1-L56)+IF($G$57=0,L75,I144)*L56)+sensi_backup!$E$20 -> 0.05 | N156: =(P75 * (1-Q56)+IF($G$57=0,Q75,N144)*Q56)+sensi_backup!$E$20 -> 0.05 | S156: =(U75 * (1-V56)+IF($G$57=0,V75,S144)*V56)+sensi_backup!$E$20 -> 0.05 | X156: =(Z75 * (1-AA56)+IF($G$57=0,AA75,X144)*AA56)+sensi_backup!$E$20 -> 0.05 | AC156: =(AE75 * (1-AF56)+IF($G$57=0,AF75,AC144)*AF56)+sensi_backup!$E$20 -> 0.05 | AH156: =(AJ75 * (1-AK56)+IF($G$57=0,AK75,AH144)*AK56)+sensi_backup!$E$20 -> 0.05 | AM156: =(AO75 * (1-AP56)+IF($G$57=0,AP75,AM144)*AP56)+sensi_backup!$E$20 -> 0.05 | AR156: =(AT75 * (1-AU56)+IF($G$57=0,AU75,AR144)*AU56)+sensi_backup!$E$20 -> 0.05 | AW156: =(AY75 * (1-AZ56)+IF($G$57=0,AZ75,AW144)*AZ56)+sensi_backup!$E$20 -> 0.05 | BB156: =(BD75 * (1-BE56)+IF($G$57=0,BE75,BB144)*BE56)+sensi_backup!$E$20 -> 0.05 | BG156: =(BI75 * (1-BJ56)+IF($G$57=0,BJ75,BG144)*BJ56)+sensi_backup!$E$20 -> 0.05 | BL156: =(BN75 * (1-BO56)+IF($G$57=0,BO75,BL144)*BO56)+sensi_backup!$E$20 -> 0.05 | BQ156: =(BS75 * (1-BT56)+IF($G$57=0,BT75,BQ144)*BT56)+sensi_backup!$E$20 -> 0.05 | BV156: =(BX75 * (1-BY56)+IF($G$57=0,BY75,BV144)*BY56)+sensi_backup!$E$20 -> 0.05 | CA156: =(CC75 * (1-CD56)+IF($G$57=0,CD75,CA144)*CD56)+sensi_backup!$E$20 -> 0.05 | CF156: =(CH75 * (1-CI56)+IF($G$57=0,CI75,CF144)*CI56)+sensi_backup!$E$20 -> 0.05 | CK156: =(CM75 * (1-CN56)+IF($G$57=0,CN75,CK144)*CN56)+sensi_backup!$E$20 -> 0.05 | CP156: =(CR75 * (1-CS56)+IF($G$57=0,CS75,CP144)*CS56)+sensi_backup!$E$20 -> 0.05 | CU156: =(CW75 * (1-CX56)+IF($G$57=0,CX75,CU144)*CX56)+sensi_backup!$E$20 -> 0.05
A158: Reimburse for MG - Release
A159: =_xlfn._xlws.FILTER(A61:A67,A61:A67<>"")&"_mg_release" -> property_taxes_mg_release | D159: =_xlfn._xlws.FILTER(E61:E67,E61:E67<>"") -> 0 | I159: =_xlfn._xlws.FILTER(J61:J67,J61:J67<>"") -> 0 | N159: =_xlfn._xlws.FILTER(O61:O67,O61:O67<>"") -> 0 | S159: =_xlfn._xlws.FILTER(T61:T67,T61:T67<>"") -> 0 | X159: =_xlfn._xlws.FILTER(Y61:Y67,Y61:Y67<>"") -> 0 | AC159: =_xlfn._xlws.FILTER(AD61:AD67,AD61:AD67<>"") -> 0 | AH159: =_xlfn._xlws.FILTER(AI61:AI67,AI61:AI67<>"") -> 0 | AM159: =_xlfn._xlws.FILTER(AN61:AN67,AN61:AN67<>"") -> 0 | AR159: =_xlfn._xlws.FILTER(AS61:AS67,AS61:AS67<>"") -> 0 | AW159: =_xlfn._xlws.FILTER(AX61:AX67,AX61:AX67<>"") -> 0 | BB159: =_xlfn._xlws.FILTER(BC61:BC67,BC61:BC67<>"") -> 0 | BG159: =_xlfn._xlws.FILTER(BH61:BH67,BH61:BH67<>"") -> 0 | BL159: =_xlfn._xlws.FILTER(BM61:BM67,BM61:BM67<>"") -> 0 | BQ159: =_xlfn._xlws.FILTER(BR61:BR67,BR61:BR67<>"") -> 0 | BV159: =_xlfn._xlws.FILTER(BW61:BW67,BW61:BW67<>"") -> 0 | CA159: =_xlfn._xlws.FILTER(CB61:CB67,CB61:CB67<>"") -> 0 | CF159: =_xlfn._xlws.FILTER(CG61:CG67,CG61:CG67<>"") -> 0 | CK159: =_xlfn._xlws.FILTER(CL61:CL67,CL61:CL67<>"") -> 0 | CP159: =_xlfn._xlws.FILTER(CQ61:CQ67,CQ61:CQ67<>"") -> 0 | CU159: =_xlfn._xlws.FILTER(CV61:CV67,CV61:CV67<>"") -> 0
A160: insurance_mg_release | D160: 0 | I160: 0 | N160: 0 | S160: 0 | X160: 0 | AC160: 0 | AH160: 0 | AM160: 0 | AR160: 0 | AW160: 0 | BB160: 0 | BG160: 0 | BL160: 0 | BQ160: 0 | BV160: 0 | CA160: 0 | CF160: 0 | CK160: 0 | CP160: 0 | CU160: 0
A161: cam_mg_release | D161: 0 | I161: 0 | N161: 0 | S161: 0 | X161: 0 | AC161: 0 | AH161: 0 | AM161: 0 | AR161: 0 | AW161: 0 | BB161: 0 | BG161: 0 | BL161: 0 | BQ161: 0 | BV161: 0 | CA161: 0 | CF161: 0 | CK161: 0 | CP161: 0 | CU161: 0
A162: management_fee_mg_release | D162: 0 | I162: 0 | N162: 0 | S162: 0 | X162: 0 | AC162: 0 | AH162: 0 | AM162: 0 | AR162: 0 | AW162: 0 | BB162: 0 | BG162: 0 | BL162: 0 | BQ162: 0 | BV162: 0 | CA162: 0 | CF162: 0 | CK162: 0 | CP162: 0 | CU162: 0
A163: other_mg_release | D163: 0 | I163: 0 | N163: 0 | S163: 0 | X163: 0 | AC163: 0 | AH163: 0 | AM163: 0 | AR163: 0 | AW163: 0 | BB163: 0 | BG163: 0 | BL163: 0 | BQ163: 0 | BV163: 0 | CA163: 0 | CF163: 0 | CK163: 0 | CP163: 0 | CU163: 0
A165: Reimburse for BYS - Release
A166: =_xlfn._xlws.FILTER(A61:A67,A61:A67<>"")&"_bys_release" -> property_taxes_bys_release | D166: =_xlfn._xlws.FILTER(F61:F67,F61:F67<>"") -> 0 | I166: =_xlfn._xlws.FILTER(K61:K67,K61:K67<>"") -> 0 | N166: =_xlfn._xlws.FILTER(P61:P67,P61:P67<>"") -> 0 | S166: =_xlfn._xlws.FILTER(U61:U67,U61:U67<>"") -> 0 | X166: =_xlfn._xlws.FILTER(Z61:Z67,Z61:Z67<>"") -> 0 | AC166: =_xlfn._xlws.FILTER(AE61:AE67,AE61:AE67<>"") -> 0 | AH166: =_xlfn._xlws.FILTER(AJ61:AJ67,AJ61:AJ67<>"") -> 0 | AM166: =_xlfn._xlws.FILTER(AO61:AO67,AO61:AO67<>"") -> 0 | AR166: =_xlfn._xlws.FILTER(AT61:AT67,AT61:AT67<>"") -> 0 | AW166: =_xlfn._xlws.FILTER(AY61:AY67,AY61:AY67<>"") -> 0 | BB166: =_xlfn._xlws.FILTER(BD61:BD67,BD61:BD67<>"") -> 0 | BG166: =_xlfn._xlws.FILTER(BI61:BI67,BI61:BI67<>"") -> 0 | BL166: =_xlfn._xlws.FILTER(BN61:BN67,BN61:BN67<>"") -> 0 | BQ166: =_xlfn._xlws.FILTER(BS61:BS67,BS61:BS67<>"") -> 0 | BV166: =_xlfn._xlws.FILTER(BX61:BX67,BX61:BX67<>"") -> 0 | CA166: =_xlfn._xlws.FILTER(CC61:CC67,CC61:CC67<>"") -> 0 | CF166: =_xlfn._xlws.FILTER(CH61:CH67,CH61:CH67<>"") -> 0 | CK166: =_xlfn._xlws.FILTER(CM61:CM67,CM61:CM67<>"") -> 0 | CP166: =_xlfn._xlws.FILTER(CR61:CR67,CR61:CR67<>"") -> 0 | CU166: =_xlfn._xlws.FILTER(CW61:CW67,CW61:CW67<>"") -> 0
A167: insurance_bys_release | D167: 0 | I167: 0 | N167: 0 | S167: 0 | X167: 0 | AC167: 0 | AH167: 0 | AM167: 0 | AR167: 0 | AW167: 0 | BB167: 0 | BG167: 0 | BL167: 0 | BQ167: 0 | BV167: 0 | CA167: 0 | CF167: 0 | CK167: 0 | CP167: 0 | CU167: 0
A168: cam_bys_release | D168: 0 | I168: 0 | N168: 0 | S168: 0 | X168: 0 | AC168: 0 | AH168: 0 | AM168: 0 | AR168: 0 | AW168: 0 | BB168: 0 | BG168: 0 | BL168: 0 | BQ168: 0 | BV168: 0 | CA168: 0 | CF168: 0 | CK168: 0 | CP168: 0 | CU168: 0
A169: management_fee_bys_release | D169: 0 | I169: 0 | N169: 0 | S169: 0 | X169: 0 | AC169: 0 | AH169: 0 | AM169: 0 | AR169: 0 | AW169: 0 | BB169: 0 | BG169: 0 | BL169: 0 | BQ169: 0 | BV169: 0 | CA169: 0 | CF169: 0 | CK169: 0 | CP169: 0 | CU169: 0
A170: other_bys_release | D170: 0 | I170: 0 | N170: 0 | S170: 0 | X170: 0 | AC170: 0 | AH170: 0 | AM170: 0 | AR170: 0 | AW170: 0 | BB170: 0 | BG170: 0 | BL170: 0 | BQ170: 0 | BV170: 0 | CA170: 0 | CF170: 0 | CK170: 0 | CP170: 0 | CU170: 0
A172: Reimburse for BYS Amount - Release
A173: =_xlfn._xlws.FILTER(A61:A67,A61:A67<>"")&"_bys_release_amt" -> property_taxes_bys_release_amt | D173: =_xlfn._xlws.FILTER(G61:G67,G61:G67<>"") -> 0 | I173: =_xlfn._xlws.FILTER(L61:L67,L61:L67<>"") -> 0 | N173: =_xlfn._xlws.FILTER(Q61:Q67,Q61:Q67<>"") -> 0 | S173: =_xlfn._xlws.FILTER(V61:V67,V61:V67<>"") -> 0 | X173: =_xlfn._xlws.FILTER(AA61:AA67,AA61:AA67<>"") -> 0 | AC173: =_xlfn._xlws.FILTER(AF61:AF67,AF61:AF67<>"") -> 0 | AH173: =_xlfn._xlws.FILTER(AK61:AK67,AK61:AK67<>"") -> 0 | AM173: =_xlfn._xlws.FILTER(AP61:AP67,AP61:AP67<>"") -> 0 | AR173: =_xlfn._xlws.FILTER(AU61:AU67,AU61:AU67<>"") -> 0 | AW173: =_xlfn._xlws.FILTER(AZ61:AZ67,AZ61:AZ67<>"") -> 0 | BB173: =_xlfn._xlws.FILTER(BE61:BE67,BE61:BE67<>"") -> 0 | BG173: =_xlfn._xlws.FILTER(BJ61:BJ67,BJ61:BJ67<>"") -> 0 | BL173: =_xlfn._xlws.FILTER(BO61:BO67,BO61:BO67<>"") -> 0 | BQ173: =_xlfn._xlws.FILTER(BT61:BT67,BT61:BT67<>"") -> 0 | BV173: =_xlfn._xlws.FILTER(BY61:BY67,BY61:BY67<>"") -> 0 | CA173: =_xlfn._xlws.FILTER(CD61:CD67,CD61:CD67<>"") -> 0 | CF173: =_xlfn._xlws.FILTER(CI61:CI67,CI61:CI67<>"") -> 0 | CK173: =_xlfn._xlws.FILTER(CN61:CN67,CN61:CN67<>"") -> 0 | CP173: =_xlfn._xlws.FILTER(CS61:CS67,CS61:CS67<>"") -> 0 | CU173: =_xlfn._xlws.FILTER(CX61:CX67,CX61:CX67<>"") -> 0
A174: insurance_bys_release_amt | D174: 0 | I174: 0 | N174: 0 | S174: 0 | X174: 0 | AC174: 0 | AH174: 0 | AM174: 0 | AR174: 0 | AW174: 0 | BB174: 0 | BG174: 0 | BL174: 0 | BQ174: 0 | BV174: 0 | CA174: 0 | CF174: 0 | CK174: 0 | CP174: 0 | CU174: 0
A175: cam_bys_release_amt | D175: 0 | I175: 0 | N175: 0 | S175: 0 | X175: 0 | AC175: 0 | AH175: 0 | AM175: 0 | AR175: 0 | AW175: 0 | BB175: 0 | BG175: 0 | BL175: 0 | BQ175: 0 | BV175: 0 | CA175: 0 | CF175: 0 | CK175: 0 | CP175: 0 | CU175: 0
A176: management_fee_bys_release_amt | D176: 0 | I176: 0 | N176: 0 | S176: 0 | X176: 0 | AC176: 0 | AH176: 0 | AM176: 0 | AR176: 0 | AW176: 0 | BB176: 0 | BG176: 0 | BL176: 0 | BQ176: 0 | BV176: 0 | CA176: 0 | CF176: 0 | CK176: 0 | CP176: 0 | CU176: 0
A177: other_bys_release_amt | D177: 0 | I177: 0 | N177: 0 | S177: 0 | X177: 0 | AC177: 0 | AH177: 0 | AM177: 0 | AR177: 0 | AW177: 0 | BB177: 0 | BG177: 0 | BL177: 0 | BQ177: 0 | BV177: 0 | CA177: 0 | CF177: 0 | CK177: 0 | CP177: 0 | CU177: 0
D179: Normalized End
A181: checks (off to right) | DB181: checks
C182: README to Add New Leases:
C183: ="You may add new leases within the > and < arrows (look at row "&ROW(C4)&")" -> You may add new leases within the > and < arrows (look at row 4)
C184: The green "begin" and "end" bars track new data entered.
C185: If you need more room, just add new rows above and below the green bars
C186: If you do not do this, the data you enter will not be picked up in the model.
C187: When you copy over a lease template, make sure you get the ENTIRE columns' data
C188: There is backup logic in the section below that you are meant to copy with the input
C189: All you have to do is select the entire columns before copy-pasting
C190: FYI, Windows shortcut CTRL + SPACEBAR selects the entire column. You can use SHIFT
C191: To highlight more columns, then CTRL + SPACEBAR again before CTRL+C & CTRL+V to paste
DB192: Non-urgent TBU - standardize 'renewal' / 're-lease' metrics, tags, and proper names.
DB193: Non-urgent TBU - perhaps I can fit everything but the core input onto a backup sheet. Just need to get clever there, can do later
DB194: Non-urgent TBU - record video of me adding and removing leases
DB195: Non-urgent TBU - check no gaps or overlaps in-place rent schedule
DB197: check | DC197: result
DB198: 0 | DC198: 0
DB199: =$DB$206 -> Every OpEx in Tags has Reimburse Logic? | DC199: =DC209 -> 0
DB200: =DB220 -> All Suite #s are Unique? | DC200: =DC223 -> 0
DB201: =$DB$211 -> No OpEx missing? | DC201: =DC218 -> 0
DB202: pro-rata share totals 100% | DC202: =SUM(C83:CZ83)-1 -> 0
DB203: 0 | DC203: 0
DB204: local check | DC204: =COUNTIFS(DC198:DC203,"<>0") -> 0
DB206: Every OpEx in Tags has Reimburse Logic?
DB207: all opex in tags | DC207: =COUNTIFS(tags!$D$46:$D$52,"tag") -> 5
DB208: opex reimbursed in here | DC208: =COUNTA(D19:D25)-2 -> 5
DB209: same? | DC209: =DC207-DC208 -> 0
DB211: No OpEx missing?
DB212: 0 | DC212: 0
DB213: here | DC213: =COUNTA(A19:A25) -> 5
DB214: =expenses!$C$2 -> New Industrial Template | DC214: =COUNTA(expenses!A10:A16) -> 5
DB215: =tags!$C$2 -> New Industrial Template | DC215: =COUNTA(tags!E46:E52)-2 -> 5
DB216: monthly - cash flows | DC216: =COUNTA(lease_opex_detail!C26:C31) -> 5
DB217: 0 | DC217: 0
DB218: same? | DC218: =_xlfn.MINIFS(DC212:DC217,DC212:DC217,"<>0")-_xlfn.MAXIFS(DC212:DC217,DC212:DC217,"<>0") -> 0
DB220: All Suite #s are Unique?
DB221: Truly Unique Suite #s | DC221: =COUNTA(_xlfn.UNIQUE(_xlfn.ANCHORARRAY(DB228))) -> 20
DB222: List of Unique Suite #s | DC222: =COUNTA(_xlfn.ANCHORARRAY(DB228)) -> 20
DB223: same? | DC223: =DC221-DC222 -> 0
A225: Additional Data (off to right) | DB225: Additional Data
DB227: Unique Suite #s
DB228: =_xlfn._xlws.FILTER(_xlfn.UNIQUE(TRANSPOSE(C80:CZ80)),_xlfn.UNIQUE(TRANSPOSE(C80:CZ80))<>0) -> 1
DB229: 2
DB230: 3
DB231: 4
DB232: 5
DB233: 6
DB234: 7
DB235: 8
DB236: 9
DB237: 10
DB238: 11
DB239: 12
DB240: 13
... 238 more rows

Sheet other
A1: =Checks!$A$1 -> 0 | C1: Other Income | H1: Data Confidence
A2: =$D$31 -> 0 | C2: =global!$B$2 -> New Industrial Template | H2: Preliminary
C4: Other Income Inputs | J4: Timeline
J5: Hold Month # | K5: 0 | L5: =+K5+1 -> 1 | M5: =+L5+1 -> 2 | N5: 3 | O5: 4 | P5: 5 | Q5: 6 | R5: 7 | S5: 8 | T5: 9 | U5: 10 | V5: 11 | W5: 12 | X5: 13 | Y5: 14 | Z5: 15 | AA5: 16 | AB5: 17 | AC5: 18 | AD5: 19 | AE5: 20 | AF5: 21 | AG5: 22 | AH5: 23 | AI5: 24 | AJ5: 25 | AK5: 26 | AL5: 27 | AM5: 28 | AN5: 29 | AO5: 30 | AP5: 31 | AQ5: 32 | AR5: 33 | AS5: 34 | AT5: 35 | AU5: 36 | AV5: 37 | AW5: 38 | AX5: 39 | AY5: 40 | AZ5: 41 | BA5: 42 | BB5: 43 | BC5: 44 | BD5: 45 | BE5: 46 | BF5: 47 | BG5: 48 | BH5: 49 | BI5: 50 | BJ5: 51 | BK5: 52 | BL5: 53 | BM5: 54 | BN5: 55 | BO5: 56 | BP5: 57 | BQ5: 58 | BR5: 59 | BS5: 60 | BT5: 61 | BU5: 62 | BV5: 63 | BW5: 64 | BX5: 65 | BY5: =+BX5+1 -> 66 | BZ5: 67 | CA5: 68 | CB5: 69 | CC5: 70 | CD5: 71 | CE5: 72 | CF5: 73 | CG5: 74 | CH5: 75 | CI5: 76 | CJ5: 77 | CK5: 78 | CL5: 79 | CM5: 80 | CN5: 81 | CO5: 82 | CP5: 83 | CQ5: 84 | CR5: 85 | CS5: 86 | CT5: 87 | CU5: 88 | CV5: 89 | CW5: 90 | CX5: 91 | CY5: 92 | CZ5: 93 | DA5: 94 | DB5: 95 | DC5: 96 | DD5: 97 | DE5: 98 | DF5: 99 | DG5: 100 | DH5: 101 | DI5: 102 | DJ5: 103 | DK5: 104 | DL5: 105 | DM5: 106 | DN5: 107 | DO5: 108 | DP5: 109 | DQ5: 110 | DR5: 111 | DS5: 112 | DT5: 113 | DU5: 114 | DV5: 115 | DW5: 116 | DX5: 117 | DY5: 118 | DZ5: 119 | EA5: 120 | EB5: 121 | EC5: 122 | ED5: 123 | EE5: 124 | EF5: 125 | EG5: 126 | EH5: 127 | EI5: 128 | EJ5: 129 | EK5: =+EJ5+1 -> 130 | EL5: 131 | EM5: 132
J6: Hold Year # | K6: 0 | L6: =IF(MOD(K5,12)=0,K6+1,K6) -> 1 | M6: =IF(MOD(L5,12)=0,L6+1,L6) -> 1 | N6: 1 | O6: 1 | P6: 1 | Q6: 1 | R6: 1 | S6: 1 | T6: 1 | U6: 1 | V6: 1 | W6: 1 | X6: 2 | Y6: 2 | Z6: 2 | AA6: 2 | AB6: 2 | AC6: 2 | AD6: 2 | AE6: 2 | AF6: 2 | AG6: 2 | AH6: 2 | AI6: 2 | AJ6: 3 | AK6: 3 | AL6: 3 | AM6: 3 | AN6: 3 | AO6: 3 | AP6: 3 | AQ6: 3 | AR6: 3 | AS6: 3 | AT6: 3 | AU6: 3 | AV6: 4 | AW6: 4 | AX6: 4 | AY6: 4 | AZ6: 4 | BA6: 4 | BB6: 4 | BC6: 4 | BD6: 4 | BE6: 4 | BF6: 4 | BG6: 4 | BH6: 5 | BI6: 5 | BJ6: 5 | BK6: 5 | BL6: 5 | BM6: 5 | BN6: 5 | BO6: 5 | BP6: 5 | BQ6: 5 | BR6: 5 | BS6: 5 | BT6: 6 | BU6: 6 | BV6: 6 | BW6: 6 | BX6: 6 | BY6: =IF(MOD(BX5,12)=0,BX6+1,BX6) -> 6 | BZ6: 6 | CA6: 6 | CB6: 6 | CC6: 6 | CD6: 6 | CE6: 6 | CF6: 7 | CG6: 7 | CH6: 7 | CI6: 7 | CJ6: 7 | CK6: 7 | CL6: 7 | CM6: 7 | CN6: 7 | CO6: 7 | CP6: 7 | CQ6: 7 | CR6: 8 | CS6: 8 | CT6: 8 | CU6: 8 | CV6: 8 | CW6: 8 | CX6: 8 | CY6: 8 | CZ6: 8 | DA6: 8 | DB6: 8 | DC6: 8 | DD6: 9 | DE6: 9 | DF6: 9 | DG6: 9 | DH6: 9 | DI6: 9 | DJ6: 9 | DK6: 9 | DL6: 9 | DM6: 9 | DN6: 9 | DO6: 9 | DP6: 10 | DQ6: 10 | DR6: 10 | DS6: 10 | DT6: 10 | DU6: 10 | DV6: 10 | DW6: 10 | DX6: 10 | DY6: 10 | DZ6: 10 | EA6: 10 | EB6: 11 | EC6: 11 | ED6: 11 | EE6: 11 | EF6: 11 | EG6: 11 | EH6: 11 | EI6: 11 | EJ6: 11 | EK6: =IF(MOD(EJ5,12)=0,EJ6+1,EJ6) -> 11 | EL6: 11 | EM6: 11
C7: Item | D7: Total | E7: PSF | F7: Month Start | G7: Month End | H7: Total Months | J7: Date | K7: =EOMONTH(global!$C$23,0) -> 2024-01-31 | L7: =EOMONTH(K7,1) -> 2024-02-29 | M7: =EOMONTH(L7,1) -> 2024-03-31 | N7: 2024-04-30 | O7: 2024-05-31 | P7: 2024-06-30 | Q7: 2024-07-31 | R7: 2024-08-31 | S7: 2024-09-30 | T7: 2024-10-31 | U7: 2024-11-30 | V7: 2024-12-31 | W7: 2025-01-31 | X7: 2025-02-28 | Y7: 2025-03-31 | Z7: 2025-04-30 | AA7: 2025-05-31 | AB7: 2025-06-30 | AC7: 2025-07-31 | AD7: 2025-08-31 | AE7: 2025-09-30 | AF7: 2025-10-31 | AG7: 2025-11-30 | AH7: 2025-12-31 | AI7: 2026-01-31 | AJ7: 2026-02-28 | AK7: 2026-03-31 | AL7: 2026-04-30 | AM7: 2026-05-31 | AN7: 2026-06-30 | AO7: 2026-07-31 | AP7: 2026-08-31 | AQ7: 2026-09-30 | AR7: 2026-10-31 | AS7: 2026-11-30 | AT7: 2026-12-31 | AU7: 2027-01-31 | AV7: 2027-02-28 | AW7: 2027-03-31 | AX7: 2027-04-30 | AY7: 2027-05-31 | AZ7: 2027-06-30 | BA7: 2027-07-31 | BB7: 2027-08-31 | BC7: 2027-09-30 | BD7: 2027-10-31 | BE7: 2027-11-30 | BF7: 2027-12-31 | BG7: 2028-01-31 | BH7: 2028-02-29 | BI7: 2028-03-31 | BJ7: 2028-04-30 | BK7: 2028-05-31 | BL7: 2028-06-30 | BM7: 2028-07-31 | BN7: 2028-08-31 | BO7: 2028-09-30 | BP7: 2028-10-31 | BQ7: 2028-11-30 | BR7: 2028-12-31 | BS7: 2029-01-31 | BT7: 2029-02-28 | BU7: 2029-03-31 | BV7: 2029-04-30 | BW7: 2029-05-31 | BX7: 2029-06-30 | BY7: 2029-07-31 | BZ7: 2029-08-31 | CA7: 2029-09-30 | CB7: 2029-10-31 | CC7: 2029-11-30 | CD7: 2029-12-31 | CE7: 2030-01-31 | CF7: 2030-02-28 | CG7: 2030-03-31 | CH7: 2030-04-30 | CI7: 2030-05-31 | CJ7: 2030-06-30 | CK7: 2030-07-31 | CL7: 2030-08-31 | CM7: 2030-09-30 | CN7: 2030-10-31 | CO7: 2030-11-30 | CP7: 2030-12-31 | CQ7: 2031-01-31 | CR7: 2031-02-28 | CS7: 2031-03-31 | CT7: 2031-04-30 | CU7: 2031-05-31 | CV7: 2031-06-30 | CW7: 2031-07-31 | CX7: 2031-08-31 | CY7: 2031-09-30 | CZ7: 2031-10-31 | DA7: 2031-11-30 | DB7: 2031-12-31 | DC7: 2032-01-31 | DD7: 2032-02-29 | DE7: 2032-03-31 | DF7: 2032-04-30 | DG7: 2032-05-31 | DH7: 2032-06-30 | DI7: 2032-07-31 | DJ7: 2032-08-31 | DK7: 2032-09-30 | DL7: 2032-10-31 | DM7: 2032-11-30 | DN7: 2032-12-31 | DO7: 2033-01-31 | DP7: 2033-02-28 | DQ7: 2033-03-31 | DR7: 2033-04-30 | DS7: 2033-05-31 | DT7: 2033-06-30 | DU7: 2033-07-31 | DV7: 2033-08-31 | DW7: 2033-09-30 | DX7: 2033-10-31 | DY7: 2033-11-30 | DZ7: 2033-12-31 | EA7: 2034-01-31 | EB7: 2034-02-28 | EC7: 2034-03-31 | ED7: 2034-04-30 | EE7: 2034-05-31 | EF7: 2034-06-30 | EG7: =EOMONTH(EF7,1) -> 2034-07-31 | EH7: 2034-08-31 | EI7: 2034-09-30 | EJ7: 2034-10-31 | EK7: 2034-11-30 | EL7: 2034-12-31 | EM7: 2035-01-31 | EN7: < | EO7: Total | EP7: Check
C8: budget begins | E8: =IF(D8:D22="","",D8:D22/global!$C$12) ->  | H8: =IF(D8:D21="","",G8:G21-F8:F21+1) ->  | J8: =C8:C22 -> budget begins | K8: =IF($D$8:$D$21="","",($F$8:$F$21<=K$5)*($G$8:$G$21>=K$5)*($D$8:$D$21/_xlfn.ANCHORARRAY($H$8))) ->  | L8: =IF($D$8:$D$21="","",($F$8:$F$21<=L$5)*($G$8:$G$21>=L$5)*($D$8:$D$21/_xlfn.ANCHORARRAY($H$8))) ->  | M8: =IF($D$8:$D$21="","",($F$8:$F$21<=M$5)*($G$8:$G$21>=M$5)*($D$8:$D$21/_xlfn.ANCHORARRAY($H$8))) ->  | N8: =IF($D$8:$D$21="","",($F$8:$F$21<=N$5)*($G$8:$G$21>=N$5)*($D$8:$D$21/_xlfn.ANCHORARRAY($H$8))) ->  | O8: =IF($D$8:$D$21="","",($F$8:$F$21<=O$5)*($G$8:$G$21>=O$5)*($D$8:$D$21/_xlfn.ANCHORARRAY($H$8))) ->  | P8: =IF($D$8:$D$21="","",($F$8:$F$21<=P$5)*($G$8:$G$21>=P$5)*($D$8:$D$21/_xlfn.ANCHORARRAY($H$8))) ->  | Q8: =IF($D$8:$D$21="","",($F$8:$F$21<=Q$5)*($G$8:$G$21>=Q$5)*($D$8:$D$21/_xlfn.ANCHORARRAY($H$8))) ->  | R8: =IF($D$8:$D$21="","",($F$8:$F$21<=R$5)*($G$8:$G$21>=R$5)*($D$8:$D$21/_xlfn.ANCHORARRAY($H$8))) ->  | S8: =IF($D$8:$D$21="","",($F$8:$F$21<=S$5)*($G$8:$G$21>=S$5)*($D$8:$D$21/_xlfn.ANCHORARRAY($H$8))) ->  | T8: =IF($D$8:$D$21="","",($F$8:$F$21<=T$5)*($G$8:$G$21>=T$5)*($D$8:$D$21/_xlfn.ANCHORARRAY($H$8))) ->  | U8: =IF($D$8:$D$21="","",($F$8:$F$21<=U$5)*($G$8:$G$21>=U$5)*($D$8:$D$21/_xlfn.ANCHORARRAY($H$8))) ->  | V8: =IF($D$8:$D$21="","",($F$8:$F$21<=V$5)*($G$8:$G$21>=V$5)*($D$8:$D$21/_xlfn.ANCHORARRAY($H$8))) ->  | W8: =IF($D$8:$D$21="","",($F$8:$F$21<=W$5)*($G$8:$G$21>=W$5)*($D$8:$D$21/_xlfn.ANCHORARRAY($H$8))) ->  | X8: =IF($D$8:$D$21="","",($F$8:$F$21<=X$5)*($G$8:$G$21>=X$5)*($D$8:$D$21/_xlfn.ANCHORARRAY($H$8))) ->  | Y8: =IF($D$8:$D$21="","",($F$8:$F$21<=Y$5)*($G$8:$G$21>=Y$5)*($D$8:$D$21/_xlfn.ANCHORARRAY($H$8))) ->  | Z8: =IF($D$8:$D$21="","",($F$8:$F$21<=Z$5)*($G$8:$G$21>=Z$5)*($D$8:$D$21/_xlfn.ANCHORARRAY($H$8))) ->  | AA8: =IF($D$8:$D$21="","",($F$8:$F$21<=AA$5)*($G$8:$G$21>=AA$5)*($D$8:$D$21/_xlfn.ANCHORARRAY($H$8))) ->  | AB8: =IF($D$8:$D$21="","",($F$8:$F$21<=AB$5)*($G$8:$G$21>=AB$5)*($D$8:$D$21/_xlfn.ANCHORARRAY($H$8))) ->  | AC8: =IF($D$8:$D$21="","",($F$8:$F$21<=AC$5)*($G$8:$G$21>=AC$5)*($D$8:$D$21/_xlfn.ANCHORARRAY($H$8))) ->  | AD8: =IF($D$8:$D$21="","",($F$8:$F$21<=AD$5)*($G$8:$G$21>=AD$5)*($D$8:$D$21/_xlfn.ANCHORARRAY($H$8))) ->  | AE8: =IF($D$8:$D$21="","",($F$8:$F$21<=AE$5)*($G$8:$G$21>=AE$5)*($D$8:$D$21/_xlfn.ANCHORARRAY($H$8))) ->  | AF8: =IF($D$8:$D$21="","",($F$8:$F$21<=AF$5)*($G$8:$G$21>=AF$5)*($D$8:$D$21/_xlfn.ANCHORARRAY($H$8))) ->  | AG8: =IF($D$8:$D$21="","",($F$8:$F$21<=AG$5)*($G$8:$G$21>=AG$5)*($D$8:$D$21/_xlfn.ANCHORARRAY($H$8))) ->  | AH8: =IF($D$8:$D$21="","",($F$8:$F$21<=AH$5)*($G$8:$G$21>=AH$5)*($D$8:$D$21/_xlfn.ANCHORARRAY($H$8))) ->  | AI8: =IF($D$8:$D$21="","",($F$8:$F$21<=AI$5)*($G$8:$G$21>=AI$5)*($D$8:$D$21/_xlfn.ANCHORARRAY($H$8))) ->  | AJ8: =IF($D$8:$D$21="","",($F$8:$F$21<=AJ$5)*($G$8:$G$21>=AJ$5)*($D$8:$D$21/_xlfn.ANCHORARRAY($H$8))) ->  | AK8: =IF($D$8:$D$21="","",($F$8:$F$21<=AK$5)*($G$8:$G$21>=AK$5)*($D$8:$D$21/_xlfn.ANCHORARRAY($H$8))) ->  | AL8: =IF($D$8:$D$21="","",($F$8:$F$21<=AL$5)*($G$8:$G$21>=AL$5)*($D$8:$D$21/_xlfn.ANCHORARRAY($H$8))) ->  | AM8: =IF($D$8:$D$21="","",($F$8:$F$21<=AM$5)*($G$8:$G$21>=AM$5)*($D$8:$D$21/_xlfn.ANCHORARRAY($H$8))) ->  | AN8: =IF($D$8:$D$21="","",($F$8:$F$21<=AN$5)*($G$8:$G$21>=AN$5)*($D$8:$D$21/_xlfn.ANCHORARRAY($H$8))) ->  | AO8: =IF($D$8:$D$21="","",($F$8:$F$21<=AO$5)*($G$8:$G$21>=AO$5)*($D$8:$D$21/_xlfn.ANCHORARRAY($H$8))) ->  | AP8: =IF($D$8:$D$21="","",($F$8:$F$21<=AP$5)*($G$8:$G$21>=AP$5)*($D$8:$D$21/_xlfn.ANCHORARRAY($H$8))) ->  | AQ8: =IF($D$8:$D$21="","",($F$8:$F$21<=AQ$5)*($G$8:$G$21>=AQ$5)*($D$8:$D$21/_xlfn.ANCHORARRAY($H$8))) ->  | AR8: =IF($D$8:$D$21="","",($F$8:$F$21<=AR$5)*($G$8:$G$21>=AR$5)*($D$8:$D$21/_xlfn.ANCHORARRAY($H$8))) ->  | AS8: =IF($D$8:$D$21="","",($F$8:$F$21<=AS$5)*($G$8:$G$21>=AS$5)*($D$8:$D$21/_xlfn.ANCHORARRAY($H$8))) ->  | AT8: =IF($D$8:$D$21="","",($F$8:$F$21<=AT$5)*($G$8:$G$21>=AT$5)*($D$8:$D$21/_xlfn.ANCHORARRAY($H$8))) ->  | AU8: =IF($D$8:$D$21="","",($F$8:$F$21<=AU$5)*($G$8:$G$21>=AU$5)*($D$8:$D$21/_xlfn.ANCHORARRAY($H$8))) ->  | AV8: =IF($D$8:$D$21="","",($F$8:$F$21<=AV$5)*($G$8:$G$21>=AV$5)*($D$8:$D$21/_xlfn.ANCHORARRAY($H$8))) ->  | AW8: =IF($D$8:$D$21="","",($F$8:$F$21<=AW$5)*($G$8:$G$21>=AW$5)*($D$8:$D$21/_xlfn.ANCHORARRAY($H$8))) ->  | AX8: =IF($D$8:$D$21="","",($F$8:$F$21<=AX$5)*($G$8:$G$21>=AX$5)*($D$8:$D$21/_xlfn.ANCHORARRAY($H$8))) ->  | AY8: =IF($D$8:$D$21="","",($F$8:$F$21<=AY$5)*($G$8:$G$21>=AY$5)*($D$8:$D$21/_xlfn.ANCHORARRAY($H$8))) ->  | AZ8: =IF($D$8:$D$21="","",($F$8:$F$21<=AZ$5)*($G$8:$G$21>=AZ$5)*($D$8:$D$21/_xlfn.ANCHORARRAY($H$8))) ->  | BA8: =IF($D$8:$D$21="","",($F$8:$F$21<=BA$5)*($G$8:$G$21>=BA$5)*($D$8:$D$21/_xlfn.ANCHORARRAY($H$8))) ->  | BB8: =IF($D$8:$D$21="","",($F$8:$F$21<=BB$5)*($G$8:$G$21>=BB$5)*($D$8:$D$21/_xlfn.ANCHORARRAY($H$8))) ->  | BC8: =IF($D$8:$D$21="","",($F$8:$F$21<=BC$5)*($G$8:$G$21>=BC$5)*($D$8:$D$21/_xlfn.ANCHORARRAY($H$8))) ->  | BD8: =IF($D$8:$D$21="","",($F$8:$F$21<=BD$5)*($G$8:$G$21>=BD$5)*($D$8:$D$21/_xlfn.ANCHORARRAY($H$8))) ->  | BE8: =IF($D$8:$D$21="","",($F$8:$F$21<=BE$5)*($G$8:$G$21>=BE$5)*($D$8:$D$21/_xlfn.ANCHORARRAY($H$8))) ->  | BF8: =IF($D$8:$D$21="","",($F$8:$F$21<=BF$5)*($G$8:$G$21>=BF$5)*($D$8:$D$21/_xlfn.ANCHORARRAY($H$8))) ->  | BG8: =IF($D$8:$D$21="","",($F$8:$F$21<=BG$5)*($G$8:$G$21>=BG$5)*($D$8:$D$21/_xlfn.ANCHORARRAY($H$8))) ->  | BH8: =IF($D$8:$D$21="","",($F$8:$F$21<=BH$5)*($G$8:$G$21>=BH$5)*($D$8:$D$21/_xlfn.ANCHORARRAY($H$8))) ->  | BI8: =IF($D$8:$D$21="","",($F$8:$F$21<=BI$5)*($G$8:$G$21>=BI$5)*($D$8:$D$21/_xlfn.ANCHORARRAY($H$8))) ->  | BJ8: =IF($D$8:$D$21="","",($F$8:$F$21<=BJ$5)*($G$8:$G$21>=BJ$5)*($D$8:$D$21/_xlfn.ANCHORARRAY($H$8))) ->  | BK8: =IF($D$8:$D$21="","",($F$8:$F$21<=BK$5)*($G$8:$G$21>=BK$5)*($D$8:$D$21/_xlfn.ANCHORARRAY($H$8))) ->  | BL8: =IF($D$8:$D$21="","",($F$8:$F$21<=BL$5)*($G$8:$G$21>=BL$5)*($D$8:$D$21/_xlfn.ANCHORARRAY($H$8))) ->  | BM8: =IF($D$8:$D$21="","",($F$8:$F$21<=BM$5)*($G$8:$G$21>=BM$5)*($D$8:$D$21/_xlfn.ANCHORARRAY($H$8))) ->  | BN8: =IF($D$8:$D$21="","",($F$8:$F$21<=BN$5)*($G$8:$G$21>=BN$5)*($D$8:$D$21/_xlfn.ANCHORARRAY($H$8))) ->  | BO8: =IF($D$8:$D$21="","",($F$8:$F$21<=BO$5)*($G$8:$G$21>=BO$5)*($D$8:$D$21/_xlfn.ANCHORARRAY($H$8))) ->  | BP8: =IF($D$8:$D$21="","",($F$8:$F$21<=BP$5)*($G$8:$G$21>=BP$5)*($D$8:$D$21/_xlfn.ANCHORARRAY($H$8))) ->  | BQ8: =IF($D$8:$D$21="","",($F$8:$F$21<=BQ$5)*($G$8:$G$21>=BQ$5)*($D$8:$D$21/_xlfn.ANCHORARRAY($H$8))) ->  | BR8: =IF($D$8:$D$21="","",($F$8:$F$21<=BR$5)*($G$8:$G$21>=BR$5)*($D$8:$D$21/_xlfn.ANCHORARRAY($H$8))) ->  | BS8: =IF($D$8:$D$21="","",($F$8:$F$21<=BS$5)*($G$8:$G$21>=BS$5)*($D$8:$D$21/_xlfn.ANCHORARRAY($H$8))) ->  | BT8: =IF($D$8:$D$21="","",($F$8:$F$21<=BT$5)*($G$8:$G$21>=BT$5)*($D$8:$D$21/_xlfn.ANCHORARRAY($H$8))) ->  | BU8: =IF($D$8:$D$21="","",($F$8:$F$21<=BU$5)*($G$8:$G$21>=BU$5)*($D$8:$D$21/_xlfn.ANCHORARRAY($H$8))) ->  | BV8: =IF($D$8:$D$21="","",($F$8:$F$21<=BV$5)*($G$8:$G$21>=BV$5)*($D$8:$D$21/_xlfn.ANCHORARRAY($H$8))) ->  | BW8: =IF($D$8:$D$21="","",($F$8:$F$21<=BW$5)*($G$8:$G$21>=BW$5)*($D$8:$D$21/_xlfn.ANCHORARRAY($H$8))) ->  | BX8: =IF($D$8:$D$21="","",($F$8:$F$21<=BX$5)*($G$8:$G$21>=BX$5)*($D$8:$D$21/_xlfn.ANCHORARRAY($H$8))) ->  | BY8: =IF($D$8:$D$21="","",($F$8:$F$21<=BY$5)*($G$8:$G$21>=BY$5)*($D$8:$D$21/_xlfn.ANCHORARRAY($H$8))) ->  | BZ8: =IF($D$8:$D$21="","",($F$8:$F$21<=BZ$5)*($G$8:$G$21>=BZ$5)*($D$8:$D$21/_xlfn.ANCHORARRAY($H$8))) ->  | CA8: =IF($D$8:$D$21="","",($F$8:$F$21<=CA$5)*($G$8:$G$21>=CA$5)*($D$8:$D$21/_xlfn.ANCHORARRAY($H$8))) ->  | CB8: =IF($D$8:$D$21="","",($F$8:$F$21<=CB$5)*($G$8:$G$21>=CB$5)*($D$8:$D$21/_xlfn.ANCHORARRAY($H$8))) ->  | CC8: =IF($D$8:$D$21="","",($F$8:$F$21<=CC$5)*($G$8:$G$21>=CC$5)*($D$8:$D$21/_xlfn.ANCHORARRAY($H$8))) ->  | CD8: =IF($D$8:$D$21="","",($F$8:$F$21<=CD$5)*($G$8:$G$21>=CD$5)*($D$8:$D$21/_xlfn.ANCHORARRAY($H$8))) ->  | CE8: =IF($D$8:$D$21="","",($F$8:$F$21<=CE$5)*($G$8:$G$21>=CE$5)*($D$8:$D$21/_xlfn.ANCHORARRAY($H$8))) ->  | CF8: =IF($D$8:$D$21="","",($F$8:$F$21<=CF$5)*($G$8:$G$21>=CF$5)*($D$8:$D$21/_xlfn.ANCHORARRAY($H$8))) ->  | CG8: =IF($D$8:$D$21="","",($F$8:$F$21<=CG$5)*($G$8:$G$21>=CG$5)*($D$8:$D$21/_xlfn.ANCHORARRAY($H$8))) ->  | CH8: =IF($D$8:$D$21="","",($F$8:$F$21<=CH$5)*($G$8:$G$21>=CH$5)*($D$8:$D$21/_xlfn.ANCHORARRAY($H$8))) ->  | CI8: =IF($D$8:$D$21="","",($F$8:$F$21<=CI$5)*($G$8:$G$21>=CI$5)*($D$8:$D$21/_xlfn.ANCHORARRAY($H$8))) ->  | CJ8: =IF($D$8:$D$21="","",($F$8:$F$21<=CJ$5)*($G$8:$G$21>=CJ$5)*($D$8:$D$21/_xlfn.ANCHORARRAY($H$8))) ->  | CK8: =IF($D$8:$D$21="","",($F$8:$F$21<=CK$5)*($G$8:$G$21>=CK$5)*($D$8:$D$21/_xlfn.ANCHORARRAY($H$8))) ->  | CL8: =IF($D$8:$D$21="","",($F$8:$F$21<=CL$5)*($G$8:$G$21>=CL$5)*($D$8:$D$21/_xlfn.ANCHORARRAY($H$8))) ->  | CM8: =IF($D$8:$D$21="","",($F$8:$F$21<=CM$5)*($G$8:$G$21>=CM$5)*($D$8:$D$21/_xlfn.ANCHORARRAY($H$8))) ->  | CN8: =IF($D$8:$D$21="","",($F$8:$F$21<=CN$5)*($G$8:$G$21>=CN$5)*($D$8:$D$21/_xlfn.ANCHORARRAY($H$8))) ->  | CO8: =IF($D$8:$D$21="","",($F$8:$F$21<=CO$5)*($G$8:$G$21>=CO$5)*($D$8:$D$21/_xlfn.ANCHORARRAY($H$8))) ->  | CP8: =IF($D$8:$D$21="","",($F$8:$F$21<=CP$5)*($G$8:$G$21>=CP$5)*($D$8:$D$21/_xlfn.ANCHORARRAY($H$8))) ->  | CQ8: =IF($D$8:$D$21="","",($F$8:$F$21<=CQ$5)*($G$8:$G$21>=CQ$5)*($D$8:$D$21/_xlfn.ANCHORARRAY($H$8))) ->  | CR8: =IF($D$8:$D$21="","",($F$8:$F$21<=CR$5)*($G$8:$G$21>=CR$5)*($D$8:$D$21/_xlfn.ANCHORARRAY($H$8))) ->  | CS8: =IF($D$8:$D$21="","",($F$8:$F$21<=CS$5)*($G$8:$G$21>=CS$5)*($D$8:$D$21/_xlfn.ANCHORARRAY($H$8))) ->  | CT8: =IF($D$8:$D$21="","",($F$8:$F$21<=CT$5)*($G$8:$G$21>=CT$5)*($D$8:$D$21/_xlfn.ANCHORARRAY($H$8))) ->  | CU8: =IF($D$8:$D$21="","",($F$8:$F$21<=CU$5)*($G$8:$G$21>=CU$5)*($D$8:$D$21/_xlfn.ANCHORARRAY($H$8))) ->  | CV8: =IF($D$8:$D$21="","",($F$8:$F$21<=CV$5)*($G$8:$G$21>=CV$5)*($D$8:$D$21/_xlfn.ANCHORARRAY($H$8))) ->  | CW8: =IF($D$8:$D$21="","",($F$8:$F$21<=CW$5)*($G$8:$G$21>=CW$5)*($D$8:$D$21/_xlfn.ANCHORARRAY($H$8))) ->  | CX8: =IF($D$8:$D$21="","",($F$8:$F$21<=CX$5)*($G$8:$G$21>=CX$5)*($D$8:$D$21/_xlfn.ANCHORARRAY($H$8))) ->  | CY8: =IF($D$8:$D$21="","",($F$8:$F$21<=CY$5)*($G$8:$G$21>=CY$5)*($D$8:$D$21/_xlfn.ANCHORARRAY($H$8))) ->  | CZ8: =IF($D$8:$D$21="","",($F$8:$F$21<=CZ$5)*($G$8:$G$21>=CZ$5)*($D$8:$D$21/_xlfn.ANCHORARRAY($H$8))) ->  | DA8: =IF($D$8:$D$21="","",($F$8:$F$21<=DA$5)*($G$8:$G$21>=DA$5)*($D$8:$D$21/_xlfn.ANCHORARRAY($H$8))) ->  | DB8: =IF($D$8:$D$21="","",($F$8:$F$21<=DB$5)*($G$8:$G$21>=DB$5)*($D$8:$D$21/_xlfn.ANCHORARRAY($H$8))) ->  | DC8: =IF($D$8:$D$21="","",($F$8:$F$21<=DC$5)*($G$8:$G$21>=DC$5)*($D$8:$D$21/_xlfn.ANCHORARRAY($H$8))) ->  | DD8: =IF($D$8:$D$21="","",($F$8:$F$21<=DD$5)*($G$8:$G$21>=DD$5)*($D$8:$D$21/_xlfn.ANCHORARRAY($H$8))) ->  | DE8: =IF($D$8:$D$21="","",($F$8:$F$21<=DE$5)*($G$8:$G$21>=DE$5)*($D$8:$D$21/_xlfn.ANCHORARRAY($H$8))) ->  | DF8: =IF($D$8:$D$21="","",($F$8:$F$21<=DF$5)*($G$8:$G$21>=DF$5)*($D$8:$D$21/_xlfn.ANCHORARRAY($H$8))) ->  | DG8: =IF($D$8:$D$21="","",($F$8:$F$21<=DG$5)*($G$8:$G$21>=DG$5)*($D$8:$D$21/_xlfn.ANCHORARRAY($H$8))) ->  | DH8: =IF($D$8:$D$21="","",($F$8:$F$21<=DH$5)*($G$8:$G$21>=DH$5)*($D$8:$D$21/_xlfn.ANCHORARRAY($H$8))) ->  | DI8: =IF($D$8:$D$21="","",($F$8:$F$21<=DI$5)*($G$8:$G$21>=DI$5)*($D$8:$D$21/_xlfn.ANCHORARRAY($H$8))) ->  | DJ8: =IF($D$8:$D$21="","",($F$8:$F$21<=DJ$5)*($G$8:$G$21>=DJ$5)*($D$8:$D$21/_xlfn.ANCHORARRAY($H$8))) ->  | DK8: =IF($D$8:$D$21="","",($F$8:$F$21<=DK$5)*($G$8:$G$21>=DK$5)*($D$8:$D$21/_xlfn.ANCHORARRAY($H$8))) ->  | DL8: =IF($D$8:$D$21="","",($F$8:$F$21<=DL$5)*($G$8:$G$21>=DL$5)*($D$8:$D$21/_xlfn.ANCHORARRAY($H$8))) ->  | DM8: =IF($D$8:$D$21="","",($F$8:$F$21<=DM$5)*($G$8:$G$21>=DM$5)*($D$8:$D$21/_xlfn.ANCHORARRAY($H$8))) ->  | DN8: =IF($D$8:$D$21="","",($F$8:$F$21<=DN$5)*($G$8:$G$21>=DN$5)*($D$8:$D$21/_xlfn.ANCHORARRAY($H$8))) ->  | DO8: =IF($D$8:$D$21="","",($F$8:$F$21<=DO$5)*($G$8:$G$21>=DO$5)*($D$8:$D$21/_xlfn.ANCHORARRAY($H$8))) ->  | DP8: =IF($D$8:$D$21="","",($F$8:$F$21<=DP$5)*($G$8:$G$21>=DP$5)*($D$8:$D$21/_xlfn.ANCHORARRAY($H$8))) ->  | DQ8: =IF($D$8:$D$21="","",($F$8:$F$21<=DQ$5)*($G$8:$G$21>=DQ$5)*($D$8:$D$21/_xlfn.ANCHORARRAY($H$8))) ->  | DR8: =IF($D$8:$D$21="","",($F$8:$F$21<=DR$5)*($G$8:$G$21>=DR$5)*($D$8:$D$21/_xlfn.ANCHORARRAY($H$8))) ->  | DS8: =IF($D$8:$D$21="","",($F$8:$F$21<=DS$5)*($G$8:$G$21>=DS$5)*($D$8:$D$21/_xlfn.ANCHORARRAY($H$8))) ->  | DT8: =IF($D$8:$D$21="","",($F$8:$F$21<=DT$5)*($G$8:$G$21>=DT$5)*($D$8:$D$21/_xlfn.ANCHORARRAY($H$8))) ->  | DU8: =IF($D$8:$D$21="","",($F$8:$F$21<=DU$5)*($G$8:$G$21>=DU$5)*($D$8:$D$21/_xlfn.ANCHORARRAY($H$8))) ->  | DV8: =IF($D$8:$D$21="","",($F$8:$F$21<=DV$5)*($G$8:$G$21>=DV$5)*($D$8:$D$21/_xlfn.ANCHORARRAY($H$8))) ->  | DW8: =IF($D$8:$D$21="","",($F$8:$F$21<=DW$5)*($G$8:$G$21>=DW$5)*($D$8:$D$21/_xlfn.ANCHORARRAY($H$8))) ->  | DX8: =IF($D$8:$D$21="","",($F$8:$F$21<=DX$5)*($G$8:$G$21>=DX$5)*($D$8:$D$21/_xlfn.ANCHORARRAY($H$8))) ->  | DY8: =IF($D$8:$D$21="","",($F$8:$F$21<=DY$5)*($G$8:$G$21>=DY$5)*($D$8:$D$21/_xlfn.ANCHORARRAY($H$8))) ->  | DZ8: =IF($D$8:$D$21="","",($F$8:$F$21<=DZ$5)*($G$8:$G$21>=DZ$5)*($D$8:$D$21/_xlfn.ANCHORARRAY($H$8))) ->  | EA8: =IF($D$8:$D$21="","",($F$8:$F$21<=EA$5)*($G$8:$G$21>=EA$5)*($D$8:$D$21/_xlfn.ANCHORARRAY($H$8))) ->  | EB8: =IF($D$8:$D$21="","",($F$8:$F$21<=EB$5)*($G$8:$G$21>=EB$5)*($D$8:$D$21/_xlfn.ANCHORARRAY($H$8))) ->  | EC8: =IF($D$8:$D$21="","",($F$8:$F$21<=EC$5)*($G$8:$G$21>=EC$5)*($D$8:$D$21/_xlfn.ANCHORARRAY($H$8))) ->  | ED8: =IF($D$8:$D$21="","",($F$8:$F$21<=ED$5)*($G$8:$G$21>=ED$5)*($D$8:$D$21/_xlfn.ANCHORARRAY($H$8))) ->  | EE8: =IF($D$8:$D$21="","",($F$8:$F$21<=EE$5)*($G$8:$G$21>=EE$5)*($D$8:$D$21/_xlfn.ANCHORARRAY($H$8))) ->  | EF8: =IF($D$8:$D$21="","",($F$8:$F$21<=EF$5)*($G$8:$G$21>=EF$5)*($D$8:$D$21/_xlfn.ANCHORARRAY($H$8))) ->  | EG8: =IF($D$8:$D$21="","",($F$8:$F$21<=EG$5)*($G$8:$G$21>=EG$5)*($D$8:$D$21/_xlfn.ANCHORARRAY($H$8))) ->  | EH8: =IF($D$8:$D$21="","",($F$8:$F$21<=EH$5)*($G$8:$G$21>=EH$5)*($D$8:$D$21/_xlfn.ANCHORARRAY($H$8))) ->  | EI8: =IF($D$8:$D$21="","",($F$8:$F$21<=EI$5)*($G$8:$G$21>=EI$5)*($D$8:$D$21/_xlfn.ANCHORARRAY($H$8))) ->  | EJ8: =IF($D$8:$D$21="","",($F$8:$F$21<=EJ$5)*($G$8:$G$21>=EJ$5)*($D$8:$D$21/_xlfn.ANCHORARRAY($H$8))) ->  | EK8: =IF($D$8:$D$21="","",($F$8:$F$21<=EK$5)*($G$8:$G$21>=EK$5)*($D$8:$D$21/_xlfn.ANCHORARRAY($H$8))) ->  | EL8: =IF($D$8:$D$21="","",($F$8:$F$21<=EL$5)*($G$8:$G$21>=EL$5)*($D$8:$D$21/_xlfn.ANCHORARRAY($H$8))) ->  | EM8: =IF($D$8:$D$21="","",($F$8:$F$21<=EM$5)*($G$8:$G$21>=EM$5)*($D$8:$D$21/_xlfn.ANCHORARRAY($H$8))) ->  | EO8: =_xlfn.BYROW(J8:EN21,_xlfn.LAMBDA(_xlpm.x,SUM(_xlpm.x))) -> 0 | EP8: =IF(_xlfn.ANCHORARRAY(EO8)<>D8:D21,1,0) -> 0
C9: Yard Rent | D9: 400000 | E9: 4.651162791 | F9: 1 | G9: 72 | H9: 72 | J9: Yard Rent | K9: 0 | L9: 5555.555556 | M9: 5555.555556 | N9: 5555.555556 | O9: 5555.555556 | P9: 5555.555556 | Q9: 5555.555556 | R9: 5555.555556 | S9: 5555.555556 | T9: 5555.555556 | U9: 5555.555556 | V9: 5555.555556 | W9: 5555.555556 | X9: 5555.555556 | Y9: 5555.555556 | Z9: 5555.555556 | AA9: 5555.555556 | AB9: 5555.555556 | AC9: 5555.555556 | AD9: 5555.555556 | AE9: 5555.555556 | AF9: 5555.555556 | AG9: 5555.555556 | AH9: 5555.555556 | AI9: 5555.555556 | AJ9: 5555.555556 | AK9: 5555.555556 | AL9: 5555.555556 | AM9: 5555.555556 | AN9: 5555.555556 | AO9: 5555.555556 | AP9: 5555.555556 | AQ9: 5555.555556 | AR9: 5555.555556 | AS9: 5555.555556 | AT9: 5555.555556 | AU9: 5555.555556 | AV9: 5555.555556 | AW9: 5555.555556 | AX9: 5555.555556 | AY9: 5555.555556 | AZ9: 5555.555556 | BA9: 5555.555556 | BB9: 5555.555556 | BC9: 5555.555556 | BD9: 5555.555556 | BE9: 5555.555556 | BF9: 5555.555556 | BG9: 5555.555556 | BH9: 5555.555556 | BI9: 5555.555556 | BJ9: 5555.555556 | BK9: 5555.555556 | BL9: 5555.555556 | BM9: 5555.555556 | BN9: 5555.555556 | BO9: 5555.555556 | BP9: 5555.555556 | BQ9: 5555.555556 | BR9: 5555.555556 | BS9: 5555.555556 | BT9: 5555.555556 | BU9: 5555.555556 | BV9: 5555.555556 | BW9: 5555.555556 | BX9: 5555.555556 | BY9: 5555.555556 | BZ9: 5555.555556 | CA9: 5555.555556 | CB9: 5555.555556 | CC9: 5555.555556 | CD9: 5555.555556 | CE9: 5555.555556 | CF9: 0 | CG9: 0 | CH9: 0 | CI9: 0 | CJ9: 0 | CK9: 0 | CL9: 0 | CM9: 0 | CN9: 0 | CO9: 0 | CP9: 0 | CQ9: 0 | CR9: 0 | CS9: 0 | CT9: 0 | CU9: 0 | CV9: 0 | CW9: 0 | CX9: 0 | CY9: 0 | CZ9: 0 | DA9: 0 | DB9: 0 | DC9: 0 | DD9: 0 | DE9: 0 | DF9: 0 | DG9: 0 | DH9: 0 | DI9: 0 | DJ9: 0 | DK9: 0 | DL9: 0 | DM9: 0 | DN9: 0 | DO9: 0 | DP9: 0 | DQ9: 0 | DR9: 0 | DS9: 0 | DT9: 0 | DU9: 0 | DV9: 0 | DW9: 0 | DX9: 0 | DY9: 0 | DZ9: 0 | EA9: 0 | EB9: 0 | EC9: 0 | ED9: 0 | EE9: 0 | EF9: 0 | EG9: 0 | EH9: 0 | EI9: 0 | EJ9: 0 | EK9: 0 | EL9: 0 | EM9: 0 | EO9: 400000 | EP9: 0
C10: Other Income #2 | D10: 0 | E10: 0 | F10: 1 | G10: 1 | H10: 1 | J10: Other Income #2 | K10: 0 | L10: 0 | M10: 0 | N10: 0 | O10: 0 | P10: 0 | Q10: 0 | R10: 0 | S10: 0 | T10: 0 | U10: 0 | V10: 0 | W10: 0 | X10: 0 | Y10: 0 | Z10: 0 | AA10: 0 | AB10: 0 | AC10: 0 | AD10: 0 | AE10: 0 | AF10: 0 | AG10: 0 | AH10: 0 | AI10: 0 | AJ10: 0 | AK10: 0 | AL10: 0 | AM10: 0 | AN10: 0 | AO10: 0 | AP10: 0 | AQ10: 0 | AR10: 0 | AS10: 0 | AT10: 0 | AU10: 0 | AV10: 0 | AW10: 0 | AX10: 0 | AY10: 0 | AZ10: 0 | BA10: 0 | BB10: 0 | BC10: 0 | BD10: 0 | BE10: 0 | BF10: 0 | BG10: 0 | BH10: 0 | BI10: 0 | BJ10: 0 | BK10: 0 | BL10: 0 | BM10: 0 | BN10: 0 | BO10: 0 | BP10: 0 | BQ10: 0 | BR10: 0 | BS10: 0 | BT10: 0 | BU10: 0 | BV10: 0 | BW10: 0 | BX10: 0 | BY10: 0 | BZ10: 0 | CA10: 0 | CB10: 0 | CC10: 0 | CD10: 0 | CE10: 0 | CF10: 0 | CG10: 0 | CH10: 0 | CI10: 0 | CJ10: 0 | CK10: 0 | CL10: 0 | CM10: 0 | CN10: 0 | CO10: 0 | CP10: 0 | CQ10: 0 | CR10: 0 | CS10: 0 | CT10: 0 | CU10: 0 | CV10: 0 | CW10: 0 | CX10: 0 | CY10: 0 | CZ10: 0 | DA10: 0 | DB10: 0 | DC10: 0 | DD10: 0 | DE10: 0 | DF10: 0 | DG10: 0 | DH10: 0 | DI10: 0 | DJ10: 0 | DK10: 0 | DL10: 0 | DM10: 0 | DN10: 0 | DO10: 0 | DP10: 0 | DQ10: 0 | DR10: 0 | DS10: 0 | DT10: 0 | DU10: 0 | DV10: 0 | DW10: 0 | DX10: 0 | DY10: 0 | DZ10: 0 | EA10: 0 | EB10: 0 | EC10: 0 | ED10: 0 | EE10: 0 | EF10: 0 | EG10: 0 | EH10: 0 | EI10: 0 | EJ10: 0 | EK10: 0 | EL10: 0 | EM10: 0 | EO10: 0 | EP10: 0
C11: Other Income #3 | D11: 0 | E11: 0 | F11: 1 | G11: 1 | H11: 1 | J11: Other Income #3 | K11: 0 | L11: 0 | M11: 0 | N11: 0 | O11: 0 | P11: 0 | Q11: 0 | R11: 0 | S11: 0 | T11: 0 | U11: 0 | V11: 0 | W11: 0 | X11: 0 | Y11: 0 | Z11: 0 | AA11: 0 | AB11: 0 | AC11: 0 | AD11: 0 | AE11: 0 | AF11: 0 | AG11: 0 | AH11: 0 | AI11: 0 | AJ11: 0 | AK11: 0 | AL11: 0 | AM11: 0 | AN11: 0 | AO11: 0 | AP11: 0 | AQ11: 0 | AR11: 0 | AS11: 0 | AT11: 0 | AU11: 0 | AV11: 0 | AW11: 0 | AX11: 0 | AY11: 0 | AZ11: 0 | BA11: 0 | BB11: 0 | BC11: 0 | BD11: 0 | BE11: 0 | BF11: 0 | BG11: 0 | BH11: 0 | BI11: 0 | BJ11: 0 | BK11: 0 | BL11: 0 | BM11: 0 | BN11: 0 | BO11: 0 | BP11: 0 | BQ11: 0 | BR11: 0 | BS11: 0 | BT11: 0 | BU11: 0 | BV11: 0 | BW11: 0 | BX11: 0 | BY11: 0 | BZ11: 0 | CA11: 0 | CB11: 0 | CC11: 0 | CD11: 0 | CE11: 0 | CF11: 0 | CG11: 0 | CH11: 0 | CI11: 0 | CJ11: 0 | CK11: 0 | CL11: 0 | CM11: 0 | CN11: 0 | CO11: 0 | CP11: 0 | CQ11: 0 | CR11: 0 | CS11: 0 | CT11: 0 | CU11: 0 | CV11: 0 | CW11: 0 | CX11: 0 | CY11: 0 | CZ11: 0 | DA11: 0 | DB11: 0 | DC11: 0 | DD11: 0 | DE11: 0 | DF11: 0 | DG11: 0 | DH11: 0 | DI11: 0 | DJ11: 0 | DK11: 0 | DL11: 0 | DM11: 0 | DN11: 0 | DO11: 0 | DP11: 0 | DQ11: 0 | DR11: 0 | DS11: 0 | DT11: 0 | DU11: 0 | DV11: 0 | DW11: 0 | DX11: 0 | DY11: 0 | DZ11: 0 | EA11: 0 | EB11: 0 | EC11: 0 | ED11: 0 | EE11: 0 | EF11: 0 | EG11: 0 | EH11: 0 | EI11: 0 | EJ11: 0 | EK11: 0 | EL11: 0 | EM11: 0 | EO11: 0 | EP11: 0
C12: Other | D12: 0 | E12: 0 | F12: 1 | G12: 1 | H12: 1 | J12: Other | K12: 0 | L12: 0 | M12: 0 | N12: 0 | O12: 0 | P12: 0 | Q12: 0 | R12: 0 | S12: 0 | T12: 0 | U12: 0 | V12: 0 | W12: 0 | X12: 0 | Y12: 0 | Z12: 0 | AA12: 0 | AB12: 0 | AC12: 0 | AD12: 0 | AE12: 0 | AF12: 0 | AG12: 0 | AH12: 0 | AI12: 0 | AJ12: 0 | AK12: 0 | AL12: 0 | AM12: 0 | AN12: 0 | AO12: 0 | AP12: 0 | AQ12: 0 | AR12: 0 | AS12: 0 | AT12: 0 | AU12: 0 | AV12: 0 | AW12: 0 | AX12: 0 | AY12: 0 | AZ12: 0 | BA12: 0 | BB12: 0 | BC12: 0 | BD12: 0 | BE12: 0 | BF12: 0 | BG12: 0 | BH12: 0 | BI12: 0 | BJ12: 0 | BK12: 0 | BL12: 0 | BM12: 0 | BN12: 0 | BO12: 0 | BP12: 0 | BQ12: 0 | BR12: 0 | BS12: 0 | BT12: 0 | BU12: 0 | BV12: 0 | BW12: 0 | BX12: 0 | BY12: 0 | BZ12: 0 | CA12: 0 | CB12: 0 | CC12: 0 | CD12: 0 | CE12: 0 | CF12: 0 | CG12: 0 | CH12: 0 | CI12: 0 | CJ12: 0 | CK12: 0 | CL12: 0 | CM12: 0 | CN12: 0 | CO12: 0 | CP12: 0 | CQ12: 0 | CR12: 0 | CS12: 0 | CT12: 0 | CU12: 0 | CV12: 0 | CW12: 0 | CX12: 0 | CY12: 0 | CZ12: 0 | DA12: 0 | DB12: 0 | DC12: 0 | DD12: 0 | DE12: 0 | DF12: 0 | DG12: 0 | DH12: 0 | DI12: 0 | DJ12: 0 | DK12: 0 | DL12: 0 | DM12: 0 | DN12: 0 | DO12: 0 | DP12: 0 | DQ12: 0 | DR12: 0 | DS12: 0 | DT12: 0 | DU12: 0 | DV12: 0 | DW12: 0 | DX12: 0 | DY12: 0 | DZ12: 0 | EA12: 0 | EB12: 0 | EC12: 0 | ED12: 0 | EE12: 0 | EF12: 0 | EG12: 0 | EH12: 0 | EI12: 0 | EJ12: 0 | EK12: 0 | EL12: 0 | EM12: 0 | EO12: 0 | EP12: 0
C13: Other | D13: 0 | E13: 0 | F13: 1 | G13: 1 | H13: 1 | J13: Other | K13: 0 | L13: 0 | M13: 0 | N13: 0 | O13: 0 | P13: 0 | Q13: 0 | R13: 0 | S13: 0 | T13: 0 | U13: 0 | V13: 0 | W13: 0 | X13: 0 | Y13: 0 | Z13: 0 | AA13: 0 | AB13: 0 | AC13: 0 | AD13: 0 | AE13: 0 | AF13: 0 | AG13: 0 | AH13: 0 | AI13: 0 | AJ13: 0 | AK13: 0 | AL13: 0 | AM13: 0 | AN13: 0 | AO13: 0 | AP13: 0 | AQ13: 0 | AR13: 0 | AS13: 0 | AT13: 0 | AU13: 0 | AV13: 0 | AW13: 0 | AX13: 0 | AY13: 0 | AZ13: 0 | BA13: 0 | BB13: 0 | BC13: 0 | BD13: 0 | BE13: 0 | BF13: 0 | BG13: 0 | BH13: 0 | BI13: 0 | BJ13: 0 | BK13: 0 | BL13: 0 | BM13: 0 | BN13: 0 | BO13: 0 | BP13: 0 | BQ13: 0 | BR13: 0 | BS13: 0 | BT13: 0 | BU13: 0 | BV13: 0 | BW13: 0 | BX13: 0 | BY13: 0 | BZ13: 0 | CA13: 0 | CB13: 0 | CC13: 0 | CD13: 0 | CE13: 0 | CF13: 0 | CG13: 0 | CH13: 0 | CI13: 0 | CJ13: 0 | CK13: 0 | CL13: 0 | CM13: 0 | CN13: 0 | CO13: 0 | CP13: 0 | CQ13: 0 | CR13: 0 | CS13: 0 | CT13: 0 | CU13: 0 | CV13: 0 | CW13: 0 | CX13: 0 | CY13: 0 | CZ13: 0 | DA13: 0 | DB13: 0 | DC13: 0 | DD13: 0 | DE13: 0 | DF13: 0 | DG13: 0 | DH13: 0 | DI13: 0 | DJ13: 0 | DK13: 0 | DL13: 0 | DM13: 0 | DN13: 0 | DO13: 0 | DP13: 0 | DQ13: 0 | DR13: 0 | DS13: 0 | DT13: 0 | DU13: 0 | DV13: 0 | DW13: 0 | DX13: 0 | DY13: 0 | DZ13: 0 | EA13: 0 | EB13: 0 | EC13: 0 | ED13: 0 | EE13: 0 | EF13: 0 | EG13: 0 | EH13: 0 | EI13: 0 | EJ13: 0 | EK13: 0 | EL13: 0 | EM13: 0 | EO13: 0 | EP13: 0
C14: Other | D14: 0 | E14: 0 | F14: 1 | G14: 1 | H14: 1 | J14: Other | K14: 0 | L14: 0 | M14: 0 | N14: 0 | O14: 0 | P14: 0 | Q14: 0 | R14: 0 | S14: 0 | T14: 0 | U14: 0 | V14: 0 | W14: 0 | X14: 0 | Y14: 0 | Z14: 0 | AA14: 0 | AB14: 0 | AC14: 0 | AD14: 0 | AE14: 0 | AF14: 0 | AG14: 0 | AH14: 0 | AI14: 0 | AJ14: 0 | AK14: 0 | AL14: 0 | AM14: 0 | AN14: 0 | AO14: 0 | AP14: 0 | AQ14: 0 | AR14: 0 | AS14: 0 | AT14: 0 | AU14: 0 | AV14: 0 | AW14: 0 | AX14: 0 | AY14: 0 | AZ14: 0 | BA14: 0 | BB14: 0 | BC14: 0 | BD14: 0 | BE14: 0 | BF14: 0 | BG14: 0 | BH14: 0 | BI14: 0 | BJ14: 0 | BK14: 0 | BL14: 0 | BM14: 0 | BN14: 0 | BO14: 0 | BP14: 0 | BQ14: 0 | BR14: 0 | BS14: 0 | BT14: 0 | BU14: 0 | BV14: 0 | BW14: 0 | BX14: 0 | BY14: 0 | BZ14: 0 | CA14: 0 | CB14: 0 | CC14: 0 | CD14: 0 | CE14: 0 | CF14: 0 | CG14: 0 | CH14: 0 | CI14: 0 | CJ14: 0 | CK14: 0 | CL14: 0 | CM14: 0 | CN14: 0 | CO14: 0 | CP14: 0 | CQ14: 0 | CR14: 0 | CS14: 0 | CT14: 0 | CU14: 0 | CV14: 0 | CW14: 0 | CX14: 0 | CY14: 0 | CZ14: 0 | DA14: 0 | DB14: 0 | DC14: 0 | DD14: 0 | DE14: 0 | DF14: 0 | DG14: 0 | DH14: 0 | DI14: 0 | DJ14: 0 | DK14: 0 | DL14: 0 | DM14: 0 | DN14: 0 | DO14: 0 | DP14: 0 | DQ14: 0 | DR14: 0 | DS14: 0 | DT14: 0 | DU14: 0 | DV14: 0 | DW14: 0 | DX14: 0 | DY14: 0 | DZ14: 0 | EA14: 0 | EB14: 0 | EC14: 0 | ED14: 0 | EE14: 0 | EF14: 0 | EG14: 0 | EH14: 0 | EI14: 0 | EJ14: 0 | EK14: 0 | EL14: 0 | EM14: 0 | EO14: 0 | EP14: 0
C15: Other | D15: 0 | E15: 0 | F15: 1 | G15: 1 | H15: 1 | J15: Other | K15: 0 | L15: 0 | M15: 0 | N15: 0 | O15: 0 | P15: 0 | Q15: 0 | R15: 0 | S15: 0 | T15: 0 | U15: 0 | V15: 0 | W15: 0 | X15: 0 | Y15: 0 | Z15: 0 | AA15: 0 | AB15: 0 | AC15: 0 | AD15: 0 | AE15: 0 | AF15: 0 | AG15: 0 | AH15: 0 | AI15: 0 | AJ15: 0 | AK15: 0 | AL15: 0 | AM15: 0 | AN15: 0 | AO15: 0 | AP15: 0 | AQ15: 0 | AR15: 0 | AS15: 0 | AT15: 0 | AU15: 0 | AV15: 0 | AW15: 0 | AX15: 0 | AY15: 0 | AZ15: 0 | BA15: 0 | BB15: 0 | BC15: 0 | BD15: 0 | BE15: 0 | BF15: 0 | BG15: 0 | BH15: 0 | BI15: 0 | BJ15: 0 | BK15: 0 | BL15: 0 | BM15: 0 | BN15: 0 | BO15: 0 | BP15: 0 | BQ15: 0 | BR15: 0 | BS15: 0 | BT15: 0 | BU15: 0 | BV15: 0 | BW15: 0 | BX15: 0 | BY15: 0 | BZ15: 0 | CA15: 0 | CB15: 0 | CC15: 0 | CD15: 0 | CE15: 0 | CF15: 0 | CG15: 0 | CH15: 0 | CI15: 0 | CJ15: 0 | CK15: 0 | CL15: 0 | CM15: 0 | CN15: 0 | CO15: 0 | CP15: 0 | CQ15: 0 | CR15: 0 | CS15: 0 | CT15: 0 | CU15: 0 | CV15: 0 | CW15: 0 | CX15: 0 | CY15: 0 | CZ15: 0 | DA15: 0 | DB15: 0 | DC15: 0 | DD15: 0 | DE15: 0 | DF15: 0 | DG15: 0 | DH15: 0 | DI15: 0 | DJ15: 0 | DK15: 0 | DL15: 0 | DM15: 0 | DN15: 0 | DO15: 0 | DP15: 0 | DQ15: 0 | DR15: 0 | DS15: 0 | DT15: 0 | DU15: 0 | DV15: 0 | DW15: 0 | DX15: 0 | DY15: 0 | DZ15: 0 | EA15: 0 | EB15: 0 | EC15: 0 | ED15: 0 | EE15: 0 | EF15: 0 | EG15: 0 | EH15: 0 | EI15: 0 | EJ15: 0 | EK15: 0 | EL15: 0 | EM15: 0 | EO15: 0 | EP15: 0
C16: Other | D16: 0 | E16: 0 | F16: 1 | G16: 1 | H16: 1 | J16: Other | K16: 0 | L16: 0 | M16: 0 | N16: 0 | O16: 0 | P16: 0 | Q16: 0 | R16: 0 | S16: 0 | T16: 0 | U16: 0 | V16: 0 | W16: 0 | X16: 0 | Y16: 0 | Z16: 0 | AA16: 0 | AB16: 0 | AC16: 0 | AD16: 0 | AE16: 0 | AF16: 0 | AG16: 0 | AH16: 0 | AI16: 0 | AJ16: 0 | AK16: 0 | AL16: 0 | AM16: 0 | AN16: 0 | AO16: 0 | AP16: 0 | AQ16: 0 | AR16: 0 | AS16: 0 | AT16: 0 | AU16: 0 | AV16: 0 | AW16: 0 | AX16: 0 | AY16: 0 | AZ16: 0 | BA16: 0 | BB16: 0 | BC16: 0 | BD16: 0 | BE16: 0 | BF16: 0 | BG16: 0 | BH16: 0 | BI16: 0 | BJ16: 0 | BK16: 0 | BL16: 0 | BM16: 0 | BN16: 0 | BO16: 0 | BP16: 0 | BQ16: 0 | BR16: 0 | BS16: 0 | BT16: 0 | BU16: 0 | BV16: 0 | BW16: 0 | BX16: 0 | BY16: 0 | BZ16: 0 | CA16: 0 | CB16: 0 | CC16: 0 | CD16: 0 | CE16: 0 | CF16: 0 | CG16: 0 | CH16: 0 | CI16: 0 | CJ16: 0 | CK16: 0 | CL16: 0 | CM16: 0 | CN16: 0 | CO16: 0 | CP16: 0 | CQ16: 0 | CR16: 0 | CS16: 0 | CT16: 0 | CU16: 0 | CV16: 0 | CW16: 0 | CX16: 0 | CY16: 0 | CZ16: 0 | DA16: 0 | DB16: 0 | DC16: 0 | DD16: 0 | DE16: 0 | DF16: 0 | DG16: 0 | DH16: 0 | DI16: 0 | DJ16: 0 | DK16: 0 | DL16: 0 | DM16: 0 | DN16: 0 | DO16: 0 | DP16: 0 | DQ16: 0 | DR16: 0 | DS16: 0 | DT16: 0 | DU16: 0 | DV16: 0 | DW16: 0 | DX16: 0 | DY16: 0 | DZ16: 0 | EA16: 0 | EB16: 0 | EC16: 0 | ED16: 0 | EE16: 0 | EF16: 0 | EG16: 0 | EH16: 0 | EI16: 0 | EJ16: 0 | EK16: 0 | EL16: 0 | EM16: 0 | EO16: 0 | EP16: 0
C17: Other | D17: 0 | E17: 0 | F17: 1 | G17: 1 | H17: 1 | J17: Other | K17: 0 | L17: 0 | M17: 0 | N17: 0 | O17: 0 | P17: 0 | Q17: 0 | R17: 0 | S17: 0 | T17: 0 | U17: 0 | V17: 0 | W17: 0 | X17: 0 | Y17: 0 | Z17: 0 | AA17: 0 | AB17: 0 | AC17: 0 | AD17: 0 | AE17: 0 | AF17: 0 | AG17: 0 | AH17: 0 | AI17: 0 | AJ17: 0 | AK17: 0 | AL17: 0 | AM17: 0 | AN17: 0 | AO17: 0 | AP17: 0 | AQ17: 0 | AR17: 0 | AS17: 0 | AT17: 0 | AU17: 0 | AV17: 0 | AW17: 0 | AX17: 0 | AY17: 0 | AZ17: 0 | BA17: 0 | BB17: 0 | BC17: 0 | BD17: 0 | BE17: 0 | BF17: 0 | BG17: 0 | BH17: 0 | BI17: 0 | BJ17: 0 | BK17: 0 | BL17: 0 | BM17: 0 | BN17: 0 | BO17: 0 | BP17: 0 | BQ17: 0 | BR17: 0 | BS17: 0 | BT17: 0 | BU17: 0 | BV17: 0 | BW17: 0 | BX17: 0 | BY17: 0 | BZ17: 0 | CA17: 0 | CB17: 0 | CC17: 0 | CD17: 0 | CE17: 0 | CF17: 0 | CG17: 0 | CH17: 0 | CI17: 0 | CJ17: 0 | CK17: 0 | CL17: 0 | CM17: 0 | CN17: 0 | CO17: 0 | CP17: 0 | CQ17: 0 | CR17: 0 | CS17: 0 | CT17: 0 | CU17: 0 | CV17: 0 | CW17: 0 | CX17: 0 | CY17: 0 | CZ17: 0 | DA17: 0 | DB17: 0 | DC17: 0 | DD17: 0 | DE17: 0 | DF17: 0 | DG17: 0 | DH17: 0 | DI17: 0 | DJ17: 0 | DK17: 0 | DL17: 0 | DM17: 0 | DN17: 0 | DO17: 0 | DP17: 0 | DQ17: 0 | DR17: 0 | DS17: 0 | DT17: 0 | DU17: 0 | DV17: 0 | DW17: 0 | DX17: 0 | DY17: 0 | DZ17: 0 | EA17: 0 | EB17: 0 | EC17: 0 | ED17: 0 | EE17: 0 | EF17: 0 | EG17: 0 | EH17: 0 | EI17: 0 | EJ17: 0 | EK17: 0 | EL17: 0 | EM17: 0 | EO17: 0 | EP17: 0
C18: Other | D18: 0 | E18: 0 | F18: 1 | G18: 1 | H18: 1 | J18: Other | K18: 0 | L18: 0 | M18: 0 | N18: 0 | O18: 0 | P18: 0 | Q18: 0 | R18: 0 | S18: 0 | T18: 0 | U18: 0 | V18: 0 | W18: 0 | X18: 0 | Y18: 0 | Z18: 0 | AA18: 0 | AB18: 0 | AC18: 0 | AD18: 0 | AE18: 0 | AF18: 0 | AG18: 0 | AH18: 0 | AI18: 0 | AJ18: 0 | AK18: 0 | AL18: 0 | AM18: 0 | AN18: 0 | AO18: 0 | AP18: 0 | AQ18: 0 | AR18: 0 | AS18: 0 | AT18: 0 | AU18: 0 | AV18: 0 | AW18: 0 | AX18: 0 | AY18: 0 | AZ18: 0 | BA18: 0 | BB18: 0 | BC18: 0 | BD18: 0 | BE18: 0 | BF18: 0 | BG18: 0 | BH18: 0 | BI18: 0 | BJ18: 0 | BK18: 0 | BL18: 0 | BM18: 0 | BN18: 0 | BO18: 0 | BP18: 0 | BQ18: 0 | BR18: 0 | BS18: 0 | BT18: 0 | BU18: 0 | BV18: 0 | BW18: 0 | BX18: 0 | BY18: 0 | BZ18: 0 | CA18: 0 | CB18: 0 | CC18: 0 | CD18: 0 | CE18: 0 | CF18: 0 | CG18: 0 | CH18: 0 | CI18: 0 | CJ18: 0 | CK18: 0 | CL18: 0 | CM18: 0 | CN18: 0 | CO18: 0 | CP18: 0 | CQ18: 0 | CR18: 0 | CS18: 0 | CT18: 0 | CU18: 0 | CV18: 0 | CW18: 0 | CX18: 0 | CY18: 0 | CZ18: 0 | DA18: 0 | DB18: 0 | DC18: 0 | DD18: 0 | DE18: 0 | DF18: 0 | DG18: 0 | DH18: 0 | DI18: 0 | DJ18: 0 | DK18: 0 | DL18: 0 | DM18: 0 | DN18: 0 | DO18: 0 | DP18: 0 | DQ18: 0 | DR18: 0 | DS18: 0 | DT18: 0 | DU18: 0 | DV18: 0 | DW18: 0 | DX18: 0 | DY18: 0 | DZ18: 0 | EA18: 0 | EB18: 0 | EC18: 0 | ED18: 0 | EE18: 0 | EF18: 0 | EG18: 0 | EH18: 0 | EI18: 0 | EJ18: 0 | EK18: 0 | EL18: 0 | EM18: 0 | EO18: 0 | EP18: 0
C19: Other | D19: 0 | E19: 0 | F19: 1 | G19: 1 | H19: 1 | J19: Other | K19: 0 | L19: 0 | M19: 0 | N19: 0 | O19: 0 | P19: 0 | Q19: 0 | R19: 0 | S19: 0 | T19: 0 | U19: 0 | V19: 0 | W19: 0 | X19: 0 | Y19: 0 | Z19: 0 | AA19: 0 | AB19: 0 | AC19: 0 | AD19: 0 | AE19: 0 | AF19: 0 | AG19: 0 | AH19: 0 | AI19: 0 | AJ19: 0 | AK19: 0 | AL19: 0 | AM19: 0 | AN19: 0 | AO19: 0 | AP19: 0 | AQ19: 0 | AR19: 0 | AS19: 0 | AT19: 0 | AU19: 0 | AV19: 0 | AW19: 0 | AX19: 0 | AY19: 0 | AZ19: 0 | BA19: 0 | BB19: 0 | BC19: 0 | BD19: 0 | BE19: 0 | BF19: 0 | BG19: 0 | BH19: 0 | BI19: 0 | BJ19: 0 | BK19: 0 | BL19: 0 | BM19: 0 | BN19: 0 | BO19: 0 | BP19: 0 | BQ19: 0 | BR19: 0 | BS19: 0 | BT19: 0 | BU19: 0 | BV19: 0 | BW19: 0 | BX19: 0 | BY19: 0 | BZ19: 0 | CA19: 0 | CB19: 0 | CC19: 0 | CD19: 0 | CE19: 0 | CF19: 0 | CG19: 0 | CH19: 0 | CI19: 0 | CJ19: 0 | CK19: 0 | CL19: 0 | CM19: 0 | CN19: 0 | CO19: 0 | CP19: 0 | CQ19: 0 | CR19: 0 | CS19: 0 | CT19: 0 | CU19: 0 | CV19: 0 | CW19: 0 | CX19: 0 | CY19: 0 | CZ19: 0 | DA19: 0 | DB19: 0 | DC19: 0 | DD19: 0 | DE19: 0 | DF19: 0 | DG19: 0 | DH19: 0 | DI19: 0 | DJ19: 0 | DK19: 0 | DL19: 0 | DM19: 0 | DN19: 0 | DO19: 0 | DP19: 0 | DQ19: 0 | DR19: 0 | DS19: 0 | DT19: 0 | DU19: 0 | DV19: 0 | DW19: 0 | DX19: 0 | DY19: 0 | DZ19: 0 | EA19: 0 | EB19: 0 | EC19: 0 | ED19: 0 | EE19: 0 | EF19: 0 | EG19: 0 | EH19: 0 | EI19: 0 | EJ19: 0 | EK19: 0 | EL19: 0 | EM19: 0 | EO19: 0 | EP19: 0
C20: Other | D20: 0 | E20: 0 | F20: 1 | G20: 1 | H20: 1 | J20: Other | K20: 0 | L20: 0 | M20: 0 | N20: 0 | O20: 0 | P20: 0 | Q20: 0 | R20: 0 | S20: 0 | T20: 0 | U20: 0 | V20: 0 | W20: 0 | X20: 0 | Y20: 0 | Z20: 0 | AA20: 0 | AB20: 0 | AC20: 0 | AD20: 0 | AE20: 0 | AF20: 0 | AG20: 0 | AH20: 0 | AI20: 0 | AJ20: 0 | AK20: 0 | AL20: 0 | AM20: 0 | AN20: 0 | AO20: 0 | AP20: 0 | AQ20: 0 | AR20: 0 | AS20: 0 | AT20: 0 | AU20: 0 | AV20: 0 | AW20: 0 | AX20: 0 | AY20: 0 | AZ20: 0 | BA20: 0 | BB20: 0 | BC20: 0 | BD20: 0 | BE20: 0 | BF20: 0 | BG20: 0 | BH20: 0 | BI20: 0 | BJ20: 0 | BK20: 0 | BL20: 0 | BM20: 0 | BN20: 0 | BO20: 0 | BP20: 0 | BQ20: 0 | BR20: 0 | BS20: 0 | BT20: 0 | BU20: 0 | BV20: 0 | BW20: 0 | BX20: 0 | BY20: 0 | BZ20: 0 | CA20: 0 | CB20: 0 | CC20: 0 | CD20: 0 | CE20: 0 | CF20: 0 | CG20: 0 | CH20: 0 | CI20: 0 | CJ20: 0 | CK20: 0 | CL20: 0 | CM20: 0 | CN20: 0 | CO20: 0 | CP20: 0 | CQ20: 0 | CR20: 0 | CS20: 0 | CT20: 0 | CU20: 0 | CV20: 0 | CW20: 0 | CX20: 0 | CY20: 0 | CZ20: 0 | DA20: 0 | DB20: 0 | DC20: 0 | DD20: 0 | DE20: 0 | DF20: 0 | DG20: 0 | DH20: 0 | DI20: 0 | DJ20: 0 | DK20: 0 | DL20: 0 | DM20: 0 | DN20: 0 | DO20: 0 | DP20: 0 | DQ20: 0 | DR20: 0 | DS20: 0 | DT20: 0 | DU20: 0 | DV20: 0 | DW20: 0 | DX20: 0 | DY20: 0 | DZ20: 0 | EA20: 0 | EB20: 0 | EC20: 0 | ED20: 0 | EE20: 0 | EF20: 0 | EG20: 0 | EH20: 0 | EI20: 0 | EJ20: 0 | EK20: 0 | EL20: 0 | EM20: 0 | EO20: 0 | EP20: 0
C21: budget ends | J21: budget ends | EO21: 0 | EP21: 0
C22: Total Other Income | D22: =SUM(D8:D21) -> 400000 | E22: 4.651162791 | F22: =_xlfn.MINIFS(F8:F21,D8:D21,"<>0") -> 1 | G22: =_xlfn.MAXIFS(G8:G21,E8:E21,"<>0") -> 72 | H22: =IF(D22="","",G22-F22+1) -> 72 | J22: Total Other Income | K22: =SUM(K8:K21) -> 0 | L22: =SUM(L8:L21) -> 5555.555556 | M22: =SUM(M8:M21) -> 5555.555556 | N22: 5555.555556 | O22: 5555.555556 | P22: 5555.555556 | Q22: 5555.555556 | R22: 5555.555556 | S22: 5555.555556 | T22: 5555.555556 | U22: 5555.555556 | V22: 5555.555556 | W22: 5555.555556 | X22: 5555.555556 | Y22: 5555.555556 | Z22: 5555.555556 | AA22: 5555.555556 | AB22: 5555.555556 | AC22: 5555.555556 | AD22: 5555.555556 | AE22: 5555.555556 | AF22: 5555.555556 | AG22: 5555.555556 | AH22: 5555.555556 | AI22: 5555.555556 | AJ22: 5555.555556 | AK22: 5555.555556 | AL22: 5555.555556 | AM22: 5555.555556 | AN22: 5555.555556 | AO22: 5555.555556 | AP22: 5555.555556 | AQ22: 5555.555556 | AR22: 5555.555556 | AS22: 5555.555556 | AT22: 5555.555556 | AU22: 5555.555556 | AV22: 5555.555556 | AW22: 5555.555556 | AX22: 5555.555556 | AY22: 5555.555556 | AZ22: 5555.555556 | BA22: 5555.555556 | BB22: 5555.555556 | BC22: 5555.555556 | BD22: 5555.555556 | BE22: 5555.555556 | BF22: 5555.555556 | BG22: 5555.555556 | BH22: 5555.555556 | BI22: 5555.555556 | BJ22: 5555.555556 | BK22: 5555.555556 | BL22: 5555.555556 | BM22: 5555.555556 | BN22: 5555.555556 | BO22: 5555.555556 | BP22: 5555.555556 | BQ22: 5555.555556 | BR22: 5555.555556 | BS22: 5555.555556 | BT22: 5555.555556 | BU22: 5555.555556 | BV22: 5555.555556 | BW22: =SUM(BW8:BW21) -> 5555.555556 | BX22: 5555.555556 | BY22: 5555.555556 | BZ22: 5555.555556 | CA22: 5555.555556 | CB22: 5555.555556 | CC22: 5555.555556 | CD22: 5555.555556 | CE22: 5555.555556 | CF22: 0 | CG22: 0 | CH22: 0 | CI22: 0 | CJ22: 0 | CK22: 0 | CL22: 0 | CM22: 0 | CN22: 0 | CO22: 0 | CP22: 0 | CQ22: 0 | CR22: 0 | CS22: 0 | CT22: 0 | CU22: 0 | CV22: 0 | CW22: 0 | CX22: 0 | CY22: 0 | CZ22: 0 | DA22: 0 | DB22: 0 | DC22: 0 | DD22: 0 | DE22: 0 | DF22: 0 | DG22: 0 | DH22: 0 | DI22: 0 | DJ22: 0 | DK22: 0 | DL22: 0 | DM22: 0 | DN22: 0 | DO22: 0 | DP22: 0 | DQ22: 0 | DR22: 0 | DS22: 0 | DT22: 0 | DU22: 0 | DV22: 0 | DW22: 0 | DX22: 0 | DY22: 0 | DZ22: 0 | EA22: 0 | EB22: 0 | EC22: 0 | ED22: 0 | EE22: 0 | EF22: 0 | EG22: 0 | EH22: 0 | EI22: =SUM(EI8:EI21) -> 0 | EJ22: 0 | EK22: 0 | EL22: 0 | EM22: =SUM(EM8:EM21) -> 0 | EO22: 400000 | EP22: 0
C25: Checks
C27: check | D27: result
C28: 0 | D28: 0
C29: timeline spends exact budget? | D29: =$EP$22 -> 0
C30: 0 | D30: 0
C31: local check | D31: =COUNTIFS(D28:D30,"<>0") -> 0

Sheet expenses
A1: =Checks!$A$1 -> 0 | C1: Expenses | O1: Data Confidence
A2: =$D$52 -> 0 | C2: =global!$B$2 -> New Industrial Template | O2: Preliminary
A4: tag | C4: Control Panel
C6: Expense Inputs
D8: Annualized T-12 | F8: Hold Period | I8: Property Tax Assessment
C9: OpEx | D9: T-12 Total | E9: PSF | F9: Y1 Total | G9: PSF
C10: add new expenses below here | I10: Property Tax Rate | L10: 0.01
A11: property_taxes | C11: =_xlfn.XLOOKUP($A11,tags!$C$16:$C$134,tags!$E$16:$E$134,0) -> Property Taxes | D11: 40000 | E11: =IFERROR(D11:D17/$D$20,0) -> 0.4651162791 | F11: =D39 -> 40000 | G11: =IFERROR(F11:F17/$D$20,0) -> 0.4651162791 | H11: =+F11:F15/12 -> 3333.333333 | I11: Non Ad-Valorum Taxes | L11: 0
A12: insurance | C12: =_xlfn.XLOOKUP($A12,tags!$C$16:$C$134,tags!$E$16:$E$134,0) -> Insurance | D12: 20000 | E12: 0.2325581395 | F12: 20000 | G12: 0.2325581395 | H12: 1666.666667 | I12: Current Assessed Value | L12: 4000000
A13: cam | C13: =_xlfn.XLOOKUP($A13,tags!$C$16:$C$134,tags!$E$16:$E$134,0) -> CAM | D13: 15000 | E13: 0.1744186047 | F13: 15000 | G13: 0.1744186047 | H13: 1250 | I13: Reassessed Upon Acquisition? | L13: 0
A14: management_fee | C14: =_xlfn.XLOOKUP($A14,tags!$C$16:$C$134,tags!$E$16:$E$134,0) -> Management Fee | D14: 0 | E14: 0 | F14: =SUM(lease_opex_detail!H6489:S6589)*-1 -> 47285.38484 | G14: 0.5498300563 | H14: 3940.448737 | I14: Reassessed Upon Sale? | L14: 0
A15: other | C15: =_xlfn.XLOOKUP($A15,tags!$C$16:$C$134,tags!$E$16:$E$134,0) -> Other | D15: 0 | E15: 0 | F15: 4000 | G15: 0.04651162791 | H15: 333.3333333 | I15: Percentage of Value Assessed | L15: 1
C16: add new expenses above here | E16: 0 | G16: 0
C17: Total | D17: =SUM(D11:D15) -> 75000 | E17: 0.8720930233 | F17: =SUM(F11:F15) -> 126285.3848 | G17: 1.468434707
I18: OpEx Assumptions
C19: General | I19: Annual Expense Growth | L19: 0.025
C20: Property SF | D20: =global!$C$12 -> 86000 | I20: Property Management Fee % | L20: 0.06
I21: Annual Capital Reserves/SF | L21: 0.3
C23: Annual Inputs | D23: 1 | E23: =+D23+1 -> 2 | F23: =+E23+1 -> 3 | G23: 4 | H23: 5 | I23: 6 | J23: 7 | K23: 8 | L23: 9 | M23: 10 | N23: =+M23+1 -> 11
C25: General | O25: Growth Type
A26: credit_loss | C26: Credit Loss | D26: 0.01 | E26: 0.01 | F26: 0.01 | G26: 0.01 | H26: 0.01 | I26: 0.01 | J26: 0.01 | K26: 0.01 | L26: 0.01 | M26: 0.01 | N26: 0.01 | O26: Margin
A27: property_taxes | C27: Property Tax Growth Rates | D27: 0 | E27: 0.025 | F27: =E27 -> 0.025 | G27: 0.025 | H27: 0.025 | I27: 0.025 | J27: 0.025 | K27: 0.025 | L27: 0.025 | M27: 0.025 | N27: 0.025 | O27: BoY
A28: insurance | C28: Insurance | D28: 0 | E28: 0.025 | F28: =E28 -> 0.025 | G28: 0.025 | H28: 0.025 | I28: 0.025 | J28: 0.025 | K28: 0.025 | L28: 0.025 | M28: 0.025 | N28: 0.025 | O28: BoY
A29: cam | C29: CAM | D29: 0.025 | E29: =D29 -> 0.025 | F29: =E29 -> 0.025 | G29: =F29 -> 0.025 | H29: =G29 -> 0.025 | I29: =H29 -> 0.025 | J29: 0.025 | K29: 0.025 | L29: 0.025 | M29: 0.025 | N29: 0.025 | O29: Smooth Skip First Month
A30: other | C30: Other OpEx | D30: 0.025 | E30: =D30 -> 0.025 | F30: =E30 -> 0.025 | G30: 0.025 | H30: 0.025 | I30: 0.025 | J30: 0.025 | K30: 0.025 | L30: 0.025 | M30: 0.025 | N30: 0.025 | O30: Smooth Skip First Month
A31: capital_reserves | C31: Capital Reserves | D31: 0 | E31: 0.025 | F31: 0.025 | G31: 0.025 | H31: 0.025 | I31: 0.025 | J31: 0.025 | K31: 0.025 | L31: 0.025 | M31: 0.025 | N31: 0.025 | O31: BoY
C33: Hold Period Property Taxes (ex. Reassessment upon Sale, which is modeled in Monthly Logic Below)
C34: Property Tax Rate | D34: =$L$10 -> 0.01 | E34: =D34 -> 0.01 | F34: =E34 -> 0.01 | G34: 0.01 | H34: 0.01 | I34: 0.01 | J34: 0.01 | K34: 0.01 | L34: 0.01 | M34: 0.01 | N34: 0.01
C35: Assessed Value | D35: =IF($L$13=1,global!$C$29*expenses!$L$15,expenses!$L$12)*(1+sensi_backup!$E$26) -> 4000000 | E35: =D35*(1+E$27) -> 4100000 | F35: 4202500 | G35: 4307562.5 | H35: 4415251.562 | I35: 4525632.852 | J35: 4638773.673 | K35: =J35*(1+K$27) -> 4754743.015 | L35: 4873611.59 | M35: 4995451.88 | N35: 5120338.177
C36: Ad-Valorem Taxes | D36: =D34*D35 -> 40000 | E36: =E34*E35 -> 41000 | F36: 42025 | G36: 43075.625 | H36: 44152.51562 | I36: 45256.32852 | J36: 46387.73673 | K36: 47547.43015 | L36: 48736.1159 | M36: 49954.5188 | N36: 51203.38177
C37: Non-Ad Valorum Taxes | D37: =$L$11 -> 0 | E37: =D37*(1+E$27) -> 0 | F37: 0 | G37: 0 | H37: 0 | I37: 0 | J37: 0 | K37: 0 | L37: 0 | M37: 0 | N37: 0
C38: Less Credits | D38: 0 | E38: 0 | F38: 0 | G38: 0 | H38: 0 | I38: 0 | J38: 0 | K38: 0 | L38: 0 | M38: 0 | N38: 0
C39: Total Property Taxes | D39: =SUM(D36:D38) -> 40000 | E39: =SUM(E36:E38) -> 41000 | F39: =SUM(F36:F38) -> 42025 | G39: =SUM(G36:G38) -> 43075.625 | H39: =SUM(H36:H38) -> 44152.51562 | I39: 45256.32852 | J39: 46387.73673 | K39: 47547.43015 | L39: 48736.1159 | M39: 49954.5188 | N39: 51203.38177
C42: checks
C48: check | D48: result
C49: 0 | D49: 0
C50: confirm management fee Y1 | D50: =SUMIFS(_xlfn.ANCHORARRAY(cf_detail!$ET$882),cf_detail!$C$882:$C$1278,expenses!$A$14)+F14 -> 0
C51: 0 | D51: 0
C52: local check | D52: =COUNTIFS(D49:D51,"<>0") -> 0

Sheet construction
A1: =Checks!$A$1 -> 0 | C1: Construction Budget | H1: Data Confidence
A2: =$D$29 -> 0 | C2: =global!$C$15 -> New Industrial Template | H2: Preliminary
C4: Budget Input | J4: Timeline
J5: Hold Month # | K5: 0 | L5: =+K5+1 -> 1 | M5: =+L5+1 -> 2 | N5: 3 | O5: 4 | P5: 5 | Q5: 6 | R5: 7 | S5: 8 | T5: 9 | U5: 10 | V5: 11 | W5: 12 | X5: 13 | Y5: 14 | Z5: 15 | AA5: 16 | AB5: 17 | AC5: 18 | AD5: 19 | AE5: 20 | AF5: 21 | AG5: 22 | AH5: 23 | AI5: 24 | AJ5: 25 | AK5: 26 | AL5: 27 | AM5: 28 | AN5: 29 | AO5: 30 | AP5: 31 | AQ5: 32 | AR5: 33 | AS5: 34 | AT5: 35 | AU5: 36 | AV5: 37 | AW5: 38 | AX5: 39 | AY5: 40 | AZ5: 41 | BA5: 42 | BB5: 43 | BC5: 44 | BD5: 45 | BE5: 46 | BF5: 47 | BG5: 48 | BH5: 49 | BI5: 50 | BJ5: 51 | BK5: 52 | BL5: 53 | BM5: 54 | BN5: 55 | BO5: 56 | BP5: 57 | BQ5: 58 | BR5: 59 | BS5: 60 | BT5: 61 | BU5: 62 | BV5: 63 | BW5: 64 | BX5: 65 | BY5: =+BX5+1 -> 66 | BZ5: 67 | CA5: 68 | CB5: 69 | CC5: 70 | CD5: 71 | CE5: 72 | CF5: 73 | CG5: 74 | CH5: 75 | CI5: 76 | CJ5: 77 | CK5: 78 | CL5: 79 | CM5: 80 | CN5: 81 | CO5: 82 | CP5: 83 | CQ5: 84 | CR5: 85 | CS5: 86 | CT5: 87 | CU5: 88 | CV5: 89 | CW5: 90 | CX5: 91 | CY5: 92 | CZ5: 93 | DA5: 94 | DB5: 95 | DC5: 96 | DD5: 97 | DE5: 98 | DF5: 99 | DG5: 100 | DH5: 101 | DI5: 102 | DJ5: 103 | DK5: 104 | DL5: 105 | DM5: 106 | DN5: 107 | DO5: 108 | DP5: 109 | DQ5: 110 | DR5: 111 | DS5: 112 | DT5: 113 | DU5: 114 | DV5: 115 | DW5: 116 | DX5: 117 | DY5: 118 | DZ5: 119 | EA5: 120 | EB5: 121 | EC5: 122 | ED5: 123 | EE5: 124 | EF5: 125 | EG5: 126 | EH5: 127 | EI5: 128 | EJ5: 129 | EK5: =+EJ5+1 -> 130 | EL5: 131 | EM5: 132
J6: Hold Year # | K6: 0 | L6: =IF(MOD(K5,12)=0,K6+1,K6) -> 1 | M6: =IF(MOD(L5,12)=0,L6+1,L6) -> 1 | N6: 1 | O6: 1 | P6: 1 | Q6: 1 | R6: 1 | S6: 1 | T6: 1 | U6: 1 | V6: 1 | W6: 1 | X6: 2 | Y6: 2 | Z6: 2 | AA6: 2 | AB6: 2 | AC6: 2 | AD6: 2 | AE6: 2 | AF6: 2 | AG6: 2 | AH6: 2 | AI6: 2 | AJ6: 3 | AK6: 3 | AL6: 3 | AM6: 3 | AN6: 3 | AO6: 3 | AP6: 3 | AQ6: 3 | AR6: 3 | AS6: 3 | AT6: 3 | AU6: 3 | AV6: 4 | AW6: 4 | AX6: 4 | AY6: 4 | AZ6: 4 | BA6: 4 | BB6: 4 | BC6: 4 | BD6: 4 | BE6: 4 | BF6: 4 | BG6: 4 | BH6: 5 | BI6: 5 | BJ6: 5 | BK6: 5 | BL6: 5 | BM6: 5 | BN6: 5 | BO6: 5 | BP6: 5 | BQ6: 5 | BR6: 5 | BS6: 5 | BT6: 6 | BU6: 6 | BV6: 6 | BW6: 6 | BX6: 6 | BY6: =IF(MOD(BX5,12)=0,BX6+1,BX6) -> 6 | BZ6: 6 | CA6: 6 | CB6: 6 | CC6: 6 | CD6: 6 | CE6: 6 | CF6: 7 | CG6: 7 | CH6: 7 | CI6: 7 | CJ6: 7 | CK6: 7 | CL6: 7 | CM6: 7 | CN6: 7 | CO6: 7 | CP6: 7 | CQ6: 7 | CR6: 8 | CS6: 8 | CT6: 8 | CU6: 8 | CV6: 8 | CW6: 8 | CX6: 8 | CY6: 8 | CZ6: 8 | DA6: 8 | DB6: 8 | DC6: 8 | DD6: 9 | DE6: 9 | DF6: 9 | DG6: 9 | DH6: 9 | DI6: 9 | DJ6: 9 | DK6: 9 | DL6: 9 | DM6: 9 | DN6: 9 | DO6: 9 | DP6: 10 | DQ6: 10 | DR6: 10 | DS6: 10 | DT6: 10 | DU6: 10 | DV6: 10 | DW6: 10 | DX6: 10 | DY6: 10 | DZ6: 10 | EA6: 10 | EB6: 11 | EC6: 11 | ED6: 11 | EE6: 11 | EF6: 11 | EG6: 11 | EH6: 11 | EI6: 11 | EJ6: 11 | EK6: =IF(MOD(EJ5,12)=0,EJ6+1,EJ6) -> 11 | EL6: 11 | EM6: 11
C7: Item | D7: Total | E7: PSF | F7: Month Start | G7: Month End | H7: Total Months | J7: Date | K7: =EOMONTH(global!$C$23,0) -> 2024-01-31 | L7: =EOMONTH(K7,1) -> 2024-02-29 | M7: =EOMONTH(L7,1) -> 2024-03-31 | N7: 2024-04-30 | O7: 2024-05-31 | P7: 2024-06-30 | Q7: 2024-07-31 | R7: 2024-08-31 | S7: 2024-09-30 | T7: 2024-10-31 | U7: 2024-11-30 | V7: 2024-12-31 | W7: 2025-01-31 | X7: 2025-02-28 | Y7: 2025-03-31 | Z7: 2025-04-30 | AA7: 2025-05-31 | AB7: 2025-06-30 | AC7: 2025-07-31 | AD7: 2025-08-31 | AE7: 2025-09-30 | AF7: 2025-10-31 | AG7: 2025-11-30 | AH7: 2025-12-31 | AI7: 2026-01-31 | AJ7: 2026-02-28 | AK7: 2026-03-31 | AL7: 2026-04-30 | AM7: 2026-05-31 | AN7: 2026-06-30 | AO7: 2026-07-31 | AP7: 2026-08-31 | AQ7: 2026-09-30 | AR7: 2026-10-31 | AS7: 2026-11-30 | AT7: 2026-12-31 | AU7: 2027-01-31 | AV7: 2027-02-28 | AW7: 2027-03-31 | AX7: 2027-04-30 | AY7: 2027-05-31 | AZ7: 2027-06-30 | BA7: 2027-07-31 | BB7: 2027-08-31 | BC7: 2027-09-30 | BD7: 2027-10-31 | BE7: 2027-11-30 | BF7: 2027-12-31 | BG7: 2028-01-31 | BH7: 2028-02-29 | BI7: 2028-03-31 | BJ7: 2028-04-30 | BK7: 2028-05-31 | BL7: 2028-06-30 | BM7: 2028-07-31 | BN7: 2028-08-31 | BO7: 2028-09-30 | BP7: 2028-10-31 | BQ7: 2028-11-30 | BR7: 2028-12-31 | BS7: 2029-01-31 | BT7: 2029-02-28 | BU7: 2029-03-31 | BV7: 2029-04-30 | BW7: 2029-05-31 | BX7: 2029-06-30 | BY7: 2029-07-31 | BZ7: 2029-08-31 | CA7: 2029-09-30 | CB7: 2029-10-31 | CC7: 2029-11-30 | CD7: 2029-12-31 | CE7: 2030-01-31 | CF7: 2030-02-28 | CG7: 2030-03-31 | CH7: 2030-04-30 | CI7: 2030-05-31 | CJ7: 2030-06-30 | CK7: 2030-07-31 | CL7: 2030-08-31 | CM7: 2030-09-30 | CN7: 2030-10-31 | CO7: 2030-11-30 | CP7: 2030-12-31 | CQ7: 2031-01-31 | CR7: 2031-02-28 | CS7: 2031-03-31 | CT7: 2031-04-30 | CU7: 2031-05-31 | CV7: 2031-06-30 | CW7: 2031-07-31 | CX7: 2031-08-31 | CY7: 2031-09-30 | CZ7: 2031-10-31 | DA7: 2031-11-30 | DB7: 2031-12-31 | DC7: 2032-01-31 | DD7: 2032-02-29 | DE7: 2032-03-31 | DF7: 2032-04-30 | DG7: 2032-05-31 | DH7: 2032-06-30 | DI7: 2032-07-31 | DJ7: 2032-08-31 | DK7: 2032-09-30 | DL7: 2032-10-31 | DM7: 2032-11-30 | DN7: 2032-12-31 | DO7: 2033-01-31 | DP7: 2033-02-28 | DQ7: 2033-03-31 | DR7: 2033-04-30 | DS7: 2033-05-31 | DT7: 2033-06-30 | DU7: 2033-07-31 | DV7: 2033-08-31 | DW7: 2033-09-30 | DX7: 2033-10-31 | DY7: 2033-11-30 | DZ7: 2033-12-31 | EA7: 2034-01-31 | EB7: 2034-02-28 | EC7: 2034-03-31 | ED7: 2034-04-30 | EE7: 2034-05-31 | EF7: 2034-06-30 | EG7: =EOMONTH(EF7,1) -> 2034-07-31 | EH7: 2034-08-31 | EI7: 2034-09-30 | EJ7: 2034-10-31 | EK7: 2034-11-30 | EL7: 2034-12-31 | EM7: 2035-01-31 | EN7: < | EO7: Total | EP7: Check
C8: budget begins | E8: =IF(D8:D19="","",D8:D19/global!$C$12) ->  | H8: =IF(D8:D16="","",G8:G16-F8:F16+1) ->  | J8: =C8:C19 -> budget begins | K8: =IF($D$8:$D$16="","",($F$8:$F$16<=K$5)*($G$8:$G$16>=K$5)*($D$8:$D$16/_xlfn.ANCHORARRAY($H$8))) ->  | L8: =IF($D$8:$D$16="","",($F$8:$F$16<=L$5)*($G$8:$G$16>=L$5)*($D$8:$D$16/_xlfn.ANCHORARRAY($H$8))) ->  | M8: =IF($D$8:$D$16="","",($F$8:$F$16<=M$5)*($G$8:$G$16>=M$5)*($D$8:$D$16/_xlfn.ANCHORARRAY($H$8))) ->  | N8: =IF($D$8:$D$16="","",($F$8:$F$16<=N$5)*($G$8:$G$16>=N$5)*($D$8:$D$16/_xlfn.ANCHORARRAY($H$8))) ->  | O8: =IF($D$8:$D$16="","",($F$8:$F$16<=O$5)*($G$8:$G$16>=O$5)*($D$8:$D$16/_xlfn.ANCHORARRAY($H$8))) ->  | P8: =IF($D$8:$D$16="","",($F$8:$F$16<=P$5)*($G$8:$G$16>=P$5)*($D$8:$D$16/_xlfn.ANCHORARRAY($H$8))) ->  | Q8: =IF($D$8:$D$16="","",($F$8:$F$16<=Q$5)*($G$8:$G$16>=Q$5)*($D$8:$D$16/_xlfn.ANCHORARRAY($H$8))) ->  | R8: =IF($D$8:$D$16="","",($F$8:$F$16<=R$5)*($G$8:$G$16>=R$5)*($D$8:$D$16/_xlfn.ANCHORARRAY($H$8))) ->  | S8: =IF($D$8:$D$16="","",($F$8:$F$16<=S$5)*($G$8:$G$16>=S$5)*($D$8:$D$16/_xlfn.ANCHORARRAY($H$8))) ->  | T8: =IF($D$8:$D$16="","",($F$8:$F$16<=T$5)*($G$8:$G$16>=T$5)*($D$8:$D$16/_xlfn.ANCHORARRAY($H$8))) ->  | U8: =IF($D$8:$D$16="","",($F$8:$F$16<=U$5)*($G$8:$G$16>=U$5)*($D$8:$D$16/_xlfn.ANCHORARRAY($H$8))) ->  | V8: =IF($D$8:$D$16="","",($F$8:$F$16<=V$5)*($G$8:$G$16>=V$5)*($D$8:$D$16/_xlfn.ANCHORARRAY($H$8))) ->  | W8: =IF($D$8:$D$16="","",($F$8:$F$16<=W$5)*($G$8:$G$16>=W$5)*($D$8:$D$16/_xlfn.ANCHORARRAY($H$8))) ->  | X8: =IF($D$8:$D$16="","",($F$8:$F$16<=X$5)*($G$8:$G$16>=X$5)*($D$8:$D$16/_xlfn.ANCHORARRAY($H$8))) ->  | Y8: =IF($D$8:$D$16="","",($F$8:$F$16<=Y$5)*($G$8:$G$16>=Y$5)*($D$8:$D$16/_xlfn.ANCHORARRAY($H$8))) ->  | Z8: =IF($D$8:$D$16="","",($F$8:$F$16<=Z$5)*($G$8:$G$16>=Z$5)*($D$8:$D$16/_xlfn.ANCHORARRAY($H$8))) ->  | AA8: =IF($D$8:$D$16="","",($F$8:$F$16<=AA$5)*($G$8:$G$16>=AA$5)*($D$8:$D$16/_xlfn.ANCHORARRAY($H$8))) ->  | AB8: =IF($D$8:$D$16="","",($F$8:$F$16<=AB$5)*($G$8:$G$16>=AB$5)*($D$8:$D$16/_xlfn.ANCHORARRAY($H$8))) ->  | AC8: =IF($D$8:$D$16="","",($F$8:$F$16<=AC$5)*($G$8:$G$16>=AC$5)*($D$8:$D$16/_xlfn.ANCHORARRAY($H$8))) ->  | AD8: =IF($D$8:$D$16="","",($F$8:$F$16<=AD$5)*($G$8:$G$16>=AD$5)*($D$8:$D$16/_xlfn.ANCHORARRAY($H$8))) ->  | AE8: =IF($D$8:$D$16="","",($F$8:$F$16<=AE$5)*($G$8:$G$16>=AE$5)*($D$8:$D$16/_xlfn.ANCHORARRAY($H$8))) ->  | AF8: =IF($D$8:$D$16="","",($F$8:$F$16<=AF$5)*($G$8:$G$16>=AF$5)*($D$8:$D$16/_xlfn.ANCHORARRAY($H$8))) ->  | AG8: =IF($D$8:$D$16="","",($F$8:$F$16<=AG$5)*($G$8:$G$16>=AG$5)*($D$8:$D$16/_xlfn.ANCHORARRAY($H$8))) ->  | AH8: =IF($D$8:$D$16="","",($F$8:$F$16<=AH$5)*($G$8:$G$16>=AH$5)*($D$8:$D$16/_xlfn.ANCHORARRAY($H$8))) ->  | AI8: =IF($D$8:$D$16="","",($F$8:$F$16<=AI$5)*($G$8:$G$16>=AI$5)*($D$8:$D$16/_xlfn.ANCHORARRAY($H$8))) ->  | AJ8: =IF($D$8:$D$16="","",($F$8:$F$16<=AJ$5)*($G$8:$G$16>=AJ$5)*($D$8:$D$16/_xlfn.ANCHORARRAY($H$8))) ->  | AK8: =IF($D$8:$D$16="","",($F$8:$F$16<=AK$5)*($G$8:$G$16>=AK$5)*($D$8:$D$16/_xlfn.ANCHORARRAY($H$8))) ->  | AL8: =IF($D$8:$D$16="","",($F$8:$F$16<=AL$5)*($G$8:$G$16>=AL$5)*($D$8:$D$16/_xlfn.ANCHORARRAY($H$8))) ->  | AM8: =IF($D$8:$D$16="","",($F$8:$F$16<=AM$5)*($G$8:$G$16>=AM$5)*($D$8:$D$16/_xlfn.ANCHORARRAY($H$8))) ->  | AN8: =IF($D$8:$D$16="","",($F$8:$F$16<=AN$5)*($G$8:$G$16>=AN$5)*($D$8:$D$16/_xlfn.ANCHORARRAY($H$8))) ->  | AO8: =IF($D$8:$D$16="","",($F$8:$F$16<=AO$5)*($G$8:$G$16>=AO$5)*($D$8:$D$16/_xlfn.ANCHORARRAY($H$8))) ->  | AP8: =IF($D$8:$D$16="","",($F$8:$F$16<=AP$5)*($G$8:$G$16>=AP$5)*($D$8:$D$16/_xlfn.ANCHORARRAY($H$8))) ->  | AQ8: =IF($D$8:$D$16="","",($F$8:$F$16<=AQ$5)*($G$8:$G$16>=AQ$5)*($D$8:$D$16/_xlfn.ANCHORARRAY($H$8))) ->  | AR8: =IF($D$8:$D$16="","",($F$8:$F$16<=AR$5)*($G$8:$G$16>=AR$5)*($D$8:$D$16/_xlfn.ANCHORARRAY($H$8))) ->  | AS8: =IF($D$8:$D$16="","",($F$8:$F$16<=AS$5)*($G$8:$G$16>=AS$5)*($D$8:$D$16/_xlfn.ANCHORARRAY($H$8))) ->  | AT8: =IF($D$8:$D$16="","",($F$8:$F$16<=AT$5)*($G$8:$G$16>=AT$5)*($D$8:$D$16/_xlfn.ANCHORARRAY($H$8))) ->  | AU8: =IF($D$8:$D$16="","",($F$8:$F$16<=AU$5)*($G$8:$G$16>=AU$5)*($D$8:$D$16/_xlfn.ANCHORARRAY($H$8))) ->  | AV8: =IF($D$8:$D$16="","",($F$8:$F$16<=AV$5)*($G$8:$G$16>=AV$5)*($D$8:$D$16/_xlfn.ANCHORARRAY($H$8))) ->  | AW8: =IF($D$8:$D$16="","",($F$8:$F$16<=AW$5)*($G$8:$G$16>=AW$5)*($D$8:$D$16/_xlfn.ANCHORARRAY($H$8))) ->  | AX8: =IF($D$8:$D$16="","",($F$8:$F$16<=AX$5)*($G$8:$G$16>=AX$5)*($D$8:$D$16/_xlfn.ANCHORARRAY($H$8))) ->  | AY8: =IF($D$8:$D$16="","",($F$8:$F$16<=AY$5)*($G$8:$G$16>=AY$5)*($D$8:$D$16/_xlfn.ANCHORARRAY($H$8))) ->  | AZ8: =IF($D$8:$D$16="","",($F$8:$F$16<=AZ$5)*($G$8:$G$16>=AZ$5)*($D$8:$D$16/_xlfn.ANCHORARRAY($H$8))) ->  | BA8: =IF($D$8:$D$16="","",($F$8:$F$16<=BA$5)*($G$8:$G$16>=BA$5)*($D$8:$D$16/_xlfn.ANCHORARRAY($H$8))) ->  | BB8: =IF($D$8:$D$16="","",($F$8:$F$16<=BB$5)*($G$8:$G$16>=BB$5)*($D$8:$D$16/_xlfn.ANCHORARRAY($H$8))) ->  | BC8: =IF($D$8:$D$16="","",($F$8:$F$16<=BC$5)*($G$8:$G$16>=BC$5)*($D$8:$D$16/_xlfn.ANCHORARRAY($H$8))) ->  | BD8: =IF($D$8:$D$16="","",($F$8:$F$16<=BD$5)*($G$8:$G$16>=BD$5)*($D$8:$D$16/_xlfn.ANCHORARRAY($H$8))) ->  | BE8: =IF($D$8:$D$16="","",($F$8:$F$16<=BE$5)*($G$8:$G$16>=BE$5)*($D$8:$D$16/_xlfn.ANCHORARRAY($H$8))) ->  | BF8: =IF($D$8:$D$16="","",($F$8:$F$16<=BF$5)*($G$8:$G$16>=BF$5)*($D$8:$D$16/_xlfn.ANCHORARRAY($H$8))) ->  | BG8: =IF($D$8:$D$16="","",($F$8:$F$16<=BG$5)*($G$8:$G$16>=BG$5)*($D$8:$D$16/_xlfn.ANCHORARRAY($H$8))) ->  | BH8: =IF($D$8:$D$16="","",($F$8:$F$16<=BH$5)*($G$8:$G$16>=BH$5)*($D$8:$D$16/_xlfn.ANCHORARRAY($H$8))) ->  | BI8: =IF($D$8:$D$16="","",($F$8:$F$16<=BI$5)*($G$8:$G$16>=BI$5)*($D$8:$D$16/_xlfn.ANCHORARRAY($H$8))) ->  | BJ8: =IF($D$8:$D$16="","",($F$8:$F$16<=BJ$5)*($G$8:$G$16>=BJ$5)*($D$8:$D$16/_xlfn.ANCHORARRAY($H$8))) ->  | BK8: =IF($D$8:$D$16="","",($F$8:$F$16<=BK$5)*($G$8:$G$16>=BK$5)*($D$8:$D$16/_xlfn.ANCHORARRAY($H$8))) ->  | BL8: =IF($D$8:$D$16="","",($F$8:$F$16<=BL$5)*($G$8:$G$16>=BL$5)*($D$8:$D$16/_xlfn.ANCHORARRAY($H$8))) ->  | BM8: =IF($D$8:$D$16="","",($F$8:$F$16<=BM$5)*($G$8:$G$16>=BM$5)*($D$8:$D$16/_xlfn.ANCHORARRAY($H$8))) ->  | BN8: =IF($D$8:$D$16="","",($F$8:$F$16<=BN$5)*($G$8:$G$16>=BN$5)*($D$8:$D$16/_xlfn.ANCHORARRAY($H$8))) ->  | BO8: =IF($D$8:$D$16="","",($F$8:$F$16<=BO$5)*($G$8:$G$16>=BO$5)*($D$8:$D$16/_xlfn.ANCHORARRAY($H$8))) ->  | BP8: =IF($D$8:$D$16="","",($F$8:$F$16<=BP$5)*($G$8:$G$16>=BP$5)*($D$8:$D$16/_xlfn.ANCHORARRAY($H$8))) ->  | BQ8: =IF($D$8:$D$16="","",($F$8:$F$16<=BQ$5)*($G$8:$G$16>=BQ$5)*($D$8:$D$16/_xlfn.ANCHORARRAY($H$8))) ->  | BR8: =IF($D$8:$D$16="","",($F$8:$F$16<=BR$5)*($G$8:$G$16>=BR$5)*($D$8:$D$16/_xlfn.ANCHORARRAY($H$8))) ->  | BS8: =IF($D$8:$D$16="","",($F$8:$F$16<=BS$5)*($G$8:$G$16>=BS$5)*($D$8:$D$16/_xlfn.ANCHORARRAY($H$8))) ->  | BT8: =IF($D$8:$D$16="","",($F$8:$F$16<=BT$5)*($G$8:$G$16>=BT$5)*($D$8:$D$16/_xlfn.ANCHORARRAY($H$8))) ->  | BU8: =IF($D$8:$D$16="","",($F$8:$F$16<=BU$5)*($G$8:$G$16>=BU$5)*($D$8:$D$16/_xlfn.ANCHORARRAY($H$8))) ->  | BV8: =IF($D$8:$D$16="","",($F$8:$F$16<=BV$5)*($G$8:$G$16>=BV$5)*($D$8:$D$16/_xlfn.ANCHORARRAY($H$8))) ->  | BW8: =IF($D$8:$D$16="","",($F$8:$F$16<=BW$5)*($G$8:$G$16>=BW$5)*($D$8:$D$16/_xlfn.ANCHORARRAY($H$8))) ->  | BX8: =IF($D$8:$D$16="","",($F$8:$F$16<=BX$5)*($G$8:$G$16>=BX$5)*($D$8:$D$16/_xlfn.ANCHORARRAY($H$8))) ->  | BY8: =IF($D$8:$D$16="","",($F$8:$F$16<=BY$5)*($G$8:$G$16>=BY$5)*($D$8:$D$16/_xlfn.ANCHORARRAY($H$8))) ->  | BZ8: =IF($D$8:$D$16="","",($F$8:$F$16<=BZ$5)*($G$8:$G$16>=BZ$5)*($D$8:$D$16/_xlfn.ANCHORARRAY($H$8))) ->  | CA8: =IF($D$8:$D$16="","",($F$8:$F$16<=CA$5)*($G$8:$G$16>=CA$5)*($D$8:$D$16/_xlfn.ANCHORARRAY($H$8))) ->  | CB8: =IF($D$8:$D$16="","",($F$8:$F$16<=CB$5)*($G$8:$G$16>=CB$5)*($D$8:$D$16/_xlfn.ANCHORARRAY($H$8))) ->  | CC8: =IF($D$8:$D$16="","",($F$8:$F$16<=CC$5)*($G$8:$G$16>=CC$5)*($D$8:$D$16/_xlfn.ANCHORARRAY($H$8))) ->  | CD8: =IF($D$8:$D$16="","",($F$8:$F$16<=CD$5)*($G$8:$G$16>=CD$5)*($D$8:$D$16/_xlfn.ANCHORARRAY($H$8))) ->  | CE8: =IF($D$8:$D$16="","",($F$8:$F$16<=CE$5)*($G$8:$G$16>=CE$5)*($D$8:$D$16/_xlfn.ANCHORARRAY($H$8))) ->  | CF8: =IF($D$8:$D$16="","",($F$8:$F$16<=CF$5)*($G$8:$G$16>=CF$5)*($D$8:$D$16/_xlfn.ANCHORARRAY($H$8))) ->  | CG8: =IF($D$8:$D$16="","",($F$8:$F$16<=CG$5)*($G$8:$G$16>=CG$5)*($D$8:$D$16/_xlfn.ANCHORARRAY($H$8))) ->  | CH8: =IF($D$8:$D$16="","",($F$8:$F$16<=CH$5)*($G$8:$G$16>=CH$5)*($D$8:$D$16/_xlfn.ANCHORARRAY($H$8))) ->  | CI8: =IF($D$8:$D$16="","",($F$8:$F$16<=CI$5)*($G$8:$G$16>=CI$5)*($D$8:$D$16/_xlfn.ANCHORARRAY($H$8))) ->  | CJ8: =IF($D$8:$D$16="","",($F$8:$F$16<=CJ$5)*($G$8:$G$16>=CJ$5)*($D$8:$D$16/_xlfn.ANCHORARRAY($H$8))) ->  | CK8: =IF($D$8:$D$16="","",($F$8:$F$16<=CK$5)*($G$8:$G$16>=CK$5)*($D$8:$D$16/_xlfn.ANCHORARRAY($H$8))) ->  | CL8: =IF($D$8:$D$16="","",($F$8:$F$16<=CL$5)*($G$8:$G$16>=CL$5)*($D$8:$D$16/_xlfn.ANCHORARRAY($H$8))) ->  | CM8: =IF($D$8:$D$16="","",($F$8:$F$16<=CM$5)*($G$8:$G$16>=CM$5)*($D$8:$D$16/_xlfn.ANCHORARRAY($H$8))) ->  | CN8: =IF($D$8:$D$16="","",($F$8:$F$16<=CN$5)*($G$8:$G$16>=CN$5)*($D$8:$D$16/_xlfn.ANCHORARRAY($H$8))) ->  | CO8: =IF($D$8:$D$16="","",($F$8:$F$16<=CO$5)*($G$8:$G$16>=CO$5)*($D$8:$D$16/_xlfn.ANCHORARRAY($H$8))) ->  | CP8: =IF($D$8:$D$16="","",($F$8:$F$16<=CP$5)*($G$8:$G$16>=CP$5)*($D$8:$D$16/_xlfn.ANCHORARRAY($H$8))) ->  | CQ8: =IF($D$8:$D$16="","",($F$8:$F$16<=CQ$5)*($G$8:$G$16>=CQ$5)*($D$8:$D$16/_xlfn.ANCHORARRAY($H$8))) ->  | CR8: =IF($D$8:$D$16="","",($F$8:$F$16<=CR$5)*($G$8:$G$16>=CR$5)*($D$8:$D$16/_xlfn.ANCHORARRAY($H$8))) ->  | CS8: =IF($D$8:$D$16="","",($F$8:$F$16<=CS$5)*($G$8:$G$16>=CS$5)*($D$8:$D$16/_xlfn.ANCHORARRAY($H$8))) ->  | CT8: =IF($D$8:$D$16="","",($F$8:$F$16<=CT$5)*($G$8:$G$16>=CT$5)*($D$8:$D$16/_xlfn.ANCHORARRAY($H$8))) ->  | CU8: =IF($D$8:$D$16="","",($F$8:$F$16<=CU$5)*($G$8:$G$16>=CU$5)*($D$8:$D$16/_xlfn.ANCHORARRAY($H$8))) ->  | CV8: =IF($D$8:$D$16="","",($F$8:$F$16<=CV$5)*($G$8:$G$16>=CV$5)*($D$8:$D$16/_xlfn.ANCHORARRAY($H$8))) ->  | CW8: =IF($D$8:$D$16="","",($F$8:$F$16<=CW$5)*($G$8:$G$16>=CW$5)*($D$8:$D$16/_xlfn.ANCHORARRAY($H$8))) ->  | CX8: =IF($D$8:$D$16="","",($F$8:$F$16<=CX$5)*($G$8:$G$16>=CX$5)*($D$8:$D$16/_xlfn.ANCHORARRAY($H$8))) ->  | CY8: =IF($D$8:$D$16="","",($F$8:$F$16<=CY$5)*($G$8:$G$16>=CY$5)*($D$8:$D$16/_xlfn.ANCHORARRAY($H$8))) ->  | CZ8: =IF($D$8:$D$16="","",($F$8:$F$16<=CZ$5)*($G$8:$G$16>=CZ$5)*($D$8:$D$16/_xlfn.ANCHORARRAY($H$8))) ->  | DA8: =IF($D$8:$D$16="","",($F$8:$F$16<=DA$5)*($G$8:$G$16>=DA$5)*($D$8:$D$16/_xlfn.ANCHORARRAY($H$8))) ->  | DB8: =IF($D$8:$D$16="","",($F$8:$F$16<=DB$5)*($G$8:$G$16>=DB$5)*($D$8:$D$16/_xlfn.ANCHORARRAY($H$8))) ->  | DC8: =IF($D$8:$D$16="","",($F$8:$F$16<=DC$5)*($G$8:$G$16>=DC$5)*($D$8:$D$16/_xlfn.ANCHORARRAY($H$8))) ->  | DD8: =IF($D$8:$D$16="","",($F$8:$F$16<=DD$5)*($G$8:$G$16>=DD$5)*($D$8:$D$16/_xlfn.ANCHORARRAY($H$8))) ->  | DE8: =IF($D$8:$D$16="","",($F$8:$F$16<=DE$5)*($G$8:$G$16>=DE$5)*($D$8:$D$16/_xlfn.ANCHORARRAY($H$8))) ->  | DF8: =IF($D$8:$D$16="","",($F$8:$F$16<=DF$5)*($G$8:$G$16>=DF$5)*($D$8:$D$16/_xlfn.ANCHORARRAY($H$8))) ->  | DG8: =IF($D$8:$D$16="","",($F$8:$F$16<=DG$5)*($G$8:$G$16>=DG$5)*($D$8:$D$16/_xlfn.ANCHORARRAY($H$8))) ->  | DH8: =IF($D$8:$D$16="","",($F$8:$F$16<=DH$5)*($G$8:$G$16>=DH$5)*($D$8:$D$16/_xlfn.ANCHORARRAY($H$8))) ->  | DI8: =IF($D$8:$D$16="","",($F$8:$F$16<=DI$5)*($G$8:$G$16>=DI$5)*($D$8:$D$16/_xlfn.ANCHORARRAY($H$8))) ->  | DJ8: =IF($D$8:$D$16="","",($F$8:$F$16<=DJ$5)*($G$8:$G$16>=DJ$5)*($D$8:$D$16/_xlfn.ANCHORARRAY($H$8))) ->  | DK8: =IF($D$8:$D$16="","",($F$8:$F$16<=DK$5)*($G$8:$G$16>=DK$5)*($D$8:$D$16/_xlfn.ANCHORARRAY($H$8))) ->  | DL8: =IF($D$8:$D$16="","",($F$8:$F$16<=DL$5)*($G$8:$G$16>=DL$5)*($D$8:$D$16/_xlfn.ANCHORARRAY($H$8))) ->  | DM8: =IF($D$8:$D$16="","",($F$8:$F$16<=DM$5)*($G$8:$G$16>=DM$5)*($D$8:$D$16/_xlfn.ANCHORARRAY($H$8))) ->  | DN8: =IF($D$8:$D$16="","",($F$8:$F$16<=DN$5)*($G$8:$G$16>=DN$5)*($D$8:$D$16/_xlfn.ANCHORARRAY($H$8))) ->  | DO8: =IF($D$8:$D$16="","",($F$8:$F$16<=DO$5)*($G$8:$G$16>=DO$5)*($D$8:$D$16/_xlfn.ANCHORARRAY($H$8))) ->  | DP8: =IF($D$8:$D$16="","",($F$8:$F$16<=DP$5)*($G$8:$G$16>=DP$5)*($D$8:$D$16/_xlfn.ANCHORARRAY($H$8))) ->  | DQ8: =IF($D$8:$D$16="","",($F$8:$F$16<=DQ$5)*($G$8:$G$16>=DQ$5)*($D$8:$D$16/_xlfn.ANCHORARRAY($H$8))) ->  | DR8: =IF($D$8:$D$16="","",($F$8:$F$16<=DR$5)*($G$8:$G$16>=DR$5)*($D$8:$D$16/_xlfn.ANCHORARRAY($H$8))) ->  | DS8: =IF($D$8:$D$16="","",($F$8:$F$16<=DS$5)*($G$8:$G$16>=DS$5)*($D$8:$D$16/_xlfn.ANCHORARRAY($H$8))) ->  | DT8: =IF($D$8:$D$16="","",($F$8:$F$16<=DT$5)*($G$8:$G$16>=DT$5)*($D$8:$D$16/_xlfn.ANCHORARRAY($H$8))) ->  | DU8: =IF($D$8:$D$16="","",($F$8:$F$16<=DU$5)*($G$8:$G$16>=DU$5)*($D$8:$D$16/_xlfn.ANCHORARRAY($H$8))) ->  | DV8: =IF($D$8:$D$16="","",($F$8:$F$16<=DV$5)*($G$8:$G$16>=DV$5)*($D$8:$D$16/_xlfn.ANCHORARRAY($H$8))) ->  | DW8: =IF($D$8:$D$16="","",($F$8:$F$16<=DW$5)*($G$8:$G$16>=DW$5)*($D$8:$D$16/_xlfn.ANCHORARRAY($H$8))) ->  | DX8: =IF($D$8:$D$16="","",($F$8:$F$16<=DX$5)*($G$8:$G$16>=DX$5)*($D$8:$D$16/_xlfn.ANCHORARRAY($H$8))) ->  | DY8: =IF($D$8:$D$16="","",($F$8:$F$16<=DY$5)*($G$8:$G$16>=DY$5)*($D$8:$D$16/_xlfn.ANCHORARRAY($H$8))) ->  | DZ8: =IF($D$8:$D$16="","",($F$8:$F$16<=DZ$5)*($G$8:$G$16>=DZ$5)*($D$8:$D$16/_xlfn.ANCHORARRAY($H$8))) ->  | EA8: =IF($D$8:$D$16="","",($F$8:$F$16<=EA$5)*($G$8:$G$16>=EA$5)*($D$8:$D$16/_xlfn.ANCHORARRAY($H$8))) ->  | EB8: =IF($D$8:$D$16="","",($F$8:$F$16<=EB$5)*($G$8:$G$16>=EB$5)*($D$8:$D$16/_xlfn.ANCHORARRAY($H$8))) ->  | EC8: =IF($D$8:$D$16="","",($F$8:$F$16<=EC$5)*($G$8:$G$16>=EC$5)*($D$8:$D$16/_xlfn.ANCHORARRAY($H$8))) ->  | ED8: =IF($D$8:$D$16="","",($F$8:$F$16<=ED$5)*($G$8:$G$16>=ED$5)*($D$8:$D$16/_xlfn.ANCHORARRAY($H$8))) ->  | EE8: =IF($D$8:$D$16="","",($F$8:$F$16<=EE$5)*($G$8:$G$16>=EE$5)*($D$8:$D$16/_xlfn.ANCHORARRAY($H$8))) ->  | EF8: =IF($D$8:$D$16="","",($F$8:$F$16<=EF$5)*($G$8:$G$16>=EF$5)*($D$8:$D$16/_xlfn.ANCHORARRAY($H$8))) ->  | EG8: =IF($D$8:$D$16="","",($F$8:$F$16<=EG$5)*($G$8:$G$16>=EG$5)*($D$8:$D$16/_xlfn.ANCHORARRAY($H$8))) ->  | EH8: =IF($D$8:$D$16="","",($F$8:$F$16<=EH$5)*($G$8:$G$16>=EH$5)*($D$8:$D$16/_xlfn.ANCHORARRAY($H$8))) ->  | EI8: =IF($D$8:$D$16="","",($F$8:$F$16<=EI$5)*($G$8:$G$16>=EI$5)*($D$8:$D$16/_xlfn.ANCHORARRAY($H$8))) ->  | EJ8: =IF($D$8:$D$16="","",($F$8:$F$16<=EJ$5)*($G$8:$G$16>=EJ$5)*($D$8:$D$16/_xlfn.ANCHORARRAY($H$8))) ->  | EK8: =IF($D$8:$D$16="","",($F$8:$F$16<=EK$5)*($G$8:$G$16>=EK$5)*($D$8:$D$16/_xlfn.ANCHORARRAY($H$8))) ->  | EL8: =IF($D$8:$D$16="","",($F$8:$F$16<=EL$5)*($G$8:$G$16>=EL$5)*($D$8:$D$16/_xlfn.ANCHORARRAY($H$8))) ->  | EM8: =IF($D$8:$D$16="","",($F$8:$F$16<=EM$5)*($G$8:$G$16>=EM$5)*($D$8:$D$16/_xlfn.ANCHORARRAY($H$8))) ->  | EO8: =_xlfn.BYROW(J8:EN16,_xlfn.LAMBDA(_xlpm.x,SUM(_xlpm.x))) -> 0 | EP8: =IF(_xlfn.ANCHORARRAY(EO8)<>D8:D16,1,0) -> 0
C9: Deferred Maintenance | D9: 50000 | E9: 0.5813953488 | F9: 1 | G9: 3 | H9: 3 | J9: Deferred Maintenance | K9: 0 | L9: 16666.66667 | M9: 16666.66667 | N9: 16666.66667 | O9: 0 | P9: 0 | Q9: 0 | R9: 0 | S9: 0 | T9: 0 | U9: 0 | V9: 0 | W9: 0 | X9: 0 | Y9: 0 | Z9: 0 | AA9: 0 | AB9: 0 | AC9: 0 | AD9: 0 | AE9: 0 | AF9: 0 | AG9: 0 | AH9: 0 | AI9: 0 | AJ9: 0 | AK9: 0 | AL9: 0 | AM9: 0 | AN9: 0 | AO9: 0 | AP9: 0 | AQ9: 0 | AR9: 0 | AS9: 0 | AT9: 0 | AU9: 0 | AV9: 0 | AW9: 0 | AX9: 0 | AY9: 0 | AZ9: 0 | BA9: 0 | BB9: 0 | BC9: 0 | BD9: 0 | BE9: 0 | BF9: 0 | BG9: 0 | BH9: 0 | BI9: 0 | BJ9: 0 | BK9: 0 | BL9: 0 | BM9: 0 | BN9: 0 | BO9: 0 | BP9: 0 | BQ9: 0 | BR9: 0 | BS9: 0 | BT9: 0 | BU9: 0 | BV9: 0 | BW9: 0 | BX9: 0 | BY9: 0 | BZ9: 0 | CA9: 0 | CB9: 0 | CC9: 0 | CD9: 0 | CE9: 0 | CF9: 0 | CG9: 0 | CH9: 0 | CI9: 0 | CJ9: 0 | CK9: 0 | CL9: 0 | CM9: 0 | CN9: 0 | CO9: 0 | CP9: 0 | CQ9: 0 | CR9: 0 | CS9: 0 | CT9: 0 | CU9: 0 | CV9: 0 | CW9: 0 | CX9: 0 | CY9: 0 | CZ9: 0 | DA9: 0 | DB9: 0 | DC9: 0 | DD9: 0 | DE9: 0 | DF9: 0 | DG9: 0 | DH9: 0 | DI9: 0 | DJ9: 0 | DK9: 0 | DL9: 0 | DM9: 0 | DN9: 0 | DO9: 0 | DP9: 0 | DQ9: 0 | DR9: 0 | DS9: 0 | DT9: 0 | DU9: 0 | DV9: 0 | DW9: 0 | DX9: 0 | DY9: 0 | DZ9: 0 | EA9: 0 | EB9: 0 | EC9: 0 | ED9: 0 | EE9: 0 | EF9: 0 | EG9: 0 | EH9: 0 | EI9: 0 | EJ9: 0 | EK9: 0 | EL9: 0 | EM9: 0 | EO9: 50000 | EP9: 0
C10: Common Road | D10: 200000 | E10: 2.325581395 | F10: 1 | G10: 3 | H10: 3 | J10: Common Road | K10: 0 | L10: 66666.66667 | M10: 66666.66667 | N10: 66666.66667 | O10: 0 | P10: 0 | Q10: 0 | R10: 0 | S10: 0 | T10: 0 | U10: 0 | V10: 0 | W10: 0 | X10: 0 | Y10: 0 | Z10: 0 | AA10: 0 | AB10: 0 | AC10: 0 | AD10: 0 | AE10: 0 | AF10: 0 | AG10: 0 | AH10: 0 | AI10: 0 | AJ10: 0 | AK10: 0 | AL10: 0 | AM10: 0 | AN10: 0 | AO10: 0 | AP10: 0 | AQ10: 0 | AR10: 0 | AS10: 0 | AT10: 0 | AU10: 0 | AV10: 0 | AW10: 0 | AX10: 0 | AY10: 0 | AZ10: 0 | BA10: 0 | BB10: 0 | BC10: 0 | BD10: 0 | BE10: 0 | BF10: 0 | BG10: 0 | BH10: 0 | BI10: 0 | BJ10: 0 | BK10: 0 | BL10: 0 | BM10: 0 | BN10: 0 | BO10: 0 | BP10: 0 | BQ10: 0 | BR10: 0 | BS10: 0 | BT10: 0 | BU10: 0 | BV10: 0 | BW10: 0 | BX10: 0 | BY10: 0 | BZ10: 0 | CA10: 0 | CB10: 0 | CC10: 0 | CD10: 0 | CE10: 0 | CF10: 0 | CG10: 0 | CH10: 0 | CI10: 0 | CJ10: 0 | CK10: 0 | CL10: 0 | CM10: 0 | CN10: 0 | CO10: 0 | CP10: 0 | CQ10: 0 | CR10: 0 | CS10: 0 | CT10: 0 | CU10: 0 | CV10: 0 | CW10: 0 | CX10: 0 | CY10: 0 | CZ10: 0 | DA10: 0 | DB10: 0 | DC10: 0 | DD10: 0 | DE10: 0 | DF10: 0 | DG10: 0 | DH10: 0 | DI10: 0 | DJ10: 0 | DK10: 0 | DL10: 0 | DM10: 0 | DN10: 0 | DO10: 0 | DP10: 0 | DQ10: 0 | DR10: 0 | DS10: 0 | DT10: 0 | DU10: 0 | DV10: 0 | DW10: 0 | DX10: 0 | DY10: 0 | DZ10: 0 | EA10: 0 | EB10: 0 | EC10: 0 | ED10: 0 | EE10: 0 | EF10: 0 | EG10: 0 | EH10: 0 | EI10: 0 | EJ10: 0 | EK10: 0 | EL10: 0 | EM10: 0 | EO10: 200000 | EP10: 0
C11: Fencing/Yard Improvements | D11: 100000 | E11: 1.162790698 | F11: 1 | G11: 3 | H11: 3 | J11: Fencing/Yard Improvements | K11: 0 | L11: 33333.33333 | M11: 33333.33333 | N11: 33333.33333 | O11: 0 | P11: 0 | Q11: 0 | R11: 0 | S11: 0 | T11: 0 | U11: 0 | V11: 0 | W11: 0 | X11: 0 | Y11: 0 | Z11: 0 | AA11: 0 | AB11: 0 | AC11: 0 | AD11: 0 | AE11: 0 | AF11: 0 | AG11: 0 | AH11: 0 | AI11: 0 | AJ11: 0 | AK11: 0 | AL11: 0 | AM11: 0 | AN11: 0 | AO11: 0 | AP11: 0 | AQ11: 0 | AR11: 0 | AS11: 0 | AT11: 0 | AU11: 0 | AV11: 0 | AW11: 0 | AX11: 0 | AY11: 0 | AZ11: 0 | BA11: 0 | BB11: 0 | BC11: 0 | BD11: 0 | BE11: 0 | BF11: 0 | BG11: 0 | BH11: 0 | BI11: 0 | BJ11: 0 | BK11: 0 | BL11: 0 | BM11: 0 | BN11: 0 | BO11: 0 | BP11: 0 | BQ11: 0 | BR11: 0 | BS11: 0 | BT11: 0 | BU11: 0 | BV11: 0 | BW11: 0 | BX11: 0 | BY11: 0 | BZ11: 0 | CA11: 0 | CB11: 0 | CC11: 0 | CD11: 0 | CE11: 0 | CF11: 0 | CG11: 0 | CH11: 0 | CI11: 0 | CJ11: 0 | CK11: 0 | CL11: 0 | CM11: 0 | CN11: 0 | CO11: 0 | CP11: 0 | CQ11: 0 | CR11: 0 | CS11: 0 | CT11: 0 | CU11: 0 | CV11: 0 | CW11: 0 | CX11: 0 | CY11: 0 | CZ11: 0 | DA11: 0 | DB11: 0 | DC11: 0 | DD11: 0 | DE11: 0 | DF11: 0 | DG11: 0 | DH11: 0 | DI11: 0 | DJ11: 0 | DK11: 0 | DL11: 0 | DM11: 0 | DN11: 0 | DO11: 0 | DP11: 0 | DQ11: 0 | DR11: 0 | DS11: 0 | DT11: 0 | DU11: 0 | DV11: 0 | DW11: 0 | DX11: 0 | DY11: 0 | DZ11: 0 | EA11: 0 | EB11: 0 | EC11: 0 | ED11: 0 | EE11: 0 | EF11: 0 | EG11: 0 | EH11: 0 | EI11: 0 | EJ11: 0 | EK11: 0 | EL11: 0 | EM11: 0 | EO11: 100000 | EP11: 0
C12: Other | D12: 0 | E12: 0 | F12: 1 | G12: 1 | H12: 1 | J12: Other | K12: 0 | L12: 0 | M12: 0 | N12: 0 | O12: 0 | P12: 0 | Q12: 0 | R12: 0 | S12: 0 | T12: 0 | U12: 0 | V12: 0 | W12: 0 | X12: 0 | Y12: 0 | Z12: 0 | AA12: 0 | AB12: 0 | AC12: 0 | AD12: 0 | AE12: 0 | AF12: 0 | AG12: 0 | AH12: 0 | AI12: 0 | AJ12: 0 | AK12: 0 | AL12: 0 | AM12: 0 | AN12: 0 | AO12: 0 | AP12: 0 | AQ12: 0 | AR12: 0 | AS12: 0 | AT12: 0 | AU12: 0 | AV12: 0 | AW12: 0 | AX12: 0 | AY12: 0 | AZ12: 0 | BA12: 0 | BB12: 0 | BC12: 0 | BD12: 0 | BE12: 0 | BF12: 0 | BG12: 0 | BH12: 0 | BI12: 0 | BJ12: 0 | BK12: 0 | BL12: 0 | BM12: 0 | BN12: 0 | BO12: 0 | BP12: 0 | BQ12: 0 | BR12: 0 | BS12: 0 | BT12: 0 | BU12: 0 | BV12: 0 | BW12: 0 | BX12: 0 | BY12: 0 | BZ12: 0 | CA12: 0 | CB12: 0 | CC12: 0 | CD12: 0 | CE12: 0 | CF12: 0 | CG12: 0 | CH12: 0 | CI12: 0 | CJ12: 0 | CK12: 0 | CL12: 0 | CM12: 0 | CN12: 0 | CO12: 0 | CP12: 0 | CQ12: 0 | CR12: 0 | CS12: 0 | CT12: 0 | CU12: 0 | CV12: 0 | CW12: 0 | CX12: 0 | CY12: 0 | CZ12: 0 | DA12: 0 | DB12: 0 | DC12: 0 | DD12: 0 | DE12: 0 | DF12: 0 | DG12: 0 | DH12: 0 | DI12: 0 | DJ12: 0 | DK12: 0 | DL12: 0 | DM12: 0 | DN12: 0 | DO12: 0 | DP12: 0 | DQ12: 0 | DR12: 0 | DS12: 0 | DT12: 0 | DU12: 0 | DV12: 0 | DW12: 0 | DX12: 0 | DY12: 0 | DZ12: 0 | EA12: 0 | EB12: 0 | EC12: 0 | ED12: 0 | EE12: 0 | EF12: 0 | EG12: 0 | EH12: 0 | EI12: 0 | EJ12: 0 | EK12: 0 | EL12: 0 | EM12: 0 | EO12: 0 | EP12: 0
C13: Other | D13: 0 | E13: 0 | F13: 1 | G13: 1 | H13: 1 | J13: Other | K13: 0 | L13: 0 | M13: 0 | N13: 0 | O13: 0 | P13: 0 | Q13: 0 | R13: 0 | S13: 0 | T13: 0 | U13: 0 | V13: 0 | W13: 0 | X13: 0 | Y13: 0 | Z13: 0 | AA13: 0 | AB13: 0 | AC13: 0 | AD13: 0 | AE13: 0 | AF13: 0 | AG13: 0 | AH13: 0 | AI13: 0 | AJ13: 0 | AK13: 0 | AL13: 0 | AM13: 0 | AN13: 0 | AO13: 0 | AP13: 0 | AQ13: 0 | AR13: 0 | AS13: 0 | AT13: 0 | AU13: 0 | AV13: 0 | AW13: 0 | AX13: 0 | AY13: 0 | AZ13: 0 | BA13: 0 | BB13: 0 | BC13: 0 | BD13: 0 | BE13: 0 | BF13: 0 | BG13: 0 | BH13: 0 | BI13: 0 | BJ13: 0 | BK13: 0 | BL13: 0 | BM13: 0 | BN13: 0 | BO13: 0 | BP13: 0 | BQ13: 0 | BR13: 0 | BS13: 0 | BT13: 0 | BU13: 0 | BV13: 0 | BW13: 0 | BX13: 0 | BY13: 0 | BZ13: 0 | CA13: 0 | CB13: 0 | CC13: 0 | CD13: 0 | CE13: 0 | CF13: 0 | CG13: 0 | CH13: 0 | CI13: 0 | CJ13: 0 | CK13: 0 | CL13: 0 | CM13: 0 | CN13: 0 | CO13: 0 | CP13: 0 | CQ13: 0 | CR13: 0 | CS13: 0 | CT13: 0 | CU13: 0 | CV13: 0 | CW13: 0 | CX13: 0 | CY13: 0 | CZ13: 0 | DA13: 0 | DB13: 0 | DC13: 0 | DD13: 0 | DE13: 0 | DF13: 0 | DG13: 0 | DH13: 0 | DI13: 0 | DJ13: 0 | DK13: 0 | DL13: 0 | DM13: 0 | DN13: 0 | DO13: 0 | DP13: 0 | DQ13: 0 | DR13: 0 | DS13: 0 | DT13: 0 | DU13: 0 | DV13: 0 | DW13: 0 | DX13: 0 | DY13: 0 | DZ13: 0 | EA13: 0 | EB13: 0 | EC13: 0 | ED13: 0 | EE13: 0 | EF13: 0 | EG13: 0 | EH13: 0 | EI13: 0 | EJ13: 0 | EK13: 0 | EL13: 0 | EM13: 0 | EO13: 0 | EP13: 0
C14: Other | D14: 0 | E14: 0 | F14: 1 | G14: 1 | H14: 1 | J14: Other | K14: 0 | L14: 0 | M14: 0 | N14: 0 | O14: 0 | P14: 0 | Q14: 0 | R14: 0 | S14: 0 | T14: 0 | U14: 0 | V14: 0 | W14: 0 | X14: 0 | Y14: 0 | Z14: 0 | AA14: 0 | AB14: 0 | AC14: 0 | AD14: 0 | AE14: 0 | AF14: 0 | AG14: 0 | AH14: 0 | AI14: 0 | AJ14: 0 | AK14: 0 | AL14: 0 | AM14: 0 | AN14: 0 | AO14: 0 | AP14: 0 | AQ14: 0 | AR14: 0 | AS14: 0 | AT14: 0 | AU14: 0 | AV14: 0 | AW14: 0 | AX14: 0 | AY14: 0 | AZ14: 0 | BA14: 0 | BB14: 0 | BC14: 0 | BD14: 0 | BE14: 0 | BF14: 0 | BG14: 0 | BH14: 0 | BI14: 0 | BJ14: 0 | BK14: 0 | BL14: 0 | BM14: 0 | BN14: 0 | BO14: 0 | BP14: 0 | BQ14: 0 | BR14: 0 | BS14: 0 | BT14: 0 | BU14: 0 | BV14: 0 | BW14: 0 | BX14: 0 | BY14: 0 | BZ14: 0 | CA14: 0 | CB14: 0 | CC14: 0 | CD14: 0 | CE14: 0 | CF14: 0 | CG14: 0 | CH14: 0 | CI14: 0 | CJ14: 0 | CK14: 0 | CL14: 0 | CM14: 0 | CN14: 0 | CO14: 0 | CP14: 0 | CQ14: 0 | CR14: 0 | CS14: 0 | CT14: 0 | CU14: 0 | CV14: 0 | CW14: 0 | CX14: 0 | CY14: 0 | CZ14: 0 | DA14: 0 | DB14: 0 | DC14: 0 | DD14: 0 | DE14: 0 | DF14: 0 | DG14: 0 | DH14: 0 | DI14: 0 | DJ14: 0 | DK14: 0 | DL14: 0 | DM14: 0 | DN14: 0 | DO14: 0 | DP14: 0 | DQ14: 0 | DR14: 0 | DS14: 0 | DT14: 0 | DU14: 0 | DV14: 0 | DW14: 0 | DX14: 0 | DY14: 0 | DZ14: 0 | EA14: 0 | EB14: 0 | EC14: 0 | ED14: 0 | EE14: 0 | EF14: 0 | EG14: 0 | EH14: 0 | EI14: 0 | EJ14: 0 | EK14: 0 | EL14: 0 | EM14: 0 | EO14: 0 | EP14: 0
C15: Other | D15: 0 | E15: 0 | F15: 1 | G15: 1 | H15: 1 | J15: Other | K15: 0 | L15: 0 | M15: 0 | N15: 0 | O15: 0 | P15: 0 | Q15: 0 | R15: 0 | S15: 0 | T15: 0 | U15: 0 | V15: 0 | W15: 0 | X15: 0 | Y15: 0 | Z15: 0 | AA15: 0 | AB15: 0 | AC15: 0 | AD15: 0 | AE15: 0 | AF15: 0 | AG15: 0 | AH15: 0 | AI15: 0 | AJ15: 0 | AK15: 0 | AL15: 0 | AM15: 0 | AN15: 0 | AO15: 0 | AP15: 0 | AQ15: 0 | AR15: 0 | AS15: 0 | AT15: 0 | AU15: 0 | AV15: 0 | AW15: 0 | AX15: 0 | AY15: 0 | AZ15: 0 | BA15: 0 | BB15: 0 | BC15: 0 | BD15: 0 | BE15: 0 | BF15: 0 | BG15: 0 | BH15: 0 | BI15: 0 | BJ15: 0 | BK15: 0 | BL15: 0 | BM15: 0 | BN15: 0 | BO15: 0 | BP15: 0 | BQ15: 0 | BR15: 0 | BS15: 0 | BT15: 0 | BU15: 0 | BV15: 0 | BW15: 0 | BX15: 0 | BY15: 0 | BZ15: 0 | CA15: 0 | CB15: 0 | CC15: 0 | CD15: 0 | CE15: 0 | CF15: 0 | CG15: 0 | CH15: 0 | CI15: 0 | CJ15: 0 | CK15: 0 | CL15: 0 | CM15: 0 | CN15: 0 | CO15: 0 | CP15: 0 | CQ15: 0 | CR15: 0 | CS15: 0 | CT15: 0 | CU15: 0 | CV15: 0 | CW15: 0 | CX15: 0 | CY15: 0 | CZ15: 0 | DA15: 0 | DB15: 0 | DC15: 0 | DD15: 0 | DE15: 0 | DF15: 0 | DG15: 0 | DH15: 0 | DI15: 0 | DJ15: 0 | DK15: 0 | DL15: 0 | DM15: 0 | DN15: 0 | DO15: 0 | DP15: 0 | DQ15: 0 | DR15: 0 | DS15: 0 | DT15: 0 | DU15: 0 | DV15: 0 | DW15: 0 | DX15: 0 | DY15: 0 | DZ15: 0 | EA15: 0 | EB15: 0 | EC15: 0 | ED15: 0 | EE15: 0 | EF15: 0 | EG15: 0 | EH15: 0 | EI15: 0 | EJ15: 0 | EK15: 0 | EL15: 0 | EM15: 0 | EO15: 0 | EP15: 0
C16: budget ends | J16: budget ends | EO16: 0 | EP16: 0
C17: Capital Budget | D17: =SUM(D8:D16) -> 350000 | E17: 4.069767442 | F17: =_xlfn.MINIFS(F8:F16,D8:D16,"<>0") -> 1 | G17: =_xlfn.MAXIFS(G8:G16,E8:E16,"<>0") -> 3 | H17: =+G17-F17+1 -> 3 | J17: Capital Budget | K17: =SUM(_xlfn.ANCHORARRAY(K8)) -> 0 | L17: =SUM(_xlfn.ANCHORARRAY(L8)) -> 116666.6667 | M17: 116666.6667 | N17: 116666.6667 | O17: 0 | P17: 0 | Q17: 0 | R17: 0 | S17: 0 | T17: 0 | U17: 0 | V17: 0 | W17: 0 | X17: 0 | Y17: 0 | Z17: 0 | AA17: 0 | AB17: 0 | AC17: 0 | AD17: 0 | AE17: 0 | AF17: 0 | AG17: 0 | AH17: 0 | AI17: 0 | AJ17: 0 | AK17: 0 | AL17: 0 | AM17: 0 | AN17: 0 | AO17: 0 | AP17: 0 | AQ17: 0 | AR17: 0 | AS17: 0 | AT17: 0 | AU17: 0 | AV17: 0 | AW17: 0 | AX17: 0 | AY17: 0 | AZ17: 0 | BA17: 0 | BB17: 0 | BC17: 0 | BD17: 0 | BE17: 0 | BF17: 0 | BG17: 0 | BH17: 0 | BI17: 0 | BJ17: 0 | BK17: 0 | BL17: 0 | BM17: 0 | BN17: 0 | BO17: 0 | BP17: 0 | BQ17: 0 | BR17: 0 | BS17: 0 | BT17: 0 | BU17: 0 | BV17: 0 | BW17: 0 | BX17: =SUM(_xlfn.ANCHORARRAY(BX8)) -> 0 | BY17: 0 | BZ17: 0 | CA17: 0 | CB17: 0 | CC17: 0 | CD17: 0 | CE17: 0 | CF17: 0 | CG17: 0 | CH17: 0 | CI17: 0 | CJ17: 0 | CK17: 0 | CL17: 0 | CM17: 0 | CN17: 0 | CO17: 0 | CP17: 0 | CQ17: 0 | CR17: 0 | CS17: 0 | CT17: 0 | CU17: 0 | CV17: 0 | CW17: 0 | CX17: 0 | CY17: 0 | CZ17: 0 | DA17: 0 | DB17: 0 | DC17: 0 | DD17: 0 | DE17: 0 | DF17: 0 | DG17: 0 | DH17: 0 | DI17: 0 | DJ17: 0 | DK17: 0 | DL17: 0 | DM17: 0 | DN17: 0 | DO17: 0 | DP17: 0 | DQ17: 0 | DR17: 0 | DS17: 0 | DT17: 0 | DU17: 0 | DV17: 0 | DW17: 0 | DX17: 0 | DY17: 0 | DZ17: 0 | EA17: 0 | EB17: 0 | EC17: 0 | ED17: 0 | EE17: 0 | EF17: 0 | EG17: 0 | EH17: 0 | EI17: 0 | EJ17: =SUM(_xlfn.ANCHORARRAY(EJ8)) -> 0 | EK17: 0 | EL17: 0 | EM17: 0 | EO17: =SUM(_xlfn.ANCHORARRAY(EO8)) -> 350000 | EP17: =COUNTIFS(_xlfn.ANCHORARRAY(EP8),"<>0") -> 0
C18: 0.05 | D18: =C18*D17 -> 17500 | E18: 0.2034883721 | F18: =F17 -> 1 | G18: =G17 -> 3 | H18: =+G18-F18+1 -> 3 | J18: 0.05 | K18: =K17:EN17*$C18 -> 0 | L18: 5833.333333 | M18: 5833.333333 | N18: 5833.333333 | O18: 0 | P18: 0 | Q18: 0 | R18: 0 | S18: 0 | T18: 0 | U18: 0 | V18: 0 | W18: 0 | X18: 0 | Y18: 0 | Z18: 0 | AA18: 0 | AB18: 0 | AC18: 0 | AD18: 0 | AE18: 0 | AF18: 0 | AG18: 0 | AH18: 0 | AI18: 0 | AJ18: 0 | AK18: 0 | AL18: 0 | AM18: 0 | AN18: 0 | AO18: 0 | AP18: 0 | AQ18: 0 | AR18: 0 | AS18: 0 | AT18: 0 | AU18: 0 | AV18: 0 | AW18: 0 | AX18: 0 | AY18: 0 | AZ18: 0 | BA18: 0 | BB18: 0 | BC18: 0 | BD18: 0 | BE18: 0 | BF18: 0 | BG18: 0 | BH18: 0 | BI18: 0 | BJ18: 0 | BK18: 0 | BL18: 0 | BM18: 0 | BN18: 0 | BO18: 0 | BP18: 0 | BQ18: 0 | BR18: 0 | BS18: 0 | BT18: 0 | BU18: 0 | BV18: 0 | BW18: 0 | BX18: 0 | BY18: 0 | BZ18: 0 | CA18: 0 | CB18: 0 | CC18: 0 | CD18: 0 | CE18: 0 | CF18: 0 | CG18: 0 | CH18: 0 | CI18: 0 | CJ18: 0 | CK18: 0 | CL18: 0 | CM18: 0 | CN18: 0 | CO18: 0 | CP18: 0 | CQ18: 0 | CR18: 0 | CS18: 0 | CT18: 0 | CU18: 0 | CV18: 0 | CW18: 0 | CX18: 0 | CY18: 0 | CZ18: 0 | DA18: 0 | DB18: 0 | DC18: 0 | DD18: 0 | DE18: 0 | DF18: 0 | DG18: 0 | DH18: 0 | DI18: 0 | DJ18: 0 | DK18: 0 | DL18: 0 | DM18: 0 | DN18: 0 | DO18: 0 | DP18: 0 | DQ18: 0 | DR18: 0 | DS18: 0 | DT18: 0 | DU18: 0 | DV18: 0 | DW18: 0 | DX18: 0 | DY18: 0 | DZ18: 0 | EA18: 0 | EB18: 0 | EC18: 0 | ED18: 0 | EE18: 0 | EF18: 0 | EG18: 0 | EH18: 0 | EI18: 0 | EJ18: 0 | EK18: 0 | EL18: 0 | EM18: 0 | EN18: 0 | EO18: =SUM(_xlfn.ANCHORARRAY(K18)) -> 17500 | EP18: =IF(EO18<>D18,1,0) -> 0
C19: Total Construction Budget | D19: =D17+D18 -> 367500 | E19: 4.273255814 | F19: =F18 -> 1 | G19: =G18 -> 3 | H19: =H18 -> 3 | J19: Total Construction Budget | K19: =K17:EN17+_xlfn.ANCHORARRAY(K18) -> 0 | L19: 122500 | M19: 122500 | N19: 122500 | O19: 0 | P19: 0 | Q19: 0 | R19: 0 | S19: 0 | T19: 0 | U19: 0 | V19: 0 | W19: 0 | X19: 0 | Y19: 0 | Z19: 0 | AA19: 0 | AB19: 0 | AC19: 0 | AD19: 0 | AE19: 0 | AF19: 0 | AG19: 0 | AH19: 0 | AI19: 0 | AJ19: 0 | AK19: 0 | AL19: 0 | AM19: 0 | AN19: 0 | AO19: 0 | AP19: 0 | AQ19: 0 | AR19: 0 | AS19: 0 | AT19: 0 | AU19: 0 | AV19: 0 | AW19: 0 | AX19: 0 | AY19: 0 | AZ19: 0 | BA19: 0 | BB19: 0 | BC19: 0 | BD19: 0 | BE19: 0 | BF19: 0 | BG19: 0 | BH19: 0 | BI19: 0 | BJ19: 0 | BK19: 0 | BL19: 0 | BM19: 0 | BN19: 0 | BO19: 0 | BP19: 0 | BQ19: 0 | BR19: 0 | BS19: 0 | BT19: 0 | BU19: 0 | BV19: 0 | BW19: 0 | BX19: 0 | BY19: 0 | BZ19: 0 | CA19: 0 | CB19: 0 | CC19: 0 | CD19: 0 | CE19: 0 | CF19: 0 | CG19: 0 | CH19: 0 | CI19: 0 | CJ19: 0 | CK19: 0 | CL19: 0 | CM19: 0 | CN19: 0 | CO19: 0 | CP19: 0 | CQ19: 0 | CR19: 0 | CS19: 0 | CT19: 0 | CU19: 0 | CV19: 0 | CW19: 0 | CX19: 0 | CY19: 0 | CZ19: 0 | DA19: 0 | DB19: 0 | DC19: 0 | DD19: 0 | DE19: 0 | DF19: 0 | DG19: 0 | DH19: 0 | DI19: 0 | DJ19: 0 | DK19: 0 | DL19: 0 | DM19: 0 | DN19: 0 | DO19: 0 | DP19: 0 | DQ19: 0 | DR19: 0 | DS19: 0 | DT19: 0 | DU19: 0 | DV19: 0 | DW19: 0 | DX19: 0 | DY19: 0 | DZ19: 0 | EA19: 0 | EB19: 0 | EC19: 0 | ED19: 0 | EE19: 0 | EF19: 0 | EG19: 0 | EH19: 0 | EI19: 0 | EJ19: 0 | EK19: 0 | EL19: 0 | EM19: 0 | EN19: 0 | EO19: =SUM(_xlfn.ANCHORARRAY(K19)) -> 367500 | EP19: =IF(EO19<>D19,1,0) -> 0
C23: Checks
C25: check | D25: result
C26: 0 | D26: 0
C27: timeline spends exact budget? | D27: =$EP$19 -> 0
C28: 0 | D28: 0
C29: local check | D29: =COUNTIFS(D26:D28,"<>0") -> 0

Sheet output >
B2: =global!$B$2 -> New Industrial Template
B3: Output Section Divider
B4: These output sheets are not meant to control or change the model. In other words, you could delete the output sheets and the model would keep working. They are downstream of everything else. If you want to update the model, you need to skip over to the 'control >' section. You can do that with a Windows shortcut: F5, then paste in 'control >'!A1, then go. Most shortcuts should work on Mac with the appropriate adjustments (e.g., CMD instead of CTRL), but I can't promise everything will work, especially the ALT commands.

Sheet Summary
A1: =Checks!$A$1 -> 0 | D1: Transaction Summary
A2: =$E$58 -> 0 | D2: =global!$C$15 -> New Industrial Template
D4: Output for Powerpoint, etc.
D6: Property Details | H6: =global!B80 -> Financing Details | J6: =global!C80 -> Senior | K6: =global!D80 -> Mezz | L6: =global!E80 -> Refi | N6: Sources & Uses | P6: At Close | Q6: Deal Life
D7: =global!B11 -> Year Built | F7: =global!C11 -> 2021 | H7: =global!B81 -> Active? | J7: =global!C81 -> 1 | K7: =global!D81 -> 0 | L7: =global!E81 -> 0
D8: =global!B12 -> Net Leasable Area | F8: =global!C12 -> 86000 | H8: =global!B82 -> Loan Amount | J8: =global!C82 -> 4094250 | K8: =global!D82 -> 0 | L8: =global!E82 -> 0 | N8: Sources
D9: =global!B13 -> Street Address | F9: =global!C13 -> 2222 Example | H9: =global!B127 -> LTV Output | J9: =global!C127 -> 0.5 | K9: =global!D127 -> 0.2 | L9: =global!E127 -> 0.5 | N9: Senior Acq. Loan Proceeds | P9: =global!C82 -> 4094250 | Q9: =P9 -> 4094250
D10: =global!B14 -> City / State / Zip | F10: =global!C14 -> City, GA | H10: =global!B84 -> Going-In DSCR | J10: =global!C84 -> 2.019868184 | K10: =global!D84 -> 0 | L10: =global!E84 -> 0 | N10: Mezz Acq. Loan Proceeds | P10: =global!$D$82 -> 0 | Q10: =P10 -> 0
D11: =global!B19 -> Total Spaces | F11: =global!C19 -> 30 | H11: =global!B85 -> Going-In Debt Yield | J11: =global!C85 -> 0.1615894547 | K11: =global!D85 -> 0 | L11: =global!E85 -> 0 | N11: LP Equity | P11: =global!D108 -> 3979212.75 | Q11: =P11+global!$C108*Summary!$P$15 -> 4320453.489
D12: =global!B20 -> Total Spaces Per 1,000 SF | F12: =global!C20 -> 0.3488372093 | H12: =global!B86 -> Fixed (FXD) or Floating (FLT)? | J12: =global!C86 -> FXD | K12: =global!D86 -> FXD | L12: =global!E86 -> FXD | N12: GP Equity | P12: =global!D109 -> 442134.75 | Q12: =P12+global!$C109*Summary!$P$15 -> 480050.3877
H13: =global!B129 -> FXD Rate / Spread to SOFR Output | J13: =global!C129 -> 0.08 | K13: =global!D129 -> 0.1 | L13: =global!E129 -> 0.056 | N13: CF From Operations | Q13: =Q14-SUM(Q9:Q12) -> 94020.49454
D14: Timing | H14: =global!B88 -> Interest Only Period | J14: =global!C88 -> 12 | K14: =global!D88 -> 60 | L14: =global!E88 -> 0 | N14: ="Total "&N8 -> Total Sources | P14: =SUM(P9:P12) -> 8515597.5 | Q14: =Q28 -> 8988774.371
D15: =global!B23 -> Closing Date (model will interpret as end of month) | F15: =global!C23 -> 2024-01-01 | H15: =global!B89 -> Loan Fee (% proceeds) | J15: =global!C89 -> 0.01 | K15: =global!D89 -> 0.01 | L15: =global!E89 -> 0.01 | N15: Addt'l Equity Req. Post-Close | P15: =global!$C$31 -> 379156.3768
D16: =global!B24 -> Hold Period (months) | F16: =global!C121 -> 60 | H16: =global!B90 -> Amortization | J16: =global!C90 -> 300 | K16: =global!D90 -> 300 | L16: =global!E90 -> 300
D17: =global!B25 -> Exit Date | F17: 2028-06-30 | H17: =global!B91 -> Term | J17: =global!C91 -> 60 | K17: =global!D91 -> 60 | L17: =global!E91 -> 60 | N17: Uses
H18: =global!B92 -> Refinance Month | J18: =global!C92 -> na | K18: =global!D92 -> na | L18: =global!E92 -> 60 | N18: Purchase Price | P18: =global!$C$29 -> 8188500 | Q18: =P18 -> 8188500
D19: Acquisition Information | N19: Acquisition Fee | P19: =cf_detail!$G$1274*-1 -> 163770 | Q19: 163770
D20: =global!B29 -> Purchase Price | F20: =global!C29 -> 8188500 | H20: =global!B97 -> Fee | K20: =global!C97 -> Rate | L20: =global!D97 -> Basis | N20: Closing Costs | P20: =global!$C$29*global!$C$34 -> 81885 | Q20: 81885
D21: Purchase Price PSF | F21: =F20/F8 -> 95.21511628 | H21: =global!B98 -> Monthly Admin Allocation | K21: =global!C98 -> 25 | N21: Setup Fees | P21: =global!C35*-1 -> 10500 | Q21: 10500
D22: Going-In NOI | F22: =global!$E$48 -> 706587.6248 | H22: =global!B99 -> Acquisition Fee (on Purchase Price) | K22: =global!C99 -> 0.02 | L22: =global!D99 -> Purchase Price | N22: Diligence Expenses | P22: =global!C36*-1 -> 30000 | Q22: 30000
D23: Going-In Cap Rate | F23: =F22/F20 -> 0.08629023934 | H23: =global!B100 -> Asset Management Fee (on NOI) | K23: =global!C100 -> 0 | L23: =global!D100 -> NOI | N23: Up-Front Working Capital | P23: =global!C30 -> 0 | Q23: 0
H24: =global!B101 -> Asset Management Fee (on Peak Equity) | K24: =global!C101 -> 0.015 | L24: =global!D101 -> Peak Equity | N24: Acquisition Loan Fees | P24: =global!$C$89*global!$C$82 -> 40942.5 | Q24: 40942.5
D25: Sale Information | H25: =global!B102 -> Refinance Allocation | K25: =global!C102 -> 0 | N25: Leasing Commissions | Q25: =cf_detail!$EK$2472*-1 -> 65676.87132
D26: Sale Value | F26: =global!$C$54 -> 14398241.01 | H26: =global!B103 -> Disposition Allocation | K26: =global!C103 -> 0.005 | N26: Tenant Improvements | Q26: =cf_detail!EK2473*-1 -> 40000
D27: Sale PSF | F27: =F26/$F$8 -> 167.4214071 | N27: Capital Projects | Q27: =construction!D19 -> 367500
D28: Exit Cap Rate | F28: =global!$C$49 -> 0.065 | N28: ="Total "&N17 -> Total Uses | P28: =SUM(P18:P24) -> 8515597.5 | Q28: =SUM(Q18:Q27) -> 8988774.371
D29: Costs of Sale | F29: =global!C65 -> 0.05
D30: Value CAGR | F30: =(F26/F20)^(1/('Cash Flow'!$H$225-1))-1 -> 0.1482216603
D32: Return Summary
D34: Project-Level Unlevered Return Metrics | I34: Project-Level Levered Return Metrics | N34: Equity Returns | O34: IRR | P34: EM | Q34: Profit
D35: Project-Level IRR | G35: =XIRR(cf_detail!$G$2474:$EI$2474,cf_detail!$G$3:$EI$3) -> 0.1764173925 | I35: Project-Level IRR | L35: =XIRR(cf_detail!$G$2480:$EI$2480,cf_detail!$G$3:$EI$3) -> 0.2115729511 | N35: Investors | O35: =waterfall!D80 -> 0.1873174846 | P35: =waterfall!D81 -> 2.174708909 | Q35: =SUM(waterfall!D79:EF79) -> 5099457.193
D36: Project-Level Mulitple | G36: =SUMIF(cf_detail!F2474:EJ2474,">0")/SUMIF(cf_detail!F2474:EJ2474,"<0")*-1 -> 2.043821496 | I36: Project-Level Equity Mulitple | L36: =SUMIF(cf_detail!F2480:EJ2480,">0")/SUMIF(cf_detail!F2480:EJ2480,"<0")*-1 -> 2.396394997 | N36: GP | O36: =waterfall!D89 -> 0.3705784023 | P36: =waterfall!D90 -> 4.391569783 | Q36: =SUM(waterfall!D88:EF88) -> 1635881.856
I37: Average Cash-on-Cash Return | L37: =AVERAGEIFS('Cash Flow'!$AE$39:$FI$39,'Cash Flow'!$AE$42:$FI$42,1)*12 -> 0.08670889722 | N37: GP Promote | Q37: =waterfall!$D$94 -> 1069275.502
N38: Note: GP returns exclude partnership fees
D40: Illustrative Investor Annual Returns | G40: 0 | H40: =+G40+1 -> 1 | I40: =+H40+1 -> 2 | J40: 3 | K40: 4 | L40: 5 | M40: 6 | N40: 7 | O40: 8 | P40: 9 | Q40: 10
D41: Investor Cash Flow | G41: =SUMIFS(waterfall!$C$79:$EG$79,waterfall!$C$37:$EG$37,Summary!G$40) -> -3979212.75 | H41: =SUMIFS(waterfall!$C$79:$EG$79,waterfall!$C$37:$EG$37,Summary!H$40) -> -210192.8642 | I41: =SUMIFS(waterfall!$C$79:$EG$79,waterfall!$C$37:$EG$37,Summary!I$40) -> 341884.5948 | J41: =SUMIFS(waterfall!$C$79:$EG$79,waterfall!$C$37:$EG$37,Summary!J$40) -> 359007.6464 | K41: =SUMIFS(waterfall!$C$79:$EG$79,waterfall!$C$37:$EG$37,Summary!K$40) -> 376558.7742 | L41: =SUMIFS(waterfall!$C$79:$EG$79,waterfall!$C$37:$EG$37,Summary!L$40) -> 8211411.791 | M41: =SUMIFS(waterfall!$C$79:$EG$79,waterfall!$C$37:$EG$37,Summary!M$40) -> 0 | N41: =SUMIFS(waterfall!$C$79:$EG$79,waterfall!$C$37:$EG$37,Summary!N$40) -> 0 | O41: =SUMIFS(waterfall!$C$79:$EG$79,waterfall!$C$37:$EG$37,Summary!O$40) -> 0 | P41: =SUMIFS(waterfall!$C$79:$EG$79,waterfall!$C$37:$EG$37,Summary!P$40) -> 0 | Q41: =SUMIFS(waterfall!$C$79:$EG$79,waterfall!$C$37:$EG$37,Summary!Q$40) -> 0
D42: Investor Cash on Cash Yield | H42: =waterfall!EJ83 -> -0.05282272585 | I42: =waterfall!EK83 -> 0.08160694531 | J42: =waterfall!EL83 -> 0.08569417226 | K42: =waterfall!EM83 -> 0.08988357989 | L42: =waterfall!EN83 -> 1.960042199 | M42: =waterfall!EO83 -> 0 | N42: =waterfall!EP83 -> 0 | O42: =waterfall!EQ83 -> 0 | P42: =waterfall!ER83 -> 0 | Q42: =waterfall!ES83 -> 0
D44: LP Profit per $100k Invested | F44: =(P35-1)*100000 -> 117470.8909
D46: Checks
D48: sensi reference | E48: =TEXT(L35,"0.0%")&" / "&TEXT(O35,"0.0%")&" / "&TEXT(P35,"0.0x") -> 21.2% / 18.7% / 2.2x
D50: check | E50: result
D51: 0 | E51: 0
D52: sources = uses? At close | E52: =P14-P28 -> 0
D53: equity foots to T0 lcf? | E53: ='Cash Flow'!H51+P11+P12 -> 0
D54: sources = uses? Deal life | E54: =Q28-Q14 -> 0
D55: going-in cap rate matches? | E55: =F23-cf_detail!G2496 -> 0
D56: profit foots to cf summary? | E56: =ROUND(SUM(G41:Q41)-Q35,6) -> 0
D57: 0 | E57: 0
D58: local check | E58: =COUNTIFS(E51:E57,"<>0") -> 0

Sheet Cash Flow
A1: =Checks!$A$1 -> 0 | G1: Cash Flow Output - Monthly On Right Side
A2: =$H$164 -> 0 | G2: =global!B2 -> New Industrial Template | AE2: MONTHLY CASH FLOWS
G4: Control (Hide Me for Output)
G5: Cash Flow Detail | H5: high
G6: ^ Zoom in / out of cash flow details. Shift + F9 for a fast refresh if you're only changing this.
C8: lease_id | G8: Choose Leases | H8: Show below? | J8: =Summary!D34 -> Project-Level Unlevered Return Metrics
C9: =_xlfn.VSTACK(_xlfn.ANCHORARRAY(leases!DB228),"bldg") -> 1 | G9: =IF(_xlfn.ANCHORARRAY($C9)="bldg","Building General",_xlfn.XLOOKUP(_xlfn.ANCHORARRAY($C9),leases!$C$80:$CZ$80,leases!$C$81:$CZ$81,0)) -> Suite 1 - Example Tenant Lease | H9: 1 | J9: =Summary!D35 -> Project-Level IRR | M9: =Summary!G35 -> 0.1764173925
C10: 2 | G10: Suite 2 - Shop | H10: 1 | J10: =Summary!D36 -> Project-Level Mulitple | M10: =Summary!G36 -> 2.043821496
C11: 3 | G11: Suite 3 - Blank | H11: 1
C12: 4 | G12: Suite 4 - Blank | H12: 1 | J12: =Summary!I34 -> Project-Level Levered Return Metrics
C13: 5 | G13: Suite 5 - Blank | H13: 1 | J13: =Summary!I35 -> Project-Level IRR | M13: =Summary!L35 -> 0.2115729511
C14: 6 | G14: Suite 6 - Blank | H14: 1 | J14: =Summary!I36 -> Project-Level Equity Mulitple | M14: =Summary!L36 -> 2.396394997
C15: 7 | G15: Suite 7 - Blank | H15: 1 | J15: =Summary!I37 -> Average Cash-on-Cash Return | M15: =Summary!L37 -> 0.08670889722
C16: 8 | G16: Suite 8 - Blank | H16: 1
C17: 9 | G17: Suite 9 - Blank | H17: 1 | J17: =Summary!N34 -> Equity Returns | K17: =Summary!O34 -> IRR | L17: =Summary!P34 -> EM | M17: =Summary!Q34 -> Profit
C18: 10 | G18: Suite 10 - Blank | H18: 1 | J18: =Summary!N35 -> Investors | K18: =Summary!O35 -> 0.1873174846 | L18: =Summary!P35 -> 2.174708909 | M18: =Summary!Q35 -> 5099457.193
C19: 11 | G19: Suite 11 - Blank | H19: 1 | J19: =Summary!N36 -> GP | K19: =Summary!O36 -> 0.3705784023 | L19: =Summary!P36 -> 4.391569783 | M19: =Summary!Q36 -> 1635881.856
C20: 12 | G20: Suite 12 - Blank | H20: 1 | J20: =Summary!N37 -> GP Promote | M20: =Summary!Q37 -> 1069275.502
C21: 13 | G21: Suite 13 - Blank | H21: 1 | J21: =Summary!N38 -> Note: GP returns exclude partnership fees
C22: 14 | G22: Suite 14 - Blank | H22: 1
C23: 15 | G23: Suite 15 - Blank | H23: 1
C24: 16 | G24: Suite 16 - Blank | H24: 1
C25: 17 | G25: Suite 17 - Blank | H25: 1
C26: 18 | G26: Suite 18 - Blank | H26: 1
C27: 19 | G27: Suite 19 - Blank | H27: 1
C28: 20 | G28: Suite 20 - Blank | H28: 1
C29: bldg | G29: Building General | H29: 1
C30: 0 | G30: Total | H30: =SUM(H9:H29) -> 21
G31: ^ Drill into specific lease & general building cash flows.
G33: Metrics | AE33: =IF(G33:G56="","",G33:G56) -> Metrics
G34: metrics begins | AE34: metrics begins
G35: DSCR | I35: =IFERROR(I47/I49*-1,0) -> 2.019868184 | J35: 2.252462728 | K35: 2.30437909 | L35: 2.357593361 | M35: 2.412137989 | N35: 0 | O35: 0 | P35: 0 | Q35: 0 | R35: 0 | S35: 0 | AE35: DSCR | AF35: =IFERROR(AF47/AF49*-1,0) -> 0 | AG35: =IFERROR(AG47/AG49*-1,0) -> 1.93999005 | AH35: =IFERROR(AH47/AH49*-1,0) -> 1.939962263 | AI35: 1.939934418 | AJ35: 1.939906515 | AK35: =IFERROR(AK47/AK49*-1,0) -> 1.939878555 | AL35: 1.939850538 | AM35: 1.939822463 | AN35: 1.93979433 | AO35: 2.043805846 | AP35: 2.043805846 | AQ35: 2.043805846 | AR35: 2.587861533 | AS35: 2.235300294 | AT35: 2.235300294 | AU35: 2.235300294 | AV35: 2.235300294 | AW35: 2.235300294 | AX35: 2.235300294 | AY35: 2.235300294 | AZ35: 2.235300294 | BA35: 2.286787596 | BB35: 2.286787596 | BC35: 2.286787596 | BD35: 2.286787596 | BE35: 2.286787596 | BF35: 2.286787596 | BG35: 2.286787596 | BH35: 2.286787596 | BI35: 2.286787596 | BJ35: 2.286787596 | BK35: 2.286787596 | BL35: 2.286787596 | BM35: 2.339562079 | BN35: 2.339562079 | BO35: 2.339562079 | BP35: 2.339562079 | BQ35: 2.339562079 | BR35: 2.339562079 | BS35: 2.339562079 | BT35: 2.339562079 | BU35: 2.339562079 | BV35: 2.339562079 | BW35: 2.339562079 | BX35: 2.339562079 | BY35: 2.393655925 | BZ35: 2.393655925 | CA35: 2.393655925 | CB35: 2.393655925 | CC35: 2.393655925 | CD35: 2.393655925 | CE35: 2.393655925 | CF35: 2.393655925 | CG35: 2.393655925 | CH35: 2.393655925 | CI35: 2.393655925 | CJ35: 2.393655925 | CK35: 2.449102117 | CL35: 2.449102117 | CM35: 2.449102117 | CN35: 2.449102117 | CO35: 0 | CP35: 0 | CQ35: 0 | CR35: 0 | CS35: 0 | CT35: 0 | CU35: 0 | CV35: 0 | CW35: =IFERROR(CW47/CW49*-1,0) -> 0 | CX35: 0 | CY35: 0 | CZ35: 0 | DA35: 0 | DB35: 0 | DC35: 0 | DD35: 0 | DE35: 0 | DF35: 0 | DG35: 0 | DH35: 0 | DI35: 0 | DJ35: 0 | DK35: 0 | DL35: 0 | DM35: 0 | DN35: 0 | DO35: 0 | DP35: 0 | DQ35: 0 | DR35: 0 | DS35: 0 | DT35: 0 | DU35: 0 | DV35: 0 | DW35: 0 | DX35: 0 | DY35: 0 | DZ35: 0 | EA35: 0 | EB35: 0 | EC35: 0 | ED35: 0 | EE35: 0 | EF35: 0 | EG35: 0 | EH35: 0 | EI35: 0 | EJ35: 0 | EK35: 0 | EL35: 0 | EM35: 0 | EN35: 0 | EO35: 0 | EP35: 0 | EQ35: 0 | ER35: 0 | ES35: 0 | ET35: 0 | EU35: 0 | EV35: 0 | EW35: 0 | EX35: 0 | EY35: 0 | EZ35: 0 | FA35: 0 | FB35: 0 | FC35: 0 | FD35: 0 | FE35: 0 | FF35: 0 | FG35: 0 | FH35: 0
G36: Cap Rate on PP | I36: =IF(I$42=0,0,I$54/global!$C$29) -> 0.08079472734 | J36: =IF(J$42=0,0,J$54/global!$C$29) -> 0.104309236 | K36: =IF(K$42=0,0,K$54/global!$C$29) -> 0.1067134294 | L36: =IF(L$42=0,0,L$54/global!$C$29) -> 0.1091777277 | M36: =IF(M$42=0,0,M$54/global!$C$29) -> 0.1117036334 | N36: =IF(N$42=0,0,N$54/global!$C$29) -> 0 | O36: =IF(O$42=0,0,O$54/global!$C$29) -> 0 | P36: =IF(P$42=0,0,P$54/global!$C$29) -> 0 | Q36: =IF(Q$42=0,0,Q$54/global!$C$29) -> 0 | R36: =IF(R$42=0,0,R$54/global!$C$29) -> 0 | S36: =IF(S$42=0,0,S$54/global!$C$29) -> 0 | AE36: Cap Rate on PP | AF36: =IF(AF$42=0,0,AF$54/global!$C$29) -> 0 | AG36: =IF(AG$42=0,0,AG$54/global!$C$29) -> 0.006466633501 | AH36: =IF(AH$42=0,0,AH$54/global!$C$29) -> 0.006466540875 | AI36: =IF(AI$42=0,0,AI$54/global!$C$29) -> 0.006466448059 | AJ36: =IF(AJ$42=0,0,AJ$54/global!$C$29) -> 0.006466355051 | AK36: =IF(AK$42=0,0,AK$54/global!$C$29) -> 0.006466261851 | AL36: =IF(AL$42=0,0,AL$54/global!$C$29) -> 0.00646616846 | AM36: =IF(AM$42=0,0,AM$54/global!$C$29) -> 0.006466074876 | AN36: =IF(AN$42=0,0,AN$54/global!$C$29) -> -0.006439541441 | AO36: =IF(AO$42=0,0,AO$54/global!$C$29) -> 0.003149011486 | AP36: =IF(AP$42=0,0,AP$54/global!$C$29) -> 0.003149011486 | AQ36: =IF(AQ$42=0,0,AQ$54/global!$C$29) -> 0.003149011486 | AR36: =IF(AR$42=0,0,AR$54/global!$C$29) -> 0.008626205112 | AS36: =IF(AS$42=0,0,AS$54/global!$C$29) -> 0.008626205112 | AT36: =IF(AT$42=0,0,AT$54/global!$C$29) -> 0.008626205112 | AU36: =IF(AU$42=0,0,AU$54/global!$C$29) -> 0.008626205112 | AV36: =IF(AV$42=0,0,AV$54/global!$C$29) -> 0.008626205112 | AW36: =IF(AW$42=0,0,AW$54/global!$C$29) -> 0.008626205112 | AX36: =IF(AX$42=0,0,AX$54/global!$C$29) -> 0.008626205112 | AY36: =IF(AY$42=0,0,AY$54/global!$C$29) -> 0.008626205112 | AZ36: =IF(AZ$42=0,0,AZ$54/global!$C$29) -> 0.008626205112 | BA36: =IF(BA$42=0,0,BA$54/global!$C$29) -> 0.008824898783 | BB36: =IF(BB$42=0,0,BB$54/global!$C$29) -> 0.008824898783 | BC36: =IF(BC$42=0,0,BC$54/global!$C$29) -> 0.008824898783 | BD36: =IF(BD$42=0,0,BD$54/global!$C$29) -> 0.008824898783 | BE36: =IF(BE$42=0,0,BE$54/global!$C$29) -> 0.008824898783 | BF36: =IF(BF$42=0,0,BF$54/global!$C$29) -> 0.008824898783 | BG36: =IF(BG$42=0,0,BG$54/global!$C$29) -> 0.008824898783 | BH36: =IF(BH$42=0,0,BH$54/global!$C$29) -> 0.008824898783 | BI36: =IF(BI$42=0,0,BI$54/global!$C$29) -> 0.008824898783 | BJ36: =IF(BJ$42=0,0,BJ$54/global!$C$29) -> 0.008824898783 | BK36: =IF(BK$42=0,0,BK$54/global!$C$29) -> 0.008824898783 | BL36: =IF(BL$42=0,0,BL$54/global!$C$29) -> 0.008824898783 | BM36: =IF(BM$42=0,0,BM$54/global!$C$29) -> 0.009028559795 | BN36: =IF(BN$42=0,0,BN$54/global!$C$29) -> 0.009028559795 | BO36: =IF(BO$42=0,0,BO$54/global!$C$29) -> 0.009028559795 | BP36: =IF(BP$42=0,0,BP$54/global!$C$29) -> 0.009028559795 | BQ36: =IF(BQ$42=0,0,BQ$54/global!$C$29) -> 0.009028559795 | BR36: =IF(BR$42=0,0,BR$54/global!$C$29) -> 0.009028559795 | BS36: =IF(BS$42=0,0,BS$54/global!$C$29) -> 0.009028559795 | BT36: =IF(BT$42=0,0,BT$54/global!$C$29) -> 0.009028559795 | BU36: =IF(BU$42=0,0,BU$54/global!$C$29) -> 0.009028559795 | BV36: =IF(BV$42=0,0,BV$54/global!$C$29) -> 0.009028559795 | BW36: =IF(BW$42=0,0,BW$54/global!$C$29) -> 0.009028559795 | BX36: =IF(BX$42=0,0,BX$54/global!$C$29) -> 0.009028559795 | BY36: =IF(BY$42=0,0,BY$54/global!$C$29) -> 0.009237312333 | BZ36: =IF(BZ$42=0,0,BZ$54/global!$C$29) -> 0.009237312333 | CA36: =IF(CA$42=0,0,CA$54/global!$C$29) -> 0.009237312333 | CB36: =IF(CB$42=0,0,CB$54/global!$C$29) -> 0.009237312333 | CC36: =IF(CC$42=0,0,CC$54/global!$C$29) -> 0.009237312333 | CD36: =IF(CD$42=0,0,CD$54/global!$C$29) -> 0.009237312333 | CE36: =IF(CE$42=0,0,CE$54/global!$C$29) -> 0.009237312333 | CF36: =IF(CF$42=0,0,CF$54/global!$C$29) -> 0.009237312333 | CG36: =IF(CG$42=0,0,CG$54/global!$C$29) -> 0.009237312333 | CH36: =IF(CH$42=0,0,CH$54/global!$C$29) -> 0.009237312333 | CI36: =IF(CI$42=0,0,CI$54/global!$C$29) -> 0.009237312333 | CJ36: =IF(CJ$42=0,0,CJ$54/global!$C$29) -> 0.009237312333 | CK36: =IF(CK$42=0,0,CK$54/global!$C$29) -> 0.009451283685 | CL36: =IF(CL$42=0,0,CL$54/global!$C$29) -> 0.009451283685 | CM36: =IF(CM$42=0,0,CM$54/global!$C$29) -> 0.009451283685 | CN36: =IF(CN$42=0,0,CN$54/global!$C$29) -> 0.009451283685 | CO36: =IF(CO$42=0,0,CO$54/global!$C$29) -> 0 | CP36: =IF(CP$42=0,0,CP$54/global!$C$29) -> 0 | CQ36: =IF(CQ$42=0,0,CQ$54/global!$C$29) -> 0 | CR36: =IF(CR$42=0,0,CR$54/global!$C$29) -> 0 | CS36: =IF(CS$42=0,0,CS$54/global!$C$29) -> 0 | CT36: =IF(CT$42=0,0,CT$54/global!$C$29) -> 0 | CU36: =IF(CU$42=0,0,CU$54/global!$C$29) -> 0 | CV36: =IF(CV$42=0,0,CV$54/global!$C$29) -> 0 | CW36: =IF(CW$42=0,0,CW$54/global!$C$29) -> 0 | CX36: =IF(CX$42=0,0,CX$54/global!$C$29) -> 0 | CY36: =IF(CY$42=0,0,CY$54/global!$C$29) -> 0 | CZ36: =IF(CZ$42=0,0,CZ$54/global!$C$29) -> 0 | DA36: =IF(DA$42=0,0,DA$54/global!$C$29) -> 0 | DB36: =IF(DB$42=0,0,DB$54/global!$C$29) -> 0 | DC36: =IF(DC$42=0,0,DC$54/global!$C$29) -> 0 | DD36: =IF(DD$42=0,0,DD$54/global!$C$29) -> 0 | DE36: =IF(DE$42=0,0,DE$54/global!$C$29) -> 0 | DF36: =IF(DF$42=0,0,DF$54/global!$C$29) -> 0 | DG36: =IF(DG$42=0,0,DG$54/global!$C$29) -> 0 | DH36: =IF(DH$42=0,0,DH$54/global!$C$29) -> 0 | DI36: =IF(DI$42=0,0,DI$54/global!$C$29) -> 0 | DJ36: =IF(DJ$42=0,0,DJ$54/global!$C$29) -> 0 | DK36: =IF(DK$42=0,0,DK$54/global!$C$29) -> 0 | DL36: =IF(DL$42=0,0,DL$54/global!$C$29) -> 0 | DM36: =IF(DM$42=0,0,DM$54/global!$C$29) -> 0 | DN36: =IF(DN$42=0,0,DN$54/global!$C$29) -> 0 | DO36: =IF(DO$42=0,0,DO$54/global!$C$29) -> 0 | DP36: =IF(DP$42=0,0,DP$54/global!$C$29) -> 0 | DQ36: =IF(DQ$42=0,0,DQ$54/global!$C$29) -> 0 | DR36: =IF(DR$42=0,0,DR$54/global!$C$29) -> 0 | DS36: =IF(DS$42=0,0,DS$54/global!$C$29) -> 0 | DT36: =IF(DT$42=0,0,DT$54/global!$C$29) -> 0 | DU36: =IF(DU$42=0,0,DU$54/global!$C$29) -> 0 | DV36: =IF(DV$42=0,0,DV$54/global!$C$29) -> 0 | DW36: =IF(DW$42=0,0,DW$54/global!$C$29) -> 0 | DX36: =IF(DX$42=0,0,DX$54/global!$C$29) -> 0 | DY36: =IF(DY$42=0,0,DY$54/global!$C$29) -> 0 | DZ36: =IF(DZ$42=0,0,DZ$54/global!$C$29) -> 0 | EA36: =IF(EA$42=0,0,EA$54/global!$C$29) -> 0 | EB36: =IF(EB$42=0,0,EB$54/global!$C$29) -> 0 | EC36: =IF(EC$42=0,0,EC$54/global!$C$29) -> 0 | ED36: =IF(ED$42=0,0,ED$54/global!$C$29) -> 0 | EE36: =IF(EE$42=0,0,EE$54/global!$C$29) -> 0 | EF36: =IF(EF$42=0,0,EF$54/global!$C$29) -> 0 | EG36: =IF(EG$42=0,0,EG$54/global!$C$29) -> 0 | EH36: =IF(EH$42=0,0,EH$54/global!$C$29) -> 0 | EI36: =IF(EI$42=0,0,EI$54/global!$C$29) -> 0 | EJ36: =IF(EJ$42=0,0,EJ$54/global!$C$29) -> 0 | EK36: =IF(EK$42=0,0,EK$54/global!$C$29) -> 0 | EL36: =IF(EL$42=0,0,EL$54/global!$C$29) -> 0 | EM36: =IF(EM$42=0,0,EM$54/global!$C$29) -> 0 | EN36: =IF(EN$42=0,0,EN$54/global!$C$29) -> 0 | EO36: =IF(EO$42=0,0,EO$54/global!$C$29) -> 0 | EP36: =IF(EP$42=0,0,EP$54/global!$C$29) -> 0 | EQ36: =IF(EQ$42=0,0,EQ$54/global!$C$29) -> 0 | ER36: =IF(ER$42=0,0,ER$54/global!$C$29) -> 0 | ES36: =IF(ES$42=0,0,ES$54/global!$C$29) -> 0 | ET36: =IF(ET$42=0,0,ET$54/global!$C$29) -> 0 | EU36: =IF(EU$42=0,0,EU$54/global!$C$29) -> 0 | EV36: =IF(EV$42=0,0,EV$54/global!$C$29) -> 0 | EW36: =IF(EW$42=0,0,EW$54/global!$C$29) -> 0 | EX36: =IF(EX$42=0,0,EX$54/global!$C$29) -> 0 | EY36: =IF(EY$42=0,0,EY$54/global!$C$29) -> 0 | EZ36: =IF(EZ$42=0,0,EZ$54/global!$C$29) -> 0 | FA36: =IF(FA$42=0,0,FA$54/global!$C$29) -> 0 | FB36: =IF(FB$42=0,0,FB$54/global!$C$29) -> 0 | FC36: =IF(FC$42=0,0,FC$54/global!$C$29) -> 0 | FD36: =IF(FD$42=0,0,FD$54/global!$C$29) -> 0 | FE36: =IF(FE$42=0,0,FE$54/global!$C$29) -> 0 | FF36: =IF(FF$42=0,0,FF$54/global!$C$29) -> 0 | FG36: =IF(FG$42=0,0,FG$54/global!$C$29) -> 0 | FH36: =IF(FH$42=0,0,FH$54/global!$C$29) -> 0
G37: Cap Rate on Total Cost (at Close) | I37: =IF(I$42=0,0,I$54/Summary!$Q$28) -> 0.07360153871 | J37: =IF(J$42=0,0,J$54/Summary!$Q$28) -> 0.09502254077 | K37: =IF(K$42=0,0,K$54/Summary!$Q$28) -> 0.09721268784 | L37: =IF(L$42=0,0,L$54/Summary!$Q$28) -> 0.09945758858 | M37: =IF(M$42=0,0,M$54/Summary!$Q$28) -> 0.1017586118 | N37: =IF(N$42=0,0,N$54/Summary!$Q$28) -> 0 | O37: =IF(O$42=0,0,O$54/Summary!$Q$28) -> 0 | P37: =IF(P$42=0,0,P$54/Summary!$Q$28) -> 0 | Q37: =IF(Q$42=0,0,Q$54/Summary!$Q$28) -> 0 | R37: =IF(R$42=0,0,R$54/Summary!$Q$28) -> 0 | S37: =IF(S$42=0,0,S$54/Summary!$Q$28) -> 0 | AE37: Cap Rate on Total Cost (at Close) | AF37: =IF(AF$42=0,0,AF$54/Summary!$P$28) -> 0 | AG37: =IF(AG$42=0,0,AG$54/Summary!$P$28) -> 0.006218239933 | AH37: =IF(AH$42=0,0,AH$54/Summary!$P$28) -> 0.006218150865 | AI37: =IF(AI$42=0,0,AI$54/Summary!$P$28) -> 0.006218061613 | AJ37: =IF(AJ$42=0,0,AJ$54/Summary!$P$28) -> 0.006217972178 | AK37: =IF(AK$42=0,0,AK$54/Summary!$P$28) -> 0.006217882558 | AL37: =IF(AL$42=0,0,AL$54/Summary!$P$28) -> 0.006217792754 | AM37: =IF(AM$42=0,0,AM$54/Summary!$P$28) -> 0.006217702765 | AN37: =IF(AN$42=0,0,AN$54/Summary!$P$28) -> -0.006192188521 | AO37: =IF(AO$42=0,0,AO$54/Summary!$P$28) -> 0.003028053 | AP37: =IF(AP$42=0,0,AP$54/Summary!$P$28) -> 0.003028053 | AQ37: =IF(AQ$42=0,0,AQ$54/Summary!$P$28) -> 0.003028053 | AR37: =IF(AR$42=0,0,AR$54/Summary!$P$28) -> 0.008294858999 | AS37: =IF(AS$42=0,0,AS$54/Summary!$P$28) -> 0.008294858999 | AT37: =IF(AT$42=0,0,AT$54/Summary!$P$28) -> 0.008294858999 | AU37: =IF(AU$42=0,0,AU$54/Summary!$P$28) -> 0.008294858999 | AV37: =IF(AV$42=0,0,AV$54/Summary!$P$28) -> 0.008294858999 | AW37: =IF(AW$42=0,0,AW$54/Summary!$P$28) -> 0.008294858999 | AX37: =IF(AX$42=0,0,AX$54/Summary!$P$28) -> 0.008294858999 | AY37: =IF(AY$42=0,0,AY$54/Summary!$P$28) -> 0.008294858999 | AZ37: =IF(AZ$42=0,0,AZ$54/Summary!$P$28) -> 0.008294858999 | BA37: =IF(BA$42=0,0,BA$54/Summary!$P$28) -> 0.008485920534 | BB37: =IF(BB$42=0,0,BB$54/Summary!$P$28) -> 0.008485920534 | BC37: =IF(BC$42=0,0,BC$54/Summary!$P$28) -> 0.008485920534 | BD37: =IF(BD$42=0,0,BD$54/Summary!$P$28) -> 0.008485920534 | BE37: =IF(BE$42=0,0,BE$54/Summary!$P$28) -> 0.008485920534 | BF37: =IF(BF$42=0,0,BF$54/Summary!$P$28) -> 0.008485920534 | BG37: =IF(BG$42=0,0,BG$54/Summary!$P$28) -> 0.008485920534 | BH37: =IF(BH$42=0,0,BH$54/Summary!$P$28) -> 0.008485920534 | BI37: =IF(BI$42=0,0,BI$54/Summary!$P$28) -> 0.008485920534 | BJ37: =IF(BJ$42=0,0,BJ$54/Summary!$P$28) -> 0.008485920534 | BK37: =IF(BK$42=0,0,BK$54/Summary!$P$28) -> 0.008485920534 | BL37: =IF(BL$42=0,0,BL$54/Summary!$P$28) -> 0.008485920534 | BM37: =IF(BM$42=0,0,BM$54/Summary!$P$28) -> 0.008681758606 | BN37: =IF(BN$42=0,0,BN$54/Summary!$P$28) -> 0.008681758606 | BO37: =IF(BO$42=0,0,BO$54/Summary!$P$28) -> 0.008681758606 | BP37: =IF(BP$42=0,0,BP$54/Summary!$P$28) -> 0.008681758606 | BQ37: =IF(BQ$42=0,0,BQ$54/Summary!$P$28) -> 0.008681758606 | BR37: =IF(BR$42=0,0,BR$54/Summary!$P$28) -> 0.008681758606 | BS37: =IF(BS$42=0,0,BS$54/Summary!$P$28) -> 0.008681758606 | BT37: =IF(BT$42=0,0,BT$54/Summary!$P$28) -> 0.008681758606 | BU37: =IF(BU$42=0,0,BU$54/Summary!$P$28) -> 0.008681758606 | BV37: =IF(BV$42=0,0,BV$54/Summary!$P$28) -> 0.008681758606 | BW37: =IF(BW$42=0,0,BW$54/Summary!$P$28) -> 0.008681758606 | BX37: =IF(BX$42=0,0,BX$54/Summary!$P$28) -> 0.008681758606 | BY37: =IF(BY$42=0,0,BY$54/Summary!$P$28) -> 0.008882492631 | BZ37: =IF(BZ$42=0,0,BZ$54/Summary!$P$28) -> 0.008882492631 | CA37: =IF(CA$42=0,0,CA$54/Summary!$P$28) -> 0.008882492631 | CB37: =IF(CB$42=0,0,CB$54/Summary!$P$28) -> 0.008882492631 | CC37: =IF(CC$42=0,0,CC$54/Summary!$P$28) -> 0.008882492631 | CD37: =IF(CD$42=0,0,CD$54/Summary!$P$28) -> 0.008882492631 | CE37: =IF(CE$42=0,0,CE$54/Summary!$P$28) -> 0.008882492631 | CF37: =IF(CF$42=0,0,CF$54/Summary!$P$28) -> 0.008882492631 | CG37: =IF(CG$42=0,0,CG$54/Summary!$P$28) -> 0.008882492631 | CH37: =IF(CH$42=0,0,CH$54/Summary!$P$28) -> 0.008882492631 | CI37: =IF(CI$42=0,0,CI$54/Summary!$P$28) -> 0.008882492631 | CJ37: =IF(CJ$42=0,0,CJ$54/Summary!$P$28) -> 0.008882492631 | CK37: =IF(CK$42=0,0,CK$54/Summary!$P$28) -> 0.009088245006 | CL37: =IF(CL$42=0,0,CL$54/Summary!$P$28) -> 0.009088245006 | CM37: =IF(CM$42=0,0,CM$54/Summary!$P$28) -> 0.009088245006 | CN37: =IF(CN$42=0,0,CN$54/Summary!$P$28) -> 0.009088245006 | CO37: =IF(CO$42=0,0,CO$54/Summary!$P$28) -> 0 | CP37: =IF(CP$42=0,0,CP$54/Summary!$P$28) -> 0 | CQ37: =IF(CQ$42=0,0,CQ$54/Summary!$P$28) -> 0 | CR37: =IF(CR$42=0,0,CR$54/Summary!$P$28) -> 0 | CS37: =IF(CS$42=0,0,CS$54/Summary!$P$28) -> 0 | CT37: =IF(CT$42=0,0,CT$54/Summary!$P$28) -> 0 | CU37: =IF(CU$42=0,0,CU$54/Summary!$P$28) -> 0 | CV37: =IF(CV$42=0,0,CV$54/Summary!$P$28) -> 0 | CW37: =IF(CW$42=0,0,CW$54/Summary!$P$28) -> 0 | CX37: =IF(CX$42=0,0,CX$54/Summary!$P$28) -> 0 | CY37: =IF(CY$42=0,0,CY$54/Summary!$P$28) -> 0 | CZ37: =IF(CZ$42=0,0,CZ$54/Summary!$P$28) -> 0 | DA37: =IF(DA$42=0,0,DA$54/Summary!$P$28) -> 0 | DB37: =IF(DB$42=0,0,DB$54/Summary!$P$28) -> 0 | DC37: =IF(DC$42=0,0,DC$54/Summary!$P$28) -> 0 | DD37: =IF(DD$42=0,0,DD$54/Summary!$P$28) -> 0 | DE37: =IF(DE$42=0,0,DE$54/Summary!$P$28) -> 0 | DF37: =IF(DF$42=0,0,DF$54/Summary!$P$28) -> 0 | DG37: =IF(DG$42=0,0,DG$54/Summary!$P$28) -> 0 | DH37: =IF(DH$42=0,0,DH$54/Summary!$P$28) -> 0 | DI37: =IF(DI$42=0,0,DI$54/Summary!$P$28) -> 0 | DJ37: =IF(DJ$42=0,0,DJ$54/Summary!$P$28) -> 0 | DK37: =IF(DK$42=0,0,DK$54/Summary!$P$28) -> 0 | DL37: =IF(DL$42=0,0,DL$54/Summary!$P$28) -> 0 | DM37: =IF(DM$42=0,0,DM$54/Summary!$P$28) -> 0 | DN37: =IF(DN$42=0,0,DN$54/Summary!$P$28) -> 0 | DO37: =IF(DO$42=0,0,DO$54/Summary!$P$28) -> 0 | DP37: =IF(DP$42=0,0,DP$54/Summary!$P$28) -> 0 | DQ37: =IF(DQ$42=0,0,DQ$54/Summary!$P$28) -> 0 | DR37: =IF(DR$42=0,0,DR$54/Summary!$P$28) -> 0 | DS37: =IF(DS$42=0,0,DS$54/Summary!$P$28) -> 0 | DT37: =IF(DT$42=0,0,DT$54/Summary!$P$28) -> 0 | DU37: =IF(DU$42=0,0,DU$54/Summary!$P$28) -> 0 | DV37: =IF(DV$42=0,0,DV$54/Summary!$P$28) -> 0 | DW37: =IF(DW$42=0,0,DW$54/Summary!$P$28) -> 0 | DX37: =IF(DX$42=0,0,DX$54/Summary!$P$28) -> 0 | DY37: =IF(DY$42=0,0,DY$54/Summary!$P$28) -> 0 | DZ37: =IF(DZ$42=0,0,DZ$54/Summary!$P$28) -> 0 | EA37: =IF(EA$42=0,0,EA$54/Summary!$P$28) -> 0 | EB37: =IF(EB$42=0,0,EB$54/Summary!$P$28) -> 0 | EC37: =IF(EC$42=0,0,EC$54/Summary!$P$28) -> 0 | ED37: =IF(ED$42=0,0,ED$54/Summary!$P$28) -> 0 | EE37: =IF(EE$42=0,0,EE$54/Summary!$P$28) -> 0 | EF37: =IF(EF$42=0,0,EF$54/Summary!$P$28) -> 0 | EG37: =IF(EG$42=0,0,EG$54/Summary!$P$28) -> 0 | EH37: =IF(EH$42=0,0,EH$54/Summary!$P$28) -> 0 | EI37: =IF(EI$42=0,0,EI$54/Summary!$P$28) -> 0 | EJ37: =IF(EJ$42=0,0,EJ$54/Summary!$P$28) -> 0 | EK37: =IF(EK$42=0,0,EK$54/Summary!$P$28) -> 0 | EL37: =IF(EL$42=0,0,EL$54/Summary!$P$28) -> 0 | EM37: =IF(EM$42=0,0,EM$54/Summary!$P$28) -> 0 | EN37: =IF(EN$42=0,0,EN$54/Summary!$P$28) -> 0 | EO37: =IF(EO$42=0,0,EO$54/Summary!$P$28) -> 0 | EP37: =IF(EP$42=0,0,EP$54/Summary!$P$28) -> 0 | EQ37: =IF(EQ$42=0,0,EQ$54/Summary!$P$28) -> 0 | ER37: =IF(ER$42=0,0,ER$54/Summary!$P$28) -> 0 | ES37: =IF(ES$42=0,0,ES$54/Summary!$P$28) -> 0 | ET37: =IF(ET$42=0,0,ET$54/Summary!$P$28) -> 0 | EU37: =IF(EU$42=0,0,EU$54/Summary!$P$28) -> 0 | EV37: =IF(EV$42=0,0,EV$54/Summary!$P$28) -> 0 | EW37: =IF(EW$42=0,0,EW$54/Summary!$P$28) -> 0 | EX37: =IF(EX$42=0,0,EX$54/Summary!$P$28) -> 0 | EY37: =IF(EY$42=0,0,EY$54/Summary!$P$28) -> 0 | EZ37: =IF(EZ$42=0,0,EZ$54/Summary!$P$28) -> 0 | FA37: =IF(FA$42=0,0,FA$54/Summary!$P$28) -> 0 | FB37: =IF(FB$42=0,0,FB$54/Summary!$P$28) -> 0 | FC37: =IF(FC$42=0,0,FC$54/Summary!$P$28) -> 0 | FD37: =IF(FD$42=0,0,FD$54/Summary!$P$28) -> 0 | FE37: =IF(FE$42=0,0,FE$54/Summary!$P$28) -> 0 | FF37: =IF(FF$42=0,0,FF$54/Summary!$P$28) -> 0 | FG37: =IF(FG$42=0,0,FG$54/Summary!$P$28) -> 0 | FH37: =IF(FH$42=0,0,FH$54/Summary!$P$28) -> 0
G38: Unlevered Cash Flow Yield on Peak Equity | I38: =IF(I$42=0,0,IFERROR(I$48/cf_detail!$EP$2482*-1,0)) -> 0.03421774209 | J38: =IF(J$42=0,0,IFERROR(J$48/cf_detail!$EP$2482*-1,0)) -> 0.1741688215 | K38: =IF(K$42=0,0,IFERROR(K$48/cf_detail!$EP$2482*-1,0)) -> 0.1781723299 | L38: =IF(L$42=0,0,IFERROR(L$48/cf_detail!$EP$2482*-1,0)) -> 0.182275926 | M38: =IF(M$42=0,0,IFERROR(M$48/cf_detail!$EP$2482*-1,0)) -> 0.1864821119 | N38: =IF(N$42=0,0,IFERROR(N$48/cf_detail!$EP$2482*-1,0)) -> 0 | O38: =IF(O$42=0,0,IFERROR(O$48/cf_detail!$EP$2482*-1,0)) -> 0 | P38: =IF(P$42=0,0,IFERROR(P$48/cf_detail!$EP$2482*-1,0)) -> 0 | Q38: =IF(Q$42=0,0,IFERROR(Q$48/cf_detail!$EP$2482*-1,0)) -> 0 | R38: =IF(R$42=0,0,IFERROR(R$48/cf_detail!$EP$2482*-1,0)) -> 0 | S38: =IF(S$42=0,0,IFERROR(S$48/cf_detail!$EP$2482*-1,0)) -> 0 | AE38: Unlevered Cash Flow Yield on Peak Equity | AF38: =IF(AF$42=0,0,IFERROR(AF$48/cf_detail!$EP$2482*-1,0)) -> 0 | AG38: =IF(AG$42=0,0,IFERROR(AG$48/cf_detail!$EP$2482*-1,0)) -> -0.0150872107 | AH38: =IF(AH$42=0,0,IFERROR(AH$48/cf_detail!$EP$2482*-1,0)) -> -0.0150873703 | AI38: =IF(AI$42=0,0,IFERROR(AI$48/cf_detail!$EP$2482*-1,0)) -> -0.01508753023 | AJ38: =IF(AJ$42=0,0,IFERROR(AJ$48/cf_detail!$EP$2482*-1,0)) -> 0.01068965397 | AK38: =IF(AK$42=0,0,IFERROR(AK$48/cf_detail!$EP$2482*-1,0)) -> 0.01068949338 | AL38: =IF(AL$42=0,0,IFERROR(AL$48/cf_detail!$EP$2482*-1,0)) -> 0.01068933246 | AM38: =IF(AM$42=0,0,IFERROR(AM$48/cf_detail!$EP$2482*-1,0)) -> 0.01068917121 | AN38: =IF(AN$42=0,0,IFERROR(AN$48/cf_detail!$EP$2482*-1,0)) -> -0.01154828927 | AO38: =IF(AO$42=0,0,IFERROR(AO$48/cf_detail!$EP$2482*-1,0)) -> 0.01128641154 | AP38: =IF(AP$42=0,0,IFERROR(AP$48/cf_detail!$EP$2482*-1,0)) -> 0.01128641154 | AQ38: =IF(AQ$42=0,0,IFERROR(AQ$48/cf_detail!$EP$2482*-1,0)) -> 0.01128641154 | AR38: =IF(AR$42=0,0,IFERROR(AR$48/cf_detail!$EP$2482*-1,0)) -> 0.01441125697 | AS38: =IF(AS$42=0,0,IFERROR(AS$48/cf_detail!$EP$2482*-1,0)) -> 0.0143999465 | AT38: =IF(AT$42=0,0,IFERROR(AT$48/cf_detail!$EP$2482*-1,0)) -> 0.0143999465 | AU38: =IF(AU$42=0,0,IFERROR(AU$48/cf_detail!$EP$2482*-1,0)) -> 0.0143999465 | AV38: =IF(AV$42=0,0,IFERROR(AV$48/cf_detail!$EP$2482*-1,0)) -> 0.0143999465 | AW38: =IF(AW$42=0,0,IFERROR(AW$48/cf_detail!$EP$2482*-1,0)) -> 0.0143999465 | AX38: =IF(AX$42=0,0,IFERROR(AX$48/cf_detail!$EP$2482*-1,0)) -> 0.0143999465 | AY38: =IF(AY$42=0,0,IFERROR(AY$48/cf_detail!$EP$2482*-1,0)) -> 0.0143999465 | AZ38: =IF(AZ$42=0,0,IFERROR(AZ$48/cf_detail!$EP$2482*-1,0)) -> 0.0143999465 | BA38: =IF(BA$42=0,0,IFERROR(BA$48/cf_detail!$EP$2482*-1,0)) -> 0.01474231238 | BB38: =IF(BB$42=0,0,IFERROR(BB$48/cf_detail!$EP$2482*-1,0)) -> 0.01474231238 | BC38: =IF(BC$42=0,0,IFERROR(BC$48/cf_detail!$EP$2482*-1,0)) -> 0.01474231238 | BD38: =IF(BD$42=0,0,IFERROR(BD$48/cf_detail!$EP$2482*-1,0)) -> 0.01474231238 | BE38: =IF(BE$42=0,0,IFERROR(BE$48/cf_detail!$EP$2482*-1,0)) -> 0.01473071915 | BF38: =IF(BF$42=0,0,IFERROR(BF$48/cf_detail!$EP$2482*-1,0)) -> 0.01473071915 | BG38: =IF(BG$42=0,0,IFERROR(BG$48/cf_detail!$EP$2482*-1,0)) -> 0.01473071915 | BH38: =IF(BH$42=0,0,IFERROR(BH$48/cf_detail!$EP$2482*-1,0)) -> 0.01473071915 | BI38: =IF(BI$42=0,0,IFERROR(BI$48/cf_detail!$EP$2482*-1,0)) -> 0.01473071915 | BJ38: =IF(BJ$42=0,0,IFERROR(BJ$48/cf_detail!$EP$2482*-1,0)) -> 0.01473071915 | BK38: =IF(BK$42=0,0,IFERROR(BK$48/cf_detail!$EP$2482*-1,0)) -> 0.01473071915 | BL38: =IF(BL$42=0,0,IFERROR(BL$48/cf_detail!$EP$2482*-1,0)) -> 0.01473071915 | BM38: =IF(BM$42=0,0,IFERROR(BM$48/cf_detail!$EP$2482*-1,0)) -> 0.01508164417 | BN38: =IF(BN$42=0,0,IFERROR(BN$48/cf_detail!$EP$2482*-1,0)) -> 0.01508164417 | BO38: =IF(BO$42=0,0,IFERROR(BO$48/cf_detail!$EP$2482*-1,0)) -> 0.01508164417 | BP38: =IF(BP$42=0,0,IFERROR(BP$48/cf_detail!$EP$2482*-1,0)) -> 0.01508164417 | BQ38: =IF(BQ$42=0,0,IFERROR(BQ$48/cf_detail!$EP$2482*-1,0)) -> 0.01506976111 | BR38: =IF(BR$42=0,0,IFERROR(BR$48/cf_detail!$EP$2482*-1,0)) -> 0.01506976111 | BS38: =IF(BS$42=0,0,IFERROR(BS$48/cf_detail!$EP$2482*-1,0)) -> 0.01506976111 | BT38: =IF(BT$42=0,0,IFERROR(BT$48/cf_detail!$EP$2482*-1,0)) -> 0.01506976111 | BU38: =IF(BU$42=0,0,IFERROR(BU$48/cf_detail!$EP$2482*-1,0)) -> 0.01506976111 | BV38: =IF(BV$42=0,0,IFERROR(BV$48/cf_detail!$EP$2482*-1,0)) -> 0.01506976111 | BW38: =IF(BW$42=0,0,IFERROR(BW$48/cf_detail!$EP$2482*-1,0)) -> 0.01506976111 | BX38: =IF(BX$42=0,0,IFERROR(BX$48/cf_detail!$EP$2482*-1,0)) -> 0.01506976111 | BY38: =IF(BY$42=0,0,IFERROR(BY$48/cf_detail!$EP$2482*-1,0)) -> 0.01542945926 | BZ38: =IF(BZ$42=0,0,IFERROR(BZ$48/cf_detail!$EP$2482*-1,0)) -> 0.01542945926 | CA38: =IF(CA$42=0,0,IFERROR(CA$48/cf_detail!$EP$2482*-1,0)) -> 0.01542945926 | CB38: =IF(CB$42=0,0,IFERROR(CB$48/cf_detail!$EP$2482*-1,0)) -> 0.01542945926 | CC38: =IF(CC$42=0,0,IFERROR(CC$48/cf_detail!$EP$2482*-1,0)) -> 0.01541727913 | CD38: =IF(CD$42=0,0,IFERROR(CD$48/cf_detail!$EP$2482*-1,0)) -> 0.01541727913 | CE38: =IF(CE$42=0,0,IFERROR(CE$48/cf_detail!$EP$2482*-1,0)) -> 0.01541727913 | CF38: =IF(CF$42=0,0,IFERROR(CF$48/cf_detail!$EP$2482*-1,0)) -> 0.01541727913 | CG38: =IF(CG$42=0,0,IFERROR(CG$48/cf_detail!$EP$2482*-1,0)) -> 0.01541727913 | CH38: =IF(CH$42=0,0,IFERROR(CH$48/cf_detail!$EP$2482*-1,0)) -> 0.01541727913 | CI38: =IF(CI$42=0,0,IFERROR(CI$48/cf_detail!$EP$2482*-1,0)) -> 0.01541727913 | CJ38: =IF(CJ$42=0,0,IFERROR(CJ$48/cf_detail!$EP$2482*-1,0)) -> 0.01541727913 | CK38: =IF(CK$42=0,0,IFERROR(CK$48/cf_detail!$EP$2482*-1,0)) -> 0.01578596973 | CL38: =IF(CL$42=0,0,IFERROR(CL$48/cf_detail!$EP$2482*-1,0)) -> 0.01578596973 | CM38: =IF(CM$42=0,0,IFERROR(CM$48/cf_detail!$EP$2482*-1,0)) -> 0.01578596973 | CN38: =IF(CN$42=0,0,IFERROR(CN$48/cf_detail!$EP$2482*-1,0)) -> 0.01578596973 | CO38: =IF(CO$42=0,0,IFERROR(CO$48/cf_detail!$EP$2482*-1,0)) -> 0 | CP38: =IF(CP$42=0,0,IFERROR(CP$48/cf_detail!$EP$2482*-1,0)) -> 0 | CQ38: =IF(CQ$42=0,0,IFERROR(CQ$48/cf_detail!$EP$2482*-1,0)) -> 0 | CR38: =IF(CR$42=0,0,IFERROR(CR$48/cf_detail!$EP$2482*-1,0)) -> 0 | CS38: =IF(CS$42=0,0,IFERROR(CS$48/cf_detail!$EP$2482*-1,0)) -> 0 | CT38: =IF(CT$42=0,0,IFERROR(CT$48/cf_detail!$EP$2482*-1,0)) -> 0 | CU38: =IF(CU$42=0,0,IFERROR(CU$48/cf_detail!$EP$2482*-1,0)) -> 0 | CV38: =IF(CV$42=0,0,IFERROR(CV$48/cf_detail!$EP$2482*-1,0)) -> 0 | CW38: =IF(CW$42=0,0,IFERROR(CW$48/cf_detail!$EP$2482*-1,0)) -> 0 | CX38: =IF(CX$42=0,0,IFERROR(CX$48/cf_detail!$EP$2482*-1,0)) -> 0 | CY38: =IF(CY$42=0,0,IFERROR(CY$48/cf_detail!$EP$2482*-1,0)) -> 0 | CZ38: =IF(CZ$42=0,0,IFERROR(CZ$48/cf_detail!$EP$2482*-1,0)) -> 0 | DA38: =IF(DA$42=0,0,IFERROR(DA$48/cf_detail!$EP$2482*-1,0)) -> 0 | DB38: =IF(DB$42=0,0,IFERROR(DB$48/cf_detail!$EP$2482*-1,0)) -> 0 | DC38: =IF(DC$42=0,0,IFERROR(DC$48/cf_detail!$EP$2482*-1,0)) -> 0 | DD38: =IF(DD$42=0,0,IFERROR(DD$48/cf_detail!$EP$2482*-1,0)) -> 0 | DE38: =IF(DE$42=0,0,IFERROR(DE$48/cf_detail!$EP$2482*-1,0)) -> 0 | DF38: =IF(DF$42=0,0,IFERROR(DF$48/cf_detail!$EP$2482*-1,0)) -> 0 | DG38: =IF(DG$42=0,0,IFERROR(DG$48/cf_detail!$EP$2482*-1,0)) -> 0 | DH38: =IF(DH$42=0,0,IFERROR(DH$48/cf_detail!$EP$2482*-1,0)) -> 0 | DI38: =IF(DI$42=0,0,IFERROR(DI$48/cf_detail!$EP$2482*-1,0)) -> 0 | DJ38: =IF(DJ$42=0,0,IFERROR(DJ$48/cf_detail!$EP$2482*-1,0)) -> 0 | DK38: =IF(DK$42=0,0,IFERROR(DK$48/cf_detail!$EP$2482*-1,0)) -> 0 | DL38: =IF(DL$42=0,0,IFERROR(DL$48/cf_detail!$EP$2482*-1,0)) -> 0 | DM38: =IF(DM$42=0,0,IFERROR(DM$48/cf_detail!$EP$2482*-1,0)) -> 0 | DN38: =IF(DN$42=0,0,IFERROR(DN$48/cf_detail!$EP$2482*-1,0)) -> 0 | DO38: =IF(DO$42=0,0,IFERROR(DO$48/cf_detail!$EP$2482*-1,0)) -> 0 | DP38: =IF(DP$42=0,0,IFERROR(DP$48/cf_detail!$EP$2482*-1,0)) -> 0 | DQ38: =IF(DQ$42=0,0,IFERROR(DQ$48/cf_detail!$EP$2482*-1,0)) -> 0 | DR38: =IF(DR$42=0,0,IFERROR(DR$48/cf_detail!$EP$2482*-1,0)) -> 0 | DS38: =IF(DS$42=0,0,IFERROR(DS$48/cf_detail!$EP$2482*-1,0)) -> 0 | DT38: =IF(DT$42=0,0,IFERROR(DT$48/cf_detail!$EP$2482*-1,0)) -> 0 | DU38: =IF(DU$42=0,0,IFERROR(DU$48/cf_detail!$EP$2482*-1,0)) -> 0 | DV38: =IF(DV$42=0,0,IFERROR(DV$48/cf_detail!$EP$2482*-1,0)) -> 0 | DW38: =IF(DW$42=0,0,IFERROR(DW$48/cf_detail!$EP$2482*-1,0)) -> 0 | DX38: =IF(DX$42=0,0,IFERROR(DX$48/cf_detail!$EP$2482*-1,0)) -> 0 | DY38: =IF(DY$42=0,0,IFERROR(DY$48/cf_detail!$EP$2482*-1,0)) -> 0 | DZ38: =IF(DZ$42=0,0,IFERROR(DZ$48/cf_detail!$EP$2482*-1,0)) -> 0 | EA38: =IF(EA$42=0,0,IFERROR(EA$48/cf_detail!$EP$2482*-1,0)) -> 0 | EB38: =IF(EB$42=0,0,IFERROR(EB$48/cf_detail!$EP$2482*-1,0)) -> 0 | EC38: =IF(EC$42=0,0,IFERROR(EC$48/cf_detail!$EP$2482*-1,0)) -> 0 | ED38: =IF(ED$42=0,0,IFERROR(ED$48/cf_detail!$EP$2482*-1,0)) -> 0 | EE38: =IF(EE$42=0,0,IFERROR(EE$48/cf_detail!$EP$2482*-1,0)) -> 0 | EF38: =IF(EF$42=0,0,IFERROR(EF$48/cf_detail!$EP$2482*-1,0)) -> 0 | EG38: =IF(EG$42=0,0,IFERROR(EG$48/cf_detail!$EP$2482*-1,0)) -> 0 | EH38: =IF(EH$42=0,0,IFERROR(EH$48/cf_detail!$EP$2482*-1,0)) -> 0 | EI38: =IF(EI$42=0,0,IFERROR(EI$48/cf_detail!$EP$2482*-1,0)) -> 0 | EJ38: =IF(EJ$42=0,0,IFERROR(EJ$48/cf_detail!$EP$2482*-1,0)) -> 0 | EK38: =IF(EK$42=0,0,IFERROR(EK$48/cf_detail!$EP$2482*-1,0)) -> 0 | EL38: =IF(EL$42=0,0,IFERROR(EL$48/cf_detail!$EP$2482*-1,0)) -> 0 | EM38: =IF(EM$42=0,0,IFERROR(EM$48/cf_detail!$EP$2482*-1,0)) -> 0 | EN38: =IF(EN$42=0,0,IFERROR(EN$48/cf_detail!$EP$2482*-1,0)) -> 0 | EO38: =IF(EO$42=0,0,IFERROR(EO$48/cf_detail!$EP$2482*-1,0)) -> 0 | EP38: =IF(EP$42=0,0,IFERROR(EP$48/cf_detail!$EP$2482*-1,0)) -> 0 | EQ38: =IF(EQ$42=0,0,IFERROR(EQ$48/cf_detail!$EP$2482*-1,0)) -> 0 | ER38: =IF(ER$42=0,0,IFERROR(ER$48/cf_detail!$EP$2482*-1,0)) -> 0 | ES38: =IF(ES$42=0,0,IFERROR(ES$48/cf_detail!$EP$2482*-1,0)) -> 0 | ET38: =IF(ET$42=0,0,IFERROR(ET$48/cf_detail!$EP$2482*-1,0)) -> 0 | EU38: =IF(EU$42=0,0,IFERROR(EU$48/cf_detail!$EP$2482*-1,0)) -> 0 | EV38: =IF(EV$42=0,0,IFERROR(EV$48/cf_detail!$EP$2482*-1,0)) -> 0 | EW38: =IF(EW$42=0,0,IFERROR(EW$48/cf_detail!$EP$2482*-1,0)) -> 0 | EX38: =IF(EX$42=0,0,IFERROR(EX$48/cf_detail!$EP$2482*-1,0)) -> 0 | EY38: =IF(EY$42=0,0,IFERROR(EY$48/cf_detail!$EP$2482*-1,0)) -> 0 | EZ38: =IF(EZ$42=0,0,IFERROR(EZ$48/cf_detail!$EP$2482*-1,0)) -> 0 | FA38: =IF(FA$42=0,0,IFERROR(FA$48/cf_detail!$EP$2482*-1,0)) -> 0 | FB38: =IF(FB$42=0,0,IFERROR(FB$48/cf_detail!$EP$2482*-1,0)) -> 0 | FC38: =IF(FC$42=0,0,IFERROR(FC$48/cf_detail!$EP$2482*-1,0)) -> 0 | FD38: =IF(FD$42=0,0,IFERROR(FD$48/cf_detail!$EP$2482*-1,0)) -> 0 | FE38: =IF(FE$42=0,0,IFERROR(FE$48/cf_detail!$EP$2482*-1,0)) -> 0 | FF38: =IF(FF$42=0,0,IFERROR(FF$48/cf_detail!$EP$2482*-1,0)) -> 0 | FG38: =IF(FG$42=0,0,IFERROR(FG$48/cf_detail!$EP$2482*-1,0)) -> 0 | FH38: =IF(FH$42=0,0,IFERROR(FH$48/cf_detail!$EP$2482*-1,0)) -> 0
G39: Investor Cash on Cash Yield | I39: =waterfall!EJ83 -> -0.05282272585 | J39: =waterfall!EK83 -> 0.08160694531 | K39: =waterfall!EL83 -> 0.08569417226 | L39: =waterfall!EM83 -> 0.08988357989 | M39: =waterfall!EN83 -> 1.960042199 | N39: =waterfall!EO83 -> 0 | O39: =waterfall!EP83 -> 0 | P39: =waterfall!EQ83 -> 0 | Q39: =waterfall!ER83 -> 0 | R39: =waterfall!ES83 -> 0 | S39: =waterfall!ET83 -> 0 | AE39: Investor Cash on Cash Yield | AF39: =IFERROR(IF(SUM(AF55,AF50)<0,0,SUM(AF55,AF50)/-SUMIF(AE$51:$AF51,"<0",AE$51:$AF51)),0) -> 0 | AG39: =IFERROR(IF(SUM(AG55,AG50)<0,0,SUM(AG55,AG50)/-SUMIF($AF$51:AF51,"<0",$AF$51:AF51)),0) -> 0 | AH39: =IFERROR(IF(SUM(AH55,AH50)<0,0,SUM(AH55,AH50)/-SUMIF($AF$51:AG51,"<0",$AF$51:AG51)),0) -> 0 | AI39: =IFERROR(IF(SUM(AI55,AI50)<0,0,SUM(AI55,AI50)/-SUMIF($AF$51:AH51,"<0",$AF$51:AH51)),0) -> 0 | AJ39: =IFERROR(IF(SUM(AJ55,AJ50)<0,0,SUM(AJ55,AJ50)/-SUMIF($AF$51:AI51,"<0",$AF$51:AI51)),0) -> 0.004963537386 | AK39: =IFERROR(IF(SUM(AK55,AK50)<0,0,SUM(AK55,AK50)/-SUMIF($AF$51:AJ51,"<0",$AF$51:AJ51)),0) -> 0.004963376227 | AL39: =IFERROR(IF(SUM(AL55,AL50)<0,0,SUM(AL55,AL50)/-SUMIF($AF$51:AK51,"<0",$AF$51:AK51)),0) -> 0.004963214737 | AM39: =IFERROR(IF(SUM(AM55,AM50)<0,0,SUM(AM55,AM50)/-SUMIF($AF$51:AL51,"<0",$AF$51:AL51)),0) -> 0.004963052914 | AN39: =IFERROR(IF(SUM(AN55,AN50)<0,0,SUM(AN55,AN50)/-SUMIF($AF$51:AM51,"<0",$AF$51:AM51)),0) -> 0 | AO39: =IFERROR(IF(SUM(AO55,AO50)<0,0,SUM(AO55,AO50)/-SUMIF($AF$51:AN51,"<0",$AF$51:AN51)),0) -> 0.005461045727 | AP39: =IFERROR(IF(SUM(AP55,AP50)<0,0,SUM(AP55,AP50)/-SUMIF($AF$51:AO51,"<0",$AF$51:AO51)),0) -> 0.005461045727 | AQ39: =IFERROR(IF(SUM(AQ55,AQ50)<0,0,SUM(AQ55,AQ50)/-SUMIF($AF$51:AP51,"<0",$AF$51:AP51)),0) -> 0.005461045727 | AR39: =IFERROR(IF(SUM(AR55,AR50)<0,0,SUM(AR55,AR50)/-SUMIF($AF$51:AQ51,"<0",$AF$51:AQ51)),0) -> 0.008539801755 | AS39: =IFERROR(IF(SUM(AS55,AS50)<0,0,SUM(AS55,AS50)/-SUMIF($AF$51:AR51,"<0",$AF$51:AR51)),0) -> 0.007636112108 | AT39: =IFERROR(IF(SUM(AT55,AT50)<0,0,SUM(AT55,AT50)/-SUMIF($AF$51:AS51,"<0",$AF$51:AS51)),0) -> 0.007636112108 | AU39: =IFERROR(IF(SUM(AU55,AU50)<0,0,SUM(AU55,AU50)/-SUMIF($AF$51:AT51,"<0",$AF$51:AT51)),0) -> 0.007636112108 | AV39: =IFERROR(IF(SUM(AV55,AV50)<0,0,SUM(AV55,AV50)/-SUMIF($AF$51:AU51,"<0",$AF$51:AU51)),0) -> 0.007636112108 | AW39: =IFERROR(IF(SUM(AW55,AW50)<0,0,SUM(AW55,AW50)/-SUMIF($AF$51:AV51,"<0",$AF$51:AV51)),0) -> 0.007636112108 | AX39: =IFERROR(IF(SUM(AX55,AX50)<0,0,SUM(AX55,AX50)/-SUMIF($AF$51:AW51,"<0",$AF$51:AW51)),0) -> 0.007636112108 | AY39: =IFERROR(IF(SUM(AY55,AY50)<0,0,SUM(AY55,AY50)/-SUMIF($AF$51:AX51,"<0",$AF$51:AX51)),0) -> 0.007636112108 | AZ39: =IFERROR(IF(SUM(AZ55,AZ50)<0,0,SUM(AZ55,AZ50)/-SUMIF($AF$51:AY51,"<0",$AF$51:AY51)),0) -> 0.007636112108 | BA39: =IFERROR(IF(SUM(BA55,BA50)<0,0,SUM(BA55,BA50)/-SUMIF($AF$51:AZ51,"<0",$AF$51:AZ51)),0) -> 0.007973428316 | BB39: =IFERROR(IF(SUM(BB55,BB50)<0,0,SUM(BB55,BB50)/-SUMIF($AF$51:BA51,"<0",$AF$51:BA51)),0) -> 0.007973428316 | BC39: =IFERROR(IF(SUM(BC55,BC50)<0,0,SUM(BC55,BC50)/-SUMIF($AF$51:BB51,"<0",$AF$51:BB51)),0) -> 0.007973428316 | BD39: =IFERROR(IF(SUM(BD55,BD50)<0,0,SUM(BD55,BD50)/-SUMIF($AF$51:BC51,"<0",$AF$51:BC51)),0) -> 0.007973428316 | BE39: =IFERROR(IF(SUM(BE55,BE50)<0,0,SUM(BE55,BE50)/-SUMIF($AF$51:BD51,"<0",$AF$51:BD51)),0) -> 0.007962006079 | BF39: =IFERROR(IF(SUM(BF55,BF50)<0,0,SUM(BF55,BF50)/-SUMIF($AF$51:BE51,"<0",$AF$51:BE51)),0) -> 0.007962006079 | BG39: =IFERROR(IF(SUM(BG55,BG50)<0,0,SUM(BG55,BG50)/-SUMIF($AF$51:BF51,"<0",$AF$51:BF51)),0) -> 0.007962006079 | BH39: =IFERROR(IF(SUM(BH55,BH50)<0,0,SUM(BH55,BH50)/-SUMIF($AF$51:BG51,"<0",$AF$51:BG51)),0) -> 0.007962006079 | BI39: =IFERROR(IF(SUM(BI55,BI50)<0,0,SUM(BI55,BI50)/-SUMIF($AF$51:BH51,"<0",$AF$51:BH51)),0) -> 0.007962006079 | BJ39: =IFERROR(IF(SUM(BJ55,BJ50)<0,0,SUM(BJ55,BJ50)/-SUMIF($AF$51:BI51,"<0",$AF$51:BI51)),0) -> 0.007962006079 | BK39: =IFERROR(IF(SUM(BK55,BK50)<0,0,SUM(BK55,BK50)/-SUMIF($AF$51:BJ51,"<0",$AF$51:BJ51)),0) -> 0.007962006079 | BL39: =IFERROR(IF(SUM(BL55,BL50)<0,0,SUM(BL55,BL50)/-SUMIF($AF$51:BK51,"<0",$AF$51:BK51)),0) -> 0.007962006079 | BM39: =IFERROR(IF(SUM(BM55,BM50)<0,0,SUM(BM55,BM50)/-SUMIF($AF$51:BL51,"<0",$AF$51:BL51)),0) -> 0.008307755191 | BN39: =IFERROR(IF(SUM(BN55,BN50)<0,0,SUM(BN55,BN50)/-SUMIF($AF$51:BM51,"<0",$AF$51:BM51)),0) -> 0.008307755191 | BO39: =IFERROR(IF(SUM(BO55,BO50)<0,0,SUM(BO55,BO50)/-SUMIF($AF$51:BN51,"<0",$AF$51:BN51)),0) -> 0.008307755191 | BP39: =IFERROR(IF(SUM(BP55,BP50)<0,0,SUM(BP55,BP50)/-SUMIF($AF$51:BO51,"<0",$AF$51:BO51)),0) -> 0.008307755191 | BQ39: =IFERROR(IF(SUM(BQ55,BQ50)<0,0,SUM(BQ55,BQ50)/-SUMIF($AF$51:BP51,"<0",$AF$51:BP51)),0) -> 0.008296047399 | BR39: =IFERROR(IF(SUM(BR55,BR50)<0,0,SUM(BR55,BR50)/-SUMIF($AF$51:BQ51,"<0",$AF$51:BQ51)),0) -> 0.008296047399 | BS39: =IFERROR(IF(SUM(BS55,BS50)<0,0,SUM(BS55,BS50)/-SUMIF($AF$51:BR51,"<0",$AF$51:BR51)),0) -> 0.008296047399 | BT39: =IFERROR(IF(SUM(BT55,BT50)<0,0,SUM(BT55,BT50)/-SUMIF($AF$51:BS51,"<0",$AF$51:BS51)),0) -> 0.008296047399 | BU39: =IFERROR(IF(SUM(BU55,BU50)<0,0,SUM(BU55,BU50)/-SUMIF($AF$51:BT51,"<0",$AF$51:BT51)),0) -> 0.008296047399 | BV39: =IFERROR(IF(SUM(BV55,BV50)<0,0,SUM(BV55,BV50)/-SUMIF($AF$51:BU51,"<0",$AF$51:BU51)),0) -> 0.008296047399 | BW39: =IFERROR(IF(SUM(BW55,BW50)<0,0,SUM(BW55,BW50)/-SUMIF($AF$51:BV51,"<0",$AF$51:BV51)),0) -> 0.008296047399 | BX39: =IFERROR(IF(SUM(BX55,BX50)<0,0,SUM(BX55,BX50)/-SUMIF($AF$51:BW51,"<0",$AF$51:BW51)),0) -> 0.008296047399 | BY39: =IFERROR(IF(SUM(BY55,BY50)<0,0,SUM(BY55,BY50)/-SUMIF($AF$51:BX51,"<0",$AF$51:BX51)),0) -> 0.008650440239 | BZ39: =IFERROR(IF(SUM(BZ55,BZ50)<0,0,SUM(BZ55,BZ50)/-SUMIF($AF$51:BY51,"<0",$AF$51:BY51)),0) -> 0.008650440239 | CA39: =IFERROR(IF(SUM(CA55,CA50)<0,0,SUM(CA55,CA50)/-SUMIF($AF$51:BZ51,"<0",$AF$51:BZ51)),0) -> 0.008650440239 | CB39: =IFERROR(IF(SUM(CB55,CB50)<0,0,SUM(CB55,CB50)/-SUMIF($AF$51:CA51,"<0",$AF$51:CA51)),0) -> 0.008650440239 | CC39: =IFERROR(IF(SUM(CC55,CC50)<0,0,SUM(CC55,CC50)/-SUMIF($AF$51:CB51,"<0",$AF$51:CB51)),0) -> 0.008638439752 | CD39: =IFERROR(IF(SUM(CD55,CD50)<0,0,SUM(CD55,CD50)/-SUMIF($AF$51:CC51,"<0",$AF$51:CC51)),0) -> 0.008638439752 | CE39: =IFERROR(IF(SUM(CE55,CE50)<0,0,SUM(CE55,CE50)/-SUMIF($AF$51:CD51,"<0",$AF$51:CD51)),0) -> 0.008638439752 | CF39: =IFERROR(IF(SUM(CF55,CF50)<0,0,SUM(CF55,CF50)/-SUMIF($AF$51:CE51,"<0",$AF$51:CE51)),0) -> 0.008638439752 | CG39: =IFERROR(IF(SUM(CG55,CG50)<0,0,SUM(CG55,CG50)/-SUMIF($AF$51:CF51,"<0",$AF$51:CF51)),0) -> 0.008638439752 | CH39: =IFERROR(IF(SUM(CH55,CH50)<0,0,SUM(CH55,CH50)/-SUMIF($AF$51:CG51,"<0",$AF$51:CG51)),0) -> 0.008638439752 | CI39: =IFERROR(IF(SUM(CI55,CI50)<0,0,SUM(CI55,CI50)/-SUMIF($AF$51:CH51,"<0",$AF$51:CH51)),0) -> 0.008638439752 | CJ39: =IFERROR(IF(SUM(CJ55,CJ50)<0,0,SUM(CJ55,CJ50)/-SUMIF($AF$51:CI51,"<0",$AF$51:CI51)),0) -> 0.008638439752 | CK39: =IFERROR(IF(SUM(CK55,CK50)<0,0,SUM(CK55,CK50)/-SUMIF($AF$51:CJ51,"<0",$AF$51:CJ51)),0) -> 0.009001692413 | CL39: =IFERROR(IF(SUM(CL55,CL50)<0,0,SUM(CL55,CL50)/-SUMIF($AF$51:CK51,"<0",$AF$51:CK51)),0) -> 0.009001692413 | CM39: =IFERROR(IF(SUM(CM55,CM50)<0,0,SUM(CM55,CM50)/-SUMIF($AF$51:CL51,"<0",$AF$51:CL51)),0) -> 0.009001692413 | CN39: =IFERROR(IF(SUM(CN55,CN50)<0,0,SUM(CN55,CN50)/-SUMIF($AF$51:CM51,"<0",$AF$51:CM51)),0) -> 0.009001692413 | CO39: =IFERROR(IF(SUM(CO55,CO50)<0,0,SUM(CO55,CO50)/-SUMIF($AF$51:CN51,"<0",$AF$51:CN51)),0) -> 0 | CP39: =IFERROR(IF(SUM(CP55,CP50)<0,0,SUM(CP55,CP50)/-SUMIF($AF$51:CO51,"<0",$AF$51:CO51)),0) -> 0 | CQ39: =IFERROR(IF(SUM(CQ55,CQ50)<0,0,SUM(CQ55,CQ50)/-SUMIF($AF$51:CP51,"<0",$AF$51:CP51)),0) -> 0 | CR39: =IFERROR(IF(SUM(CR55,CR50)<0,0,SUM(CR55,CR50)/-SUMIF($AF$51:CQ51,"<0",$AF$51:CQ51)),0) -> 0 | CS39: =IFERROR(IF(SUM(CS55,CS50)<0,0,SUM(CS55,CS50)/-SUMIF($AF$51:CR51,"<0",$AF$51:CR51)),0) -> 0 | CT39: =IFERROR(IF(SUM(CT55,CT50)<0,0,SUM(CT55,CT50)/-SUMIF($AF$51:CS51,"<0",$AF$51:CS51)),0) -> 0 | CU39: =IFERROR(IF(SUM(CU55,CU50)<0,0,SUM(CU55,CU50)/-SUMIF($AF$51:CT51,"<0",$AF$51:CT51)),0) -> 0 | CV39: =IFERROR(IF(SUM(CV55,CV50)<0,0,SUM(CV55,CV50)/-SUMIF($AF$51:CU51,"<0",$AF$51:CU51)),0) -> 0 | CW39: =IFERROR(IF(SUM(CW55,CW50)<0,0,SUM(CW55,CW50)/-SUMIF($AF$51:CV51,"<0",$AF$51:CV51)),0) -> 0 | CX39: =IFERROR(IF(SUM(CX55,CX50)<0,0,SUM(CX55,CX50)/-SUMIF($AF$51:CW51,"<0",$AF$51:CW51)),0) -> 0 | CY39: =IFERROR(IF(SUM(CY55,CY50)<0,0,SUM(CY55,CY50)/-SUMIF($AF$51:CX51,"<0",$AF$51:CX51)),0) -> 0 | CZ39: =IFERROR(IF(SUM(CZ55,CZ50)<0,0,SUM(CZ55,CZ50)/-SUMIF($AF$51:CY51,"<0",$AF$51:CY51)),0) -> 0 | DA39: =IFERROR(IF(SUM(DA55,DA50)<0,0,SUM(DA55,DA50)/-SUMIF($AF$51:CZ51,"<0",$AF$51:CZ51)),0) -> 0 | DB39: =IFERROR(IF(SUM(DB55,DB50)<0,0,SUM(DB55,DB50)/-SUMIF($AF$51:DA51,"<0",$AF$51:DA51)),0) -> 0 | DC39: =IFERROR(IF(SUM(DC55,DC50)<0,0,SUM(DC55,DC50)/-SUMIF($AF$51:DB51,"<0",$AF$51:DB51)),0) -> 0 | DD39: =IFERROR(IF(SUM(DD55,DD50)<0,0,SUM(DD55,DD50)/-SUMIF($AF$51:DC51,"<0",$AF$51:DC51)),0) -> 0 | DE39: =IFERROR(IF(SUM(DE55,DE50)<0,0,SUM(DE55,DE50)/-SUMIF($AF$51:DD51,"<0",$AF$51:DD51)),0) -> 0 | DF39: =IFERROR(IF(SUM(DF55,DF50)<0,0,SUM(DF55,DF50)/-SUMIF($AF$51:DE51,"<0",$AF$51:DE51)),0) -> 0 | DG39: =IFERROR(IF(SUM(DG55,DG50)<0,0,SUM(DG55,DG50)/-SUMIF($AF$51:DF51,"<0",$AF$51:DF51)),0) -> 0 | DH39: =IFERROR(IF(SUM(DH55,DH50)<0,0,SUM(DH55,DH50)/-SUMIF($AF$51:DG51,"<0",$AF$51:DG51)),0) -> 0 | DI39: =IFERROR(IF(SUM(DI55,DI50)<0,0,SUM(DI55,DI50)/-SUMIF($AF$51:DH51,"<0",$AF$51:DH51)),0) -> 0 | DJ39: =IFERROR(IF(SUM(DJ55,DJ50)<0,0,SUM(DJ55,DJ50)/-SUMIF($AF$51:DI51,"<0",$AF$51:DI51)),0) -> 0 | DK39: =IFERROR(IF(SUM(DK55,DK50)<0,0,SUM(DK55,DK50)/-SUMIF($AF$51:DJ51,"<0",$AF$51:DJ51)),0) -> 0 | DL39: =IFERROR(IF(SUM(DL55,DL50)<0,0,SUM(DL55,DL50)/-SUMIF($AF$51:DK51,"<0",$AF$51:DK51)),0) -> 0 | DM39: =IFERROR(IF(SUM(DM55,DM50)<0,0,SUM(DM55,DM50)/-SUMIF($AF$51:DL51,"<0",$AF$51:DL51)),0) -> 0 | DN39: =IFERROR(IF(SUM(DN55,DN50)<0,0,SUM(DN55,DN50)/-SUMIF($AF$51:DM51,"<0",$AF$51:DM51)),0) -> 0 | DO39: =IFERROR(IF(SUM(DO55,DO50)<0,0,SUM(DO55,DO50)/-SUMIF($AF$51:DN51,"<0",$AF$51:DN51)),0) -> 0 | DP39: =IFERROR(IF(SUM(DP55,DP50)<0,0,SUM(DP55,DP50)/-SUMIF($AF$51:DO51,"<0",$AF$51:DO51)),0) -> 0 | DQ39: =IFERROR(IF(SUM(DQ55,DQ50)<0,0,SUM(DQ55,DQ50)/-SUMIF($AF$51:DP51,"<0",$AF$51:DP51)),0) -> 0 | DR39: =IFERROR(IF(SUM(DR55,DR50)<0,0,SUM(DR55,DR50)/-SUMIF($AF$51:DQ51,"<0",$AF$51:DQ51)),0) -> 0 | DS39: =IFERROR(IF(SUM(DS55,DS50)<0,0,SUM(DS55,DS50)/-SUMIF($AF$51:DR51,"<0",$AF$51:DR51)),0) -> 0 | DT39: =IFERROR(IF(SUM(DT55,DT50)<0,0,SUM(DT55,DT50)/-SUMIF($AF$51:DS51,"<0",$AF$51:DS51)),0) -> 0 | DU39: =IFERROR(IF(SUM(DU55,DU50)<0,0,SUM(DU55,DU50)/-SUMIF($AF$51:DT51,"<0",$AF$51:DT51)),0) -> 0 | DV39: =IFERROR(IF(SUM(DV55,DV50)<0,0,SUM(DV55,DV50)/-SUMIF($AF$51:DU51,"<0",$AF$51:DU51)),0) -> 0 | DW39: =IFERROR(IF(SUM(DW55,DW50)<0,0,SUM(DW55,DW50)/-SUMIF($AF$51:DV51,"<0",$AF$51:DV51)),0) -> 0 | DX39: =IFERROR(IF(SUM(DX55,DX50)<0,0,SUM(DX55,DX50)/-SUMIF($AF$51:DW51,"<0",$AF$51:DW51)),0) -> 0 | DY39: =IFERROR(IF(SUM(DY55,DY50)<0,0,SUM(DY55,DY50)/-SUMIF($AF$51:DX51,"<0",$AF$51:DX51)),0) -> 0 | DZ39: =IFERROR(IF(SUM(DZ55,DZ50)<0,0,SUM(DZ55,DZ50)/-SUMIF($AF$51:DY51,"<0",$AF$51:DY51)),0) -> 0 | EA39: =IFERROR(IF(SUM(EA55,EA50)<0,0,SUM(EA55,EA50)/-SUMIF($AF$51:DZ51,"<0",$AF$51:DZ51)),0) -> 0 | EB39: =IFERROR(IF(SUM(EB55,EB50)<0,0,SUM(EB55,EB50)/-SUMIF($AF$51:EA51,"<0",$AF$51:EA51)),0) -> 0 | EC39: =IFERROR(IF(SUM(EC55,EC50)<0,0,SUM(EC55,EC50)/-SUMIF($AF$51:EB51,"<0",$AF$51:EB51)),0) -> 0 | ED39: =IFERROR(IF(SUM(ED55,ED50)<0,0,SUM(ED55,ED50)/-SUMIF($AF$51:EC51,"<0",$AF$51:EC51)),0) -> 0 | EE39: =IFERROR(IF(SUM(EE55,EE50)<0,0,SUM(EE55,EE50)/-SUMIF($AF$51:ED51,"<0",$AF$51:ED51)),0) -> 0 | EF39: =IFERROR(IF(SUM(EF55,EF50)<0,0,SUM(EF55,EF50)/-SUMIF($AF$51:EE51,"<0",$AF$51:EE51)),0) -> 0 | EG39: =IFERROR(IF(SUM(EG55,EG50)<0,0,SUM(EG55,EG50)/-SUMIF($AF$51:EF51,"<0",$AF$51:EF51)),0) -> 0 | EH39: =IFERROR(IF(SUM(EH55,EH50)<0,0,SUM(EH55,EH50)/-SUMIF($AF$51:EG51,"<0",$AF$51:EG51)),0) -> 0 | EI39: =IFERROR(IF(SUM(EI55,EI50)<0,0,SUM(EI55,EI50)/-SUMIF($AF$51:EH51,"<0",$AF$51:EH51)),0) -> 0 | EJ39: =IFERROR(IF(SUM(EJ55,EJ50)<0,0,SUM(EJ55,EJ50)/-SUMIF($AF$51:EI51,"<0",$AF$51:EI51)),0) -> 0 | EK39: =IFERROR(IF(SUM(EK55,EK50)<0,0,SUM(EK55,EK50)/-SUMIF($AF$51:EJ51,"<0",$AF$51:EJ51)),0) -> 0 | EL39: =IFERROR(IF(SUM(EL55,EL50)<0,0,SUM(EL55,EL50)/-SUMIF($AF$51:EK51,"<0",$AF$51:EK51)),0) -> 0 | EM39: =IFERROR(IF(SUM(EM55,EM50)<0,0,SUM(EM55,EM50)/-SUMIF($AF$51:EL51,"<0",$AF$51:EL51)),0) -> 0 | EN39: =IFERROR(IF(SUM(EN55,EN50)<0,0,SUM(EN55,EN50)/-SUMIF($AF$51:EM51,"<0",$AF$51:EM51)),0) -> 0 | EO39: =IFERROR(IF(SUM(EO55,EO50)<0,0,SUM(EO55,EO50)/-SUMIF($AF$51:EN51,"<0",$AF$51:EN51)),0) -> 0 | EP39: =IFERROR(IF(SUM(EP55,EP50)<0,0,SUM(EP55,EP50)/-SUMIF($AF$51:EO51,"<0",$AF$51:EO51)),0) -> 0 | EQ39: =IFERROR(IF(SUM(EQ55,EQ50)<0,0,SUM(EQ55,EQ50)/-SUMIF($AF$51:EP51,"<0",$AF$51:EP51)),0) -> 0 | ER39: =IFERROR(IF(SUM(ER55,ER50)<0,0,SUM(ER55,ER50)/-SUMIF($AF$51:EQ51,"<0",$AF$51:EQ51)),0) -> 0 | ES39: =IFERROR(IF(SUM(ES55,ES50)<0,0,SUM(ES55,ES50)/-SUMIF($AF$51:ER51,"<0",$AF$51:ER51)),0) -> 0 | ET39: =IFERROR(IF(SUM(ET55,ET50)<0,0,SUM(ET55,ET50)/-SUMIF($AF$51:ES51,"<0",$AF$51:ES51)),0) -> 0 | EU39: =IFERROR(IF(SUM(EU55,EU50)<0,0,SUM(EU55,EU50)/-SUMIF($AF$51:ET51,"<0",$AF$51:ET51)),0) -> 0 | EV39: =IFERROR(IF(SUM(EV55,EV50)<0,0,SUM(EV55,EV50)/-SUMIF($AF$51:EU51,"<0",$AF$51:EU51)),0) -> 0 | EW39: =IFERROR(IF(SUM(EW55,EW50)<0,0,SUM(EW55,EW50)/-SUMIF($AF$51:EV51,"<0",$AF$51:EV51)),0) -> 0 | EX39: =IFERROR(IF(SUM(EX55,EX50)<0,0,SUM(EX55,EX50)/-SUMIF($AF$51:EW51,"<0",$AF$51:EW51)),0) -> 0 | EY39: =IFERROR(IF(SUM(EY55,EY50)<0,0,SUM(EY55,EY50)/-SUMIF($AF$51:EX51,"<0",$AF$51:EX51)),0) -> 0 | EZ39: =IFERROR(IF(SUM(EZ55,EZ50)<0,0,SUM(EZ55,EZ50)/-SUMIF($AF$51:EY51,"<0",$AF$51:EY51)),0) -> 0 | FA39: =IFERROR(IF(SUM(FA55,FA50)<0,0,SUM(FA55,FA50)/-SUMIF($AF$51:EZ51,"<0",$AF$51:EZ51)),0) -> 0 | FB39: =IFERROR(IF(SUM(FB55,FB50)<0,0,SUM(FB55,FB50)/-SUMIF($AF$51:FA51,"<0",$AF$51:FA51)),0) -> 0 | FC39: =IFERROR(IF(SUM(FC55,FC50)<0,0,SUM(FC55,FC50)/-SUMIF($AF$51:FB51,"<0",$AF$51:FB51)),0) -> 0 | FD39: =IFERROR(IF(SUM(FD55,FD50)<0,0,SUM(FD55,FD50)/-SUMIF($AF$51:FC51,"<0",$AF$51:FC51)),0) -> 0 | FE39: =IFERROR(IF(SUM(FE55,FE50)<0,0,SUM(FE55,FE50)/-SUMIF($AF$51:FD51,"<0",$AF$51:FD51)),0) -> 0 | FF39: =IFERROR(IF(SUM(FF55,FF50)<0,0,SUM(FF55,FF50)/-SUMIF($AF$51:FE51,"<0",$AF$51:FE51)),0) -> 0 | FG39: =IFERROR(IF(SUM(FG55,FG50)<0,0,SUM(FG55,FG50)/-SUMIF($AF$51:FF51,"<0",$AF$51:FF51)),0) -> 0 | FH39: =IFERROR(IF(SUM(FH55,FH50)<0,0,SUM(FH55,FH50)/-SUMIF($AF$51:FG51,"<0",$AF$51:FG51)),0) -> 0
G41: Backup (Hide) | AE41: Backup (Hide)
G42: During Hold? | H42: =IF(H51<>0,1,0) -> 1 | I42: 1 | J42: 1 | K42: 1 | L42: 1 | M42: 1 | N42: 0 | O42: 0 | P42: 0 | Q42: 0 | R42: 0 | S42: 0 | AE42: During Hold? | AF42: =IF(AF51<>0,1,0) -> 1 | AG42: =IF(AG51<>0,1,0) -> 1 | AH42: 1 | AI42: 1 | AJ42: 1 | AK42: 1 | AL42: 1 | AM42: 1 | AN42: 1 | AO42: 1 | AP42: 1 | AQ42: 1 | AR42: 1 | AS42: 1 | AT42: 1 | AU42: 1 | AV42: 1 | AW42: 1 | AX42: 1 | AY42: 1 | AZ42: 1 | BA42: 1 | BB42: 1 | BC42: 1 | BD42: 1 | BE42: 1 | BF42: 1 | BG42: 1 | BH42: 1 | BI42: 1 | BJ42: 1 | BK42: 1 | BL42: 1 | BM42: 1 | BN42: 1 | BO42: 1 | BP42: 1 | BQ42: 1 | BR42: 1 | BS42: 1 | BT42: 1 | BU42: 1 | BV42: 1 | BW42: 1 | BX42: 1 | BY42: 1 | BZ42: 1 | CA42: 1 | CB42: 1 | CC42: 1 | CD42: 1 | CE42: 1 | CF42: 1 | CG42: 1 | CH42: 1 | CI42: 1 | CJ42: 1 | CK42: 1 | CL42: 1 | CM42: 1 | CN42: 1 | CO42: 0 | CP42: 0 | CQ42: 0 | CR42: 0 | CS42: =IF(CS51<>0,1,0) -> 0 | CT42: 0 | CU42: 0 | CV42: 0 | CW42: 0 | CX42: 0 | CY42: 0 | CZ42: 0 | DA42: 0 | DB42: 0 | DC42: 0 | DD42: 0 | DE42: 0 | DF42: 0 | DG42: 0 | DH42: 0 | DI42: 0 | DJ42: 0 | DK42: 0 | DL42: 0 | DM42: 0 | DN42: 0 | DO42: 0 | DP42: 0 | DQ42: 0 | DR42: 0 | DS42: 0 | DT42: 0 | DU42: 0 | DV42: 0 | DW42: 0 | DX42: 0 | DY42: 0 | DZ42: 0 | EA42: 0 | EB42: 0 | EC42: 0 | ED42: 0 | EE42: 0 | EF42: 0 | EG42: 0 | EH42: 0 | EI42: 0 | EJ42: 0 | EK42: 0 | EL42: 0 | EM42: 0 | EN42: 0 | EO42: 0 | EP42: 0 | EQ42: 0 | ER42: 0 | ES42: 0 | ET42: 0 | EU42: 0 | EV42: 0 | EW42: 0 | EX42: 0 | EY42: 0 | EZ42: 0 | FA42: 0 | FB42: 0 | FC42: 0 | FD42: 0 | FE42: =IF(FE51<>0,1,0) -> 0 | FF42: 0 | FG42: 0 | FH42: 0
G44: Standard Tags | AE44: Standard Tags
C45: effective_gross_revenue | G45: =_xlfn.XLOOKUP($C45,tags!$C$16:$C$134,tags!$E$16:$E$134,0) -> Effective Gross Revenue | H45: =IF($C45=0,"",SUMIFS(_xlfn.ANCHORARRAY(cf_detail!ES$882),cf_detail!$C$882:$C$1278,'Cash Flow'!$C45,_xlfn.ANCHORARRAY(cf_detail!$B$882),1)+SUMIFS(_xlfn.ANCHORARRAY(cf_detail!ES$1875),_xlfn.ANCHORARRAY(cf_detail!$B$1875),1,cf_detail!$C$1875:$C$2464,'Cash Flow'!$C45)) -> 0 | I45: =IF($C45=0,"",SUMIFS(_xlfn.ANCHORARRAY(cf_detail!ET$882),cf_detail!$C$882:$C$1278,'Cash Flow'!$C45,_xlfn.ANCHORARRAY(cf_detail!$B$882),1)+SUMIFS(_xlfn.ANCHORARRAY(cf_detail!ET$1875),_xlfn.ANCHORARRAY(cf_detail!$B$1875),1,cf_detail!$C$1875:$C$2464,'Cash Flow'!$C45)) -> 788089.7474 | J45: =IF($C45=0,"",SUMIFS(_xlfn.ANCHORARRAY(cf_detail!EU$882),cf_detail!$C$882:$C$1278,'Cash Flow'!$C45,_xlfn.ANCHORARRAY(cf_detail!$B$882),1)+SUMIFS(_xlfn.ANCHORARRAY(cf_detail!EU$1875),_xlfn.ANCHORARRAY(cf_detail!$B$1875),1,cf_detail!$C$1875:$C$2464,'Cash Flow'!$C45)) -> 995035.4631 | K45: =IF($C45=0,"",SUMIFS(_xlfn.ANCHORARRAY(cf_detail!EV$882),cf_detail!$C$882:$C$1278,'Cash Flow'!$C45,_xlfn.ANCHORARRAY(cf_detail!$B$882),1)+SUMIFS(_xlfn.ANCHORARRAY(cf_detail!EV$1875),_xlfn.ANCHORARRAY(cf_detail!$B$1875),1,cf_detail!$C$1875:$C$2464,'Cash Flow'!$C45)) -> 1018138.3 | L45: =IF($C45=0,"",SUMIFS(_xlfn.ANCHORARRAY(cf_detail!EW$882),cf_detail!$C$882:$C$1278,'Cash Flow'!$C45,_xlfn.ANCHORARRAY(cf_detail!$B$882),1)+SUMIFS(_xlfn.ANCHORARRAY(cf_detail!EW$1875),_xlfn.ANCHORARRAY(cf_detail!$B$1875),1,cf_detail!$C$1875:$C$2464,'Cash Flow'!$C45)) -> 1041818.708 | M45: =IF($C45=0,"",SUMIFS(_xlfn.ANCHORARRAY(cf_detail!EX$882),cf_detail!$C$882:$C$1278,'Cash Flow'!$C45,_xlfn.ANCHORARRAY(cf_detail!$B$882),1)+SUMIFS(_xlfn.ANCHORARRAY(cf_detail!EX$1875),_xlfn.ANCHORARRAY(cf_detail!$B$1875),1,cf_detail!$C$1875:$C$2464,'Cash Flow'!$C45)) -> 1066091.126 | N45: =IF($C45=0,"",SUMIFS(_xlfn.ANCHORARRAY(cf_detail!EY$882),cf_detail!$C$882:$C$1278,'Cash Flow'!$C45,_xlfn.ANCHORARRAY(cf_detail!$B$882),1)+SUMIFS(_xlfn.ANCHORARRAY(cf_detail!EY$1875),_xlfn.ANCHORARRAY(cf_detail!$B$1875),1,cf_detail!$C$1875:$C$2464,'Cash Flow'!$C45)) -> 0 | O45: =IF($C45=0,"",SUMIFS(_xlfn.ANCHORARRAY(cf_detail!EZ$882),cf_detail!$C$882:$C$1278,'Cash Flow'!$C45,_xlfn.ANCHORARRAY(cf_detail!$B$882),1)+SUMIFS(_xlfn.ANCHORARRAY(cf_detail!EZ$1875),_xlfn.ANCHORARRAY(cf_detail!$B$1875),1,cf_detail!$C$1875:$C$2464,'Cash Flow'!$C45)) -> 0 | P45: =IF($C45=0,"",SUMIFS(_xlfn.ANCHORARRAY(cf_detail!FA$882),cf_detail!$C$882:$C$1278,'Cash Flow'!$C45,_xlfn.ANCHORARRAY(cf_detail!$B$882),1)+SUMIFS(_xlfn.ANCHORARRAY(cf_detail!FA$1875),_xlfn.ANCHORARRAY(cf_detail!$B$1875),1,cf_detail!$C$1875:$C$2464,'Cash Flow'!$C45)) -> 0 | Q45: =IF($C45=0,"",SUMIFS(_xlfn.ANCHORARRAY(cf_detail!FB$882),cf_detail!$C$882:$C$1278,'Cash Flow'!$C45,_xlfn.ANCHORARRAY(cf_detail!$B$882),1)+SUMIFS(_xlfn.ANCHORARRAY(cf_detail!FB$1875),_xlfn.ANCHORARRAY(cf_detail!$B$1875),1,cf_detail!$C$1875:$C$2464,'Cash Flow'!$C45)) -> 0 | R45: =IF($C45=0,"",SUMIFS(_xlfn.ANCHORARRAY(cf_detail!FC$882),cf_detail!$C$882:$C$1278,'Cash Flow'!$C45,_xlfn.ANCHORARRAY(cf_detail!$B$882),1)+SUMIFS(_xlfn.ANCHORARRAY(cf_detail!FC$1875),_xlfn.ANCHORARRAY(cf_detail!$B$1875),1,cf_detail!$C$1875:$C$2464,'Cash Flow'!$C45)) -> 0 | S45: =IF($C45=0,"",SUMIFS(_xlfn.ANCHORARRAY(cf_detail!FD$882),cf_detail!$C$882:$C$1278,'Cash Flow'!$C45,_xlfn.ANCHORARRAY(cf_detail!$B$882),1)+SUMIFS(_xlfn.ANCHORARRAY(cf_detail!FD$1875),_xlfn.ANCHORARRAY(cf_detail!$B$1875),1,cf_detail!$C$1875:$C$2464,'Cash Flow'!$C45)) -> 0 | U45: =IF($C45=0,"",SUMIFS(_xlfn.ANCHORARRAY(cf_detail!FF$882),cf_detail!$C$882:$C$1278,'Cash Flow'!$C45,_xlfn.ANCHORARRAY(cf_detail!$B$882),1)+SUMIFS(_xlfn.ANCHORARRAY(cf_detail!FF$1875),_xlfn.ANCHORARRAY(cf_detail!$B$1875),1,cf_detail!$C$1875:$C$2464,'Cash Flow'!$C45)) -> 4909173.344 | Z45: =IF($C45=0,"",SUMIFS(_xlfn.ANCHORARRAY(cf_detail!EL$882),cf_detail!$C$882:$C$1278,'Cash Flow'!$C45,_xlfn.ANCHORARRAY(cf_detail!$B$882),1)+SUMIFS(_xlfn.ANCHORARRAY(cf_detail!EL$1875),_xlfn.ANCHORARRAY(cf_detail!$B$1875),1,cf_detail!$C$1875:$C$2464,'Cash Flow'!$C45)) -> 788089.7474 | AA45: =IF($C45=0,"",SUMIFS(_xlfn.ANCHORARRAY(cf_detail!EM$882),cf_detail!$C$882:$C$1278,'Cash Flow'!$C45,_xlfn.ANCHORARRAY(cf_detail!$B$882),1)+SUMIFS(_xlfn.ANCHORARRAY(cf_detail!EM$1875),_xlfn.ANCHORARRAY(cf_detail!$B$1875),1,cf_detail!$C$1875:$C$2464,'Cash Flow'!$C45)) -> 1066091.126 | AE45: Effective Gross Revenue | AF45: =IF($C45=0,"",SUMIFS(cf_detail!G$882:G$1278,cf_detail!$C$882:$C$1278,'Cash Flow'!$C45,_xlfn.ANCHORARRAY(cf_detail!$B$882),1)+SUMIFS(cf_detail!G$1875:G$2464,_xlfn.ANCHORARRAY(cf_detail!$B$1875),1,cf_detail!$C$1875:$C$2464,'Cash Flow'!$C45)) -> 0 | AG45: =IF($C45=0,"",SUMIFS(cf_detail!H$882:H$1278,cf_detail!$C$882:$C$1278,'Cash Flow'!$C45,_xlfn.ANCHORARRAY(cf_detail!$B$882),1)+SUMIFS(cf_detail!H$1875:H$2464,_xlfn.ANCHORARRAY(cf_detail!$B$1875),1,cf_detail!$C$1875:$C$2464,'Cash Flow'!$C45)) -> 63335.49123 | AH45: =IF($C45=0,"",SUMIFS(cf_detail!I$882:I$1278,cf_detail!$C$882:$C$1278,'Cash Flow'!$C45,_xlfn.ANCHORARRAY(cf_detail!$B$882),1)+SUMIFS(cf_detail!I$1875:I$2464,_xlfn.ANCHORARRAY(cf_detail!$B$1875),1,cf_detail!$C$1875:$C$2464,'Cash Flow'!$C45)) -> 63338.15393 | AI45: =IF($C45=0,"",SUMIFS(cf_detail!J$882:J$1278,cf_detail!$C$882:$C$1278,'Cash Flow'!$C45,_xlfn.ANCHORARRAY(cf_detail!$B$882),1)+SUMIFS(cf_detail!J$1875:J$2464,_xlfn.ANCHORARRAY(cf_detail!$B$1875),1,cf_detail!$C$1875:$C$2464,'Cash Flow'!$C45)) -> 63340.82212 | AJ45: =IF($C45=0,"",SUMIFS(cf_detail!K$882:K$1278,cf_detail!$C$882:$C$1278,'Cash Flow'!$C45,_xlfn.ANCHORARRAY(cf_detail!$B$882),1)+SUMIFS(cf_detail!K$1875:K$2464,_xlfn.ANCHORARRAY(cf_detail!$B$1875),1,cf_detail!$C$1875:$C$2464,'Cash Flow'!$C45)) -> 63343.4958 | AK45: =IF($C45=0,"",SUMIFS(cf_detail!L$882:L$1278,cf_detail!$C$882:$C$1278,'Cash Flow'!$C45,_xlfn.ANCHORARRAY(cf_detail!$B$882),1)+SUMIFS(cf_detail!L$1875:L$2464,_xlfn.ANCHORARRAY(cf_detail!$B$1875),1,cf_detail!$C$1875:$C$2464,'Cash Flow'!$C45)) -> 63346.175 | AL45: =IF($C45=0,"",SUMIFS(cf_detail!M$882:M$1278,cf_detail!$C$882:$C$1278,'Cash Flow'!$C45,_xlfn.ANCHORARRAY(cf_detail!$B$882),1)+SUMIFS(cf_detail!M$1875:M$2464,_xlfn.ANCHORARRAY(cf_detail!$B$1875),1,cf_detail!$C$1875:$C$2464,'Cash Flow'!$C45)) -> 63348.85971 | AM45: =IF($C45=0,"",SUMIFS(cf_detail!N$882:N$1278,cf_detail!$C$882:$C$1278,'Cash Flow'!$C45,_xlfn.ANCHORARRAY(cf_detail!$B$882),1)+SUMIFS(cf_detail!N$1875:N$2464,_xlfn.ANCHORARRAY(cf_detail!$B$1875),1,cf_detail!$C$1875:$C$2464,'Cash Flow'!$C45)) -> 63351.54994 | AN45: =IF($C45=0,"",SUMIFS(cf_detail!O$882:O$1278,cf_detail!$C$882:$C$1278,'Cash Flow'!$C45,_xlfn.ANCHORARRAY(cf_detail!$B$882),1)+SUMIFS(cf_detail!O$1875:O$2464,_xlfn.ANCHORARRAY(cf_detail!$B$1875),1,cf_detail!$C$1875:$C$2464,'Cash Flow'!$C45)) -> 63354.24573 | AO45: =IF($C45=0,"",SUMIFS(cf_detail!P$882:P$1278,cf_detail!$C$882:$C$1278,'Cash Flow'!$C45,_xlfn.ANCHORARRAY(cf_detail!$B$882),1)+SUMIFS(cf_detail!P$1875:P$2464,_xlfn.ANCHORARRAY(cf_detail!$B$1875),1,cf_detail!$C$1875:$C$2464,'Cash Flow'!$C45)) -> 66377.97237 | AP45: =IF($C45=0,"",SUMIFS(cf_detail!Q$882:Q$1278,cf_detail!$C$882:$C$1278,'Cash Flow'!$C45,_xlfn.ANCHORARRAY(cf_detail!$B$882),1)+SUMIFS(cf_detail!Q$1875:Q$2464,_xlfn.ANCHORARRAY(cf_detail!$B$1875),1,cf_detail!$C$1875:$C$2464,'Cash Flow'!$C45)) -> 66381.49954 | AQ45: =IF($C45=0,"",SUMIFS(cf_detail!R$882:R$1278,cf_detail!$C$882:$C$1278,'Cash Flow'!$C45,_xlfn.ANCHORARRAY(cf_detail!$B$882),1)+SUMIFS(cf_detail!R$1875:R$2464,_xlfn.ANCHORARRAY(cf_detail!$B$1875),1,cf_detail!$C$1875:$C$2464,'Cash Flow'!$C45)) -> 66385.03398 | AR45: =IF($C45=0,"",SUMIFS(cf_detail!S$882:S$1278,cf_detail!$C$882:$C$1278,'Cash Flow'!$C45,_xlfn.ANCHORARRAY(cf_detail!$B$882),1)+SUMIFS(cf_detail!S$1875:S$2464,_xlfn.ANCHORARRAY(cf_detail!$B$1875),1,cf_detail!$C$1875:$C$2464,'Cash Flow'!$C45)) -> 82186.44803 | AS45: =IF($C45=0,"",SUMIFS(cf_detail!T$882:T$1278,cf_detail!$C$882:$C$1278,'Cash Flow'!$C45,_xlfn.ANCHORARRAY(cf_detail!$B$882),1)+SUMIFS(cf_detail!T$1875:T$2464,_xlfn.ANCHORARRAY(cf_detail!$B$1875),1,cf_detail!$C$1875:$C$2464,'Cash Flow'!$C45)) -> 82322.97577 | AT45: =IF($C45=0,"",SUMIFS(cf_detail!U$882:U$1278,cf_detail!$C$882:$C$1278,'Cash Flow'!$C45,_xlfn.ANCHORARRAY(cf_detail!$B$882),1)+SUMIFS(cf_detail!U$1875:U$2464,_xlfn.ANCHORARRAY(cf_detail!$B$1875),1,cf_detail!$C$1875:$C$2464,'Cash Flow'!$C45)) -> 82326.53209 | AU45: =IF($C45=0,"",SUMIFS(cf_detail!V$882:V$1278,cf_detail!$C$882:$C$1278,'Cash Flow'!$C45,_xlfn.ANCHORARRAY(cf_detail!$B$882),1)+SUMIFS(cf_detail!V$1875:V$2464,_xlfn.ANCHORARRAY(cf_detail!$B$1875),1,cf_detail!$C$1875:$C$2464,'Cash Flow'!$C45)) -> 82330.09574 | AV45: =IF($C45=0,"",SUMIFS(cf_detail!W$882:W$1278,cf_detail!$C$882:$C$1278,'Cash Flow'!$C45,_xlfn.ANCHORARRAY(cf_detail!$B$882),1)+SUMIFS(cf_detail!W$1875:W$2464,_xlfn.ANCHORARRAY(cf_detail!$B$1875),1,cf_detail!$C$1875:$C$2464,'Cash Flow'!$C45)) -> 82333.66673 | AW45: =IF($C45=0,"",SUMIFS(cf_detail!X$882:X$1278,cf_detail!$C$882:$C$1278,'Cash Flow'!$C45,_xlfn.ANCHORARRAY(cf_detail!$B$882),1)+SUMIFS(cf_detail!X$1875:X$2464,_xlfn.ANCHORARRAY(cf_detail!$B$1875),1,cf_detail!$C$1875:$C$2464,'Cash Flow'!$C45)) -> 82337.24507 | AX45: =IF($C45=0,"",SUMIFS(cf_detail!Y$882:Y$1278,cf_detail!$C$882:$C$1278,'Cash Flow'!$C45,_xlfn.ANCHORARRAY(cf_detail!$B$882),1)+SUMIFS(cf_detail!Y$1875:Y$2464,_xlfn.ANCHORARRAY(cf_detail!$B$1875),1,cf_detail!$C$1875:$C$2464,'Cash Flow'!$C45)) -> 82340.83078 | AY45: =IF($C45=0,"",SUMIFS(cf_detail!Z$882:Z$1278,cf_detail!$C$882:$C$1278,'Cash Flow'!$C45,_xlfn.ANCHORARRAY(cf_detail!$B$882),1)+SUMIFS(cf_detail!Z$1875:Z$2464,_xlfn.ANCHORARRAY(cf_detail!$B$1875),1,cf_detail!$C$1875:$C$2464,'Cash Flow'!$C45)) -> 82344.42388 | AZ45: =IF($C45=0,"",SUMIFS(cf_detail!AA$882:AA$1278,cf_detail!$C$882:$C$1278,'Cash Flow'!$C45,_xlfn.ANCHORARRAY(cf_detail!$B$882),1)+SUMIFS(cf_detail!AA$1875:AA$2464,_xlfn.ANCHORARRAY(cf_detail!$B$1875),1,cf_detail!$C$1875:$C$2464,'Cash Flow'!$C45)) -> 82348.02439 | BA45: =IF($C45=0,"",SUMIFS(cf_detail!AB$882:AB$1278,cf_detail!$C$882:$C$1278,'Cash Flow'!$C45,_xlfn.ANCHORARRAY(cf_detail!$B$882),1)+SUMIFS(cf_detail!AB$1875:AB$2464,_xlfn.ANCHORARRAY(cf_detail!$B$1875),1,cf_detail!$C$1875:$C$2464,'Cash Flow'!$C45)) -> 84082.48669 | BB45: =IF($C45=0,"",SUMIFS(cf_detail!AC$882:AC$1278,cf_detail!$C$882:$C$1278,'Cash Flow'!$C45,_xlfn.ANCHORARRAY(cf_detail!$B$882),1)+SUMIFS(cf_detail!AC$1875:AC$2464,_xlfn.ANCHORARRAY(cf_detail!$B$1875),1,cf_detail!$C$1875:$C$2464,'Cash Flow'!$C45)) -> 84086.10204 | BC45: =IF($C45=0,"",SUMIFS(cf_detail!AD$882:AD$1278,cf_detail!$C$882:$C$1278,'Cash Flow'!$C45,_xlfn.ANCHORARRAY(cf_detail!$B$882),1)+SUMIFS(cf_detail!AD$1875:AD$2464,_xlfn.ANCHORARRAY(cf_detail!$B$1875),1,cf_detail!$C$1875:$C$2464,'Cash Flow'!$C45)) -> 84089.72484 | BD45: =IF($C45=0,"",SUMIFS(cf_detail!AE$882:AE$1278,cf_detail!$C$882:$C$1278,'Cash Flow'!$C45,_xlfn.ANCHORARRAY(cf_detail!$B$882),1)+SUMIFS(cf_detail!AE$1875:AE$2464,_xlfn.ANCHORARRAY(cf_detail!$B$1875),1,cf_detail!$C$1875:$C$2464,'Cash Flow'!$C45)) -> 84093.3551 | BE45: =IF($C45=0,"",SUMIFS(cf_detail!AF$882:AF$1278,cf_detail!$C$882:$C$1278,'Cash Flow'!$C45,_xlfn.ANCHORARRAY(cf_detail!$B$882),1)+SUMIFS(cf_detail!AF$1875:AF$2464,_xlfn.ANCHORARRAY(cf_detail!$B$1875),1,cf_detail!$C$1875:$C$2464,'Cash Flow'!$C45)) -> 84233.29603 | BF45: =IF($C45=0,"",SUMIFS(cf_detail!AG$882:AG$1278,cf_detail!$C$882:$C$1278,'Cash Flow'!$C45,_xlfn.ANCHORARRAY(cf_detail!$B$882),1)+SUMIFS(cf_detail!AG$1875:AG$2464,_xlfn.ANCHORARRAY(cf_detail!$B$1875),1,cf_detail!$C$1875:$C$2464,'Cash Flow'!$C45)) -> 84236.94126 | BG45: =IF($C45=0,"",SUMIFS(cf_detail!AH$882:AH$1278,cf_detail!$C$882:$C$1278,'Cash Flow'!$C45,_xlfn.ANCHORARRAY(cf_detail!$B$882),1)+SUMIFS(cf_detail!AH$1875:AH$2464,_xlfn.ANCHORARRAY(cf_detail!$B$1875),1,cf_detail!$C$1875:$C$2464,'Cash Flow'!$C45)) -> 84240.59399 | BH45: =IF($C45=0,"",SUMIFS(cf_detail!AI$882:AI$1278,cf_detail!$C$882:$C$1278,'Cash Flow'!$C45,_xlfn.ANCHORARRAY(cf_detail!$B$882),1)+SUMIFS(cf_detail!AI$1875:AI$2464,_xlfn.ANCHORARRAY(cf_detail!$B$1875),1,cf_detail!$C$1875:$C$2464,'Cash Flow'!$C45)) -> 84244.25426 | BI45: =IF($C45=0,"",SUMIFS(cf_detail!AJ$882:AJ$1278,cf_detail!$C$882:$C$1278,'Cash Flow'!$C45,_xlfn.ANCHORARRAY(cf_detail!$B$882),1)+SUMIFS(cf_detail!AJ$1875:AJ$2464,_xlfn.ANCHORARRAY(cf_detail!$B$1875),1,cf_detail!$C$1875:$C$2464,'Cash Flow'!$C45)) -> 84247.92206 | BJ45: =IF($C45=0,"",SUMIFS(cf_detail!AK$882:AK$1278,cf_detail!$C$882:$C$1278,'Cash Flow'!$C45,_xlfn.ANCHORARRAY(cf_detail!$B$882),1)+SUMIFS(cf_detail!AK$1875:AK$2464,_xlfn.ANCHORARRAY(cf_detail!$B$1875),1,cf_detail!$C$1875:$C$2464,'Cash Flow'!$C45)) -> 84251.59742 | BK45: =IF($C45=0,"",SUMIFS(cf_detail!AL$882:AL$1278,cf_detail!$C$882:$C$1278,'Cash Flow'!$C45,_xlfn.ANCHORARRAY(cf_detail!$B$882),1)+SUMIFS(cf_detail!AL$1875:AL$2464,_xlfn.ANCHORARRAY(cf_detail!$B$1875),1,cf_detail!$C$1875:$C$2464,'Cash Flow'!$C45)) -> 84255.28034 | BL45: =IF($C45=0,"",SUMIFS(cf_detail!AM$882:AM$1278,cf_detail!$C$882:$C$1278,'Cash Flow'!$C45,_xlfn.ANCHORARRAY(cf_detail!$B$882),1)+SUMIFS(cf_detail!AM$1875:AM$2464,_xlfn.ANCHORARRAY(cf_detail!$B$1875),1,cf_detail!$C$1875:$C$2464,'Cash Flow'!$C45)) -> 84258.97086 | BM45: =IF($C45=0,"",SUMIFS(cf_detail!AN$882:AN$1278,cf_detail!$C$882:$C$1278,'Cash Flow'!$C45,_xlfn.ANCHORARRAY(cf_detail!$B$882),1)+SUMIFS(cf_detail!AN$1875:AN$2464,_xlfn.ANCHORARRAY(cf_detail!$B$1875),1,cf_detail!$C$1875:$C$2464,'Cash Flow'!$C45)) -> 86036.79472 | BN45: =IF($C45=0,"",SUMIFS(cf_detail!AO$882:AO$1278,cf_detail!$C$882:$C$1278,'Cash Flow'!$C45,_xlfn.ANCHORARRAY(cf_detail!$B$882),1)+SUMIFS(cf_detail!AO$1875:AO$2464,_xlfn.ANCHORARRAY(cf_detail!$B$1875),1,cf_detail!$C$1875:$C$2464,'Cash Flow'!$C45)) -> 86040.50046 | BO45: =IF($C45=0,"",SUMIFS(cf_detail!AP$882:AP$1278,cf_detail!$C$882:$C$1278,'Cash Flow'!$C45,_xlfn.ANCHORARRAY(cf_detail!$B$882),1)+SUMIFS(cf_detail!AP$1875:AP$2464,_xlfn.ANCHORARRAY(cf_detail!$B$1875),1,cf_detail!$C$1875:$C$2464,'Cash Flow'!$C45)) -> 86044.21382 | BP45: =IF($C45=0,"",SUMIFS(cf_detail!AQ$882:AQ$1278,cf_detail!$C$882:$C$1278,'Cash Flow'!$C45,_xlfn.ANCHORARRAY(cf_detail!$B$882),1)+SUMIFS(cf_detail!AQ$1875:AQ$2464,_xlfn.ANCHORARRAY(cf_detail!$B$1875),1,cf_detail!$C$1875:$C$2464,'Cash Flow'!$C45)) -> 86047.93484 | BQ45: =IF($C45=0,"",SUMIFS(cf_detail!AR$882:AR$1278,cf_detail!$C$882:$C$1278,'Cash Flow'!$C45,_xlfn.ANCHORARRAY(cf_detail!$B$882),1)+SUMIFS(cf_detail!AR$1875:AR$2464,_xlfn.ANCHORARRAY(cf_detail!$B$1875),1,cf_detail!$C$1875:$C$2464,'Cash Flow'!$C45)) -> 86191.37429 | BR45: =IF($C45=0,"",SUMIFS(cf_detail!AS$882:AS$1278,cf_detail!$C$882:$C$1278,'Cash Flow'!$C45,_xlfn.ANCHORARRAY(cf_detail!$B$882),1)+SUMIFS(cf_detail!AS$1875:AS$2464,_xlfn.ANCHORARRAY(cf_detail!$B$1875),1,cf_detail!$C$1875:$C$2464,'Cash Flow'!$C45)) -> 86195.11065 | BS45: =IF($C45=0,"",SUMIFS(cf_detail!AT$882:AT$1278,cf_detail!$C$882:$C$1278,'Cash Flow'!$C45,_xlfn.ANCHORARRAY(cf_detail!$B$882),1)+SUMIFS(cf_detail!AT$1875:AT$2464,_xlfn.ANCHORARRAY(cf_detail!$B$1875),1,cf_detail!$C$1875:$C$2464,'Cash Flow'!$C45)) -> 86198.85471 | BT45: =IF($C45=0,"",SUMIFS(cf_detail!AU$882:AU$1278,cf_detail!$C$882:$C$1278,'Cash Flow'!$C45,_xlfn.ANCHORARRAY(cf_detail!$B$882),1)+SUMIFS(cf_detail!AU$1875:AU$2464,_xlfn.ANCHORARRAY(cf_detail!$B$1875),1,cf_detail!$C$1875:$C$2464,'Cash Flow'!$C45)) -> 86202.60648 | BU45: =IF($C45=0,"",SUMIFS(cf_detail!AV$882:AV$1278,cf_detail!$C$882:$C$1278,'Cash Flow'!$C45,_xlfn.ANCHORARRAY(cf_detail!$B$882),1)+SUMIFS(cf_detail!AV$1875:AV$2464,_xlfn.ANCHORARRAY(cf_detail!$B$1875),1,cf_detail!$C$1875:$C$2464,'Cash Flow'!$C45)) -> 86206.36597 | BV45: =IF($C45=0,"",SUMIFS(cf_detail!AW$882:AW$1278,cf_detail!$C$882:$C$1278,'Cash Flow'!$C45,_xlfn.ANCHORARRAY(cf_detail!$B$882),1)+SUMIFS(cf_detail!AW$1875:AW$2464,_xlfn.ANCHORARRAY(cf_detail!$B$1875),1,cf_detail!$C$1875:$C$2464,'Cash Flow'!$C45)) -> 86210.13321 | BW45: =IF($C45=0,"",SUMIFS(cf_detail!AX$882:AX$1278,cf_detail!$C$882:$C$1278,'Cash Flow'!$C45,_xlfn.ANCHORARRAY(cf_detail!$B$882),1)+SUMIFS(cf_detail!AX$1875:AX$2464,_xlfn.ANCHORARRAY(cf_detail!$B$1875),1,cf_detail!$C$1875:$C$2464,'Cash Flow'!$C45)) -> 86213.90822 | BX45: =IF($C45=0,"",SUMIFS(cf_detail!AY$882:AY$1278,cf_detail!$C$882:$C$1278,'Cash Flow'!$C45,_xlfn.ANCHORARRAY(cf_detail!$B$882),1)+SUMIFS(cf_detail!AY$1875:AY$2464,_xlfn.ANCHORARRAY(cf_detail!$B$1875),1,cf_detail!$C$1875:$C$2464,'Cash Flow'!$C45)) -> 86217.69099 | BY45: =IF($C45=0,"",SUMIFS(cf_detail!AZ$882:AZ$1278,cf_detail!$C$882:$C$1278,'Cash Flow'!$C45,_xlfn.ANCHORARRAY(cf_detail!$B$882),1)+SUMIFS(cf_detail!AZ$1875:AZ$2464,_xlfn.ANCHORARRAY(cf_detail!$B$1875),1,cf_detail!$C$1875:$C$2464,'Cash Flow'!$C45)) -> 88039.96045 | BZ45: =IF($C45=0,"",SUMIFS(cf_detail!BA$882:BA$1278,cf_detail!$C$882:$C$1278,'Cash Flow'!$C45,_xlfn.ANCHORARRAY(cf_detail!$B$882),1)+SUMIFS(cf_detail!BA$1875:BA$2464,_xlfn.ANCHORARRAY(cf_detail!$B$1875),1,cf_detail!$C$1875:$C$2464,'Cash Flow'!$C45)) -> 88043.75883 | CA45: =IF($C45=0,"",SUMIFS(cf_detail!BB$882:BB$1278,cf_detail!$C$882:$C$1278,'Cash Flow'!$C45,_xlfn.ANCHORARRAY(cf_detail!$B$882),1)+SUMIFS(cf_detail!BB$1875:BB$2464,_xlfn.ANCHORARRAY(cf_detail!$B$1875),1,cf_detail!$C$1875:$C$2464,'Cash Flow'!$C45)) -> 88047.56503 | CB45: =IF($C45=0,"",SUMIFS(cf_detail!BC$882:BC$1278,cf_detail!$C$882:$C$1278,'Cash Flow'!$C45,_xlfn.ANCHORARRAY(cf_detail!$B$882),1)+SUMIFS(cf_detail!BC$1875:BC$2464,_xlfn.ANCHORARRAY(cf_detail!$B$1875),1,cf_detail!$C$1875:$C$2464,'Cash Flow'!$C45)) -> 88051.37907 | CC45: =IF($C45=0,"",SUMIFS(cf_detail!BD$882:BD$1278,cf_detail!$C$882:$C$1278,'Cash Flow'!$C45,_xlfn.ANCHORARRAY(cf_detail!$B$882),1)+SUMIFS(cf_detail!BD$1875:BD$2464,_xlfn.ANCHORARRAY(cf_detail!$B$1875),1,cf_detail!$C$1875:$C$2464,'Cash Flow'!$C45)) -> 88198.40451 | CD45: =IF($C45=0,"",SUMIFS(cf_detail!BE$882:BE$1278,cf_detail!$C$882:$C$1278,'Cash Flow'!$C45,_xlfn.ANCHORARRAY(cf_detail!$B$882),1)+SUMIFS(cf_detail!BE$1875:BE$2464,_xlfn.ANCHORARRAY(cf_detail!$B$1875),1,cf_detail!$C$1875:$C$2464,'Cash Flow'!$C45)) -> 88202.23428 | CE45: =IF($C45=0,"",SUMIFS(cf_detail!BF$882:BF$1278,cf_detail!$C$882:$C$1278,'Cash Flow'!$C45,_xlfn.ANCHORARRAY(cf_detail!$B$882),1)+SUMIFS(cf_detail!BF$1875:BF$2464,_xlfn.ANCHORARRAY(cf_detail!$B$1875),1,cf_detail!$C$1875:$C$2464,'Cash Flow'!$C45)) -> 88206.07194 | CF45: =IF($C45=0,"",SUMIFS(cf_detail!BG$882:BG$1278,cf_detail!$C$882:$C$1278,'Cash Flow'!$C45,_xlfn.ANCHORARRAY(cf_detail!$B$882),1)+SUMIFS(cf_detail!BG$1875:BG$2464,_xlfn.ANCHORARRAY(cf_detail!$B$1875),1,cf_detail!$C$1875:$C$2464,'Cash Flow'!$C45)) -> 88209.9175 | CG45: =IF($C45=0,"",SUMIFS(cf_detail!BH$882:BH$1278,cf_detail!$C$882:$C$1278,'Cash Flow'!$C45,_xlfn.ANCHORARRAY(cf_detail!$B$882),1)+SUMIFS(cf_detail!BH$1875:BH$2464,_xlfn.ANCHORARRAY(cf_detail!$B$1875),1,cf_detail!$C$1875:$C$2464,'Cash Flow'!$C45)) -> 88213.77099 | CH45: =IF($C45=0,"",SUMIFS(cf_detail!BI$882:BI$1278,cf_detail!$C$882:$C$1278,'Cash Flow'!$C45,_xlfn.ANCHORARRAY(cf_detail!$B$882),1)+SUMIFS(cf_detail!BI$1875:BI$2464,_xlfn.ANCHORARRAY(cf_detail!$B$1875),1,cf_detail!$C$1875:$C$2464,'Cash Flow'!$C45)) -> 88217.63241 | CI45: =IF($C45=0,"",SUMIFS(cf_detail!BJ$882:BJ$1278,cf_detail!$C$882:$C$1278,'Cash Flow'!$C45,_xlfn.ANCHORARRAY(cf_detail!$B$882),1)+SUMIFS(cf_detail!BJ$1875:BJ$2464,_xlfn.ANCHORARRAY(cf_detail!$B$1875),1,cf_detail!$C$1875:$C$2464,'Cash Flow'!$C45)) -> 88221.50178 | CJ45: =IF($C45=0,"",SUMIFS(cf_detail!BK$882:BK$1278,cf_detail!$C$882:$C$1278,'Cash Flow'!$C45,_xlfn.ANCHORARRAY(cf_detail!$B$882),1)+SUMIFS(cf_detail!BK$1875:BK$2464,_xlfn.ANCHORARRAY(cf_detail!$B$1875),1,cf_detail!$C$1875:$C$2464,'Cash Flow'!$C45)) -> 88225.37913 | CK45: =IF($C45=0,"",SUMIFS(cf_detail!BL$882:BL$1278,cf_detail!$C$882:$C$1278,'Cash Flow'!$C45,_xlfn.ANCHORARRAY(cf_detail!$B$882),1)+SUMIFS(cf_detail!BL$1875:BL$2464,_xlfn.ANCHORARRAY(cf_detail!$B$1875),1,cf_detail!$C$1875:$C$2464,'Cash Flow'!$C45)) -> 90093.20533 | CL45: =IF($C45=0,"",SUMIFS(cf_detail!BM$882:BM$1278,cf_detail!$C$882:$C$1278,'Cash Flow'!$C45,_xlfn.ANCHORARRAY(cf_detail!$B$882),1)+SUMIFS(cf_detail!BM$1875:BM$2464,_xlfn.ANCHORARRAY(cf_detail!$B$1875),1,cf_detail!$C$1875:$C$2464,'Cash Flow'!$C45)) -> 90097.09866 | CM45: =IF($C45=0,"",SUMIFS(cf_detail!BN$882:BN$1278,cf_detail!$C$882:$C$1278,'Cash Flow'!$C45,_xlfn.ANCHORARRAY(cf_detail!$B$882),1)+SUMIFS(cf_detail!BN$1875:BN$2464,_xlfn.ANCHORARRAY(cf_detail!$B$1875),1,cf_detail!$C$1875:$C$2464,'Cash Flow'!$C45)) -> 90101.00002 | CN45: =IF($C45=0,"",SUMIFS(cf_detail!BO$882:BO$1278,cf_detail!$C$882:$C$1278,'Cash Flow'!$C45,_xlfn.ANCHORARRAY(cf_detail!$B$882),1)+SUMIFS(cf_detail!BO$1875:BO$2464,_xlfn.ANCHORARRAY(cf_detail!$B$1875),1,cf_detail!$C$1875:$C$2464,'Cash Flow'!$C45)) -> 90104.90941 | CO45: =IF($C45=0,"",SUMIFS(cf_detail!BP$882:BP$1278,cf_detail!$C$882:$C$1278,'Cash Flow'!$C45,_xlfn.ANCHORARRAY(cf_detail!$B$882),1)+SUMIFS(cf_detail!BP$1875:BP$2464,_xlfn.ANCHORARRAY(cf_detail!$B$1875),1,cf_detail!$C$1875:$C$2464,'Cash Flow'!$C45)) -> 0 | CP45: =IF($C45=0,"",SUMIFS(cf_detail!BQ$882:BQ$1278,cf_detail!$C$882:$C$1278,'Cash Flow'!$C45,_xlfn.ANCHORARRAY(cf_detail!$B$882),1)+SUMIFS(cf_detail!BQ$1875:BQ$2464,_xlfn.ANCHORARRAY(cf_detail!$B$1875),1,cf_detail!$C$1875:$C$2464,'Cash Flow'!$C45)) -> 0 | CQ45: =IF($C45=0,"",SUMIFS(cf_detail!BR$882:BR$1278,cf_detail!$C$882:$C$1278,'Cash Flow'!$C45,_xlfn.ANCHORARRAY(cf_detail!$B$882),1)+SUMIFS(cf_detail!BR$1875:BR$2464,_xlfn.ANCHORARRAY(cf_detail!$B$1875),1,cf_detail!$C$1875:$C$2464,'Cash Flow'!$C45)) -> 0 | CR45: =IF($C45=0,"",SUMIFS(cf_detail!BS$882:BS$1278,cf_detail!$C$882:$C$1278,'Cash Flow'!$C45,_xlfn.ANCHORARRAY(cf_detail!$B$882),1)+SUMIFS(cf_detail!BS$1875:BS$2464,_xlfn.ANCHORARRAY(cf_detail!$B$1875),1,cf_detail!$C$1875:$C$2464,'Cash Flow'!$C45)) -> 0 | CS45: =IF($C45=0,"",SUMIFS(cf_detail!BT$882:BT$1278,cf_detail!$C$882:$C$1278,'Cash Flow'!$C45,_xlfn.ANCHORARRAY(cf_detail!$B$882),1)+SUMIFS(cf_detail!BT$1875:BT$2464,_xlfn.ANCHORARRAY(cf_detail!$B$1875),1,cf_detail!$C$1875:$C$2464,'Cash Flow'!$C45)) -> 0 | CT45: =IF($C45=0,"",SUMIFS(cf_detail!BU$882:BU$1278,cf_detail!$C$882:$C$1278,'Cash Flow'!$C45,_xlfn.ANCHORARRAY(cf_detail!$B$882),1)+SUMIFS(cf_detail!BU$1875:BU$2464,_xlfn.ANCHORARRAY(cf_detail!$B$1875),1,cf_detail!$C$1875:$C$2464,'Cash Flow'!$C45)) -> 0 | CU45: =IF($C45=0,"",SUMIFS(cf_detail!BV$882:BV$1278,cf_detail!$C$882:$C$1278,'Cash Flow'!$C45,_xlfn.ANCHORARRAY(cf_detail!$B$882),1)+SUMIFS(cf_detail!BV$1875:BV$2464,_xlfn.ANCHORARRAY(cf_detail!$B$1875),1,cf_detail!$C$1875:$C$2464,'Cash Flow'!$C45)) -> 0 | CV45: =IF($C45=0,"",SUMIFS(cf_detail!BW$882:BW$1278,cf_detail!$C$882:$C$1278,'Cash Flow'!$C45,_xlfn.ANCHORARRAY(cf_detail!$B$882),1)+SUMIFS(cf_detail!BW$1875:BW$2464,_xlfn.ANCHORARRAY(cf_detail!$B$1875),1,cf_detail!$C$1875:$C$2464,'Cash Flow'!$C45)) -> 0 | CW45: =IF($C45=0,"",SUMIFS(cf_detail!BX$882:BX$1278,cf_detail!$C$882:$C$1278,'Cash Flow'!$C45,_xlfn.ANCHORARRAY(cf_detail!$B$882),1)+SUMIFS(cf_detail!BX$1875:BX$2464,_xlfn.ANCHORARRAY(cf_detail!$B$1875),1,cf_detail!$C$1875:$C$2464,'Cash Flow'!$C45)) -> 0 | CX45: =IF($C45=0,"",SUMIFS(cf_detail!BY$882:BY$1278,cf_detail!$C$882:$C$1278,'Cash Flow'!$C45,_xlfn.ANCHORARRAY(cf_detail!$B$882),1)+SUMIFS(cf_detail!BY$1875:BY$2464,_xlfn.ANCHORARRAY(cf_detail!$B$1875),1,cf_detail!$C$1875:$C$2464,'Cash Flow'!$C45)) -> 0 | CY45: =IF($C45=0,"",SUMIFS(cf_detail!BZ$882:BZ$1278,cf_detail!$C$882:$C$1278,'Cash Flow'!$C45,_xlfn.ANCHORARRAY(cf_detail!$B$882),1)+SUMIFS(cf_detail!BZ$1875:BZ$2464,_xlfn.ANCHORARRAY(cf_detail!$B$1875),1,cf_detail!$C$1875:$C$2464,'Cash Flow'!$C45)) -> 0 | CZ45: =IF($C45=0,"",SUMIFS(cf_detail!CA$882:CA$1278,cf_detail!$C$882:$C$1278,'Cash Flow'!$C45,_xlfn.ANCHORARRAY(cf_detail!$B$882),1)+SUMIFS(cf_detail!CA$1875:CA$2464,_xlfn.ANCHORARRAY(cf_detail!$B$1875),1,cf_detail!$C$1875:$C$2464,'Cash Flow'!$C45)) -> 0 | DA45: =IF($C45=0,"",SUMIFS(cf_detail!CB$882:CB$1278,cf_detail!$C$882:$C$1278,'Cash Flow'!$C45,_xlfn.ANCHORARRAY(cf_detail!$B$882),1)+SUMIFS(cf_detail!CB$1875:CB$2464,_xlfn.ANCHORARRAY(cf_detail!$B$1875),1,cf_detail!$C$1875:$C$2464,'Cash Flow'!$C45)) -> 0 | DB45: =IF($C45=0,"",SUMIFS(cf_detail!CC$882:CC$1278,cf_detail!$C$882:$C$1278,'Cash Flow'!$C45,_xlfn.ANCHORARRAY(cf_detail!$B$882),1)+SUMIFS(cf_detail!CC$1875:CC$2464,_xlfn.ANCHORARRAY(cf_detail!$B$1875),1,cf_detail!$C$1875:$C$2464,'Cash Flow'!$C45)) -> 0 | DC45: =IF($C45=0,"",SUMIFS(cf_detail!CD$882:CD$1278,cf_detail!$C$882:$C$1278,'Cash Flow'!$C45,_xlfn.ANCHORARRAY(cf_detail!$B$882),1)+SUMIFS(cf_detail!CD$1875:CD$2464,_xlfn.ANCHORARRAY(cf_detail!$B$1875),1,cf_detail!$C$1875:$C$2464,'Cash Flow'!$C45)) -> 0 | DD45: =IF($C45=0,"",SUMIFS(cf_detail!CE$882:CE$1278,cf_detail!$C$882:$C$1278,'Cash Flow'!$C45,_xlfn.ANCHORARRAY(cf_detail!$B$882),1)+SUMIFS(cf_detail!CE$1875:CE$2464,_xlfn.ANCHORARRAY(cf_detail!$B$1875),1,cf_detail!$C$1875:$C$2464,'Cash Flow'!$C45)) -> 0 | DE45: =IF($C45=0,"",SUMIFS(cf_detail!CF$882:CF$1278,cf_detail!$C$882:$C$1278,'Cash Flow'!$C45,_xlfn.ANCHORARRAY(cf_detail!$B$882),1)+SUMIFS(cf_detail!CF$1875:CF$2464,_xlfn.ANCHORARRAY(cf_detail!$B$1875),1,cf_detail!$C$1875:$C$2464,'Cash Flow'!$C45)) -> 0 | DF45: =IF($C45=0,"",SUMIFS(cf_detail!CG$882:CG$1278,cf_detail!$C$882:$C$1278,'Cash Flow'!$C45,_xlfn.ANCHORARRAY(cf_detail!$B$882),1)+SUMIFS(cf_detail!CG$1875:CG$2464,_xlfn.ANCHORARRAY(cf_detail!$B$1875),1,cf_detail!$C$1875:$C$2464,'Cash Flow'!$C45)) -> 0 | DG45: =IF($C45=0,"",SUMIFS(cf_detail!CH$882:CH$1278,cf_detail!$C$882:$C$1278,'Cash Flow'!$C45,_xlfn.ANCHORARRAY(cf_detail!$B$882),1)+SUMIFS(cf_detail!CH$1875:CH$2464,_xlfn.ANCHORARRAY(cf_detail!$B$1875),1,cf_detail!$C$1875:$C$2464,'Cash Flow'!$C45)) -> 0 | DH45: =IF($C45=0,"",SUMIFS(cf_detail!CI$882:CI$1278,cf_detail!$C$882:$C$1278,'Cash Flow'!$C45,_xlfn.ANCHORARRAY(cf_detail!$B$882),1)+SUMIFS(cf_detail!CI$1875:CI$2464,_xlfn.ANCHORARRAY(cf_detail!$B$1875),1,cf_detail!$C$1875:$C$2464,'Cash Flow'!$C45)) -> 0 | DI45: =IF($C45=0,"",SUMIFS(cf_detail!CJ$882:CJ$1278,cf_detail!$C$882:$C$1278,'Cash Flow'!$C45,_xlfn.ANCHORARRAY(cf_detail!$B$882),1)+SUMIFS(cf_detail!CJ$1875:CJ$2464,_xlfn.ANCHORARRAY(cf_detail!$B$1875),1,cf_detail!$C$1875:$C$2464,'Cash Flow'!$C45)) -> 0 | DJ45: =IF($C45=0,"",SUMIFS(cf_detail!CK$882:CK$1278,cf_detail!$C$882:$C$1278,'Cash Flow'!$C45,_xlfn.ANCHORARRAY(cf_detail!$B$882),1)+SUMIFS(cf_detail!CK$1875:CK$2464,_xlfn.ANCHORARRAY(cf_detail!$B$1875),1,cf_detail!$C$1875:$C$2464,'Cash Flow'!$C45)) -> 0 | DK45: =IF($C45=0,"",SUMIFS(cf_detail!CL$882:CL$1278,cf_detail!$C$882:$C$1278,'Cash Flow'!$C45,_xlfn.ANCHORARRAY(cf_detail!$B$882),1)+SUMIFS(cf_detail!CL$1875:CL$2464,_xlfn.ANCHORARRAY(cf_detail!$B$1875),1,cf_detail!$C$1875:$C$2464,'Cash Flow'!$C45)) -> 0 | DL45: =IF($C45=0,"",SUMIFS(cf_detail!CM$882:CM$1278,cf_detail!$C$882:$C$1278,'Cash Flow'!$C45,_xlfn.ANCHORARRAY(cf_detail!$B$882),1)+SUMIFS(cf_detail!CM$1875:CM$2464,_xlfn.ANCHORARRAY(cf_detail!$B$1875),1,cf_detail!$C$1875:$C$2464,'Cash Flow'!$C45)) -> 0 | DM45: =IF($C45=0,"",SUMIFS(cf_detail!CN$882:CN$1278,cf_detail!$C$882:$C$1278,'Cash Flow'!$C45,_xlfn.ANCHORARRAY(cf_detail!$B$882),1)+SUMIFS(cf_detail!CN$1875:CN$2464,_xlfn.ANCHORARRAY(cf_detail!$B$1875),1,cf_detail!$C$1875:$C$2464,'Cash Flow'!$C45)) -> 0 | DN45: =IF($C45=0,"",SUMIFS(cf_detail!CO$882:CO$1278,cf_detail!$C$882:$C$1278,'Cash Flow'!$C45,_xlfn.ANCHORARRAY(cf_detail!$B$882),1)+SUMIFS(cf_detail!CO$1875:CO$2464,_xlfn.ANCHORARRAY(cf_detail!$B$1875),1,cf_detail!$C$1875:$C$2464,'Cash Flow'!$C45)) -> 0 | DO45: =IF($C45=0,"",SUMIFS(cf_detail!CP$882:CP$1278,cf_detail!$C$882:$C$1278,'Cash Flow'!$C45,_xlfn.ANCHORARRAY(cf_detail!$B$882),1)+SUMIFS(cf_detail!CP$1875:CP$2464,_xlfn.ANCHORARRAY(cf_detail!$B$1875),1,cf_detail!$C$1875:$C$2464,'Cash Flow'!$C45)) -> 0 | DP45: =IF($C45=0,"",SUMIFS(cf_detail!CQ$882:CQ$1278,cf_detail!$C$882:$C$1278,'Cash Flow'!$C45,_xlfn.ANCHORARRAY(cf_detail!$B$882),1)+SUMIFS(cf_detail!CQ$1875:CQ$2464,_xlfn.ANCHORARRAY(cf_detail!$B$1875),1,cf_detail!$C$1875:$C$2464,'Cash Flow'!$C45)) -> 0 | DQ45: =IF($C45=0,"",SUMIFS(cf_detail!CR$882:CR$1278,cf_detail!$C$882:$C$1278,'Cash Flow'!$C45,_xlfn.ANCHORARRAY(cf_detail!$B$882),1)+SUMIFS(cf_detail!CR$1875:CR$2464,_xlfn.ANCHORARRAY(cf_detail!$B$1875),1,cf_detail!$C$1875:$C$2464,'Cash Flow'!$C45)) -> 0 | DR45: =IF($C45=0,"",SUMIFS(cf_detail!CS$882:CS$1278,cf_detail!$C$882:$C$1278,'Cash Flow'!$C45,_xlfn.ANCHORARRAY(cf_detail!$B$882),1)+SUMIFS(cf_detail!CS$1875:CS$2464,_xlfn.ANCHORARRAY(cf_detail!$B$1875),1,cf_detail!$C$1875:$C$2464,'Cash Flow'!$C45)) -> 0 | DS45: =IF($C45=0,"",SUMIFS(cf_detail!CT$882:CT$1278,cf_detail!$C$882:$C$1278,'Cash Flow'!$C45,_xlfn.ANCHORARRAY(cf_detail!$B$882),1)+SUMIFS(cf_detail!CT$1875:CT$2464,_xlfn.ANCHORARRAY(cf_detail!$B$1875),1,cf_detail!$C$1875:$C$2464,'Cash Flow'!$C45)) -> 0 | DT45: =IF($C45=0,"",SUMIFS(cf_detail!CU$882:CU$1278,cf_detail!$C$882:$C$1278,'Cash Flow'!$C45,_xlfn.ANCHORARRAY(cf_detail!$B$882),1)+SUMIFS(cf_detail!CU$1875:CU$2464,_xlfn.ANCHORARRAY(cf_detail!$B$1875),1,cf_detail!$C$1875:$C$2464,'Cash Flow'!$C45)) -> 0 | DU45: =IF($C45=0,"",SUMIFS(cf_detail!CV$882:CV$1278,cf_detail!$C$882:$C$1278,'Cash Flow'!$C45,_xlfn.ANCHORARRAY(cf_detail!$B$882),1)+SUMIFS(cf_detail!CV$1875:CV$2464,_xlfn.ANCHORARRAY(cf_detail!$B$1875),1,cf_detail!$C$1875:$C$2464,'Cash Flow'!$C45)) -> 0 | DV45: =IF($C45=0,"",SUMIFS(cf_detail!CW$882:CW$1278,cf_detail!$C$882:$C$1278,'Cash Flow'!$C45,_xlfn.ANCHORARRAY(cf_detail!$B$882),1)+SUMIFS(cf_detail!CW$1875:CW$2464,_xlfn.ANCHORARRAY(cf_detail!$B$1875),1,cf_detail!$C$1875:$C$2464,'Cash Flow'!$C45)) -> 0 | DW45: =IF($C45=0,"",SUMIFS(cf_detail!CX$882:CX$1278,cf_detail!$C$882:$C$1278,'Cash Flow'!$C45,_xlfn.ANCHORARRAY(cf_detail!$B$882),1)+SUMIFS(cf_detail!CX$1875:CX$2464,_xlfn.ANCHORARRAY(cf_detail!$B$1875),1,cf_detail!$C$1875:$C$2464,'Cash Flow'!$C45)) -> 0 | DX45: =IF($C45=0,"",SUMIFS(cf_detail!CY$882:CY$1278,cf_detail!$C$882:$C$1278,'Cash Flow'!$C45,_xlfn.ANCHORARRAY(cf_detail!$B$882),1)+SUMIFS(cf_detail!CY$1875:CY$2464,_xlfn.ANCHORARRAY(cf_detail!$B$1875),1,cf_detail!$C$1875:$C$2464,'Cash Flow'!$C45)) -> 0 | DY45: =IF($C45=0,"",SUMIFS(cf_detail!CZ$882:CZ$1278,cf_detail!$C$882:$C$1278,'Cash Flow'!$C45,_xlfn.ANCHORARRAY(cf_detail!$B$882),1)+SUMIFS(cf_detail!CZ$1875:CZ$2464,_xlfn.ANCHORARRAY(cf_detail!$B$1875),1,cf_detail!$C$1875:$C$2464,'Cash Flow'!$C45)) -> 0 | DZ45: =IF($C45=0,"",SUMIFS(cf_detail!DA$882:DA$1278,cf_detail!$C$882:$C$1278,'Cash Flow'!$C45,_xlfn.ANCHORARRAY(cf_detail!$B$882),1)+SUMIFS(cf_detail!DA$1875:DA$2464,_xlfn.ANCHORARRAY(cf_detail!$B$1875),1,cf_detail!$C$1875:$C$2464,'Cash Flow'!$C45)) -> 0 | EA45: =IF($C45=0,"",SUMIFS(cf_detail!DB$882:DB$1278,cf_detail!$C$882:$C$1278,'Cash Flow'!$C45,_xlfn.ANCHORARRAY(cf_detail!$B$882),1)+SUMIFS(cf_detail!DB$1875:DB$2464,_xlfn.ANCHORARRAY(cf_detail!$B$1875),1,cf_detail!$C$1875:$C$2464,'Cash Flow'!$C45)) -> 0 | EB45: =IF($C45=0,"",SUMIFS(cf_detail!DC$882:DC$1278,cf_detail!$C$882:$C$1278,'Cash Flow'!$C45,_xlfn.ANCHORARRAY(cf_detail!$B$882),1)+SUMIFS(cf_detail!DC$1875:DC$2464,_xlfn.ANCHORARRAY(cf_detail!$B$1875),1,cf_detail!$C$1875:$C$2464,'Cash Flow'!$C45)) -> 0 | EC45: =IF($C45=0,"",SUMIFS(cf_detail!DD$882:DD$1278,cf_detail!$C$882:$C$1278,'Cash Flow'!$C45,_xlfn.ANCHORARRAY(cf_detail!$B$882),1)+SUMIFS(cf_detail!DD$1875:DD$2464,_xlfn.ANCHORARRAY(cf_detail!$B$1875),1,cf_detail!$C$1875:$C$2464,'Cash Flow'!$C45)) -> 0 | ED45: =IF($C45=0,"",SUMIFS(cf_detail!DE$882:DE$1278,cf_detail!$C$882:$C$1278,'Cash Flow'!$C45,_xlfn.ANCHORARRAY(cf_detail!$B$882),1)+SUMIFS(cf_detail!DE$1875:DE$2464,_xlfn.ANCHORARRAY(cf_detail!$B$1875),1,cf_detail!$C$1875:$C$2464,'Cash Flow'!$C45)) -> 0 | EE45: =IF($C45=0,"",SUMIFS(cf_detail!DF$882:DF$1278,cf_detail!$C$882:$C$1278,'Cash Flow'!$C45,_xlfn.ANCHORARRAY(cf_detail!$B$882),1)+SUMIFS(cf_detail!DF$1875:DF$2464,_xlfn.ANCHORARRAY(cf_detail!$B$1875),1,cf_detail!$C$1875:$C$2464,'Cash Flow'!$C45)) -> 0 | EF45: =IF($C45=0,"",SUMIFS(cf_detail!DG$882:DG$1278,cf_detail!$C$882:$C$1278,'Cash Flow'!$C45,_xlfn.ANCHORARRAY(cf_detail!$B$882),1)+SUMIFS(cf_detail!DG$1875:DG$2464,_xlfn.ANCHORARRAY(cf_detail!$B$1875),1,cf_detail!$C$1875:$C$2464,'Cash Flow'!$C45)) -> 0 | EG45: =IF($C45=0,"",SUMIFS(cf_detail!DH$882:DH$1278,cf_detail!$C$882:$C$1278,'Cash Flow'!$C45,_xlfn.ANCHORARRAY(cf_detail!$B$882),1)+SUMIFS(cf_detail!DH$1875:DH$2464,_xlfn.ANCHORARRAY(cf_detail!$B$1875),1,cf_detail!$C$1875:$C$2464,'Cash Flow'!$C45)) -> 0 | EH45: =IF($C45=0,"",SUMIFS(cf_detail!DI$882:DI$1278,cf_detail!$C$882:$C$1278,'Cash Flow'!$C45,_xlfn.ANCHORARRAY(cf_detail!$B$882),1)+SUMIFS(cf_detail!DI$1875:DI$2464,_xlfn.ANCHORARRAY(cf_detail!$B$1875),1,cf_detail!$C$1875:$C$2464,'Cash Flow'!$C45)) -> 0 | EI45: =IF($C45=0,"",SUMIFS(cf_detail!DJ$882:DJ$1278,cf_detail!$C$882:$C$1278,'Cash Flow'!$C45,_xlfn.ANCHORARRAY(cf_detail!$B$882),1)+SUMIFS(cf_detail!DJ$1875:DJ$2464,_xlfn.ANCHORARRAY(cf_detail!$B$1875),1,cf_detail!$C$1875:$C$2464,'Cash Flow'!$C45)) -> 0 | EJ45: =IF($C45=0,"",SUMIFS(cf_detail!DK$882:DK$1278,cf_detail!$C$882:$C$1278,'Cash Flow'!$C45,_xlfn.ANCHORARRAY(cf_detail!$B$882),1)+SUMIFS(cf_detail!DK$1875:DK$2464,_xlfn.ANCHORARRAY(cf_detail!$B$1875),1,cf_detail!$C$1875:$C$2464,'Cash Flow'!$C45)) -> 0 | EK45: =IF($C45=0,"",SUMIFS(cf_detail!DL$882:DL$1278,cf_detail!$C$882:$C$1278,'Cash Flow'!$C45,_xlfn.ANCHORARRAY(cf_detail!$B$882),1)+SUMIFS(cf_detail!DL$1875:DL$2464,_xlfn.ANCHORARRAY(cf_detail!$B$1875),1,cf_detail!$C$1875:$C$2464,'Cash Flow'!$C45)) -> 0 | EL45: =IF($C45=0,"",SUMIFS(cf_detail!DM$882:DM$1278,cf_detail!$C$882:$C$1278,'Cash Flow'!$C45,_xlfn.ANCHORARRAY(cf_detail!$B$882),1)+SUMIFS(cf_detail!DM$1875:DM$2464,_xlfn.ANCHORARRAY(cf_detail!$B$1875),1,cf_detail!$C$1875:$C$2464,'Cash Flow'!$C45)) -> 0 | EM45: =IF($C45=0,"",SUMIFS(cf_detail!DN$882:DN$1278,cf_detail!$C$882:$C$1278,'Cash Flow'!$C45,_xlfn.ANCHORARRAY(cf_detail!$B$882),1)+SUMIFS(cf_detail!DN$1875:DN$2464,_xlfn.ANCHORARRAY(cf_detail!$B$1875),1,cf_detail!$C$1875:$C$2464,'Cash Flow'!$C45)) -> 0 | EN45: =IF($C45=0,"",SUMIFS(cf_detail!DO$882:DO$1278,cf_detail!$C$882:$C$1278,'Cash Flow'!$C45,_xlfn.ANCHORARRAY(cf_detail!$B$882),1)+SUMIFS(cf_detail!DO$1875:DO$2464,_xlfn.ANCHORARRAY(cf_detail!$B$1875),1,cf_detail!$C$1875:$C$2464,'Cash Flow'!$C45)) -> 0 | EO45: =IF($C45=0,"",SUMIFS(cf_detail!DP$882:DP$1278,cf_detail!$C$882:$C$1278,'Cash Flow'!$C45,_xlfn.ANCHORARRAY(cf_detail!$B$882),1)+SUMIFS(cf_detail!DP$1875:DP$2464,_xlfn.ANCHORARRAY(cf_detail!$B$1875),1,cf_detail!$C$1875:$C$2464,'Cash Flow'!$C45)) -> 0 | EP45: =IF($C45=0,"",SUMIFS(cf_detail!DQ$882:DQ$1278,cf_detail!$C$882:$C$1278,'Cash Flow'!$C45,_xlfn.ANCHORARRAY(cf_detail!$B$882),1)+SUMIFS(cf_detail!DQ$1875:DQ$2464,_xlfn.ANCHORARRAY(cf_detail!$B$1875),1,cf_detail!$C$1875:$C$2464,'Cash Flow'!$C45)) -> 0 | EQ45: =IF($C45=0,"",SUMIFS(cf_detail!DR$882:DR$1278,cf_detail!$C$882:$C$1278,'Cash Flow'!$C45,_xlfn.ANCHORARRAY(cf_detail!$B$882),1)+SUMIFS(cf_detail!DR$1875:DR$2464,_xlfn.ANCHORARRAY(cf_detail!$B$1875),1,cf_detail!$C$1875:$C$2464,'Cash Flow'!$C45)) -> 0 | ER45: =IF($C45=0,"",SUMIFS(cf_detail!DS$882:DS$1278,cf_detail!$C$882:$C$1278,'Cash Flow'!$C45,_xlfn.ANCHORARRAY(cf_detail!$B$882),1)+SUMIFS(cf_detail!DS$1875:DS$2464,_xlfn.ANCHORARRAY(cf_detail!$B$1875),1,cf_detail!$C$1875:$C$2464,'Cash Flow'!$C45)) -> 0 | ES45: =IF($C45=0,"",SUMIFS(cf_detail!DT$882:DT$1278,cf_detail!$C$882:$C$1278,'Cash Flow'!$C45,_xlfn.ANCHORARRAY(cf_detail!$B$882),1)+SUMIFS(cf_detail!DT$1875:DT$2464,_xlfn.ANCHORARRAY(cf_detail!$B$1875),1,cf_detail!$C$1875:$C$2464,'Cash Flow'!$C45)) -> 0 | ET45: =IF($C45=0,"",SUMIFS(cf_detail!DU$882:DU$1278,cf_detail!$C$882:$C$1278,'Cash Flow'!$C45,_xlfn.ANCHORARRAY(cf_detail!$B$882),1)+SUMIFS(cf_detail!DU$1875:DU$2464,_xlfn.ANCHORARRAY(cf_detail!$B$1875),1,cf_detail!$C$1875:$C$2464,'Cash Flow'!$C45)) -> 0 | EU45: =IF($C45=0,"",SUMIFS(cf_detail!DV$882:DV$1278,cf_detail!$C$882:$C$1278,'Cash Flow'!$C45,_xlfn.ANCHORARRAY(cf_detail!$B$882),1)+SUMIFS(cf_detail!DV$1875:DV$2464,_xlfn.ANCHORARRAY(cf_detail!$B$1875),1,cf_detail!$C$1875:$C$2464,'Cash Flow'!$C45)) -> 0 | EV45: =IF($C45=0,"",SUMIFS(cf_detail!DW$882:DW$1278,cf_detail!$C$882:$C$1278,'Cash Flow'!$C45,_xlfn.ANCHORARRAY(cf_detail!$B$882),1)+SUMIFS(cf_detail!DW$1875:DW$2464,_xlfn.ANCHORARRAY(cf_detail!$B$1875),1,cf_detail!$C$1875:$C$2464,'Cash Flow'!$C45)) -> 0 | EW45: =IF($C45=0,"",SUMIFS(cf_detail!DX$882:DX$1278,cf_detail!$C$882:$C$1278,'Cash Flow'!$C45,_xlfn.ANCHORARRAY(cf_detail!$B$882),1)+SUMIFS(cf_detail!DX$1875:DX$2464,_xlfn.ANCHORARRAY(cf_detail!$B$1875),1,cf_detail!$C$1875:$C$2464,'Cash Flow'!$C45)) -> 0 | EX45: =IF($C45=0,"",SUMIFS(cf_detail!DY$882:DY$1278,cf_detail!$C$882:$C$1278,'Cash Flow'!$C45,_xlfn.ANCHORARRAY(cf_detail!$B$882),1)+SUMIFS(cf_detail!DY$1875:DY$2464,_xlfn.ANCHORARRAY(cf_detail!$B$1875),1,cf_detail!$C$1875:$C$2464,'Cash Flow'!$C45)) -> 0 | EY45: =IF($C45=0,"",SUMIFS(cf_detail!DZ$882:DZ$1278,cf_detail!$C$882:$C$1278,'Cash Flow'!$C45,_xlfn.ANCHORARRAY(cf_detail!$B$882),1)+SUMIFS(cf_detail!DZ$1875:DZ$2464,_xlfn.ANCHORARRAY(cf_detail!$B$1875),1,cf_detail!$C$1875:$C$2464,'Cash Flow'!$C45)) -> 0 | EZ45: =IF($C45=0,"",SUMIFS(cf_detail!EA$882:EA$1278,cf_detail!$C$882:$C$1278,'Cash Flow'!$C45,_xlfn.ANCHORARRAY(cf_detail!$B$882),1)+SUMIFS(cf_detail!EA$1875:EA$2464,_xlfn.ANCHORARRAY(cf_detail!$B$1875),1,cf_detail!$C$1875:$C$2464,'Cash Flow'!$C45)) -> 0 | FA45: =IF($C45=0,"",SUMIFS(cf_detail!EB$882:EB$1278,cf_detail!$C$882:$C$1278,'Cash Flow'!$C45,_xlfn.ANCHORARRAY(cf_detail!$B$882),1)+SUMIFS(cf_detail!EB$1875:EB$2464,_xlfn.ANCHORARRAY(cf_detail!$B$1875),1,cf_detail!$C$1875:$C$2464,'Cash Flow'!$C45)) -> 0 | FB45: =IF($C45=0,"",SUMIFS(cf_detail!EC$882:EC$1278,cf_detail!$C$882:$C$1278,'Cash Flow'!$C45,_xlfn.ANCHORARRAY(cf_detail!$B$882),1)+SUMIFS(cf_detail!EC$1875:EC$2464,_xlfn.ANCHORARRAY(cf_detail!$B$1875),1,cf_detail!$C$1875:$C$2464,'Cash Flow'!$C45)) -> 0 | FC45: =IF($C45=0,"",SUMIFS(cf_detail!ED$882:ED$1278,cf_detail!$C$882:$C$1278,'Cash Flow'!$C45,_xlfn.ANCHORARRAY(cf_detail!$B$882),1)+SUMIFS(cf_detail!ED$1875:ED$2464,_xlfn.ANCHORARRAY(cf_detail!$B$1875),1,cf_detail!$C$1875:$C$2464,'Cash Flow'!$C45)) -> 0 | FD45: =IF($C45=0,"",SUMIFS(cf_detail!EE$882:EE$1278,cf_detail!$C$882:$C$1278,'Cash Flow'!$C45,_xlfn.ANCHORARRAY(cf_detail!$B$882),1)+SUMIFS(cf_detail!EE$1875:EE$2464,_xlfn.ANCHORARRAY(cf_detail!$B$1875),1,cf_detail!$C$1875:$C$2464,'Cash Flow'!$C45)) -> 0 | FE45: =IF($C45=0,"",SUMIFS(cf_detail!EF$882:EF$1278,cf_detail!$C$882:$C$1278,'Cash Flow'!$C45,_xlfn.ANCHORARRAY(cf_detail!$B$882),1)+SUMIFS(cf_detail!EF$1875:EF$2464,_xlfn.ANCHORARRAY(cf_detail!$B$1875),1,cf_detail!$C$1875:$C$2464,'Cash Flow'!$C45)) -> 0 | FF45: =IF($C45=0,"",SUMIFS(cf_detail!EG$882:EG$1278,cf_detail!$C$882:$C$1278,'Cash Flow'!$C45,_xlfn.ANCHORARRAY(cf_detail!$B$882),1)+SUMIFS(cf_detail!EG$1875:EG$2464,_xlfn.ANCHORARRAY(cf_detail!$B$1875),1,cf_detail!$C$1875:$C$2464,'Cash Flow'!$C45)) -> 0 | FG45: =IF($C45=0,"",SUMIFS(cf_detail!EH$882:EH$1278,cf_detail!$C$882:$C$1278,'Cash Flow'!$C45,_xlfn.ANCHORARRAY(cf_detail!$B$882),1)+SUMIFS(cf_detail!EH$1875:EH$2464,_xlfn.ANCHORARRAY(cf_detail!$B$1875),1,cf_detail!$C$1875:$C$2464,'Cash Flow'!$C45)) -> 0 | FH45: =IF($C45=0,"",SUMIFS(cf_detail!EI$882:EI$1278,cf_detail!$C$882:$C$1278,'Cash Flow'!$C45,_xlfn.ANCHORARRAY(cf_detail!$B$882),1)+SUMIFS(cf_detail!EI$1875:EI$2464,_xlfn.ANCHORARRAY(cf_detail!$B$1875),1,cf_detail!$C$1875:$C$2464,'Cash Flow'!$C45)) -> 0
